{"text_format":"1","workbook":"xlsx","n_sheets":16,"sheets":["Ergebnisübersicht","Gesamt","G1","G2","G3","G4","G5","G6","G7","G8","G9","G10","G11","G12","G13","Settings"],"not_rendered":{"charts":0,"images":1,"macros":1,"external_links":0,"defined_names":15,"comments":0,"pivot_tables":0},"unopened":[],"bounds":{"document_bytes":16777216,"sheet_cells":100000,"rows_first":2000,"rows_last":500,"rows_between":2000,"halvings":0,"cell_chars":16384,"cell_head_chars":4096},"cells_cut":0,"cells_raw":0,"read":"whole","date_system":"1900"}

{"sheet":"Ergebnisübersicht","index":0,"n_rows":79,"n_cols":7,"rows_kept":79,"cut":false,"hidden":false,"merged":[]}
["Matrikelnr.","Name","Aktiv","Gruppe","Korrektor","Vorleistung","Punkte (Gruppenarbeit)"]
[{"$f":"Gesamt!D4","v":0},{"$f":"Gesamt!E4","v":0},{"$f":"Gesamt!F4","v":true},{"$f":"Gesamt!E$2","v":0},{"$f":"Gesamt!$A$3","v":"Prof. Dr. Benjamin Buchwitz"},{"$f":"AND(C2,Gesamt!D$45)","v":false},{"$f":"Gesamt!D$43*C2","v":0}]
[{"$f":"Gesamt!D5","v":0},{"$f":"Gesamt!E5","v":0},{"$f":"Gesamt!F5","v":" "},{"$f":"Gesamt!E$2","v":0},{"$f":"Gesamt!$A$3","v":"Prof. Dr. Benjamin Buchwitz"},{"$f":"AND(C3,Gesamt!D$45)","v":false},{"$f":"Gesamt!D$43*C3","v":{"$error":"#VALUE!"}}]
[{"$f":"Gesamt!D6","v":0},{"$f":"Gesamt!E6","v":0},{"$f":"Gesamt!F6","v":" "},{"$f":"Gesamt!E$2","v":0},{"$f":"Gesamt!$A$3","v":"Prof. Dr. Benjamin Buchwitz"},{"$f":"AND(C4,Gesamt!D$45)","v":false},{"$f":"Gesamt!D$43*C4","v":{"$error":"#VALUE!"}}]
[{"$f":"Gesamt!D7","v":0},{"$f":"Gesamt!E7","v":0},{"$f":"Gesamt!F7","v":" "},{"$f":"Gesamt!E$2","v":0},{"$f":"Gesamt!$A$3","v":"Prof. Dr. Benjamin Buchwitz"},{"$f":"AND(C5,Gesamt!D$45)","v":false},{"$f":"Gesamt!D$43*C5","v":{"$error":"#VALUE!"}}]
[{"$f":"Gesamt!D8","v":0},{"$f":"Gesamt!E8","v":0},{"$f":"Gesamt!F8","v":" "},{"$f":"Gesamt!E$2","v":0},{"$f":"Gesamt!$A$3","v":"Prof. Dr. Benjamin Buchwitz"},{"$f":"AND(C6,Gesamt!D$45)","v":false},{"$f":"Gesamt!D$43*C6","v":{"$error":"#VALUE!"}}]
[{"$f":"Gesamt!D9","v":0},{"$f":"Gesamt!E9","v":0},{"$f":"Gesamt!F9","v":" "},{"$f":"Gesamt!E$2","v":0},{"$f":"Gesamt!$A$3","v":"Prof. Dr. Benjamin Buchwitz"},{"$f":"AND(C7,Gesamt!D$45)","v":false},{"$f":"Gesamt!D$43*C7","v":{"$error":"#VALUE!"}}]
[{"$f":"Gesamt!G4","v":0},{"$f":"Gesamt!H4","v":0},{"$f":"Gesamt!I4","v":true},{"$f":"Gesamt!H$2","v":0},{"$f":"Gesamt!$A$3","v":"Prof. Dr. Benjamin Buchwitz"},{"$f":"AND(C8,Gesamt!G$45)","v":false},{"$f":"Gesamt!G$43*C8","v":0}]
[{"$f":"Gesamt!G5","v":0},{"$f":"Gesamt!H5","v":0},{"$f":"Gesamt!I5","v":" "},{"$f":"Gesamt!H$2","v":0},{"$f":"Gesamt!$A$3","v":"Prof. Dr. Benjamin Buchwitz"},{"$f":"AND(C9,Gesamt!G$45)","v":false},{"$f":"Gesamt!G$43*C9","v":{"$error":"#VALUE!"}}]
[{"$f":"Gesamt!G6","v":0},{"$f":"Gesamt!H6","v":0},{"$f":"Gesamt!I6","v":" "},{"$f":"Gesamt!H$2","v":0},{"$f":"Gesamt!$A$3","v":"Prof. Dr. Benjamin Buchwitz"},{"$f":"AND(C10,Gesamt!G$45)","v":false},{"$f":"Gesamt!G$43*C10","v":{"$error":"#VALUE!"}}]
[{"$f":"Gesamt!G7","v":0},{"$f":"Gesamt!H7","v":0},{"$f":"Gesamt!I7","v":" "},{"$f":"Gesamt!H$2","v":0},{"$f":"Gesamt!$A$3","v":"Prof. Dr. Benjamin Buchwitz"},{"$f":"AND(C11,Gesamt!G$45)","v":false},{"$f":"Gesamt!G$43*C11","v":{"$error":"#VALUE!"}}]
[{"$f":"Gesamt!G8","v":0},{"$f":"Gesamt!H8","v":0},{"$f":"Gesamt!I8","v":" "},{"$f":"Gesamt!H$2","v":0},{"$f":"Gesamt!$A$3","v":"Prof. Dr. Benjamin Buchwitz"},{"$f":"AND(C12,Gesamt!G$45)","v":false},{"$f":"Gesamt!G$43*C12","v":{"$error":"#VALUE!"}}]
[{"$f":"Gesamt!G9","v":0},{"$f":"Gesamt!H9","v":0},{"$f":"Gesamt!I9","v":" "},{"$f":"Gesamt!H$2","v":0},{"$f":"Gesamt!$A$3","v":"Prof. Dr. Benjamin Buchwitz"},{"$f":"AND(C13,Gesamt!G$45)","v":false},{"$f":"Gesamt!G$43*C13","v":{"$error":"#VALUE!"}}]
[{"$f":"Gesamt!J4","v":0},{"$f":"Gesamt!K4","v":0},{"$f":"Gesamt!L4","v":true},{"$f":"Gesamt!K$2","v":0},{"$f":"Gesamt!$A$3","v":"Prof. Dr. Benjamin Buchwitz"},{"$f":"AND(C14,Gesamt!J$45)","v":false},{"$f":"Gesamt!J$43*C14","v":0}]
[{"$f":"Gesamt!J5","v":0},{"$f":"Gesamt!K5","v":0},{"$f":"Gesamt!L5","v":" "},{"$f":"Gesamt!K$2","v":0},{"$f":"Gesamt!$A$3","v":"Prof. Dr. Benjamin Buchwitz"},{"$f":"AND(C15,Gesamt!J$45)","v":false},{"$f":"Gesamt!J$43*C15","v":{"$error":"#VALUE!"}}]
[{"$f":"Gesamt!J6","v":0},{"$f":"Gesamt!K6","v":0},{"$f":"Gesamt!L6","v":" "},{"$f":"Gesamt!K$2","v":0},{"$f":"Gesamt!$A$3","v":"Prof. Dr. Benjamin Buchwitz"},{"$f":"AND(C16,Gesamt!J$45)","v":false},{"$f":"Gesamt!J$43*C16","v":{"$error":"#VALUE!"}}]
[{"$f":"Gesamt!J7","v":0},{"$f":"Gesamt!K7","v":0},{"$f":"Gesamt!L7","v":" "},{"$f":"Gesamt!K$2","v":0},{"$f":"Gesamt!$A$3","v":"Prof. Dr. Benjamin Buchwitz"},{"$f":"AND(C17,Gesamt!J$45)","v":false},{"$f":"Gesamt!J$43*C17","v":{"$error":"#VALUE!"}}]
[{"$f":"Gesamt!J8","v":0},{"$f":"Gesamt!K8","v":0},{"$f":"Gesamt!L8","v":" "},{"$f":"Gesamt!K$2","v":0},{"$f":"Gesamt!$A$3","v":"Prof. Dr. Benjamin Buchwitz"},{"$f":"AND(C18,Gesamt!J$45)","v":false},{"$f":"Gesamt!J$43*C18","v":{"$error":"#VALUE!"}}]
[{"$f":"Gesamt!J9","v":0},{"$f":"Gesamt!K9","v":0},{"$f":"Gesamt!L9","v":" "},{"$f":"Gesamt!K$2","v":0},{"$f":"Gesamt!$A$3","v":"Prof. Dr. Benjamin Buchwitz"},{"$f":"AND(C19,Gesamt!J$45)","v":false},{"$f":"Gesamt!J$43*C19","v":{"$error":"#VALUE!"}}]
[{"$f":"Gesamt!M4","v":0},{"$f":"Gesamt!N4","v":0},{"$f":"Gesamt!O4","v":true},{"$f":"Gesamt!N$2","v":0},{"$f":"Gesamt!$A$3","v":"Prof. Dr. Benjamin Buchwitz"},{"$f":"AND(C20,Gesamt!M$45)","v":false},{"$f":"Gesamt!M$43*C20","v":0}]
[{"$f":"Gesamt!M5","v":0},{"$f":"Gesamt!N5","v":0},{"$f":"Gesamt!O5","v":" "},{"$f":"Gesamt!N$2","v":0},{"$f":"Gesamt!$A$3","v":"Prof. Dr. Benjamin Buchwitz"},{"$f":"AND(C21,Gesamt!M$45)","v":false},{"$f":"Gesamt!M$43*C21","v":{"$error":"#VALUE!"}}]
[{"$f":"Gesamt!M6","v":0},{"$f":"Gesamt!N6","v":0},{"$f":"Gesamt!O6","v":" "},{"$f":"Gesamt!N$2","v":0},{"$f":"Gesamt!$A$3","v":"Prof. Dr. Benjamin Buchwitz"},{"$f":"AND(C22,Gesamt!M$45)","v":false},{"$f":"Gesamt!M$43*C22","v":{"$error":"#VALUE!"}}]
[{"$f":"Gesamt!M7","v":0},{"$f":"Gesamt!N7","v":0},{"$f":"Gesamt!O7","v":" "},{"$f":"Gesamt!N$2","v":0},{"$f":"Gesamt!$A$3","v":"Prof. Dr. Benjamin Buchwitz"},{"$f":"AND(C23,Gesamt!M$45)","v":false},{"$f":"Gesamt!M$43*C23","v":{"$error":"#VALUE!"}}]
[{"$f":"Gesamt!M8","v":0},{"$f":"Gesamt!N8","v":0},{"$f":"Gesamt!O8","v":" "},{"$f":"Gesamt!N$2","v":0},{"$f":"Gesamt!$A$3","v":"Prof. Dr. Benjamin Buchwitz"},{"$f":"AND(C24,Gesamt!M$45)","v":false},{"$f":"Gesamt!M$43*C24","v":{"$error":"#VALUE!"}}]
[{"$f":"Gesamt!M9","v":0},{"$f":"Gesamt!N9","v":0},{"$f":"Gesamt!O9","v":" "},{"$f":"Gesamt!N$2","v":0},{"$f":"Gesamt!$A$3","v":"Prof. Dr. Benjamin Buchwitz"},{"$f":"AND(C25,Gesamt!M$45)","v":false},{"$f":"Gesamt!M$43*C25","v":{"$error":"#VALUE!"}}]
[{"$f":"Gesamt!P4","v":0},{"$f":"Gesamt!Q4","v":0},{"$f":"Gesamt!R4","v":true},{"$f":"Gesamt!Q$2","v":0},{"$f":"Gesamt!$A$3","v":"Prof. Dr. Benjamin Buchwitz"},{"$f":"AND(C26,Gesamt!P$45)","v":false},{"$f":"Gesamt!P$43*C26","v":0}]
[{"$f":"Gesamt!P5","v":0},{"$f":"Gesamt!Q5","v":0},{"$f":"Gesamt!R5","v":" "},{"$f":"Gesamt!Q$2","v":0},{"$f":"Gesamt!$A$3","v":"Prof. Dr. Benjamin Buchwitz"},{"$f":"AND(C27,Gesamt!P$45)","v":false},{"$f":"Gesamt!P$43*C27","v":{"$error":"#VALUE!"}}]
[{"$f":"Gesamt!P6","v":0},{"$f":"Gesamt!Q6","v":0},{"$f":"Gesamt!R6","v":" "},{"$f":"Gesamt!Q$2","v":0},{"$f":"Gesamt!$A$3","v":"Prof. Dr. Benjamin Buchwitz"},{"$f":"AND(C28,Gesamt!P$45)","v":false},{"$f":"Gesamt!P$43*C28","v":{"$error":"#VALUE!"}}]
[{"$f":"Gesamt!P7","v":0},{"$f":"Gesamt!Q7","v":0},{"$f":"Gesamt!R7","v":" "},{"$f":"Gesamt!Q$2","v":0},{"$f":"Gesamt!$A$3","v":"Prof. Dr. Benjamin Buchwitz"},{"$f":"AND(C29,Gesamt!P$45)","v":false},{"$f":"Gesamt!P$43*C29","v":{"$error":"#VALUE!"}}]
[{"$f":"Gesamt!P8","v":0},{"$f":"Gesamt!Q8","v":0},{"$f":"Gesamt!R8","v":" "},{"$f":"Gesamt!Q$2","v":0},{"$f":"Gesamt!$A$3","v":"Prof. Dr. Benjamin Buchwitz"},{"$f":"AND(C30,Gesamt!P$45)","v":false},{"$f":"Gesamt!P$43*C30","v":{"$error":"#VALUE!"}}]
[{"$f":"Gesamt!P9","v":0},{"$f":"Gesamt!Q9","v":0},{"$f":"Gesamt!R9","v":" "},{"$f":"Gesamt!Q$2","v":0},{"$f":"Gesamt!$A$3","v":"Prof. Dr. Benjamin Buchwitz"},{"$f":"AND(C31,Gesamt!P$45)","v":false},{"$f":"Gesamt!P$43*C31","v":{"$error":"#VALUE!"}}]
[{"$f":"Gesamt!S4","v":0},{"$f":"Gesamt!T4","v":0},{"$f":"Gesamt!U4","v":true},{"$f":"Gesamt!T$2","v":0},{"$f":"Gesamt!$A$3","v":"Prof. Dr. Benjamin Buchwitz"},{"$f":"AND(C32,Gesamt!S$45)","v":false},{"$f":"Gesamt!S$43*C32","v":0}]
[{"$f":"Gesamt!S5","v":0},{"$f":"Gesamt!T5","v":0},{"$f":"Gesamt!U5","v":" "},{"$f":"Gesamt!T$2","v":0},{"$f":"Gesamt!$A$3","v":"Prof. Dr. Benjamin Buchwitz"},{"$f":"AND(C33,Gesamt!S$45)","v":false},{"$f":"Gesamt!S$43*C33","v":{"$error":"#VALUE!"}}]
[{"$f":"Gesamt!S6","v":0},{"$f":"Gesamt!T6","v":0},{"$f":"Gesamt!U6","v":" "},{"$f":"Gesamt!T$2","v":0},{"$f":"Gesamt!$A$3","v":"Prof. Dr. Benjamin Buchwitz"},{"$f":"AND(C34,Gesamt!S$45)","v":false},{"$f":"Gesamt!S$43*C34","v":{"$error":"#VALUE!"}}]
[{"$f":"Gesamt!S7","v":0},{"$f":"Gesamt!T7","v":0},{"$f":"Gesamt!U7","v":" "},{"$f":"Gesamt!T$2","v":0},{"$f":"Gesamt!$A$3","v":"Prof. Dr. Benjamin Buchwitz"},{"$f":"AND(C35,Gesamt!S$45)","v":false},{"$f":"Gesamt!S$43*C35","v":{"$error":"#VALUE!"}}]
[{"$f":"Gesamt!S8","v":0},{"$f":"Gesamt!T8","v":0},{"$f":"Gesamt!U8","v":" "},{"$f":"Gesamt!T$2","v":0},{"$f":"Gesamt!$A$3","v":"Prof. Dr. Benjamin Buchwitz"},{"$f":"AND(C36,Gesamt!S$45)","v":false},{"$f":"Gesamt!S$43*C36","v":{"$error":"#VALUE!"}}]
[{"$f":"Gesamt!S9","v":0},{"$f":"Gesamt!T9","v":0},{"$f":"Gesamt!U9","v":" "},{"$f":"Gesamt!T$2","v":0},{"$f":"Gesamt!$A$3","v":"Prof. Dr. Benjamin Buchwitz"},{"$f":"AND(C37,Gesamt!S$45)","v":false},{"$f":"Gesamt!S$43*C37","v":{"$error":"#VALUE!"}}]
[{"$f":"Gesamt!V4","v":0},{"$f":"Gesamt!W4","v":0},{"$f":"Gesamt!X4","v":true},{"$f":"Gesamt!W$2","v":0},{"$f":"Gesamt!$A$3","v":"Prof. Dr. Benjamin Buchwitz"},{"$f":"AND(C38,Gesamt!V$45)","v":false},{"$f":"Gesamt!V$43*C38","v":0}]
[{"$f":"Gesamt!V5","v":0},{"$f":"Gesamt!W5","v":0},{"$f":"Gesamt!X5","v":" "},{"$f":"Gesamt!W$2","v":0},{"$f":"Gesamt!$A$3","v":"Prof. Dr. Benjamin Buchwitz"},{"$f":"AND(C39,Gesamt!V$45)","v":false},{"$f":"Gesamt!V$43*C39","v":{"$error":"#VALUE!"}}]
[{"$f":"Gesamt!V6","v":0},{"$f":"Gesamt!W6","v":0},{"$f":"Gesamt!X6","v":" "},{"$f":"Gesamt!W$2","v":0},{"$f":"Gesamt!$A$3","v":"Prof. Dr. Benjamin Buchwitz"},{"$f":"AND(C40,Gesamt!V$45)","v":false},{"$f":"Gesamt!V$43*C40","v":{"$error":"#VALUE!"}}]
[{"$f":"Gesamt!V7","v":0},{"$f":"Gesamt!W7","v":0},{"$f":"Gesamt!X7","v":" "},{"$f":"Gesamt!W$2","v":0},{"$f":"Gesamt!$A$3","v":"Prof. Dr. Benjamin Buchwitz"},{"$f":"AND(C41,Gesamt!V$45)","v":false},{"$f":"Gesamt!V$43*C41","v":{"$error":"#VALUE!"}}]
[{"$f":"Gesamt!V8","v":0},{"$f":"Gesamt!W8","v":0},{"$f":"Gesamt!X8","v":" "},{"$f":"Gesamt!W$2","v":0},{"$f":"Gesamt!$A$3","v":"Prof. Dr. Benjamin Buchwitz"},{"$f":"AND(C42,Gesamt!V$45)","v":false},{"$f":"Gesamt!V$43*C42","v":{"$error":"#VALUE!"}}]
[{"$f":"Gesamt!V9","v":0},{"$f":"Gesamt!W9","v":0},{"$f":"Gesamt!X9","v":" "},{"$f":"Gesamt!W$2","v":0},{"$f":"Gesamt!$A$3","v":"Prof. Dr. Benjamin Buchwitz"},{"$f":"AND(C43,Gesamt!V$45)","v":false},{"$f":"Gesamt!V$43*C43","v":{"$error":"#VALUE!"}}]
[{"$f":"Gesamt!Y4","v":0},{"$f":"Gesamt!Z4","v":0},{"$f":"Gesamt!AA4","v":true},{"$f":"Gesamt!Z$2","v":0},{"$f":"Gesamt!$A$3","v":"Prof. Dr. Benjamin Buchwitz"},{"$f":"AND(C44,Gesamt!Y$45)","v":false},{"$f":"Gesamt!Y$43*C44","v":0}]
[{"$f":"Gesamt!Y5","v":0},{"$f":"Gesamt!Z5","v":0},{"$f":"Gesamt!AA5","v":" "},{"$f":"Gesamt!Z$2","v":0},{"$f":"Gesamt!$A$3","v":"Prof. Dr. Benjamin Buchwitz"},{"$f":"AND(C45,Gesamt!Y$45)","v":false},{"$f":"Gesamt!Y$43*C45","v":{"$error":"#VALUE!"}}]
[{"$f":"Gesamt!Y6","v":0},{"$f":"Gesamt!Z6","v":0},{"$f":"Gesamt!AA6","v":" "},{"$f":"Gesamt!Z$2","v":0},{"$f":"Gesamt!$A$3","v":"Prof. Dr. Benjamin Buchwitz"},{"$f":"AND(C46,Gesamt!Y$45)","v":false},{"$f":"Gesamt!Y$43*C46","v":{"$error":"#VALUE!"}}]
[{"$f":"Gesamt!Y7","v":0},{"$f":"Gesamt!Z7","v":0},{"$f":"Gesamt!AA7","v":" "},{"$f":"Gesamt!Z$2","v":0},{"$f":"Gesamt!$A$3","v":"Prof. Dr. Benjamin Buchwitz"},{"$f":"AND(C47,Gesamt!Y$45)","v":false},{"$f":"Gesamt!Y$43*C47","v":{"$error":"#VALUE!"}}]
[{"$f":"Gesamt!Y8","v":0},{"$f":"Gesamt!Z8","v":0},{"$f":"Gesamt!AA8","v":" "},{"$f":"Gesamt!Z$2","v":0},{"$f":"Gesamt!$A$3","v":"Prof. Dr. Benjamin Buchwitz"},{"$f":"AND(C48,Gesamt!Y$45)","v":false},{"$f":"Gesamt!Y$43*C48","v":{"$error":"#VALUE!"}}]
[{"$f":"Gesamt!Y9","v":0},{"$f":"Gesamt!Z9","v":0},{"$f":"Gesamt!AA9","v":" "},{"$f":"Gesamt!Z$2","v":0},{"$f":"Gesamt!$A$3","v":"Prof. Dr. Benjamin Buchwitz"},{"$f":"AND(C49,Gesamt!Y$45)","v":false},{"$f":"Gesamt!Y$43*C49","v":{"$error":"#VALUE!"}}]
[{"$f":"Gesamt!AB4","v":0},{"$f":"Gesamt!AC4","v":0},{"$f":"Gesamt!AD4","v":true},{"$f":"Gesamt!AC$2","v":0},{"$f":"Gesamt!$A$3","v":"Prof. Dr. Benjamin Buchwitz"},{"$f":"AND(C50,Gesamt!AB$45)","v":false},{"$f":"Gesamt!AB$43*C50","v":0}]
[{"$f":"Gesamt!AB5","v":0},{"$f":"Gesamt!AC5","v":0},{"$f":"Gesamt!AD5","v":" "},{"$f":"Gesamt!AC$2","v":0},{"$f":"Gesamt!$A$3","v":"Prof. Dr. Benjamin Buchwitz"},{"$f":"AND(C51,Gesamt!AB$45)","v":false},{"$f":"Gesamt!AB$43*C51","v":{"$error":"#VALUE!"}}]
[{"$f":"Gesamt!AB6","v":0},{"$f":"Gesamt!AC6","v":0},{"$f":"Gesamt!AD6","v":" "},{"$f":"Gesamt!AC$2","v":0},{"$f":"Gesamt!$A$3","v":"Prof. Dr. Benjamin Buchwitz"},{"$f":"AND(C52,Gesamt!AB$45)","v":false},{"$f":"Gesamt!AB$43*C52","v":{"$error":"#VALUE!"}}]
[{"$f":"Gesamt!AB7","v":0},{"$f":"Gesamt!AC7","v":0},{"$f":"Gesamt!AD7","v":" "},{"$f":"Gesamt!AC$2","v":0},{"$f":"Gesamt!$A$3","v":"Prof. Dr. Benjamin Buchwitz"},{"$f":"AND(C53,Gesamt!AB$45)","v":false},{"$f":"Gesamt!AB$43*C53","v":{"$error":"#VALUE!"}}]
[{"$f":"Gesamt!AB8","v":0},{"$f":"Gesamt!AC8","v":0},{"$f":"Gesamt!AD8","v":" "},{"$f":"Gesamt!AC$2","v":0},{"$f":"Gesamt!$A$3","v":"Prof. Dr. Benjamin Buchwitz"},{"$f":"AND(C54,Gesamt!AB$45)","v":false},{"$f":"Gesamt!AB$43*C54","v":{"$error":"#VALUE!"}}]
[{"$f":"Gesamt!AB9","v":0},{"$f":"Gesamt!AC9","v":0},{"$f":"Gesamt!AD9","v":" "},{"$f":"Gesamt!AC$2","v":0},{"$f":"Gesamt!$A$3","v":"Prof. Dr. Benjamin Buchwitz"},{"$f":"AND(C55,Gesamt!AB$45)","v":false},{"$f":"Gesamt!AB$43*C55","v":{"$error":"#VALUE!"}}]
[{"$f":"Gesamt!AE4","v":0},{"$f":"Gesamt!AF4","v":0},{"$f":"Gesamt!AG4","v":true},{"$f":"Gesamt!AF$2","v":0},{"$f":"Gesamt!$A$3","v":"Prof. Dr. Benjamin Buchwitz"},{"$f":"AND(C56,Gesamt!AE$45)","v":false},{"$f":"Gesamt!AE$43*C56","v":0}]
[{"$f":"Gesamt!AE5","v":0},{"$f":"Gesamt!AF5","v":0},{"$f":"Gesamt!AG5","v":" "},{"$f":"Gesamt!AF$2","v":0},{"$f":"Gesamt!$A$3","v":"Prof. Dr. Benjamin Buchwitz"},{"$f":"AND(C57,Gesamt!AE$45)","v":false},{"$f":"Gesamt!AE$43*C57","v":{"$error":"#VALUE!"}}]
[{"$f":"Gesamt!AE6","v":0},{"$f":"Gesamt!AF6","v":0},{"$f":"Gesamt!AG6","v":" "},{"$f":"Gesamt!AF$2","v":0},{"$f":"Gesamt!$A$3","v":"Prof. Dr. Benjamin Buchwitz"},{"$f":"AND(C58,Gesamt!AE$45)","v":false},{"$f":"Gesamt!AE$43*C58","v":{"$error":"#VALUE!"}}]
[{"$f":"Gesamt!AE7","v":0},{"$f":"Gesamt!AF7","v":0},{"$f":"Gesamt!AG7","v":" "},{"$f":"Gesamt!AF$2","v":0},{"$f":"Gesamt!$A$3","v":"Prof. Dr. Benjamin Buchwitz"},{"$f":"AND(C59,Gesamt!AE$45)","v":false},{"$f":"Gesamt!AE$43*C59","v":{"$error":"#VALUE!"}}]
[{"$f":"Gesamt!AE8","v":0},{"$f":"Gesamt!AF8","v":0},{"$f":"Gesamt!AG8","v":" "},{"$f":"Gesamt!AF$2","v":0},{"$f":"Gesamt!$A$3","v":"Prof. Dr. Benjamin Buchwitz"},{"$f":"AND(C60,Gesamt!AE$45)","v":false},{"$f":"Gesamt!AE$43*C60","v":{"$error":"#VALUE!"}}]
[{"$f":"Gesamt!AE9","v":0},{"$f":"Gesamt!AF9","v":0},{"$f":"Gesamt!AG9","v":" "},{"$f":"Gesamt!AF$2","v":0},{"$f":"Gesamt!$A$3","v":"Prof. Dr. Benjamin Buchwitz"},{"$f":"AND(C61,Gesamt!AE$45)","v":false},{"$f":"Gesamt!AE$43*C61","v":{"$error":"#VALUE!"}}]
[{"$f":"Gesamt!AH4","v":0},{"$f":"Gesamt!AI4","v":0},{"$f":"Gesamt!AJ4","v":true},{"$f":"Gesamt!AI$2","v":0},{"$f":"Gesamt!$A$3","v":"Prof. Dr. Benjamin Buchwitz"},{"$f":"AND(C62,Gesamt!AH$45)","v":false},{"$f":"Gesamt!AH$43*C62","v":0}]
[{"$f":"Gesamt!AH5","v":0},{"$f":"Gesamt!AI5","v":0},{"$f":"Gesamt!AJ5","v":" "},{"$f":"Gesamt!AI$2","v":0},{"$f":"Gesamt!$A$3","v":"Prof. Dr. Benjamin Buchwitz"},{"$f":"AND(C63,Gesamt!AH$45)","v":false},{"$f":"Gesamt!AH$43*C63","v":{"$error":"#VALUE!"}}]
[{"$f":"Gesamt!AH6","v":0},{"$f":"Gesamt!AI6","v":0},{"$f":"Gesamt!AJ6","v":" "},{"$f":"Gesamt!AI$2","v":0},{"$f":"Gesamt!$A$3","v":"Prof. Dr. Benjamin Buchwitz"},{"$f":"AND(C64,Gesamt!AH$45)","v":false},{"$f":"Gesamt!AH$43*C64","v":{"$error":"#VALUE!"}}]
[{"$f":"Gesamt!AH7","v":0},{"$f":"Gesamt!AI7","v":0},{"$f":"Gesamt!AJ7","v":" "},{"$f":"Gesamt!AI$2","v":0},{"$f":"Gesamt!$A$3","v":"Prof. Dr. Benjamin Buchwitz"},{"$f":"AND(C65,Gesamt!AH$45)","v":false},{"$f":"Gesamt!AH$43*C65","v":{"$error":"#VALUE!"}}]
[{"$f":"Gesamt!AH8","v":0},{"$f":"Gesamt!AI8","v":0},{"$f":"Gesamt!AJ8","v":" "},{"$f":"Gesamt!AI$2","v":0},{"$f":"Gesamt!$A$3","v":"Prof. Dr. Benjamin Buchwitz"},{"$f":"AND(C66,Gesamt!AH$45)","v":false},{"$f":"Gesamt!AH$43*C66","v":{"$error":"#VALUE!"}}]
[{"$f":"Gesamt!AH9","v":0},{"$f":"Gesamt!AI9","v":0},{"$f":"Gesamt!AJ9","v":" "},{"$f":"Gesamt!AI$2","v":0},{"$f":"Gesamt!$A$3","v":"Prof. Dr. Benjamin Buchwitz"},{"$f":"AND(C67,Gesamt!AH$45)","v":false},{"$f":"Gesamt!AH$43*C67","v":{"$error":"#VALUE!"}}]
[{"$f":"Gesamt!AK4","v":0},{"$f":"Gesamt!AL4","v":0},{"$f":"Gesamt!AM4","v":true},{"$f":"Gesamt!AL$2","v":0},{"$f":"Gesamt!$A$3","v":"Prof. Dr. Benjamin Buchwitz"},{"$f":"AND(C68,Gesamt!AK$45)","v":false},{"$f":"Gesamt!AK$43*C68","v":0}]
[{"$f":"Gesamt!AK5","v":0},{"$f":"Gesamt!AL5","v":0},{"$f":"Gesamt!AM5","v":" "},{"$f":"Gesamt!AL$2","v":0},{"$f":"Gesamt!$A$3","v":"Prof. Dr. Benjamin Buchwitz"},{"$f":"AND(C69,Gesamt!AK$45)","v":false},{"$f":"Gesamt!AK$43*C69","v":{"$error":"#VALUE!"}}]
[{"$f":"Gesamt!AK6","v":0},{"$f":"Gesamt!AL6","v":0},{"$f":"Gesamt!AM6","v":" "},{"$f":"Gesamt!AL$2","v":0},{"$f":"Gesamt!$A$3","v":"Prof. Dr. Benjamin Buchwitz"},{"$f":"AND(C70,Gesamt!AK$45)","v":false},{"$f":"Gesamt!AK$43*C70","v":{"$error":"#VALUE!"}}]
[{"$f":"Gesamt!AK7","v":0},{"$f":"Gesamt!AL7","v":0},{"$f":"Gesamt!AM7","v":" "},{"$f":"Gesamt!AL$2","v":0},{"$f":"Gesamt!$A$3","v":"Prof. Dr. Benjamin Buchwitz"},{"$f":"AND(C71,Gesamt!AK$45)","v":false},{"$f":"Gesamt!AK$43*C71","v":{"$error":"#VALUE!"}}]
[{"$f":"Gesamt!AK8","v":0},{"$f":"Gesamt!AL8","v":0},{"$f":"Gesamt!AM8","v":" "},{"$f":"Gesamt!AL$2","v":0},{"$f":"Gesamt!$A$3","v":"Prof. Dr. Benjamin Buchwitz"},{"$f":"AND(C72,Gesamt!AK$45)","v":false},{"$f":"Gesamt!AK$43*C72","v":{"$error":"#VALUE!"}}]
[{"$f":"Gesamt!AK9","v":0},{"$f":"Gesamt!AL9","v":0},{"$f":"Gesamt!AM9","v":" "},{"$f":"Gesamt!AL$2","v":0},{"$f":"Gesamt!$A$3","v":"Prof. Dr. Benjamin Buchwitz"},{"$f":"AND(C73,Gesamt!AK$45)","v":false},{"$f":"Gesamt!AK$43*C73","v":{"$error":"#VALUE!"}}]
[{"$f":"Gesamt!AN4","v":" "},{"$f":"Gesamt!AO4","v":" "},{"$f":"Gesamt!AP4","v":true},{"$f":"Gesamt!AO$2","v":0},{"$f":"Gesamt!$A$3","v":"Prof. Dr. Benjamin Buchwitz"},{"$f":"AND(C74,Gesamt!AN$45)","v":false},{"$f":"Gesamt!AN$43*C74","v":0}]
[{"$f":"Gesamt!AN5","v":0},{"$f":"Gesamt!AO5","v":0},{"$f":"Gesamt!AP5","v":" "},{"$f":"Gesamt!AO$2","v":0},{"$f":"Gesamt!$A$3","v":"Prof. Dr. Benjamin Buchwitz"},{"$f":"AND(C75,Gesamt!AN$45)","v":false},{"$f":"Gesamt!AN$43*C75","v":{"$error":"#VALUE!"}}]
[{"$f":"Gesamt!AN6","v":0},{"$f":"Gesamt!AO6","v":0},{"$f":"Gesamt!AP6","v":" "},{"$f":"Gesamt!AO$2","v":0},{"$f":"Gesamt!$A$3","v":"Prof. Dr. Benjamin Buchwitz"},{"$f":"AND(C76,Gesamt!AN$45)","v":false},{"$f":"Gesamt!AN$43*C76","v":{"$error":"#VALUE!"}}]
[{"$f":"Gesamt!AN7","v":0},{"$f":"Gesamt!AO7","v":0},{"$f":"Gesamt!AP7","v":" "},{"$f":"Gesamt!AO$2","v":0},{"$f":"Gesamt!$A$3","v":"Prof. Dr. Benjamin Buchwitz"},{"$f":"AND(C77,Gesamt!AN$45)","v":false},{"$f":"Gesamt!AN$43*C77","v":{"$error":"#VALUE!"}}]
[{"$f":"Gesamt!AN8","v":0},{"$f":"Gesamt!AO8","v":0},{"$f":"Gesamt!AP8","v":" "},{"$f":"Gesamt!AO$2","v":0},{"$f":"Gesamt!$A$3","v":"Prof. Dr. Benjamin Buchwitz"},{"$f":"AND(C78,Gesamt!AN$45)","v":false},{"$f":"Gesamt!AN$43*C78","v":{"$error":"#VALUE!"}}]
[{"$f":"Gesamt!AN9","v":0},{"$f":"Gesamt!AO9","v":0},{"$f":"Gesamt!AP9","v":" "},{"$f":"Gesamt!AO$2","v":0},{"$f":"Gesamt!$A$3","v":"Prof. Dr. Benjamin Buchwitz"},{"$f":"AND(C79,Gesamt!AN$45)","v":false},{"$f":"Gesamt!AN$43*C79","v":{"$error":"#VALUE!"}}]

{"sheet":"Gesamt","index":1,"n_rows":46,"n_cols":42,"rows_kept":46,"cut":false,"hidden":false,"merged":[[45,4,45,5],[43,4,43,5],[42,4,42,5],[41,4,41,5],[40,4,40,5],[1,4,1,5],[32,4,32,5],[31,4,31,5],[30,4,30,5],[29,4,29,5],[25,4,25,5],[24,4,24,5],[39,4,39,5],[38,4,38,5],[36,4,36,5],[35,4,35,5],[34,4,34,5],[33,4,33,5],[12,4,12,5],[13,4,13,5],[10,4,10,5],[14,4,14,5],[15,4,15,5],[44,4,44,5],[25,7,25,8],[29,7,29,8],[12,7,12,8],[13,7,13,8],[14,7,14,8],[15,7,15,8],[19,7,19,8],[20,7,20,8],[23,4,23,5],[22,4,22,5],[21,4,21,5],[20,4,20,5],[19,4,19,5],[24,10,24,11],[25,10,25,11],[29,10,29,11],[30,10,30,11],[36,7,36,8],[10,7,10,8],[1,7,1,8],[12,10,12,11],[13,10,13,11],[14,10,14,11],[15,10,15,11],[19,10,19,11],[20,10,20,11],[21,10,21,11],[30,7,30,8],[31,7,31,8],[32,7,32,8],[33,7,33,8],[34,7,34,8],[35,7,35,8],[21,7,21,8],[22,7,22,8],[23,7,23,8],[24,7,24,8],[42,7,42,8],[43,7,43,8],[45,7,45,8],[45,10,45,11],[43,10,43,11],[42,10,42,11],[1,10,1,11],[10,10,10,11],[38,7,38,8],[39,7,39,8],[40,7,40,8],[41,7,41,8],[41,10,41,11],[40,10,40,11],[39,10,39,11],[38,10,38,11],[31,10,31,11],[32,10,32,11],[33,10,33,11],[34,10,34,11],[35,10,35,11],[36,10,36,11],[22,10,22,11],[23,10,23,11],[33,13,33,14],[34,13,34,14],[20,13,20,14],[21,13,21,14],[22,13,22,14],[23,13,23,14],[24,13,24,14],[25,13,25,14],[10,13,10,14],[12,13,12,14],[13,13,13,14],[14,13,14,14],[15,13,15,14],[19,13,19,14],[23,16,23,17],[24,16,24,17],[25,16,25,17],[29,16,29,17],[42,13,42,14],[43,13,43,14],[45,13,45,14],[10,16,10,17],[12,16,12,17],[13,16,13,17],[14,16,14,17],[15,16,15,17],[19,16,19,17],[20,16,20,17],[35,13,35,14],[36,13,36,14],[38,13,38,14],[39,13,39,14],[40,13,40,14],[41,13,41,14],[29,13,29,14],[30,13,30,14],[31,13,31,14],[32,13,32,14],[43,16,43,17],[45,16,45,17],[12,19,12,20],[13,19,13,20],[14,19,14,20],[10,19,10,20],[15,19,15,20],[19,19,19,20],[20,19,20,20],[21,19,21,20],[36,16,36,17],[38,16,38,17],[39,16,39,17],[40,16,40,17],[41,16,41,17],[42,16,42,17],[30,16,30,17],[31,16,31,17],[32,16,32,17],[33,16,33,17],[34,16,34,17],[35,16,35,17],[21,16,21,17],[22,16,22,17],[33,19,33,20],[34,19,34,20],[35,19,35,20],[36,19,36,20],[22,19,22,20],[23,19,23,20],[24,19,24,20],[25,19,25,20],[29,19,29,20],[30,19,30,20],[23,22,23,23],[24,22,24,23],[25,22,25,23],[29,22,29,23],[30,22,30,23],[31,22,31,23],[45,19,45,20],[10,22,10,23],[12,22,12,23],[13,22,13,23],[14,22,14,23],[15,22,15,23],[19,22,19,23],[20,22,20,23],[21,22,21,23],[22,22,22,23],[38,19,38,20],[39,19,39,20],[40,19,40,20],[41,19,41,20],[42,19,42,20],[43,19,43,20],[31,19,31,20],[32,19,32,20],[39,22,39,23],[40,22,40,23],[41,22,41,23],[42,22,42,23],[43,22,43,23],[45,22,45,23],[32,22,32,23],[33,22,33,23],[34,22,34,23],[35,22,35,23],[36,22,36,23],[38,22,38,23],[22,25,22,26],[23,25,23,26],[24,25,24,26],[25,25,25,26],[10,25,10,26],[12,25,12,26],[13,25,13,26],[14,25,14,26],[15,25,15,26],[19,25,19,26],[42,25,42,26],[43,25,43,26],[10,28,10,29],[12,28,12,29],[13,28,13,29],[14,28,14,29],[15,28,15,29],[19,28,19,29],[20,28,20,29],[21,28,21,29],[35,25,35,26],[36,25,36,26],[38,25,38,26],[39,25,39,26],[40,25,40,26],[41,25,41,26],[29,25,29,26],[30,25,30,26],[31,25,31,26],[32,25,32,26],[33,25,33,26],[34,25,34,26],[20,25,20,26],[21,25,21,26],[30,28,30,29],[33,28,33,29],[34,28,34,29],[35,28,35,29],[36,28,36,29],[22,28,22,29],[23,28,23,29],[24,28,24,29],[25,28,25,29],[29,28,29,29],[31,28,31,29],[10,31,10,32],[13,31,13,32],[12,31,12,32],[14,31,14,32],[15,31,15,32],[19,31,19,32],[20,31,20,32],[21,31,21,32],[22,31,22,32],[45,31,45,32],[32,31,32,32],[33,31,33,32],[34,31,34,32],[35,31,35,32],[36,31,36,32],[38,31,38,32],[44,31,44,32],[45,28,45,29],[38,28,38,29],[39,28,39,29],[40,28,40,29],[41,28,41,29],[42,28,42,29],[43,28,43,29],[32,28,32,29],[23,31,23,32],[24,31,24,32],[25,31,25,32],[29,31,29,32],[30,31,30,32],[31,31,31,32],[40,31,40,32],[41,31,41,32],[42,31,42,32],[1,31,1,32],[1,13,1,14],[1,16,1,17],[1,19,1,20],[1,22,1,23],[1,25,1,26],[1,28,1,29],[35,34,35,35],[36,34,36,35],[29,34,29,35],[30,34,30,35],[31,34,31,35],[32,34,32,35],[33,34,33,35],[34,34,34,35],[20,34,20,35],[21,34,21,35],[24,34,24,35],[25,34,25,35],[10,34,10,35],[12,34,12,35],[13,34,13,35],[14,34,14,35],[15,34,15,35],[1,34,1,35],[1,37,1,38],[10,37,10,38],[12,37,12,38],[13,37,13,38],[14,37,14,38],[22,34,22,35],[23,34,23,35],[42,34,42,35],[38,34,38,35],[39,34,39,35],[40,34,40,35],[41,34,41,35],[19,34,19,35],[1,40,1,41],[10,40,10,41],[12,40,12,41],[13,40,13,41],[14,40,14,41],[33,37,33,38],[34,37,34,38],[35,37,35,38],[36,37,36,38],[24,37,24,38],[25,37,25,38],[29,37,29,38],[30,37,30,38],[31,37,31,38],[32,37,32,38],[15,37,15,38],[19,37,19,38],[20,37,20,38],[21,37,21,38],[22,37,22,38],[23,37,23,38],[24,40,24,41],[25,40,25,41],[29,40,29,41],[30,40,30,41],[31,40,31,41],[32,40,32,41],[15,40,15,41],[19,40,19,41],[20,40,20,41],[21,40,21,41],[22,40,22,41],[23,40,23,41],[45,25,45,26],[44,28,44,29],[40,40,40,41],[41,40,41,41],[42,40,42,41],[43,40,43,41],[45,40,45,41],[33,40,33,41],[34,40,34,41],[35,40,35,41],[36,40,36,41],[38,40,38,41],[39,40,39,41],[40,37,40,38],[41,37,41,38],[42,37,42,38],[43,37,43,38],[45,37,45,38],[38,37,38,38],[39,37,39,38],[43,34,43,35],[45,34,45,35],[39,31,39,32],[43,31,43,32],[44,34,44,35],[44,37,44,38],[44,40,44,41],[44,7,44,8],[44,10,44,11],[44,13,44,14],[44,16,44,17],[44,19,44,20],[44,22,44,23],[44,25,44,26]]}
["Organisatorisches",null,null,{"$f":"\"Gruppe: \" & E2","v":"Gruppe: "},null,null,{"$f":"\"Gruppe: \" & H2","v":"Gruppe: "},null,null,{"$f":"\"Gruppe: \" & K2","v":"Gruppe: "},null,null,{"$f":"\"Gruppe: \" & N2","v":"Gruppe: "},null,null,{"$f":"\"Gruppe: \" & Q2","v":"Gruppe: "},null,null,{"$f":"\"Gruppe: \" & T2","v":"Gruppe: "},null,null,{"$f":"\"Gruppe: \" & W2","v":"Gruppe: "},null,null,{"$f":"\"Gruppe: \" & Z2","v":"Gruppe: "},null,null,{"$f":"\"Gruppe: \" & AC2","v":"Gruppe: "},null,null,{"$f":"\"Gruppe: \" & AF2","v":"Gruppe: "},null,null,{"$f":"\"Gruppe: \" & AI2","v":"Gruppe: "},null,null,{"$f":"\"Gruppe: \" & AL2","v":"Gruppe: "},null,null,{"$f":"\"Gruppe: \" & AO2","v":"Gruppe: "}]
["Korrektor",null,null,"Gruppe",null,null,"Gruppe",null,null,"Gruppe",null,null,"Gruppe",null,null,"Gruppe",null,null,"Gruppe",null,null,"Gruppe",null,null,"Gruppe",null,null,"Gruppe",null,null,"Gruppe",null,null,"Gruppe",null,null,"Gruppe",null,null,"Gruppe"]
["Prof. Dr. Benjamin Buchwitz",null,null,"Matrikelnr.","Name","Aktiv","Matrikelnr.","Name","Aktiv","Matrikelnr.","Name","Aktiv","Matrikelnr.","Name","Aktiv","Matrikelnr.","Name","Aktiv","Matrikelnr.","Name","Aktiv","Matrikelnr.","Name","Aktiv","Matrikelnr.","Name","Aktiv","Matrikelnr.","Name","Aktiv","Matrikelnr.","Name","Aktiv","Matrikelnr.","Name","Aktiv","Matrikelnr.","Name","Aktiv","Matrikelnr.","Name","Aktiv"]
["Kontaktmöglichkeit",null,null,null,null,true,null,null,true,null,null,true,null,null,true,null,null,true,null,null,true,null,null,true,null,null,true,null,null,true,null,null,true,null,null,true,null,null,true," "," ",true]
["buchwitz.benjamin@fh-swf.de",null,null,null,null," ",null,null," ",null,null," ",null,null," ",null,null," ",null,null," ",null,null," ",null,null," ",null,null," ",null,null," ",null,null," ",null,null," ",null,null," "]
[null,null,null,null,null," ",null,null," ",null,null," ",null,null," ",null,null," ",null,null," ",null,null," ",null,null," ",null,null," ",null,null," ",null,null," ",null,null," ",null,null," "]
[null,null,null,null,null," ",null,null," ",null,null," ",null,null," ",null,null," ",null,null," ",null,null," ",null,null," ",null,null," ",null,null," ",null,null," ",null,null," ",null,null," "]
[null,null,null,null,null," ",null,null," ",null,null," ",null,null," ",null,null," ",null,null," ",null,null," ",null,null," ",null,null," ",null,null," ",null,null," ",null,null," ",null,null," "]
[null,null,null,null,null," ",null,null," ",null,null," ",null,null," ",null,null," ",null,null," ",null,null," ",null,null," ",null,null," ",null,null," ",null,null," ",null,null," ",null,null," "]
["Exposé",null,null,{"$f":"\"Gruppe: \" & E2","v":"Gruppe: "},null,null,{"$f":"\"Gruppe: \" & H2","v":"Gruppe: "},null,null,{"$f":"\"Gruppe: \" & K2","v":"Gruppe: "},null,null,{"$f":"\"Gruppe: \" & N2","v":"Gruppe: "},null,null,{"$f":"\"Gruppe: \" & Q2","v":"Gruppe: "},null,null,{"$f":"\"Gruppe: \" & T2","v":"Gruppe: "},null,null,{"$f":"\"Gruppe: \" & W2","v":"Gruppe: "},null,null,{"$f":"\"Gruppe: \" & Z2","v":"Gruppe: "},null,null,{"$f":"\"Gruppe: \" & AC2","v":"Gruppe: "},null,null,{"$f":"\"Gruppe: \" & AF2","v":"Gruppe: "},null,null,{"$f":"\"Gruppe: \" & AI2","v":"Gruppe: "},null,null,{"$f":"\"Gruppe: \" & AL2","v":"Gruppe: "},null,null,{"$f":"\"Gruppe: \" & AO2","v":"Gruppe: "}]
["Ziel des Exposés:","Einarbeitung in den Sachkontext und Genese einer zum Datensatz passenden Forschungsfrage",null,"Hinweis:",null,null,"Hinweis:",null,null,"Hinweis:",null,null,"Hinweis:",null,null,"Hinweis:",null,null,"Hinweis:",null,null,"Hinweis:",null,null,"Hinweis:",null,null,"Hinweis:",null,null,"Hinweis:",null,null,"Hinweis:",null,null,"Hinweis:",null,null,"Hinweis:"]
[null,"Fokus & Korrekturhinweise","Punkte","Bewertung","Kommentar",null,{"$f":"D12","v":"Bewertung"},{"$f":"E12","v":"Kommentar"},null,{"$f":"G12","v":"Bewertung"},{"$f":"H12","v":"Kommentar"},null,{"$f":"J12","v":"Bewertung"},{"$f":"K12","v":"Kommentar"},null,{"$f":"M12","v":"Bewertung"},{"$f":"N12","v":"Kommentar"},null,{"$f":"P12","v":"Bewertung"},{"$f":"Q12","v":"Kommentar"},null,{"$f":"S12","v":"Bewertung"},{"$f":"T12","v":"Kommentar"},null,{"$f":"V12","v":"Bewertung"},{"$f":"W12","v":"Kommentar"},null,{"$f":"Y12","v":"Bewertung"},{"$f":"Z12","v":"Kommentar"},null,{"$f":"AB12","v":"Bewertung"},{"$f":"AC12","v":"Kommentar"},null,{"$f":"AE12","v":"Bewertung"},{"$f":"AF12","v":"Kommentar"},null,{"$f":"AH12","v":"Bewertung"},{"$f":"AI12","v":"Kommentar"},null,{"$f":"AK12","v":"Bewertung"},{"$f":"AL12","v":"Kommentar"}]
["Forschungsgegenstand\n- Zielausgestaltung (0,2P)\n- Fragestellung (0,4P)\n- Hypothesen (0,4P)",null,1]
["Komposition\n- Inhaltlicher Zusammenhang (0,2P)\n- fachsprachlich formulierte Vorgehensweise (0,2P)\n- Motivation des Themas (0,1P)",null,0.5]
["Formalia (Exposé)\n- Template Nutzung & Formatierung (0,3P)\n- Schreibstil & Rechtschreibung (0,2P)",null,0.5]
["Zwischensumme Exposé","Verbesserungsmöglichkeiten\nfür die Zwischenabgabe",{"$f":"SUM(C13:C15)","v":2},{"$f":"SUM(D13:D15)","v":0},null,null,{"$f":"SUM(G13:G15)","v":0},null,null,{"$f":"SUM(J13:J15)","v":0},null,null,{"$f":"SUM(M13:M15)","v":0},null,null,{"$f":"SUM(P13:P15)","v":0},null,null,{"$f":"SUM(S13:S15)","v":0},null,null,{"$f":"SUM(V13:V15)","v":0},null,null,{"$f":"SUM(Y13:Y15)","v":0},null,null,{"$f":"SUM(AB13:AB15)","v":0},null,null,{"$f":"SUM(AE13:AE15)","v":0},null,null,{"$f":"SUM(AH13:AH15)","v":0},null,null,{"$f":"SUM(AK13:AK15)","v":0},null,null,{"$f":"SUM(AN13:AN15)","v":0}]
["Zwischenabgabe",null,null,{"$f":"\"Gruppe: \" & E2","v":"Gruppe: "},null,null,{"$f":"\"Gruppe: \" & H2","v":"Gruppe: "},null,null,{"$f":"\"Gruppe: \" & K2","v":"Gruppe: "},null,null,{"$f":"\"Gruppe: \" & N2","v":"Gruppe: "},null,null,{"$f":"\"Gruppe: \" & Q2","v":"Gruppe: "},null,null,{"$f":"\"Gruppe: \" & T2","v":"Gruppe: "},null,null,{"$f":"\"Gruppe: \" & W2","v":"Gruppe: "},null,null,{"$f":"\"Gruppe: \" & Z2","v":"Gruppe: "},null,null,{"$f":"\"Gruppe: \" & AC2","v":"Gruppe: "},null,null,{"$f":"\"Gruppe: \" & AF2","v":"Gruppe: "},null,null,{"$f":"\"Gruppe: \" & AI2","v":"Gruppe: "},null,null,{"$f":"\"Gruppe: \" & AL2","v":"Gruppe: "},null,null,{"$f":"\"Gruppe: \" & AO2","v":"Gruppe: "}]
["Ziel der Zwischenabgabe:","Vorstellung des Datensatzes und Vorbereitung der inferenzstatistischen Analyseverfahren"]
[null,{"$f":"B12","v":"Fokus & Korrekturhinweise"},{"$f":"C12","v":"Punkte"},{"$f":"D12","v":"Bewertung"},{"$f":"E12","v":"Kommentar"},null,{"$f":"D19","v":"Bewertung"},{"$f":"E19","v":"Kommentar"},null,{"$f":"G19","v":"Bewertung"},{"$f":"H19","v":"Kommentar"},null,{"$f":"J19","v":"Bewertung"},{"$f":"K19","v":"Kommentar"},null,{"$f":"M19","v":"Bewertung"},{"$f":"N19","v":"Kommentar"},null,{"$f":"P19","v":"Bewertung"},{"$f":"Q19","v":"Kommentar"},null,{"$f":"S19","v":"Bewertung"},{"$f":"T19","v":"Kommentar"},null,{"$f":"V19","v":"Bewertung"},{"$f":"W19","v":"Kommentar"},null,{"$f":"Y19","v":"Bewertung"},{"$f":"Z19","v":"Kommentar"},null,{"$f":"AB19","v":"Bewertung"},{"$f":"AC19","v":"Kommentar"},null,{"$f":"AE19","v":"Bewertung"},{"$f":"AF19","v":"Kommentar"},null,{"$f":"AH19","v":"Bewertung"},{"$f":"AI19","v":"Kommentar"},null,{"$f":"AK19","v":"Bewertung"},{"$f":"AL19","v":"Kommentar"}]
["Lage- & Streuungsmaße\n- Deskriptive Statistik für alle verwendeten Variablen\n- Berechnung, Interpretation und Einordnung in den Sachkontext",null,2]
["Zusammenhangsmaße\n- Berechnung, Interpretation und Einordnung in den Sachkontext von (min.) einem Zusammenhangsmaß",null,1]
["Ergänzende Berechnung\n- Ergänzende Berechnung, Interpretation und Einordnung in den Sachkontext (min.) eines weiteren Zusammenhangsmaßes oder Konzentrationsmaßes",null,1]
["Diagramme\n- Sinnvoll unterstützender / ergänzender Einsatz einer grafischen Aufbereitung der Daten (0,5P)\n- Ergänzende Darstellung eines weiteren, andersartigen Diagrammes (0,5P)",null,1]
["Komposition\n- Zweckmäßiger Methodeneinsatz (1P)\n- Zielgerichtete Argumentation (1P)",null,2]
["Formalia (Zwischenabgabe)\n- Analytische Ausarbeitung (0,5P)\n    + Übersichtlichkeit\n    + Nachvollziehbarkeit aller Rechnungen\n- Schriftliche Ausarbeitung (0,5P)\n    + Formatierung des Dokuments\n    + Zitation wissenschaftlicher Quellen",null,1]
["Zwischensumme Zwischenabgabe","Verbesserungsmöglichkeiten\nfür die Endabgabe",{"$f":"SUM(C20:C25)","v":8},{"$f":"SUM(D20:D25)","v":0},null,null,{"$f":"SUM(G20:G25)","v":0},null,null,{"$f":"SUM(J20:J25)","v":0},null,null,{"$f":"SUM(M20:M25)","v":0},null,null,{"$f":"SUM(P20:P25)","v":0},null,null,{"$f":"SUM(S20:S25)","v":0},null,null,{"$f":"SUM(V20:V25)","v":0},null,null,{"$f":"SUM(Y20:Y25)","v":0},null,null,{"$f":"SUM(AB20:AB25)","v":0},null,null,{"$f":"SUM(AE20:AE25)","v":0},null,null,{"$f":"SUM(AH20:AH25)","v":0},null,null,{"$f":"SUM(AK20:AK25)","v":0},null,null,{"$f":"SUM(AN20:AN25)","v":0}]
["Endabgabe",null,null,{"$f":"\"Gruppe: \" & E2","v":"Gruppe: "},null,null,{"$f":"\"Gruppe: \" & H2","v":"Gruppe: "},null,null,{"$f":"\"Gruppe: \" & K2","v":"Gruppe: "},null,null,{"$f":"\"Gruppe: \" & N2","v":"Gruppe: "},null,null,{"$f":"\"Gruppe: \" & Q2","v":"Gruppe: "},null,null,{"$f":"\"Gruppe: \" & T2","v":"Gruppe: "},null,null,{"$f":"\"Gruppe: \" & W2","v":"Gruppe: "},null,null,{"$f":"\"Gruppe: \" & Z2","v":"Gruppe: "},null,null,{"$f":"\"Gruppe: \" & AC2","v":"Gruppe: "},null,null,{"$f":"\"Gruppe: \" & AF2","v":"Gruppe: "},null,null,{"$f":"\"Gruppe: \" & AI2","v":"Gruppe: "},null,null,{"$f":"\"Gruppe: \" & AL2","v":"Gruppe: "},null,null,{"$f":"\"Gruppe: \" & AO2","v":"Gruppe: "}]
["Ziel der Endabgabe:","Beantwortung der Forschungsfrage unter Nutzung inferenzstatistischer Verfahren und Finalisierung der Arbeit"]
[null,{"$f":"B12","v":"Fokus & Korrekturhinweise"},{"$f":"C12","v":"Punkte"},{"$f":"D19","v":"Bewertung"},{"$f":"E19","v":"Kommentar"},null,{"$f":"D29","v":"Bewertung"},{"$f":"E29","v":"Kommentar"},null,{"$f":"G29","v":"Bewertung"},{"$f":"H29","v":"Kommentar"},null,{"$f":"J29","v":"Bewertung"},{"$f":"K29","v":"Kommentar"},null,{"$f":"M29","v":"Bewertung"},{"$f":"N29","v":"Kommentar"},null,{"$f":"P29","v":"Bewertung"},{"$f":"Q29","v":"Kommentar"},null,{"$f":"S29","v":"Bewertung"},{"$f":"T29","v":"Kommentar"},null,{"$f":"V29","v":"Bewertung"},{"$f":"W29","v":"Kommentar"},null,{"$f":"Y29","v":"Bewertung"},{"$f":"Z29","v":"Kommentar"},null,{"$f":"AB29","v":"Bewertung"},{"$f":"AC29","v":"Kommentar"},null,{"$f":"AE29","v":"Bewertung"},{"$f":"AF29","v":"Kommentar"},null,{"$f":"AH29","v":"Bewertung"},{"$f":"AI29","v":"Kommentar"},null,{"$f":"AK29","v":"Bewertung"},{"$f":"AL29","v":"Kommentar"}]
["Verbesserung der Deskriptiven Statistik hinsichtlich Korrektheit, Vollständigkeit, Beschreibung und Einordnung in den Sachkontext\n- Lagemaße (0,5P)\n- Streuungsmaße (0,5P)\n- Ergänzende Maße (0,5P)\n- Zusammenhangsmaße (0,5P)",null,2]
["Inferenzstatistik: Freie Methodenwahl\n- Inhaltlich begründete Methodenauswahl (1P)\n- Voraussetzungen erfüllt (0,5P)\n- Fehlerfreie Berechnungen (0,5P)\n- Korrekte Testanwendung (0,5P)\n- Statistische Interpretation und Einordnung in Sachkontext (1P)",null,3.5]
["Inferenzstatistik: Zusammenhangsanalyse\n- Variablen- und Methodenauswahl kongruent (1P)\n- Voraussetzungen erfüllt (0,5P)\n- Fehlerfreie Berechnungen (0,5P)\n- Korrekte Testanwendung (0,5P)\n- Statistische Interpretation und Einordnung in Sachkontext (1P)","Bei linearer Regression ist die reine Aufstellung der Geradengleichung ungenügend. Ziel ist die inferenzstatistische Argumentation mit den Regressionsparametern (Signifikanz & Effektgröße) und deren Einordnung in den Sachkontext.",3.5]
["Argumentationsfluss & Gesamteindruck\n- Inhaltlicher Aufbau\n- Verknüpfung der Fragestellung mit der Anwendung der inhaltlichen Methoden\n- Verknüpfung deskriptiver und analytischer Statistik\n- Keine rezeptartige Beschreibung von Rechenwegen",null,2]
["Zielerreichung\n- Antwort auf die gestellte Forschungsfrage\n- Zusammenfassung der Ergebnisse\n- Kritische Würdigung des eigenen Vorgehens",null,2]
["Formalia (Endabgabe)\n- Nutzung des bereitgestellten Templates (fhswf R-Package) und angemessene wissenschaftliche Gestaltung des finalen Dokumentes unter Verwendung der im Template enthaltenen Checkliste\n- Abgabe ist vollständig reproduzierbar (Alle Dateien wurden eingereicht: PDF, Rmd, etc)",null,1]
["Analytische Qualität\n- Übersichtlichkeit der Analyse (R Datei)\n- Nachvollziehbarkeit aller Rechnungen\n- Vollständigkeit",null,1]
["Zwischensumme Endabgabe","Schlussfazit",{"$f":"SUM(C30:C36)","v":15},{"$f":"SUM(D30:D36)","v":0},null,null,{"$f":"SUM(G30:G36)","v":0},null,null,{"$f":"SUM(J30:J36)","v":0},null,null,{"$f":"SUM(M30:M36)","v":0},null,null,{"$f":"SUM(P30:P36)","v":0},null,null,{"$f":"SUM(S30:S36)","v":0},null,null,{"$f":"SUM(V30:V36)","v":0},null,null,{"$f":"SUM(Y30:Y36)","v":0},null,null,{"$f":"SUM(AB30:AB36)","v":0},null,null,{"$f":"SUM(AE30:AE36)","v":0},null,null,{"$f":"SUM(AH30:AH36)","v":0},null,null,{"$f":"SUM(AK30:AK36)","v":0},null,null,{"$f":"SUM(AN30:AN36)","v":0}]
["Abschließende Bewertung",null,null,{"$f":"\"Gruppe: \" & E2","v":"Gruppe: "},null,null,{"$f":"\"Gruppe: \" & H2","v":"Gruppe: "},null,null,{"$f":"\"Gruppe: \" & K2","v":"Gruppe: "},null,null,{"$f":"\"Gruppe: \" & N2","v":"Gruppe: "},null,null,{"$f":"\"Gruppe: \" & Q2","v":"Gruppe: "},null,null,{"$f":"\"Gruppe: \" & T2","v":"Gruppe: "},null,null,{"$f":"\"Gruppe: \" & W2","v":"Gruppe: "},null,null,{"$f":"\"Gruppe: \" & Z2","v":"Gruppe: "},null,null,{"$f":"\"Gruppe: \" & AC2","v":"Gruppe: "},null,null,{"$f":"\"Gruppe: \" & AF2","v":"Gruppe: "},null,null,{"$f":"\"Gruppe: \" & AI2","v":"Gruppe: "},null,null,{"$f":"\"Gruppe: \" & AL2","v":"Gruppe: "},null,null,{"$f":"\"Gruppe: \" & AO2","v":"Gruppe: "}]
["Exposé",null,{"$f":"C16","v":2},{"$f":"D16","v":0},{"$f":"\"(\" & TEXT(D39/$C39, \"0,0 %\") & \")\"","v":"(0,0 %)"},null,{"$f":"G16","v":0},{"$f":"\"(\" & TEXT(G39/$C39, \"0,0 %\") & \")\"","v":"(0,0 %)"},null,{"$f":"J16","v":0},{"$f":"\"(\" & TEXT(J39/$C39, \"0,0 %\") & \")\"","v":"(0,0 %)"},null,{"$f":"M16","v":0},{"$f":"\"(\" & TEXT(M39/$C39, \"0,0 %\") & \")\"","v":"(0,0 %)"},null,{"$f":"P16","v":0},{"$f":"\"(\" & TEXT(P39/$C39, \"0,0 %\") & \")\"","v":"(0,0 %)"},null,{"$f":"S16","v":0},{"$f":"\"(\" & TEXT(S39/$C39, \"0,0 %\") & \")\"","v":"(0,0 %)"},null,{"$f":"V16","v":0},{"$f":"\"(\" & TEXT(V39/$C39, \"0,0 %\") & \")\"","v":"(0,0 %)"},null,{"$f":"Y16","v":0},{"$f":"\"(\" & TEXT(Y39/$C39, \"0,0 %\") & \")\"","v":"(0,0 %)"},null,{"$f":"AB16","v":0},{"$f":"\"(\" & TEXT(AB39/$C39, \"0,0 %\") & \")\"","v":"(0,0 %)"},null,{"$f":"AE16","v":0},{"$f":"\"(\" & TEXT(AE39/$C39, \"0,0 %\") & \")\"","v":"(0,0 %)"},null,{"$f":"AH16","v":0},{"$f":"\"(\" & TEXT(AH39/$C39, \"0,0 %\") & \")\"","v":"(0,0 %)"},null,{"$f":"AK16","v":0},{"$f":"\"(\" & TEXT(AK39/$C39, \"0,0 %\") & \")\"","v":"(0,0 %)"},null,{"$f":"AN16","v":0},{"$f":"\"(\" & TEXT(AN39/$C39, \"0,0 %\") & \")\"","v":"(0,0 %)"}]
["Zwischenabgabe",null,{"$f":"C26","v":8},{"$f":"D26","v":0},{"$f":"\"(\" & TEXT(D40/$C40, \"0,0 %\") & \")\"","v":"(0,0 %)"},null,{"$f":"G26","v":0},{"$f":"\"(\" & TEXT(G40/$C40, \"0,0 %\") & \")\"","v":"(0,0 %)"},null,{"$f":"J26","v":0},{"$f":"\"(\" & TEXT(J40/$C40, \"0,0 %\") & \")\"","v":"(0,0 %)"},null,{"$f":"M26","v":0},{"$f":"\"(\" & TEXT(M40/$C40, \"0,0 %\") & \")\"","v":"(0,0 %)"},null,{"$f":"P26","v":0},{"$f":"\"(\" & TEXT(P40/$C40, \"0,0 %\") & \")\"","v":"(0,0 %)"},null,{"$f":"S26","v":0},{"$f":"\"(\" & TEXT(S40/$C40, \"0,0 %\") & \")\"","v":"(0,0 %)"},null,{"$f":"V26","v":0},{"$f":"\"(\" & TEXT(V40/$C40, \"0,0 %\") & \")\"","v":"(0,0 %)"},null,{"$f":"Y26","v":0},{"$f":"\"(\" & TEXT(Y40/$C40, \"0,0 %\") & \")\"","v":"(0,0 %)"},null,{"$f":"AB26","v":0},{"$f":"\"(\" & TEXT(AB40/$C40, \"0,0 %\") & \")\"","v":"(0,0 %)"},null,{"$f":"AE26","v":0},{"$f":"\"(\" & TEXT(AE40/$C40, \"0,0 %\") & \")\"","v":"(0,0 %)"},null,{"$f":"AH26","v":0},{"$f":"\"(\" & TEXT(AH40/$C40, \"0,0 %\") & \")\"","v":"(0,0 %)"},null,{"$f":"AK26","v":0},{"$f":"\"(\" & TEXT(AK40/$C40, \"0,0 %\") & \")\"","v":"(0,0 %)"},null,{"$f":"AN26","v":0},{"$f":"\"(\" & TEXT(AN40/$C40, \"0,0 %\") & \")\"","v":"(0,0 %)"}]
["Endabgabe",null,{"$f":"C37","v":15},{"$f":"D37","v":0},{"$f":"\"(\" & TEXT(D41/$C41, \"0,0 %\") & \")\"","v":"(0,0 %)"},null,{"$f":"G37","v":0},"(0,0 %)",null,{"$f":"J37","v":0},{"$f":"\"(\" & TEXT(J41/$C41, \"0,0 %\") & \")\"","v":"(0,0 %)"},null,{"$f":"M37","v":0},{"$f":"\"(\" & TEXT(M41/$C41, \"0,0 %\") & \")\"","v":"(0,0 %)"},null,{"$f":"P37","v":0},{"$f":"\"(\" & TEXT(P41/$C41, \"0,0 %\") & \")\"","v":"(0,0 %)"},null,{"$f":"S37","v":0},{"$f":"\"(\" & TEXT(S41/$C41, \"0,0 %\") & \")\"","v":"(0,0 %)"},null,{"$f":"V37","v":0},{"$f":"\"(\" & TEXT(V41/$C41, \"0,0 %\") & \")\"","v":"(0,0 %)"},null,{"$f":"Y37","v":0},{"$f":"\"(\" & TEXT(Y41/$C41, \"0,0 %\") & \")\"","v":"(0,0 %)"},null,{"$f":"AB37","v":0},{"$f":"\"(\" & TEXT(AB41/$C41, \"0,0 %\") & \")\"","v":"(0,0 %)"},null,{"$f":"AE37","v":0},{"$f":"\"(\" & TEXT(AE41/$C41, \"0,0 %\") & \")\"","v":"(0,0 %)"},null,{"$f":"AH37","v":0},"(0,0 %)",null,{"$f":"AK37","v":0},"(0,0 %)",null,{"$f":"AN37","v":0},"(0,0 %)"]
["Endpunktzahl (rechnerisch)",null,{"$f":"SUM(C39:C41)","v":25},{"$f":"SUM(D39:D41)","v":0},{"$f":"\"(\" & TEXT(D42/$C42, \"0,0 %\") & \")\"","v":"(0,0 %)"},null,{"$f":"SUM(G39:G41)","v":0},{"$f":"\"(\" & TEXT(G42/$C42, \"0,0 %\") & \")\"","v":"(0,0 %)"},null,{"$f":"SUM(J39:J41)","v":0},{"$f":"\"(\" & TEXT(J42/$C42, \"0,0 %\") & \")\"","v":"(0,0 %)"},null,{"$f":"SUM(M39:M41)","v":0},{"$f":"\"(\" & TEXT(M42/$C42, \"0,0 %\") & \")\"","v":"(0,0 %)"},null,{"$f":"SUM(P39:P41)","v":0},{"$f":"\"(\" & TEXT(P42/$C42, \"0,0 %\") & \")\"","v":"(0,0 %)"},null,{"$f":"SUM(S39:S41)","v":0},{"$f":"\"(\" & TEXT(S42/$C42, \"0,0 %\") & \")\"","v":"(0,0 %)"},null,{"$f":"SUM(V39:V41)","v":0},{"$f":"\"(\" & TEXT(V42/$C42, \"0,0 %\") & \")\"","v":"(0,0 %)"},null,{"$f":"SUM(Y39:Y41)","v":0},{"$f":"\"(\" & TEXT(Y42/$C42, \"0,0 %\") & \")\"","v":"(0,0 %)"},null,{"$f":"SUM(AB39:AB41)","v":0},{"$f":"\"(\" & TEXT(AB42/$C42, \"0,0 %\") & \")\"","v":"(0,0 %)"},null,{"$f":"SUM(AE39:AE41)","v":0},{"$f":"\"(\" & TEXT(AE42/$C42, \"0,0 %\") & \")\"","v":"(0,0 %)"},null,{"$f":"SUM(AH39:AH41)","v":0},{"$f":"\"(\" & TEXT(AH42/$C42, \"0,0 %\") & \")\"","v":"(0,0 %)"},null,{"$f":"SUM(AK39:AK41)","v":0},{"$f":"\"(\" & TEXT(AK42/$C42, \"0,0 %\") & \")\"","v":"(0,0 %)"},null,{"$f":"SUM(AN39:AN41)","v":0},{"$f":"\"(\" & TEXT(AN42/$C42, \"0,0 %\") & \")\"","v":"(0,0 %)"}]
["Endergebnis (gerundet)",null,{"$f":"C42","v":25},{"$f":"ROUNDUP(D42/5,1)*5","v":0},{"$f":"\"(\" & TEXT(D43/$C43, \"0,0 %\") & \")\"","v":"(0,0 %)"},null,{"$f":"ROUNDUP(G42/5,1)*5","v":0},{"$f":"\"(\" & TEXT(G43/$C43, \"0,0 %\") & \")\"","v":"(0,0 %)"},null,{"$f":"ROUNDUP(J42/5,1)*5","v":0},{"$f":"\"(\" & TEXT(J43/$C43, \"0,0 %\") & \")\"","v":"(0,0 %)"},null,{"$f":"ROUNDUP(M42/5,1)*5","v":0},{"$f":"\"(\" & TEXT(M43/$C43, \"0,0 %\") & \")\"","v":"(0,0 %)"},null,{"$f":"ROUNDUP(P42/5,1)*5","v":0},{"$f":"\"(\" & TEXT(P43/$C43, \"0,0 %\") & \")\"","v":"(0,0 %)"},null,{"$f":"ROUNDUP(S42/5,1)*5","v":0},{"$f":"\"(\" & TEXT(S43/$C43, \"0,0 %\") & \")\"","v":"(0,0 %)"},null,{"$f":"ROUNDUP(V42/5,1)*5","v":0},{"$f":"\"(\" & TEXT(V43/$C43, \"0,0 %\") & \")\"","v":"(0,0 %)"},null,{"$f":"ROUNDUP(Y42/5,1)*5","v":0},{"$f":"\"(\" & TEXT(Y43/$C43, \"0,0 %\") & \")\"","v":"(0,0 %)"},null,{"$f":"ROUNDUP(AB42/5,1)*5","v":0},{"$f":"\"(\" & TEXT(AB43/$C43, \"0,0 %\") & \")\"","v":"(0,0 %)"},null,{"$f":"ROUNDUP(AE42/5,1)*5","v":0},{"$f":"\"(\" & TEXT(AE43/$C43, \"0,0 %\") & \")\"","v":"(0,0 %)"},null,{"$f":"ROUNDUP(AH42/5,1)*5","v":0},{"$f":"\"(\" & TEXT(AH43/$C43, \"0,0 %\") & \")\"","v":"(0,0 %)"},null,{"$f":"ROUNDUP(AK42/5,1)*5","v":0},{"$f":"\"(\" & TEXT(AK43/$C43, \"0,0 %\") & \")\"","v":"(0,0 %)"},null,{"$f":"ROUNDUP(AN42/5,1)*5","v":0},{"$f":"\"(\" & TEXT(AN43/$C43, \"0,0 %\") & \")\"","v":"(0,0 %)"}]
["Quantil (ECTS-Grad) [nur Korrektor]",null,"0-1 (A-E)",{"$f":"_xlfn.PERCENTRANK.INC(Endergebnis_gerundet,D43,4)","v":{"$error":"#N/A"}},{"$f":"\"( \" & IF(ISBLANK(D44),\"-\",IF(D44>=0.9,\"A\",IF(D44>=0.65,\"B\",IF(D44>=0.35,\"C\",IF(D44>=0.1,\"D\",\"E\"))))) & \" )\"","v":{"$error":"#N/A"}},null,{"$f":"_xlfn.PERCENTRANK.INC(Endergebnis_gerundet,G43,4)","v":{"$error":"#N/A"}},{"$f":"\"( \" & IF(ISBLANK(G44),\"-\",IF(G44>=0.9,\"A\",IF(G44>=0.65,\"B\",IF(G44>=0.35,\"C\",IF(G44>=0.1,\"D\",\"E\"))))) & \" )\"","v":{"$error":"#N/A"}},null,{"$f":"_xlfn.PERCENTRANK.INC(Endergebnis_gerundet,J43,4)","v":{"$error":"#N/A"}},{"$f":"\"( \" & IF(ISBLANK(J44),\"-\",IF(J44>=0.9,\"A\",IF(J44>=0.65,\"B\",IF(J44>=0.35,\"C\",IF(J44>=0.1,\"D\",\"E\"))))) & \" )\"","v":{"$error":"#N/A"}},null,{"$f":"_xlfn.PERCENTRANK.INC(Endergebnis_gerundet,M43,4)","v":{"$error":"#N/A"}},{"$f":"\"( \" & IF(ISBLANK(M44),\"-\",IF(M44>=0.9,\"A\",IF(M44>=0.65,\"B\",IF(M44>=0.35,\"C\",IF(M44>=0.1,\"D\",\"E\"))))) & \" )\"","v":{"$error":"#N/A"}},null,{"$f":"_xlfn.PERCENTRANK.INC(Endergebnis_gerundet,P43,4)","v":{"$error":"#N/A"}},{"$f":"\"( \" & IF(ISBLANK(P44),\"-\",IF(P44>=0.9,\"A\",IF(P44>=0.65,\"B\",IF(P44>=0.35,\"C\",IF(P44>=0.1,\"D\",\"E\"))))) & \" )\"","v":{"$error":"#N/A"}},null,{"$f":"_xlfn.PERCENTRANK.INC(Endergebnis_gerundet,S43,4)","v":{"$error":"#N/A"}},{"$f":"\"( \" & IF(ISBLANK(S44),\"-\",IF(S44>=0.9,\"A\",IF(S44>=0.65,\"B\",IF(S44>=0.35,\"C\",IF(S44>=0.1,\"D\",\"E\"))))) & \" )\"","v":{"$error":"#N/A"}},null,{"$f":"_xlfn.PERCENTRANK.INC(Endergebnis_gerundet,V43,4)","v":{"$error":"#N/A"}},{"$f":"\"( \" & IF(ISBLANK(V44),\"-\",IF(V44>=0.9,\"A\",IF(V44>=0.65,\"B\",IF(V44>=0.35,\"C\",IF(V44>=0.1,\"D\",\"E\"))))) & \" )\"","v":{"$error":"#N/A"}},null,{"$f":"_xlfn.PERCENTRANK.INC(Endergebnis_gerundet,Y43,4)","v":{"$error":"#N/A"}},{"$f":"\"( \" & IF(ISBLANK(Y44),\"-\",IF(Y44>=0.9,\"A\",IF(Y44>=0.65,\"B\",IF(Y44>=0.35,\"C\",IF(Y44>=0.1,\"D\",\"E\"))))) & \" )\"","v":{"$error":"#N/A"}},null,{"$f":"_xlfn.PERCENTRANK.INC(Endergebnis_gerundet,AB43,4)","v":{"$error":"#N/A"}},{"$f":"\"( \" & IF(ISBLANK(AB44),\"-\",IF(AB44>=0.9,\"A\",IF(AB44>=0.65,\"B\",IF(AB44>=0.35,\"C\",IF(AB44>=0.1,\"D\",\"E\"))))) & \" )\"","v":{"$error":"#N/A"}},null,{"$f":"_xlfn.PERCENTRANK.INC(Endergebnis_gerundet,AE43,4)","v":{"$error":"#N/A"}},{"$f":"\"( \" & IF(ISBLANK(AE44),\"-\",IF(AE44>=0.9,\"A\",IF(AE44>=0.65,\"B\",IF(AE44>=0.35,\"C\",IF(AE44>=0.1,\"D\",\"E\"))))) & \" )\"","v":{"$error":"#N/A"}},null,{"$f":"_xlfn.PERCENTRANK.INC(Endergebnis_gerundet,AH43,4)","v":{"$error":"#N/A"}},{"$f":"\"( \" & IF(ISBLANK(AH44),\"-\",IF(AH44>=0.9,\"A\",IF(AH44>=0.65,\"B\",IF(AH44>=0.35,\"C\",IF(AH44>=0.1,\"D\",\"E\"))))) & \" )\"","v":{"$error":"#N/A"}},null,{"$f":"_xlfn.PERCENTRANK.INC(Endergebnis_gerundet,AK43,4)","v":{"$error":"#N/A"}},{"$f":"\"( \" & IF(ISBLANK(AK44),\"-\",IF(AK44>=0.9,\"A\",IF(AK44>=0.65,\"B\",IF(AK44>=0.35,\"C\",IF(AK44>=0.1,\"D\",\"E\"))))) & \" )\"","v":{"$error":"#N/A"}},null,{"$f":"_xlfn.PERCENTRANK.INC(Endergebnis_gerundet,AN43,4)","v":{"$error":"#N/A"}},{"$f":"\"( \" & IF(ISBLANK(AN44),\"-\",IF(AN44>=0.9,\"A\",IF(AN44>=0.65,\"B\",IF(AN44>=0.35,\"C\",IF(AN44>=0.1,\"D\",\"E\"))))) & \" )\"","v":{"$error":"#N/A"}}]
["Vorleistung (50% der Punkte nach Zwischenabgabe)","Bestehensgrenze Vorleistung",{"$f":" 0.5 * (C39+C40)","v":5},{"$f":"D39+D40 >= $C$45","v":false},{"$f":"IF(D45, \"Bestanden\", \"Nicht Bestanden\")","v":"Nicht Bestanden"},null,{"$f":"G39+G40 >= $C$45","v":false},{"$f":"IF(G45, \"Bestanden\", \"Nicht Bestanden\")","v":"Nicht Bestanden"},null,{"$f":"J39+J40 >= $C$45","v":false},{"$f":"IF(J45, \"Bestanden\", \"Nicht Bestanden\")","v":"Nicht Bestanden"},null,{"$f":"M39+M40 >= $C$45","v":false},{"$f":"IF(M45, \"Bestanden\", \"Nicht Bestanden\")","v":"Nicht Bestanden"},null,{"$f":"P39+P40 >= $C$45","v":false},{"$f":"IF(P45, \"Bestanden\", \"Nicht Bestanden\")","v":"Nicht Bestanden"},null,{"$f":"S39+S40 >= $C$45","v":false},{"$f":"IF(S45, \"Bestanden\", \"Nicht Bestanden\")","v":"Nicht Bestanden"},null,{"$f":"V39+V40 >= $C$45","v":false},{"$f":"IF(V45, \"Bestanden\", \"Nicht Bestanden\")","v":"Nicht Bestanden"},null,{"$f":"Y39+Y40 >= $C$45","v":false},{"$f":"IF(Y45, \"Bestanden\", \"Nicht Bestanden\")","v":"Nicht Bestanden"},null,{"$f":"AB39+AB40 >= $C$45","v":false},{"$f":"IF(AB45, \"Bestanden\", \"Nicht Bestanden\")","v":"Nicht Bestanden"},null,{"$f":"AE39+AE40 >= $C$45","v":false},{"$f":"IF(AE45, \"Bestanden\", \"Nicht Bestanden\")","v":"Nicht Bestanden"},null,{"$f":"AH39+AH40 >= $C$45","v":false},{"$f":"IF(AH45, \"Bestanden\", \"Nicht Bestanden\")","v":"Nicht Bestanden"},null,{"$f":"AK39+AK40 >= $C$45","v":false},{"$f":"IF(AK45, \"Bestanden\", \"Nicht Bestanden\")","v":"Nicht Bestanden"},null,{"$f":"AN39+AN40 >= $C$45","v":false},{"$f":"IF(AN45, \"Bestanden\", \"Nicht Bestanden\")","v":"Nicht Bestanden"}]
["Bestanden","Bestehensgrenze Gruppenarbeit",0,{"$f":"AND(D43 >= $C$43 *$C$46,D45)","v":false},{"$f":"IF(D46,\"Bestanden\",\"Durchgefallen\")","v":"Durchgefallen"},null,{"$f":"AND(G43 >= $C$43 *$C$46,G45)","v":false},{"$f":"IF(G46,\"Bestanden\",\"Durchgefallen\")","v":"Durchgefallen"},null,{"$f":"AND(J43 >= $C$43 *$C$46,J45)","v":false},{"$f":"IF(J46,\"Bestanden\",\"Durchgefallen\")","v":"Durchgefallen"},null,{"$f":"AND(M43 >= $C$43 *$C$46,M45)","v":false},{"$f":"IF(M46,\"Bestanden\",\"Durchgefallen\")","v":"Durchgefallen"},null,{"$f":"AND(P43 >= $C$43 *$C$46,P45)","v":false},{"$f":"IF(P46,\"Bestanden\",\"Durchgefallen\")","v":"Durchgefallen"},null,{"$f":"AND(S43 >= $C$43 *$C$46,S45)","v":false},{"$f":"IF(S46,\"Bestanden\",\"Durchgefallen\")","v":"Durchgefallen"},null,{"$f":"AND(V43 >= $C$43 *$C$46,V45)","v":false},{"$f":"IF(V46,\"Bestanden\",\"Durchgefallen\")","v":"Durchgefallen"},null,{"$f":"AND(Y43 >= $C$43 *$C$46,Y45)","v":false},{"$f":"IF(Y46,\"Bestanden\",\"Durchgefallen\")","v":"Durchgefallen"},null,{"$f":"AND(AB43 >= $C$43 *$C$46,AB45)","v":false},{"$f":"IF(AB46,\"Bestanden\",\"Durchgefallen\")","v":"Durchgefallen"},null,{"$f":"AND(AE43 >= $C$43 *$C$46,AE45)","v":false},{"$f":"IF(AE46,\"Bestanden\",\"Durchgefallen\")","v":"Durchgefallen"},null,{"$f":"AND(AH43 >= $C$43 *$C$46,AH45)","v":false},{"$f":"IF(AH46,\"Bestanden\",\"Durchgefallen\")","v":"Durchgefallen"},null,{"$f":"AND(AK43 >= $C$43 *$C$46,AK45)","v":false},{"$f":"IF(AK46,\"Bestanden\",\"Durchgefallen\")","v":"Durchgefallen"},null,{"$f":"AND(AN43 >= $C$43 *$C$46,AN45)","v":false},{"$f":"IF(AN46,\"Bestanden\",\"Durchgefallen\")","v":"Durchgefallen"}]

{"sheet":"G1","index":2,"n_rows":56,"n_cols":6,"rows_kept":56,"cut":false,"hidden":false,"merged":[[49,1,49,4],[51,1,53,4],[55,1,55,4],[40,3,40,4],[1,1,1,4],[2,1,2,4],[12,3,12,4],[19,3,19,4],[29,3,29,4]]}
["Startspalte:","A","C",{"$f":"SUBSTITUTE(ADDRESS(1,A2,4),\"1\",\"\")","v":"D"},{"$f":"SUBSTITUTE(ADDRESS(1,A2+1,4),\"1\",\"\")","v":"E"},{"$f":"SUBSTITUTE(ADDRESS(1,A2+2,4),\"1\",\"\")","v":"F"}]
[4,{"$f":"\"Feedback - Gruppe: \"&IF(ISBLANK(INDIRECT(\"Gesamt!\"&E$1&$A5)),\"\",INDIRECT(\"Gesamt!\"&E$1&$A5))","v":"Feedback - Gruppe: "}]
[{"$f":"TEXT(TODAY(),\"JJJJMMTT\")","v":"20240514"},{"$f":"TODAY()","v":"2024-05-14"}]
[1,"Oranisatorisches",null,null,{"$f":"IF(ISBLANK(INDIRECT(\"Gesamt!\"&E$1&$A4)),\"\",INDIRECT(\"Gesamt!\"&E$1&$A4))","v":""}]
[2,{"$f":"IF(ISBLANK(INDIRECT(\"Gesamt!\"&B$1&$A5)),\"\",INDIRECT(\"Gesamt!\"&B$1&$A5))","v":"Korrektor"},{"$f":"IF(ISBLANK(INDIRECT(\"Gesamt!\"&C$1&$A5)),\"\",INDIRECT(\"Gesamt!\"&C$1&$A5))","v":""},{"$f":"IF(ISBLANK(INDIRECT(\"Gesamt!\"&D$1&$A5)),\"\",INDIRECT(\"Gesamt!\"&D$1&$A5))","v":"Gruppe"},{"$f":"IF(ISBLANK(INDIRECT(\"Gesamt!\"&E$1&$A5)),\"\",INDIRECT(\"Gesamt!\"&E$1&$A5))","v":""}]
[3,{"$f":"IF(ISBLANK(INDIRECT(\"Gesamt!\"&B$1&$A6)),\"\",INDIRECT(\"Gesamt!\"&B$1&$A6))","v":"Prof. Dr. Benjamin Buchwitz"},{"$f":"IF(ISBLANK(INDIRECT(\"Gesamt!\"&C$1&$A6)),\"\",INDIRECT(\"Gesamt!\"&C$1&$A6))","v":""},{"$f":"IF(ISBLANK(INDIRECT(\"Gesamt!\"&D$1&$A6)),\"\",INDIRECT(\"Gesamt!\"&D$1&$A6))","v":"Matrikelnr."},{"$f":"IF(ISBLANK(INDIRECT(\"Gesamt!\"&E$1&$A6)),\"\",INDIRECT(\"Gesamt!\"&E$1&$A6))","v":"Name"},"Aktiv"]
[4,{"$f":"IF(ISBLANK(INDIRECT(\"Gesamt!\"&B$1&$A7)),\"\",INDIRECT(\"Gesamt!\"&B$1&$A7))","v":"Kontaktmöglichkeit"},{"$f":"IF(ISBLANK(INDIRECT(\"Gesamt!\"&C$1&$A7)),\"\",INDIRECT(\"Gesamt!\"&C$1&$A7))","v":""},{"$f":"IF(ISBLANK(INDIRECT(\"Gesamt!\"&D$1&$A7)),\"\",INDIRECT(\"Gesamt!\"&D$1&$A7))","v":""},{"$f":"IF(ISBLANK(INDIRECT(\"Gesamt!\"&E$1&$A7)),\"\",INDIRECT(\"Gesamt!\"&E$1&$A7))","v":""},{"$f":"IF(ISBLANK(INDIRECT(\"Gesamt!\"&F$1&$A7)),\"\",INDIRECT(\"Gesamt!\"&F$1&$A7))","v":true}]
[5,{"$f":"IF(ISBLANK(INDIRECT(\"Gesamt!\"&B$1&$A8)),\"\",INDIRECT(\"Gesamt!\"&B$1&$A8))","v":"buchwitz.benjamin@fh-swf.de"},{"$f":"IF(ISBLANK(INDIRECT(\"Gesamt!\"&C$1&$A8)),\"\",INDIRECT(\"Gesamt!\"&C$1&$A8))","v":""},{"$f":"IF(ISBLANK(INDIRECT(\"Gesamt!\"&D$1&$A8)),\"\",INDIRECT(\"Gesamt!\"&D$1&$A8))","v":""},{"$f":"IF(ISBLANK(INDIRECT(\"Gesamt!\"&E$1&$A8)),\"\",INDIRECT(\"Gesamt!\"&E$1&$A8))","v":""},{"$f":"IF(ISBLANK(INDIRECT(\"Gesamt!\"&F$1&$A8)),\"\",INDIRECT(\"Gesamt!\"&F$1&$A8))","v":" "}]
[6,{"$f":"IF(ISBLANK(INDIRECT(\"Gesamt!\"&B$1&$A9)),\"\",INDIRECT(\"Gesamt!\"&B$1&$A9))","v":""},{"$f":"IF(ISBLANK(INDIRECT(\"Gesamt!\"&C$1&$A9)),\"\",INDIRECT(\"Gesamt!\"&C$1&$A9))","v":""},{"$f":"IF(ISBLANK(INDIRECT(\"Gesamt!\"&D$1&$A9)),\"\",INDIRECT(\"Gesamt!\"&D$1&$A9))","v":""},{"$f":"IF(ISBLANK(INDIRECT(\"Gesamt!\"&E$1&$A9)),\"\",INDIRECT(\"Gesamt!\"&E$1&$A9))","v":""},{"$f":"IF(ISBLANK(INDIRECT(\"Gesamt!\"&F$1&$A9)),\"\",INDIRECT(\"Gesamt!\"&F$1&$A9))","v":" "}]
[7,"Kommunikationsverantwortlicher Autor:",{"$f":"IF(ISBLANK(INDIRECT(\"Gesamt!\"&C$1&$A10)),\"\",INDIRECT(\"Gesamt!\"&C$1&$A10))","v":""},{"$f":"IF(ISBLANK(INDIRECT(\"Gesamt!\"&D$1&$A10)),\"\",INDIRECT(\"Gesamt!\"&D$1&$A10))","v":""},{"$f":"IF(ISBLANK(INDIRECT(\"Gesamt!\"&E$1&$A10)),\"\",INDIRECT(\"Gesamt!\"&E$1&$A10))","v":""},{"$f":"IF(ISBLANK(INDIRECT(\"Gesamt!\"&F$1&$A10)),\"\",INDIRECT(\"Gesamt!\"&F$1&$A10))","v":" "}]
[8,{"$f":"E7 & \" (Gruppensprecher:in)\"","v":" (Gruppensprecher:in)"},{"$f":"IF(ISBLANK(INDIRECT(\"Gesamt!\"&C$1&$A11)),\"\",INDIRECT(\"Gesamt!\"&C$1&$A11))","v":""},{"$f":"IF(ISBLANK(INDIRECT(\"Gesamt!\"&D$1&$A11)),\"\",INDIRECT(\"Gesamt!\"&D$1&$A11))","v":""},{"$f":"IF(ISBLANK(INDIRECT(\"Gesamt!\"&E$1&$A11)),\"\",INDIRECT(\"Gesamt!\"&E$1&$A11))","v":""},{"$f":"IF(ISBLANK(INDIRECT(\"Gesamt!\"&F$1&$A11)),\"\",INDIRECT(\"Gesamt!\"&F$1&$A11))","v":" "}]
[9,{"$f":"IF(ISBLANK(INDIRECT(\"Gesamt!\"&B$1&$A12)),\"\",INDIRECT(\"Gesamt!\"&B$1&$A12))","v":""},{"$f":"IF(ISBLANK(INDIRECT(\"Gesamt!\"&C$1&$A12)),\"\",INDIRECT(\"Gesamt!\"&C$1&$A12))","v":""},{"$f":"IF(ISBLANK(INDIRECT(\"Gesamt!\"&D$1&$A12)),\"\",INDIRECT(\"Gesamt!\"&D$1&$A12))","v":""},{"$f":"IF(ISBLANK(INDIRECT(\"Gesamt!\"&E$1&$A12)),\"\",INDIRECT(\"Gesamt!\"&E$1&$A12))","v":""},{"$f":"IF(ISBLANK(INDIRECT(\"Gesamt!\"&F$1&$A12)),\"\",INDIRECT(\"Gesamt!\"&F$1&$A12))","v":" "}]
[10,{"$f":"IF(ISBLANK(INDIRECT(\"Gesamt!\"&B$1&$A13)),\"\",INDIRECT(\"Gesamt!\"&B$1&$A13))","v":"Exposé"},{"$f":"IF(ISBLANK(INDIRECT(\"Gesamt!\"&C$1&$A13)),\"\",INDIRECT(\"Gesamt!\"&C$1&$A13))","v":""},{"$f":"IF(ISBLANK(INDIRECT(\"Gesamt!\"&D$1&$A13)),\"\",INDIRECT(\"Gesamt!\"&D$1&$A13))","v":"Gruppe: "}]
[11,{"$f":"IF(ISBLANK(INDIRECT(\"Gesamt!\"&B$1&$A14)),\"\",INDIRECT(\"Gesamt!\"&B$1&$A14))","v":"Ziel des Exposés:"},null,null,{"$f":"IF(ISBLANK(INDIRECT(\"Gesamt!\"&\"B\"&$A14)),\"\",INDIRECT(\"Gesamt!\"&\"B\"&$A14))","v":"Einarbeitung in den Sachkontext und Genese einer zum Datensatz passenden Forschungsfrage"}]
[12,{"$f":"IF(ISBLANK(INDIRECT(\"Gesamt!\"&B$1&$A15)),\"\",INDIRECT(\"Gesamt!\"&B$1&$A15))","v":""},{"$f":"IF(ISBLANK(INDIRECT(\"Gesamt!\"&C$1&$A15)),\"\",INDIRECT(\"Gesamt!\"&C$1&$A15))","v":"Punkte"},{"$f":"IF(ISBLANK(INDIRECT(\"Gesamt!\"&D$1&$A15)),\"\",INDIRECT(\"Gesamt!\"&D$1&$A15))","v":"Bewertung"},{"$f":"IF(ISBLANK(INDIRECT(\"Gesamt!\"&E$1&$A15)),\"\",INDIRECT(\"Gesamt!\"&E$1&$A15))","v":"Kommentar"}]
[13,{"$f":"IF(ISBLANK(INDIRECT(\"Gesamt!\"&B$1&$A16)),\"\",INDIRECT(\"Gesamt!\"&B$1&$A16))","v":"Forschungsgegenstand\n- Zielausgestaltung (0,2P)\n- Fragestellung (0,4P)\n- Hypothesen (0,4P)"},{"$f":"IF(ISBLANK(INDIRECT(\"Gesamt!\"&C$1&$A16)),\"\",INDIRECT(\"Gesamt!\"&C$1&$A16))","v":1},{"$f":"IF(ISBLANK(INDIRECT(\"Gesamt!\"&D$1&$A16)),\"\",INDIRECT(\"Gesamt!\"&D$1&$A16))","v":""},{"$f":"IF(ISBLANK(INDIRECT(\"Gesamt!\"&E$1&$A16)),\"\",INDIRECT(\"Gesamt!\"&E$1&$A16))","v":""}]
[14,{"$f":"IF(ISBLANK(INDIRECT(\"Gesamt!\"&B$1&$A17)),\"\",INDIRECT(\"Gesamt!\"&B$1&$A17))","v":"Komposition\n- Inhaltlicher Zusammenhang (0,2P)\n- fachsprachlich formulierte Vorgehensweise (0,2P)\n- Motivation des Themas (0,1P)"},{"$f":"IF(ISBLANK(INDIRECT(\"Gesamt!\"&C$1&$A17)),\"\",INDIRECT(\"Gesamt!\"&C$1&$A17))","v":0.5},{"$f":"IF(ISBLANK(INDIRECT(\"Gesamt!\"&D$1&$A17)),\"\",INDIRECT(\"Gesamt!\"&D$1&$A17))","v":""},{"$f":"IF(ISBLANK(INDIRECT(\"Gesamt!\"&E$1&$A17)),\"\",INDIRECT(\"Gesamt!\"&E$1&$A17))","v":""}]
[15,{"$f":"IF(ISBLANK(INDIRECT(\"Gesamt!\"&B$1&$A18)),\"\",INDIRECT(\"Gesamt!\"&B$1&$A18))","v":"Formalia (Exposé)\n- Template Nutzung & Formatierung (0,3P)\n- Schreibstil & Rechtschreibung (0,2P)"},{"$f":"IF(ISBLANK(INDIRECT(\"Gesamt!\"&C$1&$A18)),\"\",INDIRECT(\"Gesamt!\"&C$1&$A18))","v":0.5},{"$f":"IF(ISBLANK(INDIRECT(\"Gesamt!\"&D$1&$A18)),\"\",INDIRECT(\"Gesamt!\"&D$1&$A18))","v":""},{"$f":"IF(ISBLANK(INDIRECT(\"Gesamt!\"&E$1&$A18)),\"\",INDIRECT(\"Gesamt!\"&E$1&$A18))","v":""}]
[16,{"$f":"IF(ISBLANK(INDIRECT(\"Gesamt!\"&B$1&$A19)),\"\",INDIRECT(\"Gesamt!\"&B$1&$A19))","v":"Zwischensumme Exposé"},{"$f":"IF(ISBLANK(INDIRECT(\"Gesamt!\"&C$1&$A19)),\"\",INDIRECT(\"Gesamt!\"&C$1&$A19))","v":2},{"$f":"IF(ISBLANK(INDIRECT(\"Gesamt!\"&D$1&$A19)),\"\",INDIRECT(\"Gesamt!\"&D$1&$A19))","v":0},{"$f":"IF(ISBLANK(INDIRECT(\"Gesamt!\"&E$1&$A19)),\"\",INDIRECT(\"Gesamt!\"&E$1&$A19))","v":""}]
[17,{"$f":"IF(ISBLANK(INDIRECT(\"Gesamt!\"&B$1&$A20)),\"\",INDIRECT(\"Gesamt!\"&B$1&$A20))","v":"Zwischenabgabe"},{"$f":"IF(ISBLANK(INDIRECT(\"Gesamt!\"&C$1&$A20)),\"\",INDIRECT(\"Gesamt!\"&C$1&$A20))","v":""},{"$f":"IF(ISBLANK(INDIRECT(\"Gesamt!\"&D$1&$A20)),\"\",INDIRECT(\"Gesamt!\"&D$1&$A20))","v":"Gruppe: "}]
[18,{"$f":"IF(ISBLANK(INDIRECT(\"Gesamt!\"&B$1&$A21)),\"\",INDIRECT(\"Gesamt!\"&B$1&$A21))","v":"Ziel der Zwischenabgabe:"},null,null,{"$f":"IF(ISBLANK(INDIRECT(\"Gesamt!\"&\"B\"&$A21)),\"\",INDIRECT(\"Gesamt!\"&\"B\"&$A21))","v":"Vorstellung des Datensatzes und Vorbereitung der inferenzstatistischen Analyseverfahren"}]
[19,{"$f":"IF(ISBLANK(INDIRECT(\"Gesamt!\"&B$1&$A22)),\"\",INDIRECT(\"Gesamt!\"&B$1&$A22))","v":""},{"$f":"IF(ISBLANK(INDIRECT(\"Gesamt!\"&C$1&$A22)),\"\",INDIRECT(\"Gesamt!\"&C$1&$A22))","v":"Punkte"},{"$f":"IF(ISBLANK(INDIRECT(\"Gesamt!\"&D$1&$A22)),\"\",INDIRECT(\"Gesamt!\"&D$1&$A22))","v":"Bewertung"},{"$f":"IF(ISBLANK(INDIRECT(\"Gesamt!\"&E$1&$A22)),\"\",INDIRECT(\"Gesamt!\"&E$1&$A22))","v":"Kommentar"}]
[20,{"$f":"IF(ISBLANK(INDIRECT(\"Gesamt!\"&B$1&$A23)),\"\",INDIRECT(\"Gesamt!\"&B$1&$A23))","v":"Lage- & Streuungsmaße\n- Deskriptive Statistik für alle verwendeten Variablen\n- Berechnung, Interpretation und Einordnung in den Sachkontext"},{"$f":"IF(ISBLANK(INDIRECT(\"Gesamt!\"&C$1&$A23)),\"\",INDIRECT(\"Gesamt!\"&C$1&$A23))","v":2},{"$f":"IF(ISBLANK(INDIRECT(\"Gesamt!\"&D$1&$A23)),\"\",INDIRECT(\"Gesamt!\"&D$1&$A23))","v":""},{"$f":"IF(ISBLANK(INDIRECT(\"Gesamt!\"&E$1&$A23)),\"\",INDIRECT(\"Gesamt!\"&E$1&$A23))","v":""}]
[21,{"$f":"IF(ISBLANK(INDIRECT(\"Gesamt!\"&B$1&$A24)),\"\",INDIRECT(\"Gesamt!\"&B$1&$A24))","v":"Zusammenhangsmaße\n- Berechnung, Interpretation und Einordnung in den Sachkontext von (min.) einem Zusammenhangsmaß"},{"$f":"IF(ISBLANK(INDIRECT(\"Gesamt!\"&C$1&$A24)),\"\",INDIRECT(\"Gesamt!\"&C$1&$A24))","v":1},{"$f":"IF(ISBLANK(INDIRECT(\"Gesamt!\"&D$1&$A24)),\"\",INDIRECT(\"Gesamt!\"&D$1&$A24))","v":""},{"$f":"IF(ISBLANK(INDIRECT(\"Gesamt!\"&E$1&$A24)),\"\",INDIRECT(\"Gesamt!\"&E$1&$A24))","v":""}]
[22,{"$f":"IF(ISBLANK(INDIRECT(\"Gesamt!\"&B$1&$A25)),\"\",INDIRECT(\"Gesamt!\"&B$1&$A25))","v":"Ergänzende Berechnung\n- Ergänzende Berechnung, Interpretation und Einordnung in den Sachkontext (min.) eines weiteren Zusammenhangsmaßes oder Konzentrationsmaßes"},{"$f":"IF(ISBLANK(INDIRECT(\"Gesamt!\"&C$1&$A25)),\"\",INDIRECT(\"Gesamt!\"&C$1&$A25))","v":1},{"$f":"IF(ISBLANK(INDIRECT(\"Gesamt!\"&D$1&$A25)),\"\",INDIRECT(\"Gesamt!\"&D$1&$A25))","v":""},{"$f":"IF(ISBLANK(INDIRECT(\"Gesamt!\"&E$1&$A25)),\"\",INDIRECT(\"Gesamt!\"&E$1&$A25))","v":""}]
[23,{"$f":"IF(ISBLANK(INDIRECT(\"Gesamt!\"&B$1&$A26)),\"\",INDIRECT(\"Gesamt!\"&B$1&$A26))","v":"Diagramme\n- Sinnvoll unterstützender / ergänzender Einsatz einer grafischen Aufbereitung der Daten (0,5P)\n- Ergänzende Darstellung eines weiteren, andersartigen Diagrammes (0,5P)"},{"$f":"IF(ISBLANK(INDIRECT(\"Gesamt!\"&C$1&$A26)),\"\",INDIRECT(\"Gesamt!\"&C$1&$A26))","v":1},{"$f":"IF(ISBLANK(INDIRECT(\"Gesamt!\"&D$1&$A26)),\"\",INDIRECT(\"Gesamt!\"&D$1&$A26))","v":""},{"$f":"IF(ISBLANK(INDIRECT(\"Gesamt!\"&E$1&$A26)),\"\",INDIRECT(\"Gesamt!\"&E$1&$A26))","v":""}]
[24,{"$f":"IF(ISBLANK(INDIRECT(\"Gesamt!\"&B$1&$A27)),\"\",INDIRECT(\"Gesamt!\"&B$1&$A27))","v":"Komposition\n- Zweckmäßiger Methodeneinsatz (1P)\n- Zielgerichtete Argumentation (1P)"},{"$f":"IF(ISBLANK(INDIRECT(\"Gesamt!\"&C$1&$A27)),\"\",INDIRECT(\"Gesamt!\"&C$1&$A27))","v":2},{"$f":"IF(ISBLANK(INDIRECT(\"Gesamt!\"&D$1&$A27)),\"\",INDIRECT(\"Gesamt!\"&D$1&$A27))","v":""},{"$f":"IF(ISBLANK(INDIRECT(\"Gesamt!\"&E$1&$A27)),\"\",INDIRECT(\"Gesamt!\"&E$1&$A27))","v":""}]
[25,{"$f":"IF(ISBLANK(INDIRECT(\"Gesamt!\"&B$1&$A28)),\"\",INDIRECT(\"Gesamt!\"&B$1&$A28))","v":"Formalia (Zwischenabgabe)\n- Analytische Ausarbeitung (0,5P)\n    + Übersichtlichkeit\n    + Nachvollziehbarkeit aller Rechnungen\n- Schriftliche Ausarbeitung (0,5P)\n    + Formatierung des Dokuments\n    + Zitation wissenschaftlicher Quellen"},{"$f":"IF(ISBLANK(INDIRECT(\"Gesamt!\"&C$1&$A28)),\"\",INDIRECT(\"Gesamt!\"&C$1&$A28))","v":1},{"$f":"IF(ISBLANK(INDIRECT(\"Gesamt!\"&D$1&$A28)),\"\",INDIRECT(\"Gesamt!\"&D$1&$A28))","v":""},{"$f":"IF(ISBLANK(INDIRECT(\"Gesamt!\"&E$1&$A28)),\"\",INDIRECT(\"Gesamt!\"&E$1&$A28))","v":""}]
[26,{"$f":"IF(ISBLANK(INDIRECT(\"Gesamt!\"&B$1&$A29)),\"\",INDIRECT(\"Gesamt!\"&B$1&$A29))","v":"Zwischensumme Zwischenabgabe"},{"$f":"IF(ISBLANK(INDIRECT(\"Gesamt!\"&C$1&$A29)),\"\",INDIRECT(\"Gesamt!\"&C$1&$A29))","v":8},{"$f":"IF(ISBLANK(INDIRECT(\"Gesamt!\"&D$1&$A29)),\"\",INDIRECT(\"Gesamt!\"&D$1&$A29))","v":0},{"$f":"IF(ISBLANK(INDIRECT(\"Gesamt!\"&E$1&$A29)),\"\",INDIRECT(\"Gesamt!\"&E$1&$A29))","v":""}]
[27,{"$f":"IF(ISBLANK(INDIRECT(\"Gesamt!\"&B$1&$A30)),\"\",INDIRECT(\"Gesamt!\"&B$1&$A30))","v":"Endabgabe"},{"$f":"IF(ISBLANK(INDIRECT(\"Gesamt!\"&C$1&$A30)),\"\",INDIRECT(\"Gesamt!\"&C$1&$A30))","v":""},{"$f":"IF(ISBLANK(INDIRECT(\"Gesamt!\"&D$1&$A30)),\"\",INDIRECT(\"Gesamt!\"&D$1&$A30))","v":"Gruppe: "}]
[28,{"$f":"IF(ISBLANK(INDIRECT(\"Gesamt!\"&B$1&$A31)),\"\",INDIRECT(\"Gesamt!\"&B$1&$A31))","v":"Ziel der Endabgabe:"},null,null,{"$f":"IF(ISBLANK(INDIRECT(\"Gesamt!\"&\"B\"&$A31)),\"\",INDIRECT(\"Gesamt!\"&\"B\"&$A31))","v":"Beantwortung der Forschungsfrage unter Nutzung inferenzstatistischer Verfahren und Finalisierung der Arbeit"}]
[29,{"$f":"IF(ISBLANK(INDIRECT(\"Gesamt!\"&B$1&$A32)),\"\",INDIRECT(\"Gesamt!\"&B$1&$A32))","v":""},{"$f":"IF(ISBLANK(INDIRECT(\"Gesamt!\"&C$1&$A32)),\"\",INDIRECT(\"Gesamt!\"&C$1&$A32))","v":"Punkte"},{"$f":"IF(ISBLANK(INDIRECT(\"Gesamt!\"&D$1&$A32)),\"\",INDIRECT(\"Gesamt!\"&D$1&$A32))","v":"Bewertung"},{"$f":"IF(ISBLANK(INDIRECT(\"Gesamt!\"&E$1&$A32)),\"\",INDIRECT(\"Gesamt!\"&E$1&$A32))","v":"Kommentar"}]
[30,{"$f":"IF(ISBLANK(INDIRECT(\"Gesamt!\"&B$1&$A33)),\"\",INDIRECT(\"Gesamt!\"&B$1&$A33))","v":"Verbesserung der Deskriptiven Statistik hinsichtlich Korrektheit, Vollständigkeit, Beschreibung und Einordnung in den Sachkontext\n- Lagemaße (0,5P)\n- Streuungsmaße (0,5P)\n- Ergänzende Maße (0,5P)\n- Zusammenhangsmaße (0,5P)"},{"$f":"IF(ISBLANK(INDIRECT(\"Gesamt!\"&C$1&$A33)),\"\",INDIRECT(\"Gesamt!\"&C$1&$A33))","v":2},{"$f":"IF(ISBLANK(INDIRECT(\"Gesamt!\"&D$1&$A33)),\"\",INDIRECT(\"Gesamt!\"&D$1&$A33))","v":""},{"$f":"IF(ISBLANK(INDIRECT(\"Gesamt!\"&E$1&$A33)),\"\",INDIRECT(\"Gesamt!\"&E$1&$A33))","v":""}]
[31,{"$f":"IF(ISBLANK(INDIRECT(\"Gesamt!\"&B$1&$A34)),\"\",INDIRECT(\"Gesamt!\"&B$1&$A34))","v":"Inferenzstatistik: Freie Methodenwahl\n- Inhaltlich begründete Methodenauswahl (1P)\n- Voraussetzungen erfüllt (0,5P)\n- Fehlerfreie Berechnungen (0,5P)\n- Korrekte Testanwendung (0,5P)\n- Statistische Interpretation und Einordnung in Sachkontext (1P)"},{"$f":"IF(ISBLANK(INDIRECT(\"Gesamt!\"&C$1&$A34)),\"\",INDIRECT(\"Gesamt!\"&C$1&$A34))","v":3.5},{"$f":"IF(ISBLANK(INDIRECT(\"Gesamt!\"&D$1&$A34)),\"\",INDIRECT(\"Gesamt!\"&D$1&$A34))","v":""},{"$f":"IF(ISBLANK(INDIRECT(\"Gesamt!\"&E$1&$A34)),\"\",INDIRECT(\"Gesamt!\"&E$1&$A34))","v":""}]
[32,{"$f":"IF(ISBLANK(INDIRECT(\"Gesamt!\"&B$1&$A35)),\"\",INDIRECT(\"Gesamt!\"&B$1&$A35))","v":"Inferenzstatistik: Zusammenhangsanalyse\n- Variablen- und Methodenauswahl kongruent (1P)\n- Voraussetzungen erfüllt (0,5P)\n- Fehlerfreie Berechnungen (0,5P)\n- Korrekte Testanwendung (0,5P)\n- Statistische Interpretation und Einordnung in Sachkontext (1P)"},{"$f":"IF(ISBLANK(INDIRECT(\"Gesamt!\"&C$1&$A35)),\"\",INDIRECT(\"Gesamt!\"&C$1&$A35))","v":3.5},{"$f":"IF(ISBLANK(INDIRECT(\"Gesamt!\"&D$1&$A35)),\"\",INDIRECT(\"Gesamt!\"&D$1&$A35))","v":""},{"$f":"IF(ISBLANK(INDIRECT(\"Gesamt!\"&E$1&$A35)),\"\",INDIRECT(\"Gesamt!\"&E$1&$A35))","v":""}]
[33,{"$f":"IF(ISBLANK(INDIRECT(\"Gesamt!\"&B$1&$A36)),\"\",INDIRECT(\"Gesamt!\"&B$1&$A36))","v":"Argumentationsfluss & Gesamteindruck\n- Inhaltlicher Aufbau\n- Verknüpfung der Fragestellung mit der Anwendung der inhaltlichen Methoden\n- Verknüpfung deskriptiver und analytischer Statistik\n- Keine rezeptartige Beschreibung von Rechenwegen"},{"$f":"IF(ISBLANK(INDIRECT(\"Gesamt!\"&C$1&$A36)),\"\",INDIRECT(\"Gesamt!\"&C$1&$A36))","v":2},{"$f":"IF(ISBLANK(INDIRECT(\"Gesamt!\"&D$1&$A36)),\"\",INDIRECT(\"Gesamt!\"&D$1&$A36))","v":""},{"$f":"IF(ISBLANK(INDIRECT(\"Gesamt!\"&E$1&$A36)),\"\",INDIRECT(\"Gesamt!\"&E$1&$A36))","v":""}]
[34,{"$f":"IF(ISBLANK(INDIRECT(\"Gesamt!\"&B$1&$A37)),\"\",INDIRECT(\"Gesamt!\"&B$1&$A37))","v":"Zielerreichung\n- Antwort auf die gestellte Forschungsfrage\n- Zusammenfassung der Ergebnisse\n- Kritische Würdigung des eigenen Vorgehens"},{"$f":"IF(ISBLANK(INDIRECT(\"Gesamt!\"&C$1&$A37)),\"\",INDIRECT(\"Gesamt!\"&C$1&$A37))","v":2},{"$f":"IF(ISBLANK(INDIRECT(\"Gesamt!\"&D$1&$A37)),\"\",INDIRECT(\"Gesamt!\"&D$1&$A37))","v":""},{"$f":"IF(ISBLANK(INDIRECT(\"Gesamt!\"&E$1&$A37)),\"\",INDIRECT(\"Gesamt!\"&E$1&$A37))","v":""}]
[35,{"$f":"IF(ISBLANK(INDIRECT(\"Gesamt!\"&B$1&$A38)),\"\",INDIRECT(\"Gesamt!\"&B$1&$A38))","v":"Formalia (Endabgabe)\n- Nutzung des bereitgestellten Templates (fhswf R-Package) und angemessene wissenschaftliche Gestaltung des finalen Dokumentes unter Verwendung der im Template enthaltenen Checkliste\n- Abgabe ist vollständig reproduzierbar (Alle Dateien wurden eingereicht: PDF, Rmd, etc)"},{"$f":"IF(ISBLANK(INDIRECT(\"Gesamt!\"&C$1&$A38)),\"\",INDIRECT(\"Gesamt!\"&C$1&$A38))","v":1},{"$f":"IF(ISBLANK(INDIRECT(\"Gesamt!\"&D$1&$A38)),\"\",INDIRECT(\"Gesamt!\"&D$1&$A38))","v":""},{"$f":"IF(ISBLANK(INDIRECT(\"Gesamt!\"&E$1&$A38)),\"\",INDIRECT(\"Gesamt!\"&E$1&$A38))","v":""}]
[36,{"$f":"IF(ISBLANK(INDIRECT(\"Gesamt!\"&B$1&$A39)),\"\",INDIRECT(\"Gesamt!\"&B$1&$A39))","v":"Analytische Qualität\n- Übersichtlichkeit der Analyse (R Datei)\n- Nachvollziehbarkeit aller Rechnungen\n- Vollständigkeit"},{"$f":"IF(ISBLANK(INDIRECT(\"Gesamt!\"&C$1&$A39)),\"\",INDIRECT(\"Gesamt!\"&C$1&$A39))","v":1},{"$f":"IF(ISBLANK(INDIRECT(\"Gesamt!\"&D$1&$A39)),\"\",INDIRECT(\"Gesamt!\"&D$1&$A39))","v":""},{"$f":"IF(ISBLANK(INDIRECT(\"Gesamt!\"&E$1&$A39)),\"\",INDIRECT(\"Gesamt!\"&E$1&$A39))","v":""}]
[37,{"$f":"IF(ISBLANK(INDIRECT(\"Gesamt!\"&B$1&$A40)),\"\",INDIRECT(\"Gesamt!\"&B$1&$A40))","v":"Zwischensumme Endabgabe"},{"$f":"IF(ISBLANK(INDIRECT(\"Gesamt!\"&C$1&$A40)),\"\",INDIRECT(\"Gesamt!\"&C$1&$A40))","v":15},{"$f":"IF(ISBLANK(INDIRECT(\"Gesamt!\"&D$1&$A40)),\"\",INDIRECT(\"Gesamt!\"&D$1&$A40))","v":0},{"$f":"IF(ISBLANK(INDIRECT(\"Gesamt!\"&E$1&$A40)),\"\",INDIRECT(\"Gesamt!\"&E$1&$A40))","v":""}]
[38,{"$f":"IF(ISBLANK(INDIRECT(\"Gesamt!\"&B$1&$A41)),\"\",INDIRECT(\"Gesamt!\"&B$1&$A41))","v":"Abschließende Bewertung"},{"$f":"IF(ISBLANK(INDIRECT(\"Gesamt!\"&C$1&$A41)),\"\",INDIRECT(\"Gesamt!\"&C$1&$A41))","v":""},{"$f":"IF(ISBLANK(INDIRECT(\"Gesamt!\"&D$1&$A41)),\"\",INDIRECT(\"Gesamt!\"&D$1&$A41))","v":"Gruppe: "}]
[39,{"$f":"IF(ISBLANK(INDIRECT(\"Gesamt!\"&B$1&$A42)),\"\",INDIRECT(\"Gesamt!\"&B$1&$A42))","v":"Exposé"},{"$f":"IF(ISBLANK(INDIRECT(\"Gesamt!\"&C$1&$A42)),\"\",INDIRECT(\"Gesamt!\"&C$1&$A42))","v":2},{"$f":"IF(ISBLANK(INDIRECT(\"Gesamt!\"&D$1&$A42)),\"\",INDIRECT(\"Gesamt!\"&D$1&$A42))","v":0},{"$f":"IF(ISBLANK(INDIRECT(\"Gesamt!\"&E$1&$A42)),\"\",INDIRECT(\"Gesamt!\"&E$1&$A42))","v":"(0,0 %)"}]
[40,{"$f":"IF(ISBLANK(INDIRECT(\"Gesamt!\"&B$1&$A43)),\"\",INDIRECT(\"Gesamt!\"&B$1&$A43))","v":"Zwischenabgabe"},{"$f":"IF(ISBLANK(INDIRECT(\"Gesamt!\"&C$1&$A43)),\"\",INDIRECT(\"Gesamt!\"&C$1&$A43))","v":8},{"$f":"IF(ISBLANK(INDIRECT(\"Gesamt!\"&D$1&$A43)),\"\",INDIRECT(\"Gesamt!\"&D$1&$A43))","v":0},{"$f":"IF(ISBLANK(INDIRECT(\"Gesamt!\"&E$1&$A43)),\"\",INDIRECT(\"Gesamt!\"&E$1&$A43))","v":"(0,0 %)"}]
[41,{"$f":"IF(ISBLANK(INDIRECT(\"Gesamt!\"&B$1&$A44)),\"\",INDIRECT(\"Gesamt!\"&B$1&$A44))","v":"Endabgabe"},{"$f":"IF(ISBLANK(INDIRECT(\"Gesamt!\"&C$1&$A44)),\"\",INDIRECT(\"Gesamt!\"&C$1&$A44))","v":15},{"$f":"IF(ISBLANK(INDIRECT(\"Gesamt!\"&D$1&$A44)),\"\",INDIRECT(\"Gesamt!\"&D$1&$A44))","v":0},{"$f":"IF(ISBLANK(INDIRECT(\"Gesamt!\"&E$1&$A44)),\"\",INDIRECT(\"Gesamt!\"&E$1&$A44))","v":"(0,0 %)"}]
[42,{"$f":"IF(ISBLANK(INDIRECT(\"Gesamt!\"&B$1&$A45)),\"\",INDIRECT(\"Gesamt!\"&B$1&$A45))","v":"Endpunktzahl (rechnerisch)"},{"$f":"IF(ISBLANK(INDIRECT(\"Gesamt!\"&C$1&$A45)),\"\",INDIRECT(\"Gesamt!\"&C$1&$A45))","v":25},{"$f":"IF(ISBLANK(INDIRECT(\"Gesamt!\"&D$1&$A45)),\"\",INDIRECT(\"Gesamt!\"&D$1&$A45))","v":0},{"$f":"IF(ISBLANK(INDIRECT(\"Gesamt!\"&E$1&$A45)),\"\",INDIRECT(\"Gesamt!\"&E$1&$A45))","v":"(0,0 %)"}]
[43,{"$f":"IF(ISBLANK(INDIRECT(\"Gesamt!\"&B$1&$A46)),\"\",INDIRECT(\"Gesamt!\"&B$1&$A46))","v":"Endergebnis (gerundet)"},{"$f":"IF(ISBLANK(INDIRECT(\"Gesamt!\"&C$1&$A46)),\"\",INDIRECT(\"Gesamt!\"&C$1&$A46))","v":25},{"$f":"IF(ISBLANK(INDIRECT(\"Gesamt!\"&D$1&$A46)),\"\",INDIRECT(\"Gesamt!\"&D$1&$A46))","v":0},{"$f":"IF(ISBLANK(INDIRECT(\"Gesamt!\"&E$1&$A46)),\"\",INDIRECT(\"Gesamt!\"&E$1&$A46))","v":"(0,0 %)"}]
[44,{"$f":"IF(ISBLANK(INDIRECT(\"Gesamt!\"&B$1&$A47)),\"\",INDIRECT(\"Gesamt!\"&B$1&$A47))","v":"Quantil (ECTS-Grad) [nur Korrektor]"},{"$f":"IF(ISBLANK(INDIRECT(\"Gesamt!\"&C$1&$A47)),\"\",INDIRECT(\"Gesamt!\"&C$1&$A47))","v":"0-1 (A-E)"},{"$f":"IF(ISBLANK(INDIRECT(\"Gesamt!\"&D$1&$A47)),\"\",INDIRECT(\"Gesamt!\"&D$1&$A47))","v":{"$error":"#N/A"}},{"$f":"IF(ISBLANK(INDIRECT(\"Gesamt!\"&E$1&$A47)),\"\",INDIRECT(\"Gesamt!\"&E$1&$A47))","v":{"$error":"#N/A"}}]
[]
[]
[45,{"$f":"IF(ISBLANK(INDIRECT(\"Gesamt!\"&B$1&$A50)),\"\",INDIRECT(\"Gesamt!\"&B$1&$A50))","v":"Vorleistung (50% der Punkte nach Zwischenabgabe)"}]
[]
[null,{"$f":"IF(ISBLANK(INDIRECT(\"Gesamt!\"&E$1&$A50)),\"\",INDIRECT(\"Gesamt!\"&E$1&$A50))","v":"Nicht Bestanden"}]
[]
[]
[]
[null,"Hinweis: Das Bestehen der Vorleistung ist Bedingung für die Zulassung zur Prüfung. Endpunktzahl (rechnerisch) und Endergebnis (gerundet) werden erst nach bestandener Vorleistung angezeigt."]

{"sheet":"G2","index":3,"n_rows":56,"n_cols":6,"rows_kept":56,"cut":false,"hidden":false,"merged":[[49,1,49,4],[51,1,53,4],[55,1,55,4],[1,1,1,4],[2,1,2,4],[12,3,12,4],[19,3,19,4],[29,3,29,4],[40,3,40,4]]}
["Startspalte:","A","C",{"$f":"SUBSTITUTE(ADDRESS(1,A2,4),\"1\",\"\")","v":"G"},{"$f":"SUBSTITUTE(ADDRESS(1,A2+1,4),\"1\",\"\")","v":"H"},{"$f":"SUBSTITUTE(ADDRESS(1,A2+2,4),\"1\",\"\")","v":"I"}]
[7,{"$f":"\"Feedback - Gruppe: \"&IF(ISBLANK(INDIRECT(\"Gesamt!\"&E$1&$A5)),\"\",INDIRECT(\"Gesamt!\"&E$1&$A5))","v":"Feedback - Gruppe: "}]
[{"$f":"TEXT(TODAY(),\"JJJJMMTT\")","v":"20240514"},{"$f":"TODAY()","v":"2024-05-14"}]
[1,"Oranisatorisches",null,null,{"$f":"IF(ISBLANK(INDIRECT(\"Gesamt!\"&E$1&$A4)),\"\",INDIRECT(\"Gesamt!\"&E$1&$A4))","v":""}]
[2,{"$f":"IF(ISBLANK(INDIRECT(\"Gesamt!\"&B$1&$A5)),\"\",INDIRECT(\"Gesamt!\"&B$1&$A5))","v":"Korrektor"},{"$f":"IF(ISBLANK(INDIRECT(\"Gesamt!\"&C$1&$A5)),\"\",INDIRECT(\"Gesamt!\"&C$1&$A5))","v":""},{"$f":"IF(ISBLANK(INDIRECT(\"Gesamt!\"&D$1&$A5)),\"\",INDIRECT(\"Gesamt!\"&D$1&$A5))","v":"Gruppe"},{"$f":"IF(ISBLANK(INDIRECT(\"Gesamt!\"&E$1&$A5)),\"\",INDIRECT(\"Gesamt!\"&E$1&$A5))","v":""}]
[3,{"$f":"IF(ISBLANK(INDIRECT(\"Gesamt!\"&B$1&$A6)),\"\",INDIRECT(\"Gesamt!\"&B$1&$A6))","v":"Prof. Dr. Benjamin Buchwitz"},{"$f":"IF(ISBLANK(INDIRECT(\"Gesamt!\"&C$1&$A6)),\"\",INDIRECT(\"Gesamt!\"&C$1&$A6))","v":""},{"$f":"IF(ISBLANK(INDIRECT(\"Gesamt!\"&D$1&$A6)),\"\",INDIRECT(\"Gesamt!\"&D$1&$A6))","v":"Matrikelnr."},{"$f":"IF(ISBLANK(INDIRECT(\"Gesamt!\"&E$1&$A6)),\"\",INDIRECT(\"Gesamt!\"&E$1&$A6))","v":"Name"},"Aktiv"]
[4,{"$f":"IF(ISBLANK(INDIRECT(\"Gesamt!\"&B$1&$A7)),\"\",INDIRECT(\"Gesamt!\"&B$1&$A7))","v":"Kontaktmöglichkeit"},{"$f":"IF(ISBLANK(INDIRECT(\"Gesamt!\"&C$1&$A7)),\"\",INDIRECT(\"Gesamt!\"&C$1&$A7))","v":""},{"$f":"IF(ISBLANK(INDIRECT(\"Gesamt!\"&D$1&$A7)),\"\",INDIRECT(\"Gesamt!\"&D$1&$A7))","v":""},{"$f":"IF(ISBLANK(INDIRECT(\"Gesamt!\"&E$1&$A7)),\"\",INDIRECT(\"Gesamt!\"&E$1&$A7))","v":""},{"$f":"IF(ISBLANK(INDIRECT(\"Gesamt!\"&F$1&$A7)),\"\",INDIRECT(\"Gesamt!\"&F$1&$A7))","v":true}]
[5,{"$f":"IF(ISBLANK(INDIRECT(\"Gesamt!\"&B$1&$A8)),\"\",INDIRECT(\"Gesamt!\"&B$1&$A8))","v":"buchwitz.benjamin@fh-swf.de"},{"$f":"IF(ISBLANK(INDIRECT(\"Gesamt!\"&C$1&$A8)),\"\",INDIRECT(\"Gesamt!\"&C$1&$A8))","v":""},{"$f":"IF(ISBLANK(INDIRECT(\"Gesamt!\"&D$1&$A8)),\"\",INDIRECT(\"Gesamt!\"&D$1&$A8))","v":""},{"$f":"IF(ISBLANK(INDIRECT(\"Gesamt!\"&E$1&$A8)),\"\",INDIRECT(\"Gesamt!\"&E$1&$A8))","v":""},{"$f":"IF(ISBLANK(INDIRECT(\"Gesamt!\"&F$1&$A8)),\"\",INDIRECT(\"Gesamt!\"&F$1&$A8))","v":" "}]
[6,{"$f":"IF(ISBLANK(INDIRECT(\"Gesamt!\"&B$1&$A9)),\"\",INDIRECT(\"Gesamt!\"&B$1&$A9))","v":""},{"$f":"IF(ISBLANK(INDIRECT(\"Gesamt!\"&C$1&$A9)),\"\",INDIRECT(\"Gesamt!\"&C$1&$A9))","v":""},{"$f":"IF(ISBLANK(INDIRECT(\"Gesamt!\"&D$1&$A9)),\"\",INDIRECT(\"Gesamt!\"&D$1&$A9))","v":""},{"$f":"IF(ISBLANK(INDIRECT(\"Gesamt!\"&E$1&$A9)),\"\",INDIRECT(\"Gesamt!\"&E$1&$A9))","v":""},{"$f":"IF(ISBLANK(INDIRECT(\"Gesamt!\"&F$1&$A9)),\"\",INDIRECT(\"Gesamt!\"&F$1&$A9))","v":" "}]
[7,"Kommunikationsverantwortlicher Autor:",{"$f":"IF(ISBLANK(INDIRECT(\"Gesamt!\"&C$1&$A10)),\"\",INDIRECT(\"Gesamt!\"&C$1&$A10))","v":""},{"$f":"IF(ISBLANK(INDIRECT(\"Gesamt!\"&D$1&$A10)),\"\",INDIRECT(\"Gesamt!\"&D$1&$A10))","v":""},{"$f":"IF(ISBLANK(INDIRECT(\"Gesamt!\"&E$1&$A10)),\"\",INDIRECT(\"Gesamt!\"&E$1&$A10))","v":""},{"$f":"IF(ISBLANK(INDIRECT(\"Gesamt!\"&F$1&$A10)),\"\",INDIRECT(\"Gesamt!\"&F$1&$A10))","v":" "}]
[8,{"$f":"E7 & \" (Gruppensprecher:in)\"","v":" (Gruppensprecher:in)"},{"$f":"IF(ISBLANK(INDIRECT(\"Gesamt!\"&C$1&$A11)),\"\",INDIRECT(\"Gesamt!\"&C$1&$A11))","v":""},{"$f":"IF(ISBLANK(INDIRECT(\"Gesamt!\"&D$1&$A11)),\"\",INDIRECT(\"Gesamt!\"&D$1&$A11))","v":""},{"$f":"IF(ISBLANK(INDIRECT(\"Gesamt!\"&E$1&$A11)),\"\",INDIRECT(\"Gesamt!\"&E$1&$A11))","v":""},{"$f":"IF(ISBLANK(INDIRECT(\"Gesamt!\"&F$1&$A11)),\"\",INDIRECT(\"Gesamt!\"&F$1&$A11))","v":" "}]
[9,{"$f":"IF(ISBLANK(INDIRECT(\"Gesamt!\"&B$1&$A12)),\"\",INDIRECT(\"Gesamt!\"&B$1&$A12))","v":""},{"$f":"IF(ISBLANK(INDIRECT(\"Gesamt!\"&C$1&$A12)),\"\",INDIRECT(\"Gesamt!\"&C$1&$A12))","v":""},{"$f":"IF(ISBLANK(INDIRECT(\"Gesamt!\"&D$1&$A12)),\"\",INDIRECT(\"Gesamt!\"&D$1&$A12))","v":""},{"$f":"IF(ISBLANK(INDIRECT(\"Gesamt!\"&E$1&$A12)),\"\",INDIRECT(\"Gesamt!\"&E$1&$A12))","v":""},{"$f":"IF(ISBLANK(INDIRECT(\"Gesamt!\"&F$1&$A12)),\"\",INDIRECT(\"Gesamt!\"&F$1&$A12))","v":" "}]
[10,{"$f":"IF(ISBLANK(INDIRECT(\"Gesamt!\"&B$1&$A13)),\"\",INDIRECT(\"Gesamt!\"&B$1&$A13))","v":"Exposé"},{"$f":"IF(ISBLANK(INDIRECT(\"Gesamt!\"&C$1&$A13)),\"\",INDIRECT(\"Gesamt!\"&C$1&$A13))","v":""},{"$f":"IF(ISBLANK(INDIRECT(\"Gesamt!\"&D$1&$A13)),\"\",INDIRECT(\"Gesamt!\"&D$1&$A13))","v":"Gruppe: "}]
[11,{"$f":"IF(ISBLANK(INDIRECT(\"Gesamt!\"&B$1&$A14)),\"\",INDIRECT(\"Gesamt!\"&B$1&$A14))","v":"Ziel des Exposés:"},null,null,{"$f":"IF(ISBLANK(INDIRECT(\"Gesamt!\"&\"B\"&$A14)),\"\",INDIRECT(\"Gesamt!\"&\"B\"&$A14))","v":"Einarbeitung in den Sachkontext und Genese einer zum Datensatz passenden Forschungsfrage"}]
[12,{"$f":"IF(ISBLANK(INDIRECT(\"Gesamt!\"&B$1&$A15)),\"\",INDIRECT(\"Gesamt!\"&B$1&$A15))","v":""},{"$f":"IF(ISBLANK(INDIRECT(\"Gesamt!\"&C$1&$A15)),\"\",INDIRECT(\"Gesamt!\"&C$1&$A15))","v":"Punkte"},{"$f":"IF(ISBLANK(INDIRECT(\"Gesamt!\"&D$1&$A15)),\"\",INDIRECT(\"Gesamt!\"&D$1&$A15))","v":"Bewertung"},{"$f":"IF(ISBLANK(INDIRECT(\"Gesamt!\"&E$1&$A15)),\"\",INDIRECT(\"Gesamt!\"&E$1&$A15))","v":"Kommentar"}]
[13,{"$f":"IF(ISBLANK(INDIRECT(\"Gesamt!\"&B$1&$A16)),\"\",INDIRECT(\"Gesamt!\"&B$1&$A16))","v":"Forschungsgegenstand\n- Zielausgestaltung (0,2P)\n- Fragestellung (0,4P)\n- Hypothesen (0,4P)"},{"$f":"IF(ISBLANK(INDIRECT(\"Gesamt!\"&C$1&$A16)),\"\",INDIRECT(\"Gesamt!\"&C$1&$A16))","v":1},{"$f":"IF(ISBLANK(INDIRECT(\"Gesamt!\"&D$1&$A16)),\"\",INDIRECT(\"Gesamt!\"&D$1&$A16))","v":""},{"$f":"IF(ISBLANK(INDIRECT(\"Gesamt!\"&E$1&$A16)),\"\",INDIRECT(\"Gesamt!\"&E$1&$A16))","v":""}]
[14,{"$f":"IF(ISBLANK(INDIRECT(\"Gesamt!\"&B$1&$A17)),\"\",INDIRECT(\"Gesamt!\"&B$1&$A17))","v":"Komposition\n- Inhaltlicher Zusammenhang (0,2P)\n- fachsprachlich formulierte Vorgehensweise (0,2P)\n- Motivation des Themas (0,1P)"},{"$f":"IF(ISBLANK(INDIRECT(\"Gesamt!\"&C$1&$A17)),\"\",INDIRECT(\"Gesamt!\"&C$1&$A17))","v":0.5},{"$f":"IF(ISBLANK(INDIRECT(\"Gesamt!\"&D$1&$A17)),\"\",INDIRECT(\"Gesamt!\"&D$1&$A17))","v":""},{"$f":"IF(ISBLANK(INDIRECT(\"Gesamt!\"&E$1&$A17)),\"\",INDIRECT(\"Gesamt!\"&E$1&$A17))","v":""}]
[15,{"$f":"IF(ISBLANK(INDIRECT(\"Gesamt!\"&B$1&$A18)),\"\",INDIRECT(\"Gesamt!\"&B$1&$A18))","v":"Formalia (Exposé)\n- Template Nutzung & Formatierung (0,3P)\n- Schreibstil & Rechtschreibung (0,2P)"},{"$f":"IF(ISBLANK(INDIRECT(\"Gesamt!\"&C$1&$A18)),\"\",INDIRECT(\"Gesamt!\"&C$1&$A18))","v":0.5},{"$f":"IF(ISBLANK(INDIRECT(\"Gesamt!\"&D$1&$A18)),\"\",INDIRECT(\"Gesamt!\"&D$1&$A18))","v":""},{"$f":"IF(ISBLANK(INDIRECT(\"Gesamt!\"&E$1&$A18)),\"\",INDIRECT(\"Gesamt!\"&E$1&$A18))","v":""}]
[16,{"$f":"IF(ISBLANK(INDIRECT(\"Gesamt!\"&B$1&$A19)),\"\",INDIRECT(\"Gesamt!\"&B$1&$A19))","v":"Zwischensumme Exposé"},{"$f":"IF(ISBLANK(INDIRECT(\"Gesamt!\"&C$1&$A19)),\"\",INDIRECT(\"Gesamt!\"&C$1&$A19))","v":2},{"$f":"IF(ISBLANK(INDIRECT(\"Gesamt!\"&D$1&$A19)),\"\",INDIRECT(\"Gesamt!\"&D$1&$A19))","v":0},{"$f":"IF(ISBLANK(INDIRECT(\"Gesamt!\"&E$1&$A19)),\"\",INDIRECT(\"Gesamt!\"&E$1&$A19))","v":""}]
[17,{"$f":"IF(ISBLANK(INDIRECT(\"Gesamt!\"&B$1&$A20)),\"\",INDIRECT(\"Gesamt!\"&B$1&$A20))","v":"Zwischenabgabe"},{"$f":"IF(ISBLANK(INDIRECT(\"Gesamt!\"&C$1&$A20)),\"\",INDIRECT(\"Gesamt!\"&C$1&$A20))","v":""},{"$f":"IF(ISBLANK(INDIRECT(\"Gesamt!\"&D$1&$A20)),\"\",INDIRECT(\"Gesamt!\"&D$1&$A20))","v":"Gruppe: "}]
[18,{"$f":"IF(ISBLANK(INDIRECT(\"Gesamt!\"&B$1&$A21)),\"\",INDIRECT(\"Gesamt!\"&B$1&$A21))","v":"Ziel der Zwischenabgabe:"},null,null,{"$f":"IF(ISBLANK(INDIRECT(\"Gesamt!\"&\"B\"&$A21)),\"\",INDIRECT(\"Gesamt!\"&\"B\"&$A21))","v":"Vorstellung des Datensatzes und Vorbereitung der inferenzstatistischen Analyseverfahren"}]
[19,{"$f":"IF(ISBLANK(INDIRECT(\"Gesamt!\"&B$1&$A22)),\"\",INDIRECT(\"Gesamt!\"&B$1&$A22))","v":""},{"$f":"IF(ISBLANK(INDIRECT(\"Gesamt!\"&C$1&$A22)),\"\",INDIRECT(\"Gesamt!\"&C$1&$A22))","v":"Punkte"},{"$f":"IF(ISBLANK(INDIRECT(\"Gesamt!\"&D$1&$A22)),\"\",INDIRECT(\"Gesamt!\"&D$1&$A22))","v":"Bewertung"},{"$f":"IF(ISBLANK(INDIRECT(\"Gesamt!\"&E$1&$A22)),\"\",INDIRECT(\"Gesamt!\"&E$1&$A22))","v":"Kommentar"}]
[20,{"$f":"IF(ISBLANK(INDIRECT(\"Gesamt!\"&B$1&$A23)),\"\",INDIRECT(\"Gesamt!\"&B$1&$A23))","v":"Lage- & Streuungsmaße\n- Deskriptive Statistik für alle verwendeten Variablen\n- Berechnung, Interpretation und Einordnung in den Sachkontext"},{"$f":"IF(ISBLANK(INDIRECT(\"Gesamt!\"&C$1&$A23)),\"\",INDIRECT(\"Gesamt!\"&C$1&$A23))","v":2},{"$f":"IF(ISBLANK(INDIRECT(\"Gesamt!\"&D$1&$A23)),\"\",INDIRECT(\"Gesamt!\"&D$1&$A23))","v":""},{"$f":"IF(ISBLANK(INDIRECT(\"Gesamt!\"&E$1&$A23)),\"\",INDIRECT(\"Gesamt!\"&E$1&$A23))","v":""}]
[21,{"$f":"IF(ISBLANK(INDIRECT(\"Gesamt!\"&B$1&$A24)),\"\",INDIRECT(\"Gesamt!\"&B$1&$A24))","v":"Zusammenhangsmaße\n- Berechnung, Interpretation und Einordnung in den Sachkontext von (min.) einem Zusammenhangsmaß"},{"$f":"IF(ISBLANK(INDIRECT(\"Gesamt!\"&C$1&$A24)),\"\",INDIRECT(\"Gesamt!\"&C$1&$A24))","v":1},{"$f":"IF(ISBLANK(INDIRECT(\"Gesamt!\"&D$1&$A24)),\"\",INDIRECT(\"Gesamt!\"&D$1&$A24))","v":""},{"$f":"IF(ISBLANK(INDIRECT(\"Gesamt!\"&E$1&$A24)),\"\",INDIRECT(\"Gesamt!\"&E$1&$A24))","v":""}]
[22,{"$f":"IF(ISBLANK(INDIRECT(\"Gesamt!\"&B$1&$A25)),\"\",INDIRECT(\"Gesamt!\"&B$1&$A25))","v":"Ergänzende Berechnung\n- Ergänzende Berechnung, Interpretation und Einordnung in den Sachkontext (min.) eines weiteren Zusammenhangsmaßes oder Konzentrationsmaßes"},{"$f":"IF(ISBLANK(INDIRECT(\"Gesamt!\"&C$1&$A25)),\"\",INDIRECT(\"Gesamt!\"&C$1&$A25))","v":1},{"$f":"IF(ISBLANK(INDIRECT(\"Gesamt!\"&D$1&$A25)),\"\",INDIRECT(\"Gesamt!\"&D$1&$A25))","v":""},{"$f":"IF(ISBLANK(INDIRECT(\"Gesamt!\"&E$1&$A25)),\"\",INDIRECT(\"Gesamt!\"&E$1&$A25))","v":""}]
[23,{"$f":"IF(ISBLANK(INDIRECT(\"Gesamt!\"&B$1&$A26)),\"\",INDIRECT(\"Gesamt!\"&B$1&$A26))","v":"Diagramme\n- Sinnvoll unterstützender / ergänzender Einsatz einer grafischen Aufbereitung der Daten (0,5P)\n- Ergänzende Darstellung eines weiteren, andersartigen Diagrammes (0,5P)"},{"$f":"IF(ISBLANK(INDIRECT(\"Gesamt!\"&C$1&$A26)),\"\",INDIRECT(\"Gesamt!\"&C$1&$A26))","v":1},{"$f":"IF(ISBLANK(INDIRECT(\"Gesamt!\"&D$1&$A26)),\"\",INDIRECT(\"Gesamt!\"&D$1&$A26))","v":""},{"$f":"IF(ISBLANK(INDIRECT(\"Gesamt!\"&E$1&$A26)),\"\",INDIRECT(\"Gesamt!\"&E$1&$A26))","v":""}]
[24,{"$f":"IF(ISBLANK(INDIRECT(\"Gesamt!\"&B$1&$A27)),\"\",INDIRECT(\"Gesamt!\"&B$1&$A27))","v":"Komposition\n- Zweckmäßiger Methodeneinsatz (1P)\n- Zielgerichtete Argumentation (1P)"},{"$f":"IF(ISBLANK(INDIRECT(\"Gesamt!\"&C$1&$A27)),\"\",INDIRECT(\"Gesamt!\"&C$1&$A27))","v":2},{"$f":"IF(ISBLANK(INDIRECT(\"Gesamt!\"&D$1&$A27)),\"\",INDIRECT(\"Gesamt!\"&D$1&$A27))","v":""},{"$f":"IF(ISBLANK(INDIRECT(\"Gesamt!\"&E$1&$A27)),\"\",INDIRECT(\"Gesamt!\"&E$1&$A27))","v":""}]
[25,{"$f":"IF(ISBLANK(INDIRECT(\"Gesamt!\"&B$1&$A28)),\"\",INDIRECT(\"Gesamt!\"&B$1&$A28))","v":"Formalia (Zwischenabgabe)\n- Analytische Ausarbeitung (0,5P)\n    + Übersichtlichkeit\n    + Nachvollziehbarkeit aller Rechnungen\n- Schriftliche Ausarbeitung (0,5P)\n    + Formatierung des Dokuments\n    + Zitation wissenschaftlicher Quellen"},{"$f":"IF(ISBLANK(INDIRECT(\"Gesamt!\"&C$1&$A28)),\"\",INDIRECT(\"Gesamt!\"&C$1&$A28))","v":1},{"$f":"IF(ISBLANK(INDIRECT(\"Gesamt!\"&D$1&$A28)),\"\",INDIRECT(\"Gesamt!\"&D$1&$A28))","v":""},{"$f":"IF(ISBLANK(INDIRECT(\"Gesamt!\"&E$1&$A28)),\"\",INDIRECT(\"Gesamt!\"&E$1&$A28))","v":""}]
[26,{"$f":"IF(ISBLANK(INDIRECT(\"Gesamt!\"&B$1&$A29)),\"\",INDIRECT(\"Gesamt!\"&B$1&$A29))","v":"Zwischensumme Zwischenabgabe"},{"$f":"IF(ISBLANK(INDIRECT(\"Gesamt!\"&C$1&$A29)),\"\",INDIRECT(\"Gesamt!\"&C$1&$A29))","v":8},{"$f":"IF(ISBLANK(INDIRECT(\"Gesamt!\"&D$1&$A29)),\"\",INDIRECT(\"Gesamt!\"&D$1&$A29))","v":0},{"$f":"IF(ISBLANK(INDIRECT(\"Gesamt!\"&E$1&$A29)),\"\",INDIRECT(\"Gesamt!\"&E$1&$A29))","v":""}]
[27,{"$f":"IF(ISBLANK(INDIRECT(\"Gesamt!\"&B$1&$A30)),\"\",INDIRECT(\"Gesamt!\"&B$1&$A30))","v":"Endabgabe"},{"$f":"IF(ISBLANK(INDIRECT(\"Gesamt!\"&C$1&$A30)),\"\",INDIRECT(\"Gesamt!\"&C$1&$A30))","v":""},{"$f":"IF(ISBLANK(INDIRECT(\"Gesamt!\"&D$1&$A30)),\"\",INDIRECT(\"Gesamt!\"&D$1&$A30))","v":"Gruppe: "}]
[28,{"$f":"IF(ISBLANK(INDIRECT(\"Gesamt!\"&B$1&$A31)),\"\",INDIRECT(\"Gesamt!\"&B$1&$A31))","v":"Ziel der Endabgabe:"},null,null,{"$f":"IF(ISBLANK(INDIRECT(\"Gesamt!\"&\"B\"&$A31)),\"\",INDIRECT(\"Gesamt!\"&\"B\"&$A31))","v":"Beantwortung der Forschungsfrage unter Nutzung inferenzstatistischer Verfahren und Finalisierung der Arbeit"}]
[29,{"$f":"IF(ISBLANK(INDIRECT(\"Gesamt!\"&B$1&$A32)),\"\",INDIRECT(\"Gesamt!\"&B$1&$A32))","v":""},{"$f":"IF(ISBLANK(INDIRECT(\"Gesamt!\"&C$1&$A32)),\"\",INDIRECT(\"Gesamt!\"&C$1&$A32))","v":"Punkte"},{"$f":"IF(ISBLANK(INDIRECT(\"Gesamt!\"&D$1&$A32)),\"\",INDIRECT(\"Gesamt!\"&D$1&$A32))","v":"Bewertung"},{"$f":"IF(ISBLANK(INDIRECT(\"Gesamt!\"&E$1&$A32)),\"\",INDIRECT(\"Gesamt!\"&E$1&$A32))","v":"Kommentar"}]
[30,{"$f":"IF(ISBLANK(INDIRECT(\"Gesamt!\"&B$1&$A33)),\"\",INDIRECT(\"Gesamt!\"&B$1&$A33))","v":"Verbesserung der Deskriptiven Statistik hinsichtlich Korrektheit, Vollständigkeit, Beschreibung und Einordnung in den Sachkontext\n- Lagemaße (0,5P)\n- Streuungsmaße (0,5P)\n- Ergänzende Maße (0,5P)\n- Zusammenhangsmaße (0,5P)"},{"$f":"IF(ISBLANK(INDIRECT(\"Gesamt!\"&C$1&$A33)),\"\",INDIRECT(\"Gesamt!\"&C$1&$A33))","v":2},{"$f":"IF(ISBLANK(INDIRECT(\"Gesamt!\"&D$1&$A33)),\"\",INDIRECT(\"Gesamt!\"&D$1&$A33))","v":""},{"$f":"IF(ISBLANK(INDIRECT(\"Gesamt!\"&E$1&$A33)),\"\",INDIRECT(\"Gesamt!\"&E$1&$A33))","v":""}]
[31,{"$f":"IF(ISBLANK(INDIRECT(\"Gesamt!\"&B$1&$A34)),\"\",INDIRECT(\"Gesamt!\"&B$1&$A34))","v":"Inferenzstatistik: Freie Methodenwahl\n- Inhaltlich begründete Methodenauswahl (1P)\n- Voraussetzungen erfüllt (0,5P)\n- Fehlerfreie Berechnungen (0,5P)\n- Korrekte Testanwendung (0,5P)\n- Statistische Interpretation und Einordnung in Sachkontext (1P)"},{"$f":"IF(ISBLANK(INDIRECT(\"Gesamt!\"&C$1&$A34)),\"\",INDIRECT(\"Gesamt!\"&C$1&$A34))","v":3.5},{"$f":"IF(ISBLANK(INDIRECT(\"Gesamt!\"&D$1&$A34)),\"\",INDIRECT(\"Gesamt!\"&D$1&$A34))","v":""},{"$f":"IF(ISBLANK(INDIRECT(\"Gesamt!\"&E$1&$A34)),\"\",INDIRECT(\"Gesamt!\"&E$1&$A34))","v":""}]
[32,{"$f":"IF(ISBLANK(INDIRECT(\"Gesamt!\"&B$1&$A35)),\"\",INDIRECT(\"Gesamt!\"&B$1&$A35))","v":"Inferenzstatistik: Zusammenhangsanalyse\n- Variablen- und Methodenauswahl kongruent (1P)\n- Voraussetzungen erfüllt (0,5P)\n- Fehlerfreie Berechnungen (0,5P)\n- Korrekte Testanwendung (0,5P)\n- Statistische Interpretation und Einordnung in Sachkontext (1P)"},{"$f":"IF(ISBLANK(INDIRECT(\"Gesamt!\"&C$1&$A35)),\"\",INDIRECT(\"Gesamt!\"&C$1&$A35))","v":3.5},{"$f":"IF(ISBLANK(INDIRECT(\"Gesamt!\"&D$1&$A35)),\"\",INDIRECT(\"Gesamt!\"&D$1&$A35))","v":""},{"$f":"IF(ISBLANK(INDIRECT(\"Gesamt!\"&E$1&$A35)),\"\",INDIRECT(\"Gesamt!\"&E$1&$A35))","v":""}]
[33,{"$f":"IF(ISBLANK(INDIRECT(\"Gesamt!\"&B$1&$A36)),\"\",INDIRECT(\"Gesamt!\"&B$1&$A36))","v":"Argumentationsfluss & Gesamteindruck\n- Inhaltlicher Aufbau\n- Verknüpfung der Fragestellung mit der Anwendung der inhaltlichen Methoden\n- Verknüpfung deskriptiver und analytischer Statistik\n- Keine rezeptartige Beschreibung von Rechenwegen"},{"$f":"IF(ISBLANK(INDIRECT(\"Gesamt!\"&C$1&$A36)),\"\",INDIRECT(\"Gesamt!\"&C$1&$A36))","v":2},{"$f":"IF(ISBLANK(INDIRECT(\"Gesamt!\"&D$1&$A36)),\"\",INDIRECT(\"Gesamt!\"&D$1&$A36))","v":""},{"$f":"IF(ISBLANK(INDIRECT(\"Gesamt!\"&E$1&$A36)),\"\",INDIRECT(\"Gesamt!\"&E$1&$A36))","v":""}]
[34,{"$f":"IF(ISBLANK(INDIRECT(\"Gesamt!\"&B$1&$A37)),\"\",INDIRECT(\"Gesamt!\"&B$1&$A37))","v":"Zielerreichung\n- Antwort auf die gestellte Forschungsfrage\n- Zusammenfassung der Ergebnisse\n- Kritische Würdigung des eigenen Vorgehens"},{"$f":"IF(ISBLANK(INDIRECT(\"Gesamt!\"&C$1&$A37)),\"\",INDIRECT(\"Gesamt!\"&C$1&$A37))","v":2},{"$f":"IF(ISBLANK(INDIRECT(\"Gesamt!\"&D$1&$A37)),\"\",INDIRECT(\"Gesamt!\"&D$1&$A37))","v":""},{"$f":"IF(ISBLANK(INDIRECT(\"Gesamt!\"&E$1&$A37)),\"\",INDIRECT(\"Gesamt!\"&E$1&$A37))","v":""}]
[35,{"$f":"IF(ISBLANK(INDIRECT(\"Gesamt!\"&B$1&$A38)),\"\",INDIRECT(\"Gesamt!\"&B$1&$A38))","v":"Formalia (Endabgabe)\n- Nutzung des bereitgestellten Templates (fhswf R-Package) und angemessene wissenschaftliche Gestaltung des finalen Dokumentes unter Verwendung der im Template enthaltenen Checkliste\n- Abgabe ist vollständig reproduzierbar (Alle Dateien wurden eingereicht: PDF, Rmd, etc)"},{"$f":"IF(ISBLANK(INDIRECT(\"Gesamt!\"&C$1&$A38)),\"\",INDIRECT(\"Gesamt!\"&C$1&$A38))","v":1},{"$f":"IF(ISBLANK(INDIRECT(\"Gesamt!\"&D$1&$A38)),\"\",INDIRECT(\"Gesamt!\"&D$1&$A38))","v":""},{"$f":"IF(ISBLANK(INDIRECT(\"Gesamt!\"&E$1&$A38)),\"\",INDIRECT(\"Gesamt!\"&E$1&$A38))","v":""}]
[36,{"$f":"IF(ISBLANK(INDIRECT(\"Gesamt!\"&B$1&$A39)),\"\",INDIRECT(\"Gesamt!\"&B$1&$A39))","v":"Analytische Qualität\n- Übersichtlichkeit der Analyse (R Datei)\n- Nachvollziehbarkeit aller Rechnungen\n- Vollständigkeit"},{"$f":"IF(ISBLANK(INDIRECT(\"Gesamt!\"&C$1&$A39)),\"\",INDIRECT(\"Gesamt!\"&C$1&$A39))","v":1},{"$f":"IF(ISBLANK(INDIRECT(\"Gesamt!\"&D$1&$A39)),\"\",INDIRECT(\"Gesamt!\"&D$1&$A39))","v":""},{"$f":"IF(ISBLANK(INDIRECT(\"Gesamt!\"&E$1&$A39)),\"\",INDIRECT(\"Gesamt!\"&E$1&$A39))","v":""}]
[37,{"$f":"IF(ISBLANK(INDIRECT(\"Gesamt!\"&B$1&$A40)),\"\",INDIRECT(\"Gesamt!\"&B$1&$A40))","v":"Zwischensumme Endabgabe"},{"$f":"IF(ISBLANK(INDIRECT(\"Gesamt!\"&C$1&$A40)),\"\",INDIRECT(\"Gesamt!\"&C$1&$A40))","v":15},{"$f":"IF(ISBLANK(INDIRECT(\"Gesamt!\"&D$1&$A40)),\"\",INDIRECT(\"Gesamt!\"&D$1&$A40))","v":0},{"$f":"IF(ISBLANK(INDIRECT(\"Gesamt!\"&E$1&$A40)),\"\",INDIRECT(\"Gesamt!\"&E$1&$A40))","v":""}]
[38,{"$f":"IF(ISBLANK(INDIRECT(\"Gesamt!\"&B$1&$A41)),\"\",INDIRECT(\"Gesamt!\"&B$1&$A41))","v":"Abschließende Bewertung"},{"$f":"IF(ISBLANK(INDIRECT(\"Gesamt!\"&C$1&$A41)),\"\",INDIRECT(\"Gesamt!\"&C$1&$A41))","v":""},{"$f":"IF(ISBLANK(INDIRECT(\"Gesamt!\"&D$1&$A41)),\"\",INDIRECT(\"Gesamt!\"&D$1&$A41))","v":"Gruppe: "}]
[39,{"$f":"IF(ISBLANK(INDIRECT(\"Gesamt!\"&B$1&$A42)),\"\",INDIRECT(\"Gesamt!\"&B$1&$A42))","v":"Exposé"},{"$f":"IF(ISBLANK(INDIRECT(\"Gesamt!\"&C$1&$A42)),\"\",INDIRECT(\"Gesamt!\"&C$1&$A42))","v":2},{"$f":"IF(ISBLANK(INDIRECT(\"Gesamt!\"&D$1&$A42)),\"\",INDIRECT(\"Gesamt!\"&D$1&$A42))","v":0},{"$f":"IF(ISBLANK(INDIRECT(\"Gesamt!\"&E$1&$A42)),\"\",INDIRECT(\"Gesamt!\"&E$1&$A42))","v":"(0,0 %)"}]
[40,{"$f":"IF(ISBLANK(INDIRECT(\"Gesamt!\"&B$1&$A43)),\"\",INDIRECT(\"Gesamt!\"&B$1&$A43))","v":"Zwischenabgabe"},{"$f":"IF(ISBLANK(INDIRECT(\"Gesamt!\"&C$1&$A43)),\"\",INDIRECT(\"Gesamt!\"&C$1&$A43))","v":8},{"$f":"IF(ISBLANK(INDIRECT(\"Gesamt!\"&D$1&$A43)),\"\",INDIRECT(\"Gesamt!\"&D$1&$A43))","v":0},{"$f":"IF(ISBLANK(INDIRECT(\"Gesamt!\"&E$1&$A43)),\"\",INDIRECT(\"Gesamt!\"&E$1&$A43))","v":"(0,0 %)"}]
[41,{"$f":"IF(ISBLANK(INDIRECT(\"Gesamt!\"&B$1&$A44)),\"\",INDIRECT(\"Gesamt!\"&B$1&$A44))","v":"Endabgabe"},{"$f":"IF(ISBLANK(INDIRECT(\"Gesamt!\"&C$1&$A44)),\"\",INDIRECT(\"Gesamt!\"&C$1&$A44))","v":15},{"$f":"IF(ISBLANK(INDIRECT(\"Gesamt!\"&D$1&$A44)),\"\",INDIRECT(\"Gesamt!\"&D$1&$A44))","v":0},{"$f":"IF(ISBLANK(INDIRECT(\"Gesamt!\"&E$1&$A44)),\"\",INDIRECT(\"Gesamt!\"&E$1&$A44))","v":"(0,0 %)"}]
[42,{"$f":"IF(ISBLANK(INDIRECT(\"Gesamt!\"&B$1&$A45)),\"\",INDIRECT(\"Gesamt!\"&B$1&$A45))","v":"Endpunktzahl (rechnerisch)"},{"$f":"IF(ISBLANK(INDIRECT(\"Gesamt!\"&C$1&$A45)),\"\",INDIRECT(\"Gesamt!\"&C$1&$A45))","v":25},{"$f":"IF(ISBLANK(INDIRECT(\"Gesamt!\"&D$1&$A45)),\"\",INDIRECT(\"Gesamt!\"&D$1&$A45))","v":0},{"$f":"IF(ISBLANK(INDIRECT(\"Gesamt!\"&E$1&$A45)),\"\",INDIRECT(\"Gesamt!\"&E$1&$A45))","v":"(0,0 %)"}]
[43,{"$f":"IF(ISBLANK(INDIRECT(\"Gesamt!\"&B$1&$A46)),\"\",INDIRECT(\"Gesamt!\"&B$1&$A46))","v":"Endergebnis (gerundet)"},{"$f":"IF(ISBLANK(INDIRECT(\"Gesamt!\"&C$1&$A46)),\"\",INDIRECT(\"Gesamt!\"&C$1&$A46))","v":25},{"$f":"IF(ISBLANK(INDIRECT(\"Gesamt!\"&D$1&$A46)),\"\",INDIRECT(\"Gesamt!\"&D$1&$A46))","v":0},{"$f":"IF(ISBLANK(INDIRECT(\"Gesamt!\"&E$1&$A46)),\"\",INDIRECT(\"Gesamt!\"&E$1&$A46))","v":"(0,0 %)"}]
[44,{"$f":"IF(ISBLANK(INDIRECT(\"Gesamt!\"&B$1&$A47)),\"\",INDIRECT(\"Gesamt!\"&B$1&$A47))","v":"Quantil (ECTS-Grad) [nur Korrektor]"},{"$f":"IF(ISBLANK(INDIRECT(\"Gesamt!\"&C$1&$A47)),\"\",INDIRECT(\"Gesamt!\"&C$1&$A47))","v":"0-1 (A-E)"},{"$f":"IF(ISBLANK(INDIRECT(\"Gesamt!\"&D$1&$A47)),\"\",INDIRECT(\"Gesamt!\"&D$1&$A47))","v":{"$error":"#N/A"}},{"$f":"IF(ISBLANK(INDIRECT(\"Gesamt!\"&E$1&$A47)),\"\",INDIRECT(\"Gesamt!\"&E$1&$A47))","v":{"$error":"#N/A"}}]
[]
[]
[45,{"$f":"IF(ISBLANK(INDIRECT(\"Gesamt!\"&B$1&$A50)),\"\",INDIRECT(\"Gesamt!\"&B$1&$A50))","v":"Vorleistung (50% der Punkte nach Zwischenabgabe)"}]
[]
[null,{"$f":"IF(ISBLANK(INDIRECT(\"Gesamt!\"&E$1&$A50)),\"\",INDIRECT(\"Gesamt!\"&E$1&$A50))","v":"Nicht Bestanden"}]
[]
[]
[]
[null,"Hinweis: Das Bestehen der Vorleistung ist Bedingung für die Zulassung zur Prüfung. Endpunktzahl (rechnerisch) und Endergebnis (gerundet) werden erst nach bestandener Vorleistung angezeigt."]

{"sheet":"G3","index":4,"n_rows":56,"n_cols":6,"rows_kept":56,"cut":false,"hidden":false,"merged":[[49,1,49,4],[51,1,53,4],[55,1,55,4],[1,1,1,4],[2,1,2,4],[12,3,12,4],[19,3,19,4],[29,3,29,4],[40,3,40,4]]}
["Startspalte:","A","C",{"$f":"SUBSTITUTE(ADDRESS(1,A2,4),\"1\",\"\")","v":"J"},{"$f":"SUBSTITUTE(ADDRESS(1,A2+1,4),\"1\",\"\")","v":"K"},{"$f":"SUBSTITUTE(ADDRESS(1,A2+2,4),\"1\",\"\")","v":"L"}]
[10,{"$f":"\"Feedback - Gruppe: \"&IF(ISBLANK(INDIRECT(\"Gesamt!\"&E$1&$A5)),\"\",INDIRECT(\"Gesamt!\"&E$1&$A5))","v":"Feedback - Gruppe: "}]
[{"$f":"TEXT(TODAY(),\"JJJJMMTT\")","v":"20240514"},{"$f":"TODAY()","v":"2024-05-14"}]
[1,"Oranisatorisches",null,null,{"$f":"IF(ISBLANK(INDIRECT(\"Gesamt!\"&E$1&$A4)),\"\",INDIRECT(\"Gesamt!\"&E$1&$A4))","v":""}]
[2,{"$f":"IF(ISBLANK(INDIRECT(\"Gesamt!\"&B$1&$A5)),\"\",INDIRECT(\"Gesamt!\"&B$1&$A5))","v":"Korrektor"},{"$f":"IF(ISBLANK(INDIRECT(\"Gesamt!\"&C$1&$A5)),\"\",INDIRECT(\"Gesamt!\"&C$1&$A5))","v":""},{"$f":"IF(ISBLANK(INDIRECT(\"Gesamt!\"&D$1&$A5)),\"\",INDIRECT(\"Gesamt!\"&D$1&$A5))","v":"Gruppe"},{"$f":"IF(ISBLANK(INDIRECT(\"Gesamt!\"&E$1&$A5)),\"\",INDIRECT(\"Gesamt!\"&E$1&$A5))","v":""}]
[3,{"$f":"IF(ISBLANK(INDIRECT(\"Gesamt!\"&B$1&$A6)),\"\",INDIRECT(\"Gesamt!\"&B$1&$A6))","v":"Prof. Dr. Benjamin Buchwitz"},{"$f":"IF(ISBLANK(INDIRECT(\"Gesamt!\"&C$1&$A6)),\"\",INDIRECT(\"Gesamt!\"&C$1&$A6))","v":""},{"$f":"IF(ISBLANK(INDIRECT(\"Gesamt!\"&D$1&$A6)),\"\",INDIRECT(\"Gesamt!\"&D$1&$A6))","v":"Matrikelnr."},{"$f":"IF(ISBLANK(INDIRECT(\"Gesamt!\"&E$1&$A6)),\"\",INDIRECT(\"Gesamt!\"&E$1&$A6))","v":"Name"},"Aktiv"]
[4,{"$f":"IF(ISBLANK(INDIRECT(\"Gesamt!\"&B$1&$A7)),\"\",INDIRECT(\"Gesamt!\"&B$1&$A7))","v":"Kontaktmöglichkeit"},{"$f":"IF(ISBLANK(INDIRECT(\"Gesamt!\"&C$1&$A7)),\"\",INDIRECT(\"Gesamt!\"&C$1&$A7))","v":""},{"$f":"IF(ISBLANK(INDIRECT(\"Gesamt!\"&D$1&$A7)),\"\",INDIRECT(\"Gesamt!\"&D$1&$A7))","v":""},{"$f":"IF(ISBLANK(INDIRECT(\"Gesamt!\"&E$1&$A7)),\"\",INDIRECT(\"Gesamt!\"&E$1&$A7))","v":""},{"$f":"IF(ISBLANK(INDIRECT(\"Gesamt!\"&F$1&$A7)),\"\",INDIRECT(\"Gesamt!\"&F$1&$A7))","v":true}]
[5,{"$f":"IF(ISBLANK(INDIRECT(\"Gesamt!\"&B$1&$A8)),\"\",INDIRECT(\"Gesamt!\"&B$1&$A8))","v":"buchwitz.benjamin@fh-swf.de"},{"$f":"IF(ISBLANK(INDIRECT(\"Gesamt!\"&C$1&$A8)),\"\",INDIRECT(\"Gesamt!\"&C$1&$A8))","v":""},{"$f":"IF(ISBLANK(INDIRECT(\"Gesamt!\"&D$1&$A8)),\"\",INDIRECT(\"Gesamt!\"&D$1&$A8))","v":""},{"$f":"IF(ISBLANK(INDIRECT(\"Gesamt!\"&E$1&$A8)),\"\",INDIRECT(\"Gesamt!\"&E$1&$A8))","v":""},{"$f":"IF(ISBLANK(INDIRECT(\"Gesamt!\"&F$1&$A8)),\"\",INDIRECT(\"Gesamt!\"&F$1&$A8))","v":" "}]
[6,{"$f":"IF(ISBLANK(INDIRECT(\"Gesamt!\"&B$1&$A9)),\"\",INDIRECT(\"Gesamt!\"&B$1&$A9))","v":""},{"$f":"IF(ISBLANK(INDIRECT(\"Gesamt!\"&C$1&$A9)),\"\",INDIRECT(\"Gesamt!\"&C$1&$A9))","v":""},{"$f":"IF(ISBLANK(INDIRECT(\"Gesamt!\"&D$1&$A9)),\"\",INDIRECT(\"Gesamt!\"&D$1&$A9))","v":""},{"$f":"IF(ISBLANK(INDIRECT(\"Gesamt!\"&E$1&$A9)),\"\",INDIRECT(\"Gesamt!\"&E$1&$A9))","v":""},{"$f":"IF(ISBLANK(INDIRECT(\"Gesamt!\"&F$1&$A9)),\"\",INDIRECT(\"Gesamt!\"&F$1&$A9))","v":" "}]
[7,"Kommunikationsverantwortlicher Autor:",{"$f":"IF(ISBLANK(INDIRECT(\"Gesamt!\"&C$1&$A10)),\"\",INDIRECT(\"Gesamt!\"&C$1&$A10))","v":""},{"$f":"IF(ISBLANK(INDIRECT(\"Gesamt!\"&D$1&$A10)),\"\",INDIRECT(\"Gesamt!\"&D$1&$A10))","v":""},{"$f":"IF(ISBLANK(INDIRECT(\"Gesamt!\"&E$1&$A10)),\"\",INDIRECT(\"Gesamt!\"&E$1&$A10))","v":""},{"$f":"IF(ISBLANK(INDIRECT(\"Gesamt!\"&F$1&$A10)),\"\",INDIRECT(\"Gesamt!\"&F$1&$A10))","v":" "}]
[8,{"$f":"E7 & \" (Gruppensprecher:in)\"","v":" (Gruppensprecher:in)"},{"$f":"IF(ISBLANK(INDIRECT(\"Gesamt!\"&C$1&$A11)),\"\",INDIRECT(\"Gesamt!\"&C$1&$A11))","v":""},{"$f":"IF(ISBLANK(INDIRECT(\"Gesamt!\"&D$1&$A11)),\"\",INDIRECT(\"Gesamt!\"&D$1&$A11))","v":""},{"$f":"IF(ISBLANK(INDIRECT(\"Gesamt!\"&E$1&$A11)),\"\",INDIRECT(\"Gesamt!\"&E$1&$A11))","v":""},{"$f":"IF(ISBLANK(INDIRECT(\"Gesamt!\"&F$1&$A11)),\"\",INDIRECT(\"Gesamt!\"&F$1&$A11))","v":" "}]
[9,{"$f":"IF(ISBLANK(INDIRECT(\"Gesamt!\"&B$1&$A12)),\"\",INDIRECT(\"Gesamt!\"&B$1&$A12))","v":""},{"$f":"IF(ISBLANK(INDIRECT(\"Gesamt!\"&C$1&$A12)),\"\",INDIRECT(\"Gesamt!\"&C$1&$A12))","v":""},{"$f":"IF(ISBLANK(INDIRECT(\"Gesamt!\"&D$1&$A12)),\"\",INDIRECT(\"Gesamt!\"&D$1&$A12))","v":""},{"$f":"IF(ISBLANK(INDIRECT(\"Gesamt!\"&E$1&$A12)),\"\",INDIRECT(\"Gesamt!\"&E$1&$A12))","v":""},{"$f":"IF(ISBLANK(INDIRECT(\"Gesamt!\"&F$1&$A12)),\"\",INDIRECT(\"Gesamt!\"&F$1&$A12))","v":" "}]
[10,{"$f":"IF(ISBLANK(INDIRECT(\"Gesamt!\"&B$1&$A13)),\"\",INDIRECT(\"Gesamt!\"&B$1&$A13))","v":"Exposé"},{"$f":"IF(ISBLANK(INDIRECT(\"Gesamt!\"&C$1&$A13)),\"\",INDIRECT(\"Gesamt!\"&C$1&$A13))","v":""},{"$f":"IF(ISBLANK(INDIRECT(\"Gesamt!\"&D$1&$A13)),\"\",INDIRECT(\"Gesamt!\"&D$1&$A13))","v":"Gruppe: "}]
[11,{"$f":"IF(ISBLANK(INDIRECT(\"Gesamt!\"&B$1&$A14)),\"\",INDIRECT(\"Gesamt!\"&B$1&$A14))","v":"Ziel des Exposés:"},null,null,{"$f":"IF(ISBLANK(INDIRECT(\"Gesamt!\"&\"B\"&$A14)),\"\",INDIRECT(\"Gesamt!\"&\"B\"&$A14))","v":"Einarbeitung in den Sachkontext und Genese einer zum Datensatz passenden Forschungsfrage"}]
[12,{"$f":"IF(ISBLANK(INDIRECT(\"Gesamt!\"&B$1&$A15)),\"\",INDIRECT(\"Gesamt!\"&B$1&$A15))","v":""},{"$f":"IF(ISBLANK(INDIRECT(\"Gesamt!\"&C$1&$A15)),\"\",INDIRECT(\"Gesamt!\"&C$1&$A15))","v":"Punkte"},{"$f":"IF(ISBLANK(INDIRECT(\"Gesamt!\"&D$1&$A15)),\"\",INDIRECT(\"Gesamt!\"&D$1&$A15))","v":"Bewertung"},{"$f":"IF(ISBLANK(INDIRECT(\"Gesamt!\"&E$1&$A15)),\"\",INDIRECT(\"Gesamt!\"&E$1&$A15))","v":"Kommentar"}]
[13,{"$f":"IF(ISBLANK(INDIRECT(\"Gesamt!\"&B$1&$A16)),\"\",INDIRECT(\"Gesamt!\"&B$1&$A16))","v":"Forschungsgegenstand\n- Zielausgestaltung (0,2P)\n- Fragestellung (0,4P)\n- Hypothesen (0,4P)"},{"$f":"IF(ISBLANK(INDIRECT(\"Gesamt!\"&C$1&$A16)),\"\",INDIRECT(\"Gesamt!\"&C$1&$A16))","v":1},{"$f":"IF(ISBLANK(INDIRECT(\"Gesamt!\"&D$1&$A16)),\"\",INDIRECT(\"Gesamt!\"&D$1&$A16))","v":""},{"$f":"IF(ISBLANK(INDIRECT(\"Gesamt!\"&E$1&$A16)),\"\",INDIRECT(\"Gesamt!\"&E$1&$A16))","v":""}]
[14,{"$f":"IF(ISBLANK(INDIRECT(\"Gesamt!\"&B$1&$A17)),\"\",INDIRECT(\"Gesamt!\"&B$1&$A17))","v":"Komposition\n- Inhaltlicher Zusammenhang (0,2P)\n- fachsprachlich formulierte Vorgehensweise (0,2P)\n- Motivation des Themas (0,1P)"},{"$f":"IF(ISBLANK(INDIRECT(\"Gesamt!\"&C$1&$A17)),\"\",INDIRECT(\"Gesamt!\"&C$1&$A17))","v":0.5},{"$f":"IF(ISBLANK(INDIRECT(\"Gesamt!\"&D$1&$A17)),\"\",INDIRECT(\"Gesamt!\"&D$1&$A17))","v":""},{"$f":"IF(ISBLANK(INDIRECT(\"Gesamt!\"&E$1&$A17)),\"\",INDIRECT(\"Gesamt!\"&E$1&$A17))","v":""}]
[15,{"$f":"IF(ISBLANK(INDIRECT(\"Gesamt!\"&B$1&$A18)),\"\",INDIRECT(\"Gesamt!\"&B$1&$A18))","v":"Formalia (Exposé)\n- Template Nutzung & Formatierung (0,3P)\n- Schreibstil & Rechtschreibung (0,2P)"},{"$f":"IF(ISBLANK(INDIRECT(\"Gesamt!\"&C$1&$A18)),\"\",INDIRECT(\"Gesamt!\"&C$1&$A18))","v":0.5},{"$f":"IF(ISBLANK(INDIRECT(\"Gesamt!\"&D$1&$A18)),\"\",INDIRECT(\"Gesamt!\"&D$1&$A18))","v":""},{"$f":"IF(ISBLANK(INDIRECT(\"Gesamt!\"&E$1&$A18)),\"\",INDIRECT(\"Gesamt!\"&E$1&$A18))","v":""}]
[16,{"$f":"IF(ISBLANK(INDIRECT(\"Gesamt!\"&B$1&$A19)),\"\",INDIRECT(\"Gesamt!\"&B$1&$A19))","v":"Zwischensumme Exposé"},{"$f":"IF(ISBLANK(INDIRECT(\"Gesamt!\"&C$1&$A19)),\"\",INDIRECT(\"Gesamt!\"&C$1&$A19))","v":2},{"$f":"IF(ISBLANK(INDIRECT(\"Gesamt!\"&D$1&$A19)),\"\",INDIRECT(\"Gesamt!\"&D$1&$A19))","v":0},{"$f":"IF(ISBLANK(INDIRECT(\"Gesamt!\"&E$1&$A19)),\"\",INDIRECT(\"Gesamt!\"&E$1&$A19))","v":""}]
[17,{"$f":"IF(ISBLANK(INDIRECT(\"Gesamt!\"&B$1&$A20)),\"\",INDIRECT(\"Gesamt!\"&B$1&$A20))","v":"Zwischenabgabe"},{"$f":"IF(ISBLANK(INDIRECT(\"Gesamt!\"&C$1&$A20)),\"\",INDIRECT(\"Gesamt!\"&C$1&$A20))","v":""},{"$f":"IF(ISBLANK(INDIRECT(\"Gesamt!\"&D$1&$A20)),\"\",INDIRECT(\"Gesamt!\"&D$1&$A20))","v":"Gruppe: "}]
[18,{"$f":"IF(ISBLANK(INDIRECT(\"Gesamt!\"&B$1&$A21)),\"\",INDIRECT(\"Gesamt!\"&B$1&$A21))","v":"Ziel der Zwischenabgabe:"},null,null,{"$f":"IF(ISBLANK(INDIRECT(\"Gesamt!\"&\"B\"&$A21)),\"\",INDIRECT(\"Gesamt!\"&\"B\"&$A21))","v":"Vorstellung des Datensatzes und Vorbereitung der inferenzstatistischen Analyseverfahren"}]
[19,{"$f":"IF(ISBLANK(INDIRECT(\"Gesamt!\"&B$1&$A22)),\"\",INDIRECT(\"Gesamt!\"&B$1&$A22))","v":""},{"$f":"IF(ISBLANK(INDIRECT(\"Gesamt!\"&C$1&$A22)),\"\",INDIRECT(\"Gesamt!\"&C$1&$A22))","v":"Punkte"},{"$f":"IF(ISBLANK(INDIRECT(\"Gesamt!\"&D$1&$A22)),\"\",INDIRECT(\"Gesamt!\"&D$1&$A22))","v":"Bewertung"},{"$f":"IF(ISBLANK(INDIRECT(\"Gesamt!\"&E$1&$A22)),\"\",INDIRECT(\"Gesamt!\"&E$1&$A22))","v":"Kommentar"}]
[20,{"$f":"IF(ISBLANK(INDIRECT(\"Gesamt!\"&B$1&$A23)),\"\",INDIRECT(\"Gesamt!\"&B$1&$A23))","v":"Lage- & Streuungsmaße\n- Deskriptive Statistik für alle verwendeten Variablen\n- Berechnung, Interpretation und Einordnung in den Sachkontext"},{"$f":"IF(ISBLANK(INDIRECT(\"Gesamt!\"&C$1&$A23)),\"\",INDIRECT(\"Gesamt!\"&C$1&$A23))","v":2},{"$f":"IF(ISBLANK(INDIRECT(\"Gesamt!\"&D$1&$A23)),\"\",INDIRECT(\"Gesamt!\"&D$1&$A23))","v":""},{"$f":"IF(ISBLANK(INDIRECT(\"Gesamt!\"&E$1&$A23)),\"\",INDIRECT(\"Gesamt!\"&E$1&$A23))","v":""}]
[21,{"$f":"IF(ISBLANK(INDIRECT(\"Gesamt!\"&B$1&$A24)),\"\",INDIRECT(\"Gesamt!\"&B$1&$A24))","v":"Zusammenhangsmaße\n- Berechnung, Interpretation und Einordnung in den Sachkontext von (min.) einem Zusammenhangsmaß"},{"$f":"IF(ISBLANK(INDIRECT(\"Gesamt!\"&C$1&$A24)),\"\",INDIRECT(\"Gesamt!\"&C$1&$A24))","v":1},{"$f":"IF(ISBLANK(INDIRECT(\"Gesamt!\"&D$1&$A24)),\"\",INDIRECT(\"Gesamt!\"&D$1&$A24))","v":""},{"$f":"IF(ISBLANK(INDIRECT(\"Gesamt!\"&E$1&$A24)),\"\",INDIRECT(\"Gesamt!\"&E$1&$A24))","v":""}]
[22,{"$f":"IF(ISBLANK(INDIRECT(\"Gesamt!\"&B$1&$A25)),\"\",INDIRECT(\"Gesamt!\"&B$1&$A25))","v":"Ergänzende Berechnung\n- Ergänzende Berechnung, Interpretation und Einordnung in den Sachkontext (min.) eines weiteren Zusammenhangsmaßes oder Konzentrationsmaßes"},{"$f":"IF(ISBLANK(INDIRECT(\"Gesamt!\"&C$1&$A25)),\"\",INDIRECT(\"Gesamt!\"&C$1&$A25))","v":1},{"$f":"IF(ISBLANK(INDIRECT(\"Gesamt!\"&D$1&$A25)),\"\",INDIRECT(\"Gesamt!\"&D$1&$A25))","v":""},{"$f":"IF(ISBLANK(INDIRECT(\"Gesamt!\"&E$1&$A25)),\"\",INDIRECT(\"Gesamt!\"&E$1&$A25))","v":""}]
[23,{"$f":"IF(ISBLANK(INDIRECT(\"Gesamt!\"&B$1&$A26)),\"\",INDIRECT(\"Gesamt!\"&B$1&$A26))","v":"Diagramme\n- Sinnvoll unterstützender / ergänzender Einsatz einer grafischen Aufbereitung der Daten (0,5P)\n- Ergänzende Darstellung eines weiteren, andersartigen Diagrammes (0,5P)"},{"$f":"IF(ISBLANK(INDIRECT(\"Gesamt!\"&C$1&$A26)),\"\",INDIRECT(\"Gesamt!\"&C$1&$A26))","v":1},{"$f":"IF(ISBLANK(INDIRECT(\"Gesamt!\"&D$1&$A26)),\"\",INDIRECT(\"Gesamt!\"&D$1&$A26))","v":""},{"$f":"IF(ISBLANK(INDIRECT(\"Gesamt!\"&E$1&$A26)),\"\",INDIRECT(\"Gesamt!\"&E$1&$A26))","v":""}]
[24,{"$f":"IF(ISBLANK(INDIRECT(\"Gesamt!\"&B$1&$A27)),\"\",INDIRECT(\"Gesamt!\"&B$1&$A27))","v":"Komposition\n- Zweckmäßiger Methodeneinsatz (1P)\n- Zielgerichtete Argumentation (1P)"},{"$f":"IF(ISBLANK(INDIRECT(\"Gesamt!\"&C$1&$A27)),\"\",INDIRECT(\"Gesamt!\"&C$1&$A27))","v":2},{"$f":"IF(ISBLANK(INDIRECT(\"Gesamt!\"&D$1&$A27)),\"\",INDIRECT(\"Gesamt!\"&D$1&$A27))","v":""},{"$f":"IF(ISBLANK(INDIRECT(\"Gesamt!\"&E$1&$A27)),\"\",INDIRECT(\"Gesamt!\"&E$1&$A27))","v":""}]
[25,{"$f":"IF(ISBLANK(INDIRECT(\"Gesamt!\"&B$1&$A28)),\"\",INDIRECT(\"Gesamt!\"&B$1&$A28))","v":"Formalia (Zwischenabgabe)\n- Analytische Ausarbeitung (0,5P)\n    + Übersichtlichkeit\n    + Nachvollziehbarkeit aller Rechnungen\n- Schriftliche Ausarbeitung (0,5P)\n    + Formatierung des Dokuments\n    + Zitation wissenschaftlicher Quellen"},{"$f":"IF(ISBLANK(INDIRECT(\"Gesamt!\"&C$1&$A28)),\"\",INDIRECT(\"Gesamt!\"&C$1&$A28))","v":1},{"$f":"IF(ISBLANK(INDIRECT(\"Gesamt!\"&D$1&$A28)),\"\",INDIRECT(\"Gesamt!\"&D$1&$A28))","v":""},{"$f":"IF(ISBLANK(INDIRECT(\"Gesamt!\"&E$1&$A28)),\"\",INDIRECT(\"Gesamt!\"&E$1&$A28))","v":""}]
[26,{"$f":"IF(ISBLANK(INDIRECT(\"Gesamt!\"&B$1&$A29)),\"\",INDIRECT(\"Gesamt!\"&B$1&$A29))","v":"Zwischensumme Zwischenabgabe"},{"$f":"IF(ISBLANK(INDIRECT(\"Gesamt!\"&C$1&$A29)),\"\",INDIRECT(\"Gesamt!\"&C$1&$A29))","v":8},{"$f":"IF(ISBLANK(INDIRECT(\"Gesamt!\"&D$1&$A29)),\"\",INDIRECT(\"Gesamt!\"&D$1&$A29))","v":0},{"$f":"IF(ISBLANK(INDIRECT(\"Gesamt!\"&E$1&$A29)),\"\",INDIRECT(\"Gesamt!\"&E$1&$A29))","v":""}]
[27,{"$f":"IF(ISBLANK(INDIRECT(\"Gesamt!\"&B$1&$A30)),\"\",INDIRECT(\"Gesamt!\"&B$1&$A30))","v":"Endabgabe"},{"$f":"IF(ISBLANK(INDIRECT(\"Gesamt!\"&C$1&$A30)),\"\",INDIRECT(\"Gesamt!\"&C$1&$A30))","v":""},{"$f":"IF(ISBLANK(INDIRECT(\"Gesamt!\"&D$1&$A30)),\"\",INDIRECT(\"Gesamt!\"&D$1&$A30))","v":"Gruppe: "}]
[28,{"$f":"IF(ISBLANK(INDIRECT(\"Gesamt!\"&B$1&$A31)),\"\",INDIRECT(\"Gesamt!\"&B$1&$A31))","v":"Ziel der Endabgabe:"},null,null,{"$f":"IF(ISBLANK(INDIRECT(\"Gesamt!\"&\"B\"&$A31)),\"\",INDIRECT(\"Gesamt!\"&\"B\"&$A31))","v":"Beantwortung der Forschungsfrage unter Nutzung inferenzstatistischer Verfahren und Finalisierung der Arbeit"}]
[29,{"$f":"IF(ISBLANK(INDIRECT(\"Gesamt!\"&B$1&$A32)),\"\",INDIRECT(\"Gesamt!\"&B$1&$A32))","v":""},{"$f":"IF(ISBLANK(INDIRECT(\"Gesamt!\"&C$1&$A32)),\"\",INDIRECT(\"Gesamt!\"&C$1&$A32))","v":"Punkte"},{"$f":"IF(ISBLANK(INDIRECT(\"Gesamt!\"&D$1&$A32)),\"\",INDIRECT(\"Gesamt!\"&D$1&$A32))","v":"Bewertung"},{"$f":"IF(ISBLANK(INDIRECT(\"Gesamt!\"&E$1&$A32)),\"\",INDIRECT(\"Gesamt!\"&E$1&$A32))","v":"Kommentar"}]
[30,{"$f":"IF(ISBLANK(INDIRECT(\"Gesamt!\"&B$1&$A33)),\"\",INDIRECT(\"Gesamt!\"&B$1&$A33))","v":"Verbesserung der Deskriptiven Statistik hinsichtlich Korrektheit, Vollständigkeit, Beschreibung und Einordnung in den Sachkontext\n- Lagemaße (0,5P)\n- Streuungsmaße (0,5P)\n- Ergänzende Maße (0,5P)\n- Zusammenhangsmaße (0,5P)"},{"$f":"IF(ISBLANK(INDIRECT(\"Gesamt!\"&C$1&$A33)),\"\",INDIRECT(\"Gesamt!\"&C$1&$A33))","v":2},{"$f":"IF(ISBLANK(INDIRECT(\"Gesamt!\"&D$1&$A33)),\"\",INDIRECT(\"Gesamt!\"&D$1&$A33))","v":""},{"$f":"IF(ISBLANK(INDIRECT(\"Gesamt!\"&E$1&$A33)),\"\",INDIRECT(\"Gesamt!\"&E$1&$A33))","v":""}]
[31,{"$f":"IF(ISBLANK(INDIRECT(\"Gesamt!\"&B$1&$A34)),\"\",INDIRECT(\"Gesamt!\"&B$1&$A34))","v":"Inferenzstatistik: Freie Methodenwahl\n- Inhaltlich begründete Methodenauswahl (1P)\n- Voraussetzungen erfüllt (0,5P)\n- Fehlerfreie Berechnungen (0,5P)\n- Korrekte Testanwendung (0,5P)\n- Statistische Interpretation und Einordnung in Sachkontext (1P)"},{"$f":"IF(ISBLANK(INDIRECT(\"Gesamt!\"&C$1&$A34)),\"\",INDIRECT(\"Gesamt!\"&C$1&$A34))","v":3.5},{"$f":"IF(ISBLANK(INDIRECT(\"Gesamt!\"&D$1&$A34)),\"\",INDIRECT(\"Gesamt!\"&D$1&$A34))","v":""},{"$f":"IF(ISBLANK(INDIRECT(\"Gesamt!\"&E$1&$A34)),\"\",INDIRECT(\"Gesamt!\"&E$1&$A34))","v":""}]
[32,{"$f":"IF(ISBLANK(INDIRECT(\"Gesamt!\"&B$1&$A35)),\"\",INDIRECT(\"Gesamt!\"&B$1&$A35))","v":"Inferenzstatistik: Zusammenhangsanalyse\n- Variablen- und Methodenauswahl kongruent (1P)\n- Voraussetzungen erfüllt (0,5P)\n- Fehlerfreie Berechnungen (0,5P)\n- Korrekte Testanwendung (0,5P)\n- Statistische Interpretation und Einordnung in Sachkontext (1P)"},{"$f":"IF(ISBLANK(INDIRECT(\"Gesamt!\"&C$1&$A35)),\"\",INDIRECT(\"Gesamt!\"&C$1&$A35))","v":3.5},{"$f":"IF(ISBLANK(INDIRECT(\"Gesamt!\"&D$1&$A35)),\"\",INDIRECT(\"Gesamt!\"&D$1&$A35))","v":""},{"$f":"IF(ISBLANK(INDIRECT(\"Gesamt!\"&E$1&$A35)),\"\",INDIRECT(\"Gesamt!\"&E$1&$A35))","v":""}]
[33,{"$f":"IF(ISBLANK(INDIRECT(\"Gesamt!\"&B$1&$A36)),\"\",INDIRECT(\"Gesamt!\"&B$1&$A36))","v":"Argumentationsfluss & Gesamteindruck\n- Inhaltlicher Aufbau\n- Verknüpfung der Fragestellung mit der Anwendung der inhaltlichen Methoden\n- Verknüpfung deskriptiver und analytischer Statistik\n- Keine rezeptartige Beschreibung von Rechenwegen"},{"$f":"IF(ISBLANK(INDIRECT(\"Gesamt!\"&C$1&$A36)),\"\",INDIRECT(\"Gesamt!\"&C$1&$A36))","v":2},{"$f":"IF(ISBLANK(INDIRECT(\"Gesamt!\"&D$1&$A36)),\"\",INDIRECT(\"Gesamt!\"&D$1&$A36))","v":""},{"$f":"IF(ISBLANK(INDIRECT(\"Gesamt!\"&E$1&$A36)),\"\",INDIRECT(\"Gesamt!\"&E$1&$A36))","v":""}]
[34,{"$f":"IF(ISBLANK(INDIRECT(\"Gesamt!\"&B$1&$A37)),\"\",INDIRECT(\"Gesamt!\"&B$1&$A37))","v":"Zielerreichung\n- Antwort auf die gestellte Forschungsfrage\n- Zusammenfassung der Ergebnisse\n- Kritische Würdigung des eigenen Vorgehens"},{"$f":"IF(ISBLANK(INDIRECT(\"Gesamt!\"&C$1&$A37)),\"\",INDIRECT(\"Gesamt!\"&C$1&$A37))","v":2},{"$f":"IF(ISBLANK(INDIRECT(\"Gesamt!\"&D$1&$A37)),\"\",INDIRECT(\"Gesamt!\"&D$1&$A37))","v":""},{"$f":"IF(ISBLANK(INDIRECT(\"Gesamt!\"&E$1&$A37)),\"\",INDIRECT(\"Gesamt!\"&E$1&$A37))","v":""}]
[35,{"$f":"IF(ISBLANK(INDIRECT(\"Gesamt!\"&B$1&$A38)),\"\",INDIRECT(\"Gesamt!\"&B$1&$A38))","v":"Formalia (Endabgabe)\n- Nutzung des bereitgestellten Templates (fhswf R-Package) und angemessene wissenschaftliche Gestaltung des finalen Dokumentes unter Verwendung der im Template enthaltenen Checkliste\n- Abgabe ist vollständig reproduzierbar (Alle Dateien wurden eingereicht: PDF, Rmd, etc)"},{"$f":"IF(ISBLANK(INDIRECT(\"Gesamt!\"&C$1&$A38)),\"\",INDIRECT(\"Gesamt!\"&C$1&$A38))","v":1},{"$f":"IF(ISBLANK(INDIRECT(\"Gesamt!\"&D$1&$A38)),\"\",INDIRECT(\"Gesamt!\"&D$1&$A38))","v":""},{"$f":"IF(ISBLANK(INDIRECT(\"Gesamt!\"&E$1&$A38)),\"\",INDIRECT(\"Gesamt!\"&E$1&$A38))","v":""}]
[36,{"$f":"IF(ISBLANK(INDIRECT(\"Gesamt!\"&B$1&$A39)),\"\",INDIRECT(\"Gesamt!\"&B$1&$A39))","v":"Analytische Qualität\n- Übersichtlichkeit der Analyse (R Datei)\n- Nachvollziehbarkeit aller Rechnungen\n- Vollständigkeit"},{"$f":"IF(ISBLANK(INDIRECT(\"Gesamt!\"&C$1&$A39)),\"\",INDIRECT(\"Gesamt!\"&C$1&$A39))","v":1},{"$f":"IF(ISBLANK(INDIRECT(\"Gesamt!\"&D$1&$A39)),\"\",INDIRECT(\"Gesamt!\"&D$1&$A39))","v":""},{"$f":"IF(ISBLANK(INDIRECT(\"Gesamt!\"&E$1&$A39)),\"\",INDIRECT(\"Gesamt!\"&E$1&$A39))","v":""}]
[37,{"$f":"IF(ISBLANK(INDIRECT(\"Gesamt!\"&B$1&$A40)),\"\",INDIRECT(\"Gesamt!\"&B$1&$A40))","v":"Zwischensumme Endabgabe"},{"$f":"IF(ISBLANK(INDIRECT(\"Gesamt!\"&C$1&$A40)),\"\",INDIRECT(\"Gesamt!\"&C$1&$A40))","v":15},{"$f":"IF(ISBLANK(INDIRECT(\"Gesamt!\"&D$1&$A40)),\"\",INDIRECT(\"Gesamt!\"&D$1&$A40))","v":0},{"$f":"IF(ISBLANK(INDIRECT(\"Gesamt!\"&E$1&$A40)),\"\",INDIRECT(\"Gesamt!\"&E$1&$A40))","v":""}]
[38,{"$f":"IF(ISBLANK(INDIRECT(\"Gesamt!\"&B$1&$A41)),\"\",INDIRECT(\"Gesamt!\"&B$1&$A41))","v":"Abschließende Bewertung"},{"$f":"IF(ISBLANK(INDIRECT(\"Gesamt!\"&C$1&$A41)),\"\",INDIRECT(\"Gesamt!\"&C$1&$A41))","v":""},{"$f":"IF(ISBLANK(INDIRECT(\"Gesamt!\"&D$1&$A41)),\"\",INDIRECT(\"Gesamt!\"&D$1&$A41))","v":"Gruppe: "}]
[39,{"$f":"IF(ISBLANK(INDIRECT(\"Gesamt!\"&B$1&$A42)),\"\",INDIRECT(\"Gesamt!\"&B$1&$A42))","v":"Exposé"},{"$f":"IF(ISBLANK(INDIRECT(\"Gesamt!\"&C$1&$A42)),\"\",INDIRECT(\"Gesamt!\"&C$1&$A42))","v":2},{"$f":"IF(ISBLANK(INDIRECT(\"Gesamt!\"&D$1&$A42)),\"\",INDIRECT(\"Gesamt!\"&D$1&$A42))","v":0},{"$f":"IF(ISBLANK(INDIRECT(\"Gesamt!\"&E$1&$A42)),\"\",INDIRECT(\"Gesamt!\"&E$1&$A42))","v":"(0,0 %)"}]
[40,{"$f":"IF(ISBLANK(INDIRECT(\"Gesamt!\"&B$1&$A43)),\"\",INDIRECT(\"Gesamt!\"&B$1&$A43))","v":"Zwischenabgabe"},{"$f":"IF(ISBLANK(INDIRECT(\"Gesamt!\"&C$1&$A43)),\"\",INDIRECT(\"Gesamt!\"&C$1&$A43))","v":8},{"$f":"IF(ISBLANK(INDIRECT(\"Gesamt!\"&D$1&$A43)),\"\",INDIRECT(\"Gesamt!\"&D$1&$A43))","v":0},{"$f":"IF(ISBLANK(INDIRECT(\"Gesamt!\"&E$1&$A43)),\"\",INDIRECT(\"Gesamt!\"&E$1&$A43))","v":"(0,0 %)"}]
[41,{"$f":"IF(ISBLANK(INDIRECT(\"Gesamt!\"&B$1&$A44)),\"\",INDIRECT(\"Gesamt!\"&B$1&$A44))","v":"Endabgabe"},{"$f":"IF(ISBLANK(INDIRECT(\"Gesamt!\"&C$1&$A44)),\"\",INDIRECT(\"Gesamt!\"&C$1&$A44))","v":15},{"$f":"IF(ISBLANK(INDIRECT(\"Gesamt!\"&D$1&$A44)),\"\",INDIRECT(\"Gesamt!\"&D$1&$A44))","v":0},{"$f":"IF(ISBLANK(INDIRECT(\"Gesamt!\"&E$1&$A44)),\"\",INDIRECT(\"Gesamt!\"&E$1&$A44))","v":"(0,0 %)"}]
[42,{"$f":"IF(ISBLANK(INDIRECT(\"Gesamt!\"&B$1&$A45)),\"\",INDIRECT(\"Gesamt!\"&B$1&$A45))","v":"Endpunktzahl (rechnerisch)"},{"$f":"IF(ISBLANK(INDIRECT(\"Gesamt!\"&C$1&$A45)),\"\",INDIRECT(\"Gesamt!\"&C$1&$A45))","v":25},{"$f":"IF(ISBLANK(INDIRECT(\"Gesamt!\"&D$1&$A45)),\"\",INDIRECT(\"Gesamt!\"&D$1&$A45))","v":0},{"$f":"IF(ISBLANK(INDIRECT(\"Gesamt!\"&E$1&$A45)),\"\",INDIRECT(\"Gesamt!\"&E$1&$A45))","v":"(0,0 %)"}]
[43,{"$f":"IF(ISBLANK(INDIRECT(\"Gesamt!\"&B$1&$A46)),\"\",INDIRECT(\"Gesamt!\"&B$1&$A46))","v":"Endergebnis (gerundet)"},{"$f":"IF(ISBLANK(INDIRECT(\"Gesamt!\"&C$1&$A46)),\"\",INDIRECT(\"Gesamt!\"&C$1&$A46))","v":25},{"$f":"IF(ISBLANK(INDIRECT(\"Gesamt!\"&D$1&$A46)),\"\",INDIRECT(\"Gesamt!\"&D$1&$A46))","v":0},{"$f":"IF(ISBLANK(INDIRECT(\"Gesamt!\"&E$1&$A46)),\"\",INDIRECT(\"Gesamt!\"&E$1&$A46))","v":"(0,0 %)"}]
[44,{"$f":"IF(ISBLANK(INDIRECT(\"Gesamt!\"&B$1&$A47)),\"\",INDIRECT(\"Gesamt!\"&B$1&$A47))","v":"Quantil (ECTS-Grad) [nur Korrektor]"},{"$f":"IF(ISBLANK(INDIRECT(\"Gesamt!\"&C$1&$A47)),\"\",INDIRECT(\"Gesamt!\"&C$1&$A47))","v":"0-1 (A-E)"},{"$f":"IF(ISBLANK(INDIRECT(\"Gesamt!\"&D$1&$A47)),\"\",INDIRECT(\"Gesamt!\"&D$1&$A47))","v":{"$error":"#N/A"}},{"$f":"IF(ISBLANK(INDIRECT(\"Gesamt!\"&E$1&$A47)),\"\",INDIRECT(\"Gesamt!\"&E$1&$A47))","v":{"$error":"#N/A"}}]
[]
[]
[45,{"$f":"IF(ISBLANK(INDIRECT(\"Gesamt!\"&B$1&$A50)),\"\",INDIRECT(\"Gesamt!\"&B$1&$A50))","v":"Vorleistung (50% der Punkte nach Zwischenabgabe)"}]
[]
[null,{"$f":"IF(ISBLANK(INDIRECT(\"Gesamt!\"&E$1&$A50)),\"\",INDIRECT(\"Gesamt!\"&E$1&$A50))","v":"Nicht Bestanden"}]
[]
[]
[]
[null,"Hinweis: Das Bestehen der Vorleistung ist Bedingung für die Zulassung zur Prüfung. Endpunktzahl (rechnerisch) und Endergebnis (gerundet) werden erst nach bestandener Vorleistung angezeigt."]

{"sheet":"G4","index":5,"n_rows":56,"n_cols":6,"rows_kept":56,"cut":false,"hidden":false,"merged":[[49,1,49,4],[51,1,53,4],[55,1,55,4],[1,1,1,4],[2,1,2,4],[12,3,12,4],[19,3,19,4],[29,3,29,4],[40,3,40,4]]}
["Startspalte:","A","C",{"$f":"SUBSTITUTE(ADDRESS(1,A2,4),\"1\",\"\")","v":"M"},{"$f":"SUBSTITUTE(ADDRESS(1,A2+1,4),\"1\",\"\")","v":"N"},{"$f":"SUBSTITUTE(ADDRESS(1,A2+2,4),\"1\",\"\")","v":"O"}]
[13,{"$f":"\"Feedback - Gruppe: \"&IF(ISBLANK(INDIRECT(\"Gesamt!\"&E$1&$A5)),\"\",INDIRECT(\"Gesamt!\"&E$1&$A5))","v":"Feedback - Gruppe: "}]
[{"$f":"TEXT(TODAY(),\"JJJJMMTT\")","v":"20240514"},{"$f":"TODAY()","v":"2024-05-14"}]
[1,"Oranisatorisches",null,null,{"$f":"IF(ISBLANK(INDIRECT(\"Gesamt!\"&E$1&$A4)),\"\",INDIRECT(\"Gesamt!\"&E$1&$A4))","v":""}]
[2,{"$f":"IF(ISBLANK(INDIRECT(\"Gesamt!\"&B$1&$A5)),\"\",INDIRECT(\"Gesamt!\"&B$1&$A5))","v":"Korrektor"},{"$f":"IF(ISBLANK(INDIRECT(\"Gesamt!\"&C$1&$A5)),\"\",INDIRECT(\"Gesamt!\"&C$1&$A5))","v":""},{"$f":"IF(ISBLANK(INDIRECT(\"Gesamt!\"&D$1&$A5)),\"\",INDIRECT(\"Gesamt!\"&D$1&$A5))","v":"Gruppe"},{"$f":"IF(ISBLANK(INDIRECT(\"Gesamt!\"&E$1&$A5)),\"\",INDIRECT(\"Gesamt!\"&E$1&$A5))","v":""}]
[3,{"$f":"IF(ISBLANK(INDIRECT(\"Gesamt!\"&B$1&$A6)),\"\",INDIRECT(\"Gesamt!\"&B$1&$A6))","v":"Prof. Dr. Benjamin Buchwitz"},{"$f":"IF(ISBLANK(INDIRECT(\"Gesamt!\"&C$1&$A6)),\"\",INDIRECT(\"Gesamt!\"&C$1&$A6))","v":""},{"$f":"IF(ISBLANK(INDIRECT(\"Gesamt!\"&D$1&$A6)),\"\",INDIRECT(\"Gesamt!\"&D$1&$A6))","v":"Matrikelnr."},{"$f":"IF(ISBLANK(INDIRECT(\"Gesamt!\"&E$1&$A6)),\"\",INDIRECT(\"Gesamt!\"&E$1&$A6))","v":"Name"},"Aktiv"]
[4,{"$f":"IF(ISBLANK(INDIRECT(\"Gesamt!\"&B$1&$A7)),\"\",INDIRECT(\"Gesamt!\"&B$1&$A7))","v":"Kontaktmöglichkeit"},{"$f":"IF(ISBLANK(INDIRECT(\"Gesamt!\"&C$1&$A7)),\"\",INDIRECT(\"Gesamt!\"&C$1&$A7))","v":""},{"$f":"IF(ISBLANK(INDIRECT(\"Gesamt!\"&D$1&$A7)),\"\",INDIRECT(\"Gesamt!\"&D$1&$A7))","v":""},{"$f":"IF(ISBLANK(INDIRECT(\"Gesamt!\"&E$1&$A7)),\"\",INDIRECT(\"Gesamt!\"&E$1&$A7))","v":""},{"$f":"IF(ISBLANK(INDIRECT(\"Gesamt!\"&F$1&$A7)),\"\",INDIRECT(\"Gesamt!\"&F$1&$A7))","v":true}]
[5,{"$f":"IF(ISBLANK(INDIRECT(\"Gesamt!\"&B$1&$A8)),\"\",INDIRECT(\"Gesamt!\"&B$1&$A8))","v":"buchwitz.benjamin@fh-swf.de"},{"$f":"IF(ISBLANK(INDIRECT(\"Gesamt!\"&C$1&$A8)),\"\",INDIRECT(\"Gesamt!\"&C$1&$A8))","v":""},{"$f":"IF(ISBLANK(INDIRECT(\"Gesamt!\"&D$1&$A8)),\"\",INDIRECT(\"Gesamt!\"&D$1&$A8))","v":""},{"$f":"IF(ISBLANK(INDIRECT(\"Gesamt!\"&E$1&$A8)),\"\",INDIRECT(\"Gesamt!\"&E$1&$A8))","v":""},{"$f":"IF(ISBLANK(INDIRECT(\"Gesamt!\"&F$1&$A8)),\"\",INDIRECT(\"Gesamt!\"&F$1&$A8))","v":" "}]
[6,{"$f":"IF(ISBLANK(INDIRECT(\"Gesamt!\"&B$1&$A9)),\"\",INDIRECT(\"Gesamt!\"&B$1&$A9))","v":""},{"$f":"IF(ISBLANK(INDIRECT(\"Gesamt!\"&C$1&$A9)),\"\",INDIRECT(\"Gesamt!\"&C$1&$A9))","v":""},{"$f":"IF(ISBLANK(INDIRECT(\"Gesamt!\"&D$1&$A9)),\"\",INDIRECT(\"Gesamt!\"&D$1&$A9))","v":""},{"$f":"IF(ISBLANK(INDIRECT(\"Gesamt!\"&E$1&$A9)),\"\",INDIRECT(\"Gesamt!\"&E$1&$A9))","v":""},{"$f":"IF(ISBLANK(INDIRECT(\"Gesamt!\"&F$1&$A9)),\"\",INDIRECT(\"Gesamt!\"&F$1&$A9))","v":" "}]
[7,"Kommunikationsverantwortlicher Autor:",{"$f":"IF(ISBLANK(INDIRECT(\"Gesamt!\"&C$1&$A10)),\"\",INDIRECT(\"Gesamt!\"&C$1&$A10))","v":""},{"$f":"IF(ISBLANK(INDIRECT(\"Gesamt!\"&D$1&$A10)),\"\",INDIRECT(\"Gesamt!\"&D$1&$A10))","v":""},{"$f":"IF(ISBLANK(INDIRECT(\"Gesamt!\"&E$1&$A10)),\"\",INDIRECT(\"Gesamt!\"&E$1&$A10))","v":""},{"$f":"IF(ISBLANK(INDIRECT(\"Gesamt!\"&F$1&$A10)),\"\",INDIRECT(\"Gesamt!\"&F$1&$A10))","v":" "}]
[8,{"$f":"E7 & \" (Gruppensprecher:in)\"","v":" (Gruppensprecher:in)"},{"$f":"IF(ISBLANK(INDIRECT(\"Gesamt!\"&C$1&$A11)),\"\",INDIRECT(\"Gesamt!\"&C$1&$A11))","v":""},{"$f":"IF(ISBLANK(INDIRECT(\"Gesamt!\"&D$1&$A11)),\"\",INDIRECT(\"Gesamt!\"&D$1&$A11))","v":""},{"$f":"IF(ISBLANK(INDIRECT(\"Gesamt!\"&E$1&$A11)),\"\",INDIRECT(\"Gesamt!\"&E$1&$A11))","v":""},{"$f":"IF(ISBLANK(INDIRECT(\"Gesamt!\"&F$1&$A11)),\"\",INDIRECT(\"Gesamt!\"&F$1&$A11))","v":" "}]
[9,{"$f":"IF(ISBLANK(INDIRECT(\"Gesamt!\"&B$1&$A12)),\"\",INDIRECT(\"Gesamt!\"&B$1&$A12))","v":""},{"$f":"IF(ISBLANK(INDIRECT(\"Gesamt!\"&C$1&$A12)),\"\",INDIRECT(\"Gesamt!\"&C$1&$A12))","v":""},{"$f":"IF(ISBLANK(INDIRECT(\"Gesamt!\"&D$1&$A12)),\"\",INDIRECT(\"Gesamt!\"&D$1&$A12))","v":""},{"$f":"IF(ISBLANK(INDIRECT(\"Gesamt!\"&E$1&$A12)),\"\",INDIRECT(\"Gesamt!\"&E$1&$A12))","v":""},{"$f":"IF(ISBLANK(INDIRECT(\"Gesamt!\"&F$1&$A12)),\"\",INDIRECT(\"Gesamt!\"&F$1&$A12))","v":" "}]
[10,{"$f":"IF(ISBLANK(INDIRECT(\"Gesamt!\"&B$1&$A13)),\"\",INDIRECT(\"Gesamt!\"&B$1&$A13))","v":"Exposé"},{"$f":"IF(ISBLANK(INDIRECT(\"Gesamt!\"&C$1&$A13)),\"\",INDIRECT(\"Gesamt!\"&C$1&$A13))","v":""},{"$f":"IF(ISBLANK(INDIRECT(\"Gesamt!\"&D$1&$A13)),\"\",INDIRECT(\"Gesamt!\"&D$1&$A13))","v":"Gruppe: "}]
[11,{"$f":"IF(ISBLANK(INDIRECT(\"Gesamt!\"&B$1&$A14)),\"\",INDIRECT(\"Gesamt!\"&B$1&$A14))","v":"Ziel des Exposés:"},null,null,{"$f":"IF(ISBLANK(INDIRECT(\"Gesamt!\"&\"B\"&$A14)),\"\",INDIRECT(\"Gesamt!\"&\"B\"&$A14))","v":"Einarbeitung in den Sachkontext und Genese einer zum Datensatz passenden Forschungsfrage"}]
[12,{"$f":"IF(ISBLANK(INDIRECT(\"Gesamt!\"&B$1&$A15)),\"\",INDIRECT(\"Gesamt!\"&B$1&$A15))","v":""},{"$f":"IF(ISBLANK(INDIRECT(\"Gesamt!\"&C$1&$A15)),\"\",INDIRECT(\"Gesamt!\"&C$1&$A15))","v":"Punkte"},{"$f":"IF(ISBLANK(INDIRECT(\"Gesamt!\"&D$1&$A15)),\"\",INDIRECT(\"Gesamt!\"&D$1&$A15))","v":"Bewertung"},{"$f":"IF(ISBLANK(INDIRECT(\"Gesamt!\"&E$1&$A15)),\"\",INDIRECT(\"Gesamt!\"&E$1&$A15))","v":"Kommentar"}]
[13,{"$f":"IF(ISBLANK(INDIRECT(\"Gesamt!\"&B$1&$A16)),\"\",INDIRECT(\"Gesamt!\"&B$1&$A16))","v":"Forschungsgegenstand\n- Zielausgestaltung (0,2P)\n- Fragestellung (0,4P)\n- Hypothesen (0,4P)"},{"$f":"IF(ISBLANK(INDIRECT(\"Gesamt!\"&C$1&$A16)),\"\",INDIRECT(\"Gesamt!\"&C$1&$A16))","v":1},{"$f":"IF(ISBLANK(INDIRECT(\"Gesamt!\"&D$1&$A16)),\"\",INDIRECT(\"Gesamt!\"&D$1&$A16))","v":""},{"$f":"IF(ISBLANK(INDIRECT(\"Gesamt!\"&E$1&$A16)),\"\",INDIRECT(\"Gesamt!\"&E$1&$A16))","v":""}]
[14,{"$f":"IF(ISBLANK(INDIRECT(\"Gesamt!\"&B$1&$A17)),\"\",INDIRECT(\"Gesamt!\"&B$1&$A17))","v":"Komposition\n- Inhaltlicher Zusammenhang (0,2P)\n- fachsprachlich formulierte Vorgehensweise (0,2P)\n- Motivation des Themas (0,1P)"},{"$f":"IF(ISBLANK(INDIRECT(\"Gesamt!\"&C$1&$A17)),\"\",INDIRECT(\"Gesamt!\"&C$1&$A17))","v":0.5},{"$f":"IF(ISBLANK(INDIRECT(\"Gesamt!\"&D$1&$A17)),\"\",INDIRECT(\"Gesamt!\"&D$1&$A17))","v":""},{"$f":"IF(ISBLANK(INDIRECT(\"Gesamt!\"&E$1&$A17)),\"\",INDIRECT(\"Gesamt!\"&E$1&$A17))","v":""}]
[15,{"$f":"IF(ISBLANK(INDIRECT(\"Gesamt!\"&B$1&$A18)),\"\",INDIRECT(\"Gesamt!\"&B$1&$A18))","v":"Formalia (Exposé)\n- Template Nutzung & Formatierung (0,3P)\n- Schreibstil & Rechtschreibung (0,2P)"},{"$f":"IF(ISBLANK(INDIRECT(\"Gesamt!\"&C$1&$A18)),\"\",INDIRECT(\"Gesamt!\"&C$1&$A18))","v":0.5},{"$f":"IF(ISBLANK(INDIRECT(\"Gesamt!\"&D$1&$A18)),\"\",INDIRECT(\"Gesamt!\"&D$1&$A18))","v":""},{"$f":"IF(ISBLANK(INDIRECT(\"Gesamt!\"&E$1&$A18)),\"\",INDIRECT(\"Gesamt!\"&E$1&$A18))","v":""}]
[16,{"$f":"IF(ISBLANK(INDIRECT(\"Gesamt!\"&B$1&$A19)),\"\",INDIRECT(\"Gesamt!\"&B$1&$A19))","v":"Zwischensumme Exposé"},{"$f":"IF(ISBLANK(INDIRECT(\"Gesamt!\"&C$1&$A19)),\"\",INDIRECT(\"Gesamt!\"&C$1&$A19))","v":2},{"$f":"IF(ISBLANK(INDIRECT(\"Gesamt!\"&D$1&$A19)),\"\",INDIRECT(\"Gesamt!\"&D$1&$A19))","v":0},{"$f":"IF(ISBLANK(INDIRECT(\"Gesamt!\"&E$1&$A19)),\"\",INDIRECT(\"Gesamt!\"&E$1&$A19))","v":""}]
[17,{"$f":"IF(ISBLANK(INDIRECT(\"Gesamt!\"&B$1&$A20)),\"\",INDIRECT(\"Gesamt!\"&B$1&$A20))","v":"Zwischenabgabe"},{"$f":"IF(ISBLANK(INDIRECT(\"Gesamt!\"&C$1&$A20)),\"\",INDIRECT(\"Gesamt!\"&C$1&$A20))","v":""},{"$f":"IF(ISBLANK(INDIRECT(\"Gesamt!\"&D$1&$A20)),\"\",INDIRECT(\"Gesamt!\"&D$1&$A20))","v":"Gruppe: "}]
[18,{"$f":"IF(ISBLANK(INDIRECT(\"Gesamt!\"&B$1&$A21)),\"\",INDIRECT(\"Gesamt!\"&B$1&$A21))","v":"Ziel der Zwischenabgabe:"},null,null,{"$f":"IF(ISBLANK(INDIRECT(\"Gesamt!\"&\"B\"&$A21)),\"\",INDIRECT(\"Gesamt!\"&\"B\"&$A21))","v":"Vorstellung des Datensatzes und Vorbereitung der inferenzstatistischen Analyseverfahren"}]
[19,{"$f":"IF(ISBLANK(INDIRECT(\"Gesamt!\"&B$1&$A22)),\"\",INDIRECT(\"Gesamt!\"&B$1&$A22))","v":""},{"$f":"IF(ISBLANK(INDIRECT(\"Gesamt!\"&C$1&$A22)),\"\",INDIRECT(\"Gesamt!\"&C$1&$A22))","v":"Punkte"},{"$f":"IF(ISBLANK(INDIRECT(\"Gesamt!\"&D$1&$A22)),\"\",INDIRECT(\"Gesamt!\"&D$1&$A22))","v":"Bewertung"},{"$f":"IF(ISBLANK(INDIRECT(\"Gesamt!\"&E$1&$A22)),\"\",INDIRECT(\"Gesamt!\"&E$1&$A22))","v":"Kommentar"}]
[20,{"$f":"IF(ISBLANK(INDIRECT(\"Gesamt!\"&B$1&$A23)),\"\",INDIRECT(\"Gesamt!\"&B$1&$A23))","v":"Lage- & Streuungsmaße\n- Deskriptive Statistik für alle verwendeten Variablen\n- Berechnung, Interpretation und Einordnung in den Sachkontext"},{"$f":"IF(ISBLANK(INDIRECT(\"Gesamt!\"&C$1&$A23)),\"\",INDIRECT(\"Gesamt!\"&C$1&$A23))","v":2},{"$f":"IF(ISBLANK(INDIRECT(\"Gesamt!\"&D$1&$A23)),\"\",INDIRECT(\"Gesamt!\"&D$1&$A23))","v":""},{"$f":"IF(ISBLANK(INDIRECT(\"Gesamt!\"&E$1&$A23)),\"\",INDIRECT(\"Gesamt!\"&E$1&$A23))","v":""}]
[21,{"$f":"IF(ISBLANK(INDIRECT(\"Gesamt!\"&B$1&$A24)),\"\",INDIRECT(\"Gesamt!\"&B$1&$A24))","v":"Zusammenhangsmaße\n- Berechnung, Interpretation und Einordnung in den Sachkontext von (min.) einem Zusammenhangsmaß"},{"$f":"IF(ISBLANK(INDIRECT(\"Gesamt!\"&C$1&$A24)),\"\",INDIRECT(\"Gesamt!\"&C$1&$A24))","v":1},{"$f":"IF(ISBLANK(INDIRECT(\"Gesamt!\"&D$1&$A24)),\"\",INDIRECT(\"Gesamt!\"&D$1&$A24))","v":""},{"$f":"IF(ISBLANK(INDIRECT(\"Gesamt!\"&E$1&$A24)),\"\",INDIRECT(\"Gesamt!\"&E$1&$A24))","v":""}]
[22,{"$f":"IF(ISBLANK(INDIRECT(\"Gesamt!\"&B$1&$A25)),\"\",INDIRECT(\"Gesamt!\"&B$1&$A25))","v":"Ergänzende Berechnung\n- Ergänzende Berechnung, Interpretation und Einordnung in den Sachkontext (min.) eines weiteren Zusammenhangsmaßes oder Konzentrationsmaßes"},{"$f":"IF(ISBLANK(INDIRECT(\"Gesamt!\"&C$1&$A25)),\"\",INDIRECT(\"Gesamt!\"&C$1&$A25))","v":1},{"$f":"IF(ISBLANK(INDIRECT(\"Gesamt!\"&D$1&$A25)),\"\",INDIRECT(\"Gesamt!\"&D$1&$A25))","v":""},{"$f":"IF(ISBLANK(INDIRECT(\"Gesamt!\"&E$1&$A25)),\"\",INDIRECT(\"Gesamt!\"&E$1&$A25))","v":""}]
[23,{"$f":"IF(ISBLANK(INDIRECT(\"Gesamt!\"&B$1&$A26)),\"\",INDIRECT(\"Gesamt!\"&B$1&$A26))","v":"Diagramme\n- Sinnvoll unterstützender / ergänzender Einsatz einer grafischen Aufbereitung der Daten (0,5P)\n- Ergänzende Darstellung eines weiteren, andersartigen Diagrammes (0,5P)"},{"$f":"IF(ISBLANK(INDIRECT(\"Gesamt!\"&C$1&$A26)),\"\",INDIRECT(\"Gesamt!\"&C$1&$A26))","v":1},{"$f":"IF(ISBLANK(INDIRECT(\"Gesamt!\"&D$1&$A26)),\"\",INDIRECT(\"Gesamt!\"&D$1&$A26))","v":""},{"$f":"IF(ISBLANK(INDIRECT(\"Gesamt!\"&E$1&$A26)),\"\",INDIRECT(\"Gesamt!\"&E$1&$A26))","v":""}]
[24,{"$f":"IF(ISBLANK(INDIRECT(\"Gesamt!\"&B$1&$A27)),\"\",INDIRECT(\"Gesamt!\"&B$1&$A27))","v":"Komposition\n- Zweckmäßiger Methodeneinsatz (1P)\n- Zielgerichtete Argumentation (1P)"},{"$f":"IF(ISBLANK(INDIRECT(\"Gesamt!\"&C$1&$A27)),\"\",INDIRECT(\"Gesamt!\"&C$1&$A27))","v":2},{"$f":"IF(ISBLANK(INDIRECT(\"Gesamt!\"&D$1&$A27)),\"\",INDIRECT(\"Gesamt!\"&D$1&$A27))","v":""},{"$f":"IF(ISBLANK(INDIRECT(\"Gesamt!\"&E$1&$A27)),\"\",INDIRECT(\"Gesamt!\"&E$1&$A27))","v":""}]
[25,{"$f":"IF(ISBLANK(INDIRECT(\"Gesamt!\"&B$1&$A28)),\"\",INDIRECT(\"Gesamt!\"&B$1&$A28))","v":"Formalia (Zwischenabgabe)\n- Analytische Ausarbeitung (0,5P)\n    + Übersichtlichkeit\n    + Nachvollziehbarkeit aller Rechnungen\n- Schriftliche Ausarbeitung (0,5P)\n    + Formatierung des Dokuments\n    + Zitation wissenschaftlicher Quellen"},{"$f":"IF(ISBLANK(INDIRECT(\"Gesamt!\"&C$1&$A28)),\"\",INDIRECT(\"Gesamt!\"&C$1&$A28))","v":1},{"$f":"IF(ISBLANK(INDIRECT(\"Gesamt!\"&D$1&$A28)),\"\",INDIRECT(\"Gesamt!\"&D$1&$A28))","v":""},{"$f":"IF(ISBLANK(INDIRECT(\"Gesamt!\"&E$1&$A28)),\"\",INDIRECT(\"Gesamt!\"&E$1&$A28))","v":""}]
[26,{"$f":"IF(ISBLANK(INDIRECT(\"Gesamt!\"&B$1&$A29)),\"\",INDIRECT(\"Gesamt!\"&B$1&$A29))","v":"Zwischensumme Zwischenabgabe"},{"$f":"IF(ISBLANK(INDIRECT(\"Gesamt!\"&C$1&$A29)),\"\",INDIRECT(\"Gesamt!\"&C$1&$A29))","v":8},{"$f":"IF(ISBLANK(INDIRECT(\"Gesamt!\"&D$1&$A29)),\"\",INDIRECT(\"Gesamt!\"&D$1&$A29))","v":0},{"$f":"IF(ISBLANK(INDIRECT(\"Gesamt!\"&E$1&$A29)),\"\",INDIRECT(\"Gesamt!\"&E$1&$A29))","v":""}]
[27,{"$f":"IF(ISBLANK(INDIRECT(\"Gesamt!\"&B$1&$A30)),\"\",INDIRECT(\"Gesamt!\"&B$1&$A30))","v":"Endabgabe"},{"$f":"IF(ISBLANK(INDIRECT(\"Gesamt!\"&C$1&$A30)),\"\",INDIRECT(\"Gesamt!\"&C$1&$A30))","v":""},{"$f":"IF(ISBLANK(INDIRECT(\"Gesamt!\"&D$1&$A30)),\"\",INDIRECT(\"Gesamt!\"&D$1&$A30))","v":"Gruppe: "}]
[28,{"$f":"IF(ISBLANK(INDIRECT(\"Gesamt!\"&B$1&$A31)),\"\",INDIRECT(\"Gesamt!\"&B$1&$A31))","v":"Ziel der Endabgabe:"},null,null,{"$f":"IF(ISBLANK(INDIRECT(\"Gesamt!\"&\"B\"&$A31)),\"\",INDIRECT(\"Gesamt!\"&\"B\"&$A31))","v":"Beantwortung der Forschungsfrage unter Nutzung inferenzstatistischer Verfahren und Finalisierung der Arbeit"}]
[29,{"$f":"IF(ISBLANK(INDIRECT(\"Gesamt!\"&B$1&$A32)),\"\",INDIRECT(\"Gesamt!\"&B$1&$A32))","v":""},{"$f":"IF(ISBLANK(INDIRECT(\"Gesamt!\"&C$1&$A32)),\"\",INDIRECT(\"Gesamt!\"&C$1&$A32))","v":"Punkte"},{"$f":"IF(ISBLANK(INDIRECT(\"Gesamt!\"&D$1&$A32)),\"\",INDIRECT(\"Gesamt!\"&D$1&$A32))","v":"Bewertung"},{"$f":"IF(ISBLANK(INDIRECT(\"Gesamt!\"&E$1&$A32)),\"\",INDIRECT(\"Gesamt!\"&E$1&$A32))","v":"Kommentar"}]
[30,{"$f":"IF(ISBLANK(INDIRECT(\"Gesamt!\"&B$1&$A33)),\"\",INDIRECT(\"Gesamt!\"&B$1&$A33))","v":"Verbesserung der Deskriptiven Statistik hinsichtlich Korrektheit, Vollständigkeit, Beschreibung und Einordnung in den Sachkontext\n- Lagemaße (0,5P)\n- Streuungsmaße (0,5P)\n- Ergänzende Maße (0,5P)\n- Zusammenhangsmaße (0,5P)"},{"$f":"IF(ISBLANK(INDIRECT(\"Gesamt!\"&C$1&$A33)),\"\",INDIRECT(\"Gesamt!\"&C$1&$A33))","v":2},{"$f":"IF(ISBLANK(INDIRECT(\"Gesamt!\"&D$1&$A33)),\"\",INDIRECT(\"Gesamt!\"&D$1&$A33))","v":""},{"$f":"IF(ISBLANK(INDIRECT(\"Gesamt!\"&E$1&$A33)),\"\",INDIRECT(\"Gesamt!\"&E$1&$A33))","v":""}]
[31,{"$f":"IF(ISBLANK(INDIRECT(\"Gesamt!\"&B$1&$A34)),\"\",INDIRECT(\"Gesamt!\"&B$1&$A34))","v":"Inferenzstatistik: Freie Methodenwahl\n- Inhaltlich begründete Methodenauswahl (1P)\n- Voraussetzungen erfüllt (0,5P)\n- Fehlerfreie Berechnungen (0,5P)\n- Korrekte Testanwendung (0,5P)\n- Statistische Interpretation und Einordnung in Sachkontext (1P)"},{"$f":"IF(ISBLANK(INDIRECT(\"Gesamt!\"&C$1&$A34)),\"\",INDIRECT(\"Gesamt!\"&C$1&$A34))","v":3.5},{"$f":"IF(ISBLANK(INDIRECT(\"Gesamt!\"&D$1&$A34)),\"\",INDIRECT(\"Gesamt!\"&D$1&$A34))","v":""},{"$f":"IF(ISBLANK(INDIRECT(\"Gesamt!\"&E$1&$A34)),\"\",INDIRECT(\"Gesamt!\"&E$1&$A34))","v":""}]
[32,{"$f":"IF(ISBLANK(INDIRECT(\"Gesamt!\"&B$1&$A35)),\"\",INDIRECT(\"Gesamt!\"&B$1&$A35))","v":"Inferenzstatistik: Zusammenhangsanalyse\n- Variablen- und Methodenauswahl kongruent (1P)\n- Voraussetzungen erfüllt (0,5P)\n- Fehlerfreie Berechnungen (0,5P)\n- Korrekte Testanwendung (0,5P)\n- Statistische Interpretation und Einordnung in Sachkontext (1P)"},{"$f":"IF(ISBLANK(INDIRECT(\"Gesamt!\"&C$1&$A35)),\"\",INDIRECT(\"Gesamt!\"&C$1&$A35))","v":3.5},{"$f":"IF(ISBLANK(INDIRECT(\"Gesamt!\"&D$1&$A35)),\"\",INDIRECT(\"Gesamt!\"&D$1&$A35))","v":""},{"$f":"IF(ISBLANK(INDIRECT(\"Gesamt!\"&E$1&$A35)),\"\",INDIRECT(\"Gesamt!\"&E$1&$A35))","v":""}]
[33,{"$f":"IF(ISBLANK(INDIRECT(\"Gesamt!\"&B$1&$A36)),\"\",INDIRECT(\"Gesamt!\"&B$1&$A36))","v":"Argumentationsfluss & Gesamteindruck\n- Inhaltlicher Aufbau\n- Verknüpfung der Fragestellung mit der Anwendung der inhaltlichen Methoden\n- Verknüpfung deskriptiver und analytischer Statistik\n- Keine rezeptartige Beschreibung von Rechenwegen"},{"$f":"IF(ISBLANK(INDIRECT(\"Gesamt!\"&C$1&$A36)),\"\",INDIRECT(\"Gesamt!\"&C$1&$A36))","v":2},{"$f":"IF(ISBLANK(INDIRECT(\"Gesamt!\"&D$1&$A36)),\"\",INDIRECT(\"Gesamt!\"&D$1&$A36))","v":""},{"$f":"IF(ISBLANK(INDIRECT(\"Gesamt!\"&E$1&$A36)),\"\",INDIRECT(\"Gesamt!\"&E$1&$A36))","v":""}]
[34,{"$f":"IF(ISBLANK(INDIRECT(\"Gesamt!\"&B$1&$A37)),\"\",INDIRECT(\"Gesamt!\"&B$1&$A37))","v":"Zielerreichung\n- Antwort auf die gestellte Forschungsfrage\n- Zusammenfassung der Ergebnisse\n- Kritische Würdigung des eigenen Vorgehens"},{"$f":"IF(ISBLANK(INDIRECT(\"Gesamt!\"&C$1&$A37)),\"\",INDIRECT(\"Gesamt!\"&C$1&$A37))","v":2},{"$f":"IF(ISBLANK(INDIRECT(\"Gesamt!\"&D$1&$A37)),\"\",INDIRECT(\"Gesamt!\"&D$1&$A37))","v":""},{"$f":"IF(ISBLANK(INDIRECT(\"Gesamt!\"&E$1&$A37)),\"\",INDIRECT(\"Gesamt!\"&E$1&$A37))","v":""}]
[35,{"$f":"IF(ISBLANK(INDIRECT(\"Gesamt!\"&B$1&$A38)),\"\",INDIRECT(\"Gesamt!\"&B$1&$A38))","v":"Formalia (Endabgabe)\n- Nutzung des bereitgestellten Templates (fhswf R-Package) und angemessene wissenschaftliche Gestaltung des finalen Dokumentes unter Verwendung der im Template enthaltenen Checkliste\n- Abgabe ist vollständig reproduzierbar (Alle Dateien wurden eingereicht: PDF, Rmd, etc)"},{"$f":"IF(ISBLANK(INDIRECT(\"Gesamt!\"&C$1&$A38)),\"\",INDIRECT(\"Gesamt!\"&C$1&$A38))","v":1},{"$f":"IF(ISBLANK(INDIRECT(\"Gesamt!\"&D$1&$A38)),\"\",INDIRECT(\"Gesamt!\"&D$1&$A38))","v":""},{"$f":"IF(ISBLANK(INDIRECT(\"Gesamt!\"&E$1&$A38)),\"\",INDIRECT(\"Gesamt!\"&E$1&$A38))","v":""}]
[36,{"$f":"IF(ISBLANK(INDIRECT(\"Gesamt!\"&B$1&$A39)),\"\",INDIRECT(\"Gesamt!\"&B$1&$A39))","v":"Analytische Qualität\n- Übersichtlichkeit der Analyse (R Datei)\n- Nachvollziehbarkeit aller Rechnungen\n- Vollständigkeit"},{"$f":"IF(ISBLANK(INDIRECT(\"Gesamt!\"&C$1&$A39)),\"\",INDIRECT(\"Gesamt!\"&C$1&$A39))","v":1},{"$f":"IF(ISBLANK(INDIRECT(\"Gesamt!\"&D$1&$A39)),\"\",INDIRECT(\"Gesamt!\"&D$1&$A39))","v":""},{"$f":"IF(ISBLANK(INDIRECT(\"Gesamt!\"&E$1&$A39)),\"\",INDIRECT(\"Gesamt!\"&E$1&$A39))","v":""}]
[37,{"$f":"IF(ISBLANK(INDIRECT(\"Gesamt!\"&B$1&$A40)),\"\",INDIRECT(\"Gesamt!\"&B$1&$A40))","v":"Zwischensumme Endabgabe"},{"$f":"IF(ISBLANK(INDIRECT(\"Gesamt!\"&C$1&$A40)),\"\",INDIRECT(\"Gesamt!\"&C$1&$A40))","v":15},{"$f":"IF(ISBLANK(INDIRECT(\"Gesamt!\"&D$1&$A40)),\"\",INDIRECT(\"Gesamt!\"&D$1&$A40))","v":0},{"$f":"IF(ISBLANK(INDIRECT(\"Gesamt!\"&E$1&$A40)),\"\",INDIRECT(\"Gesamt!\"&E$1&$A40))","v":""}]
[38,{"$f":"IF(ISBLANK(INDIRECT(\"Gesamt!\"&B$1&$A41)),\"\",INDIRECT(\"Gesamt!\"&B$1&$A41))","v":"Abschließende Bewertung"},{"$f":"IF(ISBLANK(INDIRECT(\"Gesamt!\"&C$1&$A41)),\"\",INDIRECT(\"Gesamt!\"&C$1&$A41))","v":""},{"$f":"IF(ISBLANK(INDIRECT(\"Gesamt!\"&D$1&$A41)),\"\",INDIRECT(\"Gesamt!\"&D$1&$A41))","v":"Gruppe: "}]
[39,{"$f":"IF(ISBLANK(INDIRECT(\"Gesamt!\"&B$1&$A42)),\"\",INDIRECT(\"Gesamt!\"&B$1&$A42))","v":"Exposé"},{"$f":"IF(ISBLANK(INDIRECT(\"Gesamt!\"&C$1&$A42)),\"\",INDIRECT(\"Gesamt!\"&C$1&$A42))","v":2},{"$f":"IF(ISBLANK(INDIRECT(\"Gesamt!\"&D$1&$A42)),\"\",INDIRECT(\"Gesamt!\"&D$1&$A42))","v":0},{"$f":"IF(ISBLANK(INDIRECT(\"Gesamt!\"&E$1&$A42)),\"\",INDIRECT(\"Gesamt!\"&E$1&$A42))","v":"(0,0 %)"}]
[40,{"$f":"IF(ISBLANK(INDIRECT(\"Gesamt!\"&B$1&$A43)),\"\",INDIRECT(\"Gesamt!\"&B$1&$A43))","v":"Zwischenabgabe"},{"$f":"IF(ISBLANK(INDIRECT(\"Gesamt!\"&C$1&$A43)),\"\",INDIRECT(\"Gesamt!\"&C$1&$A43))","v":8},{"$f":"IF(ISBLANK(INDIRECT(\"Gesamt!\"&D$1&$A43)),\"\",INDIRECT(\"Gesamt!\"&D$1&$A43))","v":0},{"$f":"IF(ISBLANK(INDIRECT(\"Gesamt!\"&E$1&$A43)),\"\",INDIRECT(\"Gesamt!\"&E$1&$A43))","v":"(0,0 %)"}]
[41,{"$f":"IF(ISBLANK(INDIRECT(\"Gesamt!\"&B$1&$A44)),\"\",INDIRECT(\"Gesamt!\"&B$1&$A44))","v":"Endabgabe"},{"$f":"IF(ISBLANK(INDIRECT(\"Gesamt!\"&C$1&$A44)),\"\",INDIRECT(\"Gesamt!\"&C$1&$A44))","v":15},{"$f":"IF(ISBLANK(INDIRECT(\"Gesamt!\"&D$1&$A44)),\"\",INDIRECT(\"Gesamt!\"&D$1&$A44))","v":0},{"$f":"IF(ISBLANK(INDIRECT(\"Gesamt!\"&E$1&$A44)),\"\",INDIRECT(\"Gesamt!\"&E$1&$A44))","v":"(0,0 %)"}]
[42,{"$f":"IF(ISBLANK(INDIRECT(\"Gesamt!\"&B$1&$A45)),\"\",INDIRECT(\"Gesamt!\"&B$1&$A45))","v":"Endpunktzahl (rechnerisch)"},{"$f":"IF(ISBLANK(INDIRECT(\"Gesamt!\"&C$1&$A45)),\"\",INDIRECT(\"Gesamt!\"&C$1&$A45))","v":25},{"$f":"IF(ISBLANK(INDIRECT(\"Gesamt!\"&D$1&$A45)),\"\",INDIRECT(\"Gesamt!\"&D$1&$A45))","v":0},{"$f":"IF(ISBLANK(INDIRECT(\"Gesamt!\"&E$1&$A45)),\"\",INDIRECT(\"Gesamt!\"&E$1&$A45))","v":"(0,0 %)"}]
[43,{"$f":"IF(ISBLANK(INDIRECT(\"Gesamt!\"&B$1&$A46)),\"\",INDIRECT(\"Gesamt!\"&B$1&$A46))","v":"Endergebnis (gerundet)"},{"$f":"IF(ISBLANK(INDIRECT(\"Gesamt!\"&C$1&$A46)),\"\",INDIRECT(\"Gesamt!\"&C$1&$A46))","v":25},{"$f":"IF(ISBLANK(INDIRECT(\"Gesamt!\"&D$1&$A46)),\"\",INDIRECT(\"Gesamt!\"&D$1&$A46))","v":0},{"$f":"IF(ISBLANK(INDIRECT(\"Gesamt!\"&E$1&$A46)),\"\",INDIRECT(\"Gesamt!\"&E$1&$A46))","v":"(0,0 %)"}]
[44,{"$f":"IF(ISBLANK(INDIRECT(\"Gesamt!\"&B$1&$A47)),\"\",INDIRECT(\"Gesamt!\"&B$1&$A47))","v":"Quantil (ECTS-Grad) [nur Korrektor]"},{"$f":"IF(ISBLANK(INDIRECT(\"Gesamt!\"&C$1&$A47)),\"\",INDIRECT(\"Gesamt!\"&C$1&$A47))","v":"0-1 (A-E)"},{"$f":"IF(ISBLANK(INDIRECT(\"Gesamt!\"&D$1&$A47)),\"\",INDIRECT(\"Gesamt!\"&D$1&$A47))","v":{"$error":"#N/A"}},{"$f":"IF(ISBLANK(INDIRECT(\"Gesamt!\"&E$1&$A47)),\"\",INDIRECT(\"Gesamt!\"&E$1&$A47))","v":{"$error":"#N/A"}}]
[]
[]
[45,{"$f":"IF(ISBLANK(INDIRECT(\"Gesamt!\"&B$1&$A50)),\"\",INDIRECT(\"Gesamt!\"&B$1&$A50))","v":"Vorleistung (50% der Punkte nach Zwischenabgabe)"}]
[]
[null,{"$f":"IF(ISBLANK(INDIRECT(\"Gesamt!\"&E$1&$A50)),\"\",INDIRECT(\"Gesamt!\"&E$1&$A50))","v":"Nicht Bestanden"}]
[]
[]
[]
[null,"Hinweis: Das Bestehen der Vorleistung ist Bedingung für die Zulassung zur Prüfung. Endpunktzahl (rechnerisch) und Endergebnis (gerundet) werden erst nach bestandener Vorleistung angezeigt."]

{"sheet":"G5","index":6,"n_rows":56,"n_cols":6,"rows_kept":56,"cut":false,"hidden":false,"merged":[[49,1,49,4],[51,1,53,4],[55,1,55,4],[1,1,1,4],[2,1,2,4],[12,3,12,4],[19,3,19,4],[29,3,29,4],[40,3,40,4]]}
["Startspalte:","A","C",{"$f":"SUBSTITUTE(ADDRESS(1,A2,4),\"1\",\"\")","v":"P"},{"$f":"SUBSTITUTE(ADDRESS(1,A2+1,4),\"1\",\"\")","v":"Q"},{"$f":"SUBSTITUTE(ADDRESS(1,A2+2,4),\"1\",\"\")","v":"R"}]
[16,{"$f":"\"Feedback - Gruppe: \"&IF(ISBLANK(INDIRECT(\"Gesamt!\"&E$1&$A5)),\"\",INDIRECT(\"Gesamt!\"&E$1&$A5))","v":"Feedback - Gruppe: "}]
[{"$f":"TEXT(TODAY(),\"JJJJMMTT\")","v":"20240514"},{"$f":"TODAY()","v":"2024-05-14"}]
[1,"Oranisatorisches",null,null,{"$f":"IF(ISBLANK(INDIRECT(\"Gesamt!\"&E$1&$A4)),\"\",INDIRECT(\"Gesamt!\"&E$1&$A4))","v":""}]
[2,{"$f":"IF(ISBLANK(INDIRECT(\"Gesamt!\"&B$1&$A5)),\"\",INDIRECT(\"Gesamt!\"&B$1&$A5))","v":"Korrektor"},{"$f":"IF(ISBLANK(INDIRECT(\"Gesamt!\"&C$1&$A5)),\"\",INDIRECT(\"Gesamt!\"&C$1&$A5))","v":""},{"$f":"IF(ISBLANK(INDIRECT(\"Gesamt!\"&D$1&$A5)),\"\",INDIRECT(\"Gesamt!\"&D$1&$A5))","v":"Gruppe"},{"$f":"IF(ISBLANK(INDIRECT(\"Gesamt!\"&E$1&$A5)),\"\",INDIRECT(\"Gesamt!\"&E$1&$A5))","v":""}]
[3,{"$f":"IF(ISBLANK(INDIRECT(\"Gesamt!\"&B$1&$A6)),\"\",INDIRECT(\"Gesamt!\"&B$1&$A6))","v":"Prof. Dr. Benjamin Buchwitz"},{"$f":"IF(ISBLANK(INDIRECT(\"Gesamt!\"&C$1&$A6)),\"\",INDIRECT(\"Gesamt!\"&C$1&$A6))","v":""},{"$f":"IF(ISBLANK(INDIRECT(\"Gesamt!\"&D$1&$A6)),\"\",INDIRECT(\"Gesamt!\"&D$1&$A6))","v":"Matrikelnr."},{"$f":"IF(ISBLANK(INDIRECT(\"Gesamt!\"&E$1&$A6)),\"\",INDIRECT(\"Gesamt!\"&E$1&$A6))","v":"Name"},"Aktiv"]
[4,{"$f":"IF(ISBLANK(INDIRECT(\"Gesamt!\"&B$1&$A7)),\"\",INDIRECT(\"Gesamt!\"&B$1&$A7))","v":"Kontaktmöglichkeit"},{"$f":"IF(ISBLANK(INDIRECT(\"Gesamt!\"&C$1&$A7)),\"\",INDIRECT(\"Gesamt!\"&C$1&$A7))","v":""},{"$f":"IF(ISBLANK(INDIRECT(\"Gesamt!\"&D$1&$A7)),\"\",INDIRECT(\"Gesamt!\"&D$1&$A7))","v":""},{"$f":"IF(ISBLANK(INDIRECT(\"Gesamt!\"&E$1&$A7)),\"\",INDIRECT(\"Gesamt!\"&E$1&$A7))","v":""},{"$f":"IF(ISBLANK(INDIRECT(\"Gesamt!\"&F$1&$A7)),\"\",INDIRECT(\"Gesamt!\"&F$1&$A7))","v":true}]
[5,{"$f":"IF(ISBLANK(INDIRECT(\"Gesamt!\"&B$1&$A8)),\"\",INDIRECT(\"Gesamt!\"&B$1&$A8))","v":"buchwitz.benjamin@fh-swf.de"},{"$f":"IF(ISBLANK(INDIRECT(\"Gesamt!\"&C$1&$A8)),\"\",INDIRECT(\"Gesamt!\"&C$1&$A8))","v":""},{"$f":"IF(ISBLANK(INDIRECT(\"Gesamt!\"&D$1&$A8)),\"\",INDIRECT(\"Gesamt!\"&D$1&$A8))","v":""},{"$f":"IF(ISBLANK(INDIRECT(\"Gesamt!\"&E$1&$A8)),\"\",INDIRECT(\"Gesamt!\"&E$1&$A8))","v":""},{"$f":"IF(ISBLANK(INDIRECT(\"Gesamt!\"&F$1&$A8)),\"\",INDIRECT(\"Gesamt!\"&F$1&$A8))","v":" "}]
[6,{"$f":"IF(ISBLANK(INDIRECT(\"Gesamt!\"&B$1&$A9)),\"\",INDIRECT(\"Gesamt!\"&B$1&$A9))","v":""},{"$f":"IF(ISBLANK(INDIRECT(\"Gesamt!\"&C$1&$A9)),\"\",INDIRECT(\"Gesamt!\"&C$1&$A9))","v":""},{"$f":"IF(ISBLANK(INDIRECT(\"Gesamt!\"&D$1&$A9)),\"\",INDIRECT(\"Gesamt!\"&D$1&$A9))","v":""},{"$f":"IF(ISBLANK(INDIRECT(\"Gesamt!\"&E$1&$A9)),\"\",INDIRECT(\"Gesamt!\"&E$1&$A9))","v":""},{"$f":"IF(ISBLANK(INDIRECT(\"Gesamt!\"&F$1&$A9)),\"\",INDIRECT(\"Gesamt!\"&F$1&$A9))","v":" "}]
[7,"Kommunikationsverantwortlicher Autor:",{"$f":"IF(ISBLANK(INDIRECT(\"Gesamt!\"&C$1&$A10)),\"\",INDIRECT(\"Gesamt!\"&C$1&$A10))","v":""},{"$f":"IF(ISBLANK(INDIRECT(\"Gesamt!\"&D$1&$A10)),\"\",INDIRECT(\"Gesamt!\"&D$1&$A10))","v":""},{"$f":"IF(ISBLANK(INDIRECT(\"Gesamt!\"&E$1&$A10)),\"\",INDIRECT(\"Gesamt!\"&E$1&$A10))","v":""},{"$f":"IF(ISBLANK(INDIRECT(\"Gesamt!\"&F$1&$A10)),\"\",INDIRECT(\"Gesamt!\"&F$1&$A10))","v":" "}]
[8,{"$f":"E7 & \" (Gruppensprecher:in)\"","v":" (Gruppensprecher:in)"},{"$f":"IF(ISBLANK(INDIRECT(\"Gesamt!\"&C$1&$A11)),\"\",INDIRECT(\"Gesamt!\"&C$1&$A11))","v":""},{"$f":"IF(ISBLANK(INDIRECT(\"Gesamt!\"&D$1&$A11)),\"\",INDIRECT(\"Gesamt!\"&D$1&$A11))","v":""},{"$f":"IF(ISBLANK(INDIRECT(\"Gesamt!\"&E$1&$A11)),\"\",INDIRECT(\"Gesamt!\"&E$1&$A11))","v":""},{"$f":"IF(ISBLANK(INDIRECT(\"Gesamt!\"&F$1&$A11)),\"\",INDIRECT(\"Gesamt!\"&F$1&$A11))","v":" "}]
[9,{"$f":"IF(ISBLANK(INDIRECT(\"Gesamt!\"&B$1&$A12)),\"\",INDIRECT(\"Gesamt!\"&B$1&$A12))","v":""},{"$f":"IF(ISBLANK(INDIRECT(\"Gesamt!\"&C$1&$A12)),\"\",INDIRECT(\"Gesamt!\"&C$1&$A12))","v":""},{"$f":"IF(ISBLANK(INDIRECT(\"Gesamt!\"&D$1&$A12)),\"\",INDIRECT(\"Gesamt!\"&D$1&$A12))","v":""},{"$f":"IF(ISBLANK(INDIRECT(\"Gesamt!\"&E$1&$A12)),\"\",INDIRECT(\"Gesamt!\"&E$1&$A12))","v":""},{"$f":"IF(ISBLANK(INDIRECT(\"Gesamt!\"&F$1&$A12)),\"\",INDIRECT(\"Gesamt!\"&F$1&$A12))","v":" "}]
[10,{"$f":"IF(ISBLANK(INDIRECT(\"Gesamt!\"&B$1&$A13)),\"\",INDIRECT(\"Gesamt!\"&B$1&$A13))","v":"Exposé"},{"$f":"IF(ISBLANK(INDIRECT(\"Gesamt!\"&C$1&$A13)),\"\",INDIRECT(\"Gesamt!\"&C$1&$A13))","v":""},{"$f":"IF(ISBLANK(INDIRECT(\"Gesamt!\"&D$1&$A13)),\"\",INDIRECT(\"Gesamt!\"&D$1&$A13))","v":"Gruppe: "}]
[11,{"$f":"IF(ISBLANK(INDIRECT(\"Gesamt!\"&B$1&$A14)),\"\",INDIRECT(\"Gesamt!\"&B$1&$A14))","v":"Ziel des Exposés:"},null,null,{"$f":"IF(ISBLANK(INDIRECT(\"Gesamt!\"&\"B\"&$A14)),\"\",INDIRECT(\"Gesamt!\"&\"B\"&$A14))","v":"Einarbeitung in den Sachkontext und Genese einer zum Datensatz passenden Forschungsfrage"}]
[12,{"$f":"IF(ISBLANK(INDIRECT(\"Gesamt!\"&B$1&$A15)),\"\",INDIRECT(\"Gesamt!\"&B$1&$A15))","v":""},{"$f":"IF(ISBLANK(INDIRECT(\"Gesamt!\"&C$1&$A15)),\"\",INDIRECT(\"Gesamt!\"&C$1&$A15))","v":"Punkte"},{"$f":"IF(ISBLANK(INDIRECT(\"Gesamt!\"&D$1&$A15)),\"\",INDIRECT(\"Gesamt!\"&D$1&$A15))","v":"Bewertung"},{"$f":"IF(ISBLANK(INDIRECT(\"Gesamt!\"&E$1&$A15)),\"\",INDIRECT(\"Gesamt!\"&E$1&$A15))","v":"Kommentar"}]
[13,{"$f":"IF(ISBLANK(INDIRECT(\"Gesamt!\"&B$1&$A16)),\"\",INDIRECT(\"Gesamt!\"&B$1&$A16))","v":"Forschungsgegenstand\n- Zielausgestaltung (0,2P)\n- Fragestellung (0,4P)\n- Hypothesen (0,4P)"},{"$f":"IF(ISBLANK(INDIRECT(\"Gesamt!\"&C$1&$A16)),\"\",INDIRECT(\"Gesamt!\"&C$1&$A16))","v":1},{"$f":"IF(ISBLANK(INDIRECT(\"Gesamt!\"&D$1&$A16)),\"\",INDIRECT(\"Gesamt!\"&D$1&$A16))","v":""},{"$f":"IF(ISBLANK(INDIRECT(\"Gesamt!\"&E$1&$A16)),\"\",INDIRECT(\"Gesamt!\"&E$1&$A16))","v":""}]
[14,{"$f":"IF(ISBLANK(INDIRECT(\"Gesamt!\"&B$1&$A17)),\"\",INDIRECT(\"Gesamt!\"&B$1&$A17))","v":"Komposition\n- Inhaltlicher Zusammenhang (0,2P)\n- fachsprachlich formulierte Vorgehensweise (0,2P)\n- Motivation des Themas (0,1P)"},{"$f":"IF(ISBLANK(INDIRECT(\"Gesamt!\"&C$1&$A17)),\"\",INDIRECT(\"Gesamt!\"&C$1&$A17))","v":0.5},{"$f":"IF(ISBLANK(INDIRECT(\"Gesamt!\"&D$1&$A17)),\"\",INDIRECT(\"Gesamt!\"&D$1&$A17))","v":""},{"$f":"IF(ISBLANK(INDIRECT(\"Gesamt!\"&E$1&$A17)),\"\",INDIRECT(\"Gesamt!\"&E$1&$A17))","v":""}]
[15,{"$f":"IF(ISBLANK(INDIRECT(\"Gesamt!\"&B$1&$A18)),\"\",INDIRECT(\"Gesamt!\"&B$1&$A18))","v":"Formalia (Exposé)\n- Template Nutzung & Formatierung (0,3P)\n- Schreibstil & Rechtschreibung (0,2P)"},{"$f":"IF(ISBLANK(INDIRECT(\"Gesamt!\"&C$1&$A18)),\"\",INDIRECT(\"Gesamt!\"&C$1&$A18))","v":0.5},{"$f":"IF(ISBLANK(INDIRECT(\"Gesamt!\"&D$1&$A18)),\"\",INDIRECT(\"Gesamt!\"&D$1&$A18))","v":""},{"$f":"IF(ISBLANK(INDIRECT(\"Gesamt!\"&E$1&$A18)),\"\",INDIRECT(\"Gesamt!\"&E$1&$A18))","v":""}]
[16,{"$f":"IF(ISBLANK(INDIRECT(\"Gesamt!\"&B$1&$A19)),\"\",INDIRECT(\"Gesamt!\"&B$1&$A19))","v":"Zwischensumme Exposé"},{"$f":"IF(ISBLANK(INDIRECT(\"Gesamt!\"&C$1&$A19)),\"\",INDIRECT(\"Gesamt!\"&C$1&$A19))","v":2},{"$f":"IF(ISBLANK(INDIRECT(\"Gesamt!\"&D$1&$A19)),\"\",INDIRECT(\"Gesamt!\"&D$1&$A19))","v":0},{"$f":"IF(ISBLANK(INDIRECT(\"Gesamt!\"&E$1&$A19)),\"\",INDIRECT(\"Gesamt!\"&E$1&$A19))","v":""}]
[17,{"$f":"IF(ISBLANK(INDIRECT(\"Gesamt!\"&B$1&$A20)),\"\",INDIRECT(\"Gesamt!\"&B$1&$A20))","v":"Zwischenabgabe"},{"$f":"IF(ISBLANK(INDIRECT(\"Gesamt!\"&C$1&$A20)),\"\",INDIRECT(\"Gesamt!\"&C$1&$A20))","v":""},{"$f":"IF(ISBLANK(INDIRECT(\"Gesamt!\"&D$1&$A20)),\"\",INDIRECT(\"Gesamt!\"&D$1&$A20))","v":"Gruppe: "}]
[18,{"$f":"IF(ISBLANK(INDIRECT(\"Gesamt!\"&B$1&$A21)),\"\",INDIRECT(\"Gesamt!\"&B$1&$A21))","v":"Ziel der Zwischenabgabe:"},null,null,{"$f":"IF(ISBLANK(INDIRECT(\"Gesamt!\"&\"B\"&$A21)),\"\",INDIRECT(\"Gesamt!\"&\"B\"&$A21))","v":"Vorstellung des Datensatzes und Vorbereitung der inferenzstatistischen Analyseverfahren"}]
[19,{"$f":"IF(ISBLANK(INDIRECT(\"Gesamt!\"&B$1&$A22)),\"\",INDIRECT(\"Gesamt!\"&B$1&$A22))","v":""},{"$f":"IF(ISBLANK(INDIRECT(\"Gesamt!\"&C$1&$A22)),\"\",INDIRECT(\"Gesamt!\"&C$1&$A22))","v":"Punkte"},{"$f":"IF(ISBLANK(INDIRECT(\"Gesamt!\"&D$1&$A22)),\"\",INDIRECT(\"Gesamt!\"&D$1&$A22))","v":"Bewertung"},{"$f":"IF(ISBLANK(INDIRECT(\"Gesamt!\"&E$1&$A22)),\"\",INDIRECT(\"Gesamt!\"&E$1&$A22))","v":"Kommentar"}]
[20,{"$f":"IF(ISBLANK(INDIRECT(\"Gesamt!\"&B$1&$A23)),\"\",INDIRECT(\"Gesamt!\"&B$1&$A23))","v":"Lage- & Streuungsmaße\n- Deskriptive Statistik für alle verwendeten Variablen\n- Berechnung, Interpretation und Einordnung in den Sachkontext"},{"$f":"IF(ISBLANK(INDIRECT(\"Gesamt!\"&C$1&$A23)),\"\",INDIRECT(\"Gesamt!\"&C$1&$A23))","v":2},{"$f":"IF(ISBLANK(INDIRECT(\"Gesamt!\"&D$1&$A23)),\"\",INDIRECT(\"Gesamt!\"&D$1&$A23))","v":""},{"$f":"IF(ISBLANK(INDIRECT(\"Gesamt!\"&E$1&$A23)),\"\",INDIRECT(\"Gesamt!\"&E$1&$A23))","v":""}]
[21,{"$f":"IF(ISBLANK(INDIRECT(\"Gesamt!\"&B$1&$A24)),\"\",INDIRECT(\"Gesamt!\"&B$1&$A24))","v":"Zusammenhangsmaße\n- Berechnung, Interpretation und Einordnung in den Sachkontext von (min.) einem Zusammenhangsmaß"},{"$f":"IF(ISBLANK(INDIRECT(\"Gesamt!\"&C$1&$A24)),\"\",INDIRECT(\"Gesamt!\"&C$1&$A24))","v":1},{"$f":"IF(ISBLANK(INDIRECT(\"Gesamt!\"&D$1&$A24)),\"\",INDIRECT(\"Gesamt!\"&D$1&$A24))","v":""},{"$f":"IF(ISBLANK(INDIRECT(\"Gesamt!\"&E$1&$A24)),\"\",INDIRECT(\"Gesamt!\"&E$1&$A24))","v":""}]
[22,{"$f":"IF(ISBLANK(INDIRECT(\"Gesamt!\"&B$1&$A25)),\"\",INDIRECT(\"Gesamt!\"&B$1&$A25))","v":"Ergänzende Berechnung\n- Ergänzende Berechnung, Interpretation und Einordnung in den Sachkontext (min.) eines weiteren Zusammenhangsmaßes oder Konzentrationsmaßes"},{"$f":"IF(ISBLANK(INDIRECT(\"Gesamt!\"&C$1&$A25)),\"\",INDIRECT(\"Gesamt!\"&C$1&$A25))","v":1},{"$f":"IF(ISBLANK(INDIRECT(\"Gesamt!\"&D$1&$A25)),\"\",INDIRECT(\"Gesamt!\"&D$1&$A25))","v":""},{"$f":"IF(ISBLANK(INDIRECT(\"Gesamt!\"&E$1&$A25)),\"\",INDIRECT(\"Gesamt!\"&E$1&$A25))","v":""}]
[23,{"$f":"IF(ISBLANK(INDIRECT(\"Gesamt!\"&B$1&$A26)),\"\",INDIRECT(\"Gesamt!\"&B$1&$A26))","v":"Diagramme\n- Sinnvoll unterstützender / ergänzender Einsatz einer grafischen Aufbereitung der Daten (0,5P)\n- Ergänzende Darstellung eines weiteren, andersartigen Diagrammes (0,5P)"},{"$f":"IF(ISBLANK(INDIRECT(\"Gesamt!\"&C$1&$A26)),\"\",INDIRECT(\"Gesamt!\"&C$1&$A26))","v":1},{"$f":"IF(ISBLANK(INDIRECT(\"Gesamt!\"&D$1&$A26)),\"\",INDIRECT(\"Gesamt!\"&D$1&$A26))","v":""},{"$f":"IF(ISBLANK(INDIRECT(\"Gesamt!\"&E$1&$A26)),\"\",INDIRECT(\"Gesamt!\"&E$1&$A26))","v":""}]
[24,{"$f":"IF(ISBLANK(INDIRECT(\"Gesamt!\"&B$1&$A27)),\"\",INDIRECT(\"Gesamt!\"&B$1&$A27))","v":"Komposition\n- Zweckmäßiger Methodeneinsatz (1P)\n- Zielgerichtete Argumentation (1P)"},{"$f":"IF(ISBLANK(INDIRECT(\"Gesamt!\"&C$1&$A27)),\"\",INDIRECT(\"Gesamt!\"&C$1&$A27))","v":2},{"$f":"IF(ISBLANK(INDIRECT(\"Gesamt!\"&D$1&$A27)),\"\",INDIRECT(\"Gesamt!\"&D$1&$A27))","v":""},{"$f":"IF(ISBLANK(INDIRECT(\"Gesamt!\"&E$1&$A27)),\"\",INDIRECT(\"Gesamt!\"&E$1&$A27))","v":""}]
[25,{"$f":"IF(ISBLANK(INDIRECT(\"Gesamt!\"&B$1&$A28)),\"\",INDIRECT(\"Gesamt!\"&B$1&$A28))","v":"Formalia (Zwischenabgabe)\n- Analytische Ausarbeitung (0,5P)\n    + Übersichtlichkeit\n    + Nachvollziehbarkeit aller Rechnungen\n- Schriftliche Ausarbeitung (0,5P)\n    + Formatierung des Dokuments\n    + Zitation wissenschaftlicher Quellen"},{"$f":"IF(ISBLANK(INDIRECT(\"Gesamt!\"&C$1&$A28)),\"\",INDIRECT(\"Gesamt!\"&C$1&$A28))","v":1},{"$f":"IF(ISBLANK(INDIRECT(\"Gesamt!\"&D$1&$A28)),\"\",INDIRECT(\"Gesamt!\"&D$1&$A28))","v":""},{"$f":"IF(ISBLANK(INDIRECT(\"Gesamt!\"&E$1&$A28)),\"\",INDIRECT(\"Gesamt!\"&E$1&$A28))","v":""}]
[26,{"$f":"IF(ISBLANK(INDIRECT(\"Gesamt!\"&B$1&$A29)),\"\",INDIRECT(\"Gesamt!\"&B$1&$A29))","v":"Zwischensumme Zwischenabgabe"},{"$f":"IF(ISBLANK(INDIRECT(\"Gesamt!\"&C$1&$A29)),\"\",INDIRECT(\"Gesamt!\"&C$1&$A29))","v":8},{"$f":"IF(ISBLANK(INDIRECT(\"Gesamt!\"&D$1&$A29)),\"\",INDIRECT(\"Gesamt!\"&D$1&$A29))","v":0},{"$f":"IF(ISBLANK(INDIRECT(\"Gesamt!\"&E$1&$A29)),\"\",INDIRECT(\"Gesamt!\"&E$1&$A29))","v":""}]
[27,{"$f":"IF(ISBLANK(INDIRECT(\"Gesamt!\"&B$1&$A30)),\"\",INDIRECT(\"Gesamt!\"&B$1&$A30))","v":"Endabgabe"},{"$f":"IF(ISBLANK(INDIRECT(\"Gesamt!\"&C$1&$A30)),\"\",INDIRECT(\"Gesamt!\"&C$1&$A30))","v":""},{"$f":"IF(ISBLANK(INDIRECT(\"Gesamt!\"&D$1&$A30)),\"\",INDIRECT(\"Gesamt!\"&D$1&$A30))","v":"Gruppe: "}]
[28,{"$f":"IF(ISBLANK(INDIRECT(\"Gesamt!\"&B$1&$A31)),\"\",INDIRECT(\"Gesamt!\"&B$1&$A31))","v":"Ziel der Endabgabe:"},null,null,{"$f":"IF(ISBLANK(INDIRECT(\"Gesamt!\"&\"B\"&$A31)),\"\",INDIRECT(\"Gesamt!\"&\"B\"&$A31))","v":"Beantwortung der Forschungsfrage unter Nutzung inferenzstatistischer Verfahren und Finalisierung der Arbeit"}]
[29,{"$f":"IF(ISBLANK(INDIRECT(\"Gesamt!\"&B$1&$A32)),\"\",INDIRECT(\"Gesamt!\"&B$1&$A32))","v":""},{"$f":"IF(ISBLANK(INDIRECT(\"Gesamt!\"&C$1&$A32)),\"\",INDIRECT(\"Gesamt!\"&C$1&$A32))","v":"Punkte"},{"$f":"IF(ISBLANK(INDIRECT(\"Gesamt!\"&D$1&$A32)),\"\",INDIRECT(\"Gesamt!\"&D$1&$A32))","v":"Bewertung"},{"$f":"IF(ISBLANK(INDIRECT(\"Gesamt!\"&E$1&$A32)),\"\",INDIRECT(\"Gesamt!\"&E$1&$A32))","v":"Kommentar"}]
[30,{"$f":"IF(ISBLANK(INDIRECT(\"Gesamt!\"&B$1&$A33)),\"\",INDIRECT(\"Gesamt!\"&B$1&$A33))","v":"Verbesserung der Deskriptiven Statistik hinsichtlich Korrektheit, Vollständigkeit, Beschreibung und Einordnung in den Sachkontext\n- Lagemaße (0,5P)\n- Streuungsmaße (0,5P)\n- Ergänzende Maße (0,5P)\n- Zusammenhangsmaße (0,5P)"},{"$f":"IF(ISBLANK(INDIRECT(\"Gesamt!\"&C$1&$A33)),\"\",INDIRECT(\"Gesamt!\"&C$1&$A33))","v":2},{"$f":"IF(ISBLANK(INDIRECT(\"Gesamt!\"&D$1&$A33)),\"\",INDIRECT(\"Gesamt!\"&D$1&$A33))","v":""},{"$f":"IF(ISBLANK(INDIRECT(\"Gesamt!\"&E$1&$A33)),\"\",INDIRECT(\"Gesamt!\"&E$1&$A33))","v":""}]
[31,{"$f":"IF(ISBLANK(INDIRECT(\"Gesamt!\"&B$1&$A34)),\"\",INDIRECT(\"Gesamt!\"&B$1&$A34))","v":"Inferenzstatistik: Freie Methodenwahl\n- Inhaltlich begründete Methodenauswahl (1P)\n- Voraussetzungen erfüllt (0,5P)\n- Fehlerfreie Berechnungen (0,5P)\n- Korrekte Testanwendung (0,5P)\n- Statistische Interpretation und Einordnung in Sachkontext (1P)"},{"$f":"IF(ISBLANK(INDIRECT(\"Gesamt!\"&C$1&$A34)),\"\",INDIRECT(\"Gesamt!\"&C$1&$A34))","v":3.5},{"$f":"IF(ISBLANK(INDIRECT(\"Gesamt!\"&D$1&$A34)),\"\",INDIRECT(\"Gesamt!\"&D$1&$A34))","v":""},{"$f":"IF(ISBLANK(INDIRECT(\"Gesamt!\"&E$1&$A34)),\"\",INDIRECT(\"Gesamt!\"&E$1&$A34))","v":""}]
[32,{"$f":"IF(ISBLANK(INDIRECT(\"Gesamt!\"&B$1&$A35)),\"\",INDIRECT(\"Gesamt!\"&B$1&$A35))","v":"Inferenzstatistik: Zusammenhangsanalyse\n- Variablen- und Methodenauswahl kongruent (1P)\n- Voraussetzungen erfüllt (0,5P)\n- Fehlerfreie Berechnungen (0,5P)\n- Korrekte Testanwendung (0,5P)\n- Statistische Interpretation und Einordnung in Sachkontext (1P)"},{"$f":"IF(ISBLANK(INDIRECT(\"Gesamt!\"&C$1&$A35)),\"\",INDIRECT(\"Gesamt!\"&C$1&$A35))","v":3.5},{"$f":"IF(ISBLANK(INDIRECT(\"Gesamt!\"&D$1&$A35)),\"\",INDIRECT(\"Gesamt!\"&D$1&$A35))","v":""},{"$f":"IF(ISBLANK(INDIRECT(\"Gesamt!\"&E$1&$A35)),\"\",INDIRECT(\"Gesamt!\"&E$1&$A35))","v":""}]
[33,{"$f":"IF(ISBLANK(INDIRECT(\"Gesamt!\"&B$1&$A36)),\"\",INDIRECT(\"Gesamt!\"&B$1&$A36))","v":"Argumentationsfluss & Gesamteindruck\n- Inhaltlicher Aufbau\n- Verknüpfung der Fragestellung mit der Anwendung der inhaltlichen Methoden\n- Verknüpfung deskriptiver und analytischer Statistik\n- Keine rezeptartige Beschreibung von Rechenwegen"},{"$f":"IF(ISBLANK(INDIRECT(\"Gesamt!\"&C$1&$A36)),\"\",INDIRECT(\"Gesamt!\"&C$1&$A36))","v":2},{"$f":"IF(ISBLANK(INDIRECT(\"Gesamt!\"&D$1&$A36)),\"\",INDIRECT(\"Gesamt!\"&D$1&$A36))","v":""},{"$f":"IF(ISBLANK(INDIRECT(\"Gesamt!\"&E$1&$A36)),\"\",INDIRECT(\"Gesamt!\"&E$1&$A36))","v":""}]
[34,{"$f":"IF(ISBLANK(INDIRECT(\"Gesamt!\"&B$1&$A37)),\"\",INDIRECT(\"Gesamt!\"&B$1&$A37))","v":"Zielerreichung\n- Antwort auf die gestellte Forschungsfrage\n- Zusammenfassung der Ergebnisse\n- Kritische Würdigung des eigenen Vorgehens"},{"$f":"IF(ISBLANK(INDIRECT(\"Gesamt!\"&C$1&$A37)),\"\",INDIRECT(\"Gesamt!\"&C$1&$A37))","v":2},{"$f":"IF(ISBLANK(INDIRECT(\"Gesamt!\"&D$1&$A37)),\"\",INDIRECT(\"Gesamt!\"&D$1&$A37))","v":""},{"$f":"IF(ISBLANK(INDIRECT(\"Gesamt!\"&E$1&$A37)),\"\",INDIRECT(\"Gesamt!\"&E$1&$A37))","v":""}]
[35,{"$f":"IF(ISBLANK(INDIRECT(\"Gesamt!\"&B$1&$A38)),\"\",INDIRECT(\"Gesamt!\"&B$1&$A38))","v":"Formalia (Endabgabe)\n- Nutzung des bereitgestellten Templates (fhswf R-Package) und angemessene wissenschaftliche Gestaltung des finalen Dokumentes unter Verwendung der im Template enthaltenen Checkliste\n- Abgabe ist vollständig reproduzierbar (Alle Dateien wurden eingereicht: PDF, Rmd, etc)"},{"$f":"IF(ISBLANK(INDIRECT(\"Gesamt!\"&C$1&$A38)),\"\",INDIRECT(\"Gesamt!\"&C$1&$A38))","v":1},{"$f":"IF(ISBLANK(INDIRECT(\"Gesamt!\"&D$1&$A38)),\"\",INDIRECT(\"Gesamt!\"&D$1&$A38))","v":""},{"$f":"IF(ISBLANK(INDIRECT(\"Gesamt!\"&E$1&$A38)),\"\",INDIRECT(\"Gesamt!\"&E$1&$A38))","v":""}]
[36,{"$f":"IF(ISBLANK(INDIRECT(\"Gesamt!\"&B$1&$A39)),\"\",INDIRECT(\"Gesamt!\"&B$1&$A39))","v":"Analytische Qualität\n- Übersichtlichkeit der Analyse (R Datei)\n- Nachvollziehbarkeit aller Rechnungen\n- Vollständigkeit"},{"$f":"IF(ISBLANK(INDIRECT(\"Gesamt!\"&C$1&$A39)),\"\",INDIRECT(\"Gesamt!\"&C$1&$A39))","v":1},{"$f":"IF(ISBLANK(INDIRECT(\"Gesamt!\"&D$1&$A39)),\"\",INDIRECT(\"Gesamt!\"&D$1&$A39))","v":""},{"$f":"IF(ISBLANK(INDIRECT(\"Gesamt!\"&E$1&$A39)),\"\",INDIRECT(\"Gesamt!\"&E$1&$A39))","v":""}]
[37,{"$f":"IF(ISBLANK(INDIRECT(\"Gesamt!\"&B$1&$A40)),\"\",INDIRECT(\"Gesamt!\"&B$1&$A40))","v":"Zwischensumme Endabgabe"},{"$f":"IF(ISBLANK(INDIRECT(\"Gesamt!\"&C$1&$A40)),\"\",INDIRECT(\"Gesamt!\"&C$1&$A40))","v":15},{"$f":"IF(ISBLANK(INDIRECT(\"Gesamt!\"&D$1&$A40)),\"\",INDIRECT(\"Gesamt!\"&D$1&$A40))","v":0},{"$f":"IF(ISBLANK(INDIRECT(\"Gesamt!\"&E$1&$A40)),\"\",INDIRECT(\"Gesamt!\"&E$1&$A40))","v":""}]
[38,{"$f":"IF(ISBLANK(INDIRECT(\"Gesamt!\"&B$1&$A41)),\"\",INDIRECT(\"Gesamt!\"&B$1&$A41))","v":"Abschließende Bewertung"},{"$f":"IF(ISBLANK(INDIRECT(\"Gesamt!\"&C$1&$A41)),\"\",INDIRECT(\"Gesamt!\"&C$1&$A41))","v":""},{"$f":"IF(ISBLANK(INDIRECT(\"Gesamt!\"&D$1&$A41)),\"\",INDIRECT(\"Gesamt!\"&D$1&$A41))","v":"Gruppe: "}]
[39,{"$f":"IF(ISBLANK(INDIRECT(\"Gesamt!\"&B$1&$A42)),\"\",INDIRECT(\"Gesamt!\"&B$1&$A42))","v":"Exposé"},{"$f":"IF(ISBLANK(INDIRECT(\"Gesamt!\"&C$1&$A42)),\"\",INDIRECT(\"Gesamt!\"&C$1&$A42))","v":2},{"$f":"IF(ISBLANK(INDIRECT(\"Gesamt!\"&D$1&$A42)),\"\",INDIRECT(\"Gesamt!\"&D$1&$A42))","v":0},{"$f":"IF(ISBLANK(INDIRECT(\"Gesamt!\"&E$1&$A42)),\"\",INDIRECT(\"Gesamt!\"&E$1&$A42))","v":"(0,0 %)"}]
[40,{"$f":"IF(ISBLANK(INDIRECT(\"Gesamt!\"&B$1&$A43)),\"\",INDIRECT(\"Gesamt!\"&B$1&$A43))","v":"Zwischenabgabe"},{"$f":"IF(ISBLANK(INDIRECT(\"Gesamt!\"&C$1&$A43)),\"\",INDIRECT(\"Gesamt!\"&C$1&$A43))","v":8},{"$f":"IF(ISBLANK(INDIRECT(\"Gesamt!\"&D$1&$A43)),\"\",INDIRECT(\"Gesamt!\"&D$1&$A43))","v":0},{"$f":"IF(ISBLANK(INDIRECT(\"Gesamt!\"&E$1&$A43)),\"\",INDIRECT(\"Gesamt!\"&E$1&$A43))","v":"(0,0 %)"}]
[41,{"$f":"IF(ISBLANK(INDIRECT(\"Gesamt!\"&B$1&$A44)),\"\",INDIRECT(\"Gesamt!\"&B$1&$A44))","v":"Endabgabe"},{"$f":"IF(ISBLANK(INDIRECT(\"Gesamt!\"&C$1&$A44)),\"\",INDIRECT(\"Gesamt!\"&C$1&$A44))","v":15},{"$f":"IF(ISBLANK(INDIRECT(\"Gesamt!\"&D$1&$A44)),\"\",INDIRECT(\"Gesamt!\"&D$1&$A44))","v":0},{"$f":"IF(ISBLANK(INDIRECT(\"Gesamt!\"&E$1&$A44)),\"\",INDIRECT(\"Gesamt!\"&E$1&$A44))","v":"(0,0 %)"}]
[42,{"$f":"IF(ISBLANK(INDIRECT(\"Gesamt!\"&B$1&$A45)),\"\",INDIRECT(\"Gesamt!\"&B$1&$A45))","v":"Endpunktzahl (rechnerisch)"},{"$f":"IF(ISBLANK(INDIRECT(\"Gesamt!\"&C$1&$A45)),\"\",INDIRECT(\"Gesamt!\"&C$1&$A45))","v":25},{"$f":"IF(ISBLANK(INDIRECT(\"Gesamt!\"&D$1&$A45)),\"\",INDIRECT(\"Gesamt!\"&D$1&$A45))","v":0},{"$f":"IF(ISBLANK(INDIRECT(\"Gesamt!\"&E$1&$A45)),\"\",INDIRECT(\"Gesamt!\"&E$1&$A45))","v":"(0,0 %)"}]
[43,{"$f":"IF(ISBLANK(INDIRECT(\"Gesamt!\"&B$1&$A46)),\"\",INDIRECT(\"Gesamt!\"&B$1&$A46))","v":"Endergebnis (gerundet)"},{"$f":"IF(ISBLANK(INDIRECT(\"Gesamt!\"&C$1&$A46)),\"\",INDIRECT(\"Gesamt!\"&C$1&$A46))","v":25},{"$f":"IF(ISBLANK(INDIRECT(\"Gesamt!\"&D$1&$A46)),\"\",INDIRECT(\"Gesamt!\"&D$1&$A46))","v":0},{"$f":"IF(ISBLANK(INDIRECT(\"Gesamt!\"&E$1&$A46)),\"\",INDIRECT(\"Gesamt!\"&E$1&$A46))","v":"(0,0 %)"}]
[44,{"$f":"IF(ISBLANK(INDIRECT(\"Gesamt!\"&B$1&$A47)),\"\",INDIRECT(\"Gesamt!\"&B$1&$A47))","v":"Quantil (ECTS-Grad) [nur Korrektor]"},{"$f":"IF(ISBLANK(INDIRECT(\"Gesamt!\"&C$1&$A47)),\"\",INDIRECT(\"Gesamt!\"&C$1&$A47))","v":"0-1 (A-E)"},{"$f":"IF(ISBLANK(INDIRECT(\"Gesamt!\"&D$1&$A47)),\"\",INDIRECT(\"Gesamt!\"&D$1&$A47))","v":{"$error":"#N/A"}},{"$f":"IF(ISBLANK(INDIRECT(\"Gesamt!\"&E$1&$A47)),\"\",INDIRECT(\"Gesamt!\"&E$1&$A47))","v":{"$error":"#N/A"}}]
[]
[]
[45,{"$f":"IF(ISBLANK(INDIRECT(\"Gesamt!\"&B$1&$A50)),\"\",INDIRECT(\"Gesamt!\"&B$1&$A50))","v":"Vorleistung (50% der Punkte nach Zwischenabgabe)"}]
[]
[null,{"$f":"IF(ISBLANK(INDIRECT(\"Gesamt!\"&E$1&$A50)),\"\",INDIRECT(\"Gesamt!\"&E$1&$A50))","v":"Nicht Bestanden"}]
[]
[]
[]
[null,"Hinweis: Das Bestehen der Vorleistung ist Bedingung für die Zulassung zur Prüfung. Endpunktzahl (rechnerisch) und Endergebnis (gerundet) werden erst nach bestandener Vorleistung angezeigt."]

{"sheet":"G6","index":7,"n_rows":56,"n_cols":6,"rows_kept":56,"cut":false,"hidden":false,"merged":[[49,1,49,4],[51,1,53,4],[55,1,55,4],[1,1,1,4],[2,1,2,4],[12,3,12,4],[19,3,19,4],[29,3,29,4],[40,3,40,4]]}
["Startspalte:","A","C",{"$f":"SUBSTITUTE(ADDRESS(1,A2,4),\"1\",\"\")","v":"S"},{"$f":"SUBSTITUTE(ADDRESS(1,A2+1,4),\"1\",\"\")","v":"T"},{"$f":"SUBSTITUTE(ADDRESS(1,A2+2,4),\"1\",\"\")","v":"U"}]
[19,{"$f":"\"Feedback - Gruppe: \"&IF(ISBLANK(INDIRECT(\"Gesamt!\"&E$1&$A5)),\"\",INDIRECT(\"Gesamt!\"&E$1&$A5))","v":"Feedback - Gruppe: "}]
[{"$f":"TEXT(TODAY(),\"JJJJMMTT\")","v":"20240514"},{"$f":"TODAY()","v":"2024-05-14"}]
[1,"Oranisatorisches",null,null,{"$f":"IF(ISBLANK(INDIRECT(\"Gesamt!\"&E$1&$A4)),\"\",INDIRECT(\"Gesamt!\"&E$1&$A4))","v":""}]
[2,{"$f":"IF(ISBLANK(INDIRECT(\"Gesamt!\"&B$1&$A5)),\"\",INDIRECT(\"Gesamt!\"&B$1&$A5))","v":"Korrektor"},{"$f":"IF(ISBLANK(INDIRECT(\"Gesamt!\"&C$1&$A5)),\"\",INDIRECT(\"Gesamt!\"&C$1&$A5))","v":""},{"$f":"IF(ISBLANK(INDIRECT(\"Gesamt!\"&D$1&$A5)),\"\",INDIRECT(\"Gesamt!\"&D$1&$A5))","v":"Gruppe"},{"$f":"IF(ISBLANK(INDIRECT(\"Gesamt!\"&E$1&$A5)),\"\",INDIRECT(\"Gesamt!\"&E$1&$A5))","v":""}]
[3,{"$f":"IF(ISBLANK(INDIRECT(\"Gesamt!\"&B$1&$A6)),\"\",INDIRECT(\"Gesamt!\"&B$1&$A6))","v":"Prof. Dr. Benjamin Buchwitz"},{"$f":"IF(ISBLANK(INDIRECT(\"Gesamt!\"&C$1&$A6)),\"\",INDIRECT(\"Gesamt!\"&C$1&$A6))","v":""},{"$f":"IF(ISBLANK(INDIRECT(\"Gesamt!\"&D$1&$A6)),\"\",INDIRECT(\"Gesamt!\"&D$1&$A6))","v":"Matrikelnr."},{"$f":"IF(ISBLANK(INDIRECT(\"Gesamt!\"&E$1&$A6)),\"\",INDIRECT(\"Gesamt!\"&E$1&$A6))","v":"Name"},"Aktiv"]
[4,{"$f":"IF(ISBLANK(INDIRECT(\"Gesamt!\"&B$1&$A7)),\"\",INDIRECT(\"Gesamt!\"&B$1&$A7))","v":"Kontaktmöglichkeit"},{"$f":"IF(ISBLANK(INDIRECT(\"Gesamt!\"&C$1&$A7)),\"\",INDIRECT(\"Gesamt!\"&C$1&$A7))","v":""},{"$f":"IF(ISBLANK(INDIRECT(\"Gesamt!\"&D$1&$A7)),\"\",INDIRECT(\"Gesamt!\"&D$1&$A7))","v":""},{"$f":"IF(ISBLANK(INDIRECT(\"Gesamt!\"&E$1&$A7)),\"\",INDIRECT(\"Gesamt!\"&E$1&$A7))","v":""},{"$f":"IF(ISBLANK(INDIRECT(\"Gesamt!\"&F$1&$A7)),\"\",INDIRECT(\"Gesamt!\"&F$1&$A7))","v":true}]
[5,{"$f":"IF(ISBLANK(INDIRECT(\"Gesamt!\"&B$1&$A8)),\"\",INDIRECT(\"Gesamt!\"&B$1&$A8))","v":"buchwitz.benjamin@fh-swf.de"},{"$f":"IF(ISBLANK(INDIRECT(\"Gesamt!\"&C$1&$A8)),\"\",INDIRECT(\"Gesamt!\"&C$1&$A8))","v":""},{"$f":"IF(ISBLANK(INDIRECT(\"Gesamt!\"&D$1&$A8)),\"\",INDIRECT(\"Gesamt!\"&D$1&$A8))","v":""},{"$f":"IF(ISBLANK(INDIRECT(\"Gesamt!\"&E$1&$A8)),\"\",INDIRECT(\"Gesamt!\"&E$1&$A8))","v":""},{"$f":"IF(ISBLANK(INDIRECT(\"Gesamt!\"&F$1&$A8)),\"\",INDIRECT(\"Gesamt!\"&F$1&$A8))","v":" "}]
[6,{"$f":"IF(ISBLANK(INDIRECT(\"Gesamt!\"&B$1&$A9)),\"\",INDIRECT(\"Gesamt!\"&B$1&$A9))","v":""},{"$f":"IF(ISBLANK(INDIRECT(\"Gesamt!\"&C$1&$A9)),\"\",INDIRECT(\"Gesamt!\"&C$1&$A9))","v":""},{"$f":"IF(ISBLANK(INDIRECT(\"Gesamt!\"&D$1&$A9)),\"\",INDIRECT(\"Gesamt!\"&D$1&$A9))","v":""},{"$f":"IF(ISBLANK(INDIRECT(\"Gesamt!\"&E$1&$A9)),\"\",INDIRECT(\"Gesamt!\"&E$1&$A9))","v":""},{"$f":"IF(ISBLANK(INDIRECT(\"Gesamt!\"&F$1&$A9)),\"\",INDIRECT(\"Gesamt!\"&F$1&$A9))","v":" "}]
[7,"Kommunikationsverantwortlicher Autor:",{"$f":"IF(ISBLANK(INDIRECT(\"Gesamt!\"&C$1&$A10)),\"\",INDIRECT(\"Gesamt!\"&C$1&$A10))","v":""},{"$f":"IF(ISBLANK(INDIRECT(\"Gesamt!\"&D$1&$A10)),\"\",INDIRECT(\"Gesamt!\"&D$1&$A10))","v":""},{"$f":"IF(ISBLANK(INDIRECT(\"Gesamt!\"&E$1&$A10)),\"\",INDIRECT(\"Gesamt!\"&E$1&$A10))","v":""},{"$f":"IF(ISBLANK(INDIRECT(\"Gesamt!\"&F$1&$A10)),\"\",INDIRECT(\"Gesamt!\"&F$1&$A10))","v":" "}]
[8,{"$f":"E7 & \" (Gruppensprecher:in)\"","v":" (Gruppensprecher:in)"},{"$f":"IF(ISBLANK(INDIRECT(\"Gesamt!\"&C$1&$A11)),\"\",INDIRECT(\"Gesamt!\"&C$1&$A11))","v":""},{"$f":"IF(ISBLANK(INDIRECT(\"Gesamt!\"&D$1&$A11)),\"\",INDIRECT(\"Gesamt!\"&D$1&$A11))","v":""},{"$f":"IF(ISBLANK(INDIRECT(\"Gesamt!\"&E$1&$A11)),\"\",INDIRECT(\"Gesamt!\"&E$1&$A11))","v":""},{"$f":"IF(ISBLANK(INDIRECT(\"Gesamt!\"&F$1&$A11)),\"\",INDIRECT(\"Gesamt!\"&F$1&$A11))","v":" "}]
[9,{"$f":"IF(ISBLANK(INDIRECT(\"Gesamt!\"&B$1&$A12)),\"\",INDIRECT(\"Gesamt!\"&B$1&$A12))","v":""},{"$f":"IF(ISBLANK(INDIRECT(\"Gesamt!\"&C$1&$A12)),\"\",INDIRECT(\"Gesamt!\"&C$1&$A12))","v":""},{"$f":"IF(ISBLANK(INDIRECT(\"Gesamt!\"&D$1&$A12)),\"\",INDIRECT(\"Gesamt!\"&D$1&$A12))","v":""},{"$f":"IF(ISBLANK(INDIRECT(\"Gesamt!\"&E$1&$A12)),\"\",INDIRECT(\"Gesamt!\"&E$1&$A12))","v":""},{"$f":"IF(ISBLANK(INDIRECT(\"Gesamt!\"&F$1&$A12)),\"\",INDIRECT(\"Gesamt!\"&F$1&$A12))","v":" "}]
[10,{"$f":"IF(ISBLANK(INDIRECT(\"Gesamt!\"&B$1&$A13)),\"\",INDIRECT(\"Gesamt!\"&B$1&$A13))","v":"Exposé"},{"$f":"IF(ISBLANK(INDIRECT(\"Gesamt!\"&C$1&$A13)),\"\",INDIRECT(\"Gesamt!\"&C$1&$A13))","v":""},{"$f":"IF(ISBLANK(INDIRECT(\"Gesamt!\"&D$1&$A13)),\"\",INDIRECT(\"Gesamt!\"&D$1&$A13))","v":"Gruppe: "}]
[11,{"$f":"IF(ISBLANK(INDIRECT(\"Gesamt!\"&B$1&$A14)),\"\",INDIRECT(\"Gesamt!\"&B$1&$A14))","v":"Ziel des Exposés:"},null,null,{"$f":"IF(ISBLANK(INDIRECT(\"Gesamt!\"&\"B\"&$A14)),\"\",INDIRECT(\"Gesamt!\"&\"B\"&$A14))","v":"Einarbeitung in den Sachkontext und Genese einer zum Datensatz passenden Forschungsfrage"}]
[12,{"$f":"IF(ISBLANK(INDIRECT(\"Gesamt!\"&B$1&$A15)),\"\",INDIRECT(\"Gesamt!\"&B$1&$A15))","v":""},{"$f":"IF(ISBLANK(INDIRECT(\"Gesamt!\"&C$1&$A15)),\"\",INDIRECT(\"Gesamt!\"&C$1&$A15))","v":"Punkte"},{"$f":"IF(ISBLANK(INDIRECT(\"Gesamt!\"&D$1&$A15)),\"\",INDIRECT(\"Gesamt!\"&D$1&$A15))","v":"Bewertung"},{"$f":"IF(ISBLANK(INDIRECT(\"Gesamt!\"&E$1&$A15)),\"\",INDIRECT(\"Gesamt!\"&E$1&$A15))","v":"Kommentar"}]
[13,{"$f":"IF(ISBLANK(INDIRECT(\"Gesamt!\"&B$1&$A16)),\"\",INDIRECT(\"Gesamt!\"&B$1&$A16))","v":"Forschungsgegenstand\n- Zielausgestaltung (0,2P)\n- Fragestellung (0,4P)\n- Hypothesen (0,4P)"},{"$f":"IF(ISBLANK(INDIRECT(\"Gesamt!\"&C$1&$A16)),\"\",INDIRECT(\"Gesamt!\"&C$1&$A16))","v":1},{"$f":"IF(ISBLANK(INDIRECT(\"Gesamt!\"&D$1&$A16)),\"\",INDIRECT(\"Gesamt!\"&D$1&$A16))","v":""},{"$f":"IF(ISBLANK(INDIRECT(\"Gesamt!\"&E$1&$A16)),\"\",INDIRECT(\"Gesamt!\"&E$1&$A16))","v":""}]
[14,{"$f":"IF(ISBLANK(INDIRECT(\"Gesamt!\"&B$1&$A17)),\"\",INDIRECT(\"Gesamt!\"&B$1&$A17))","v":"Komposition\n- Inhaltlicher Zusammenhang (0,2P)\n- fachsprachlich formulierte Vorgehensweise (0,2P)\n- Motivation des Themas (0,1P)"},{"$f":"IF(ISBLANK(INDIRECT(\"Gesamt!\"&C$1&$A17)),\"\",INDIRECT(\"Gesamt!\"&C$1&$A17))","v":0.5},{"$f":"IF(ISBLANK(INDIRECT(\"Gesamt!\"&D$1&$A17)),\"\",INDIRECT(\"Gesamt!\"&D$1&$A17))","v":""},{"$f":"IF(ISBLANK(INDIRECT(\"Gesamt!\"&E$1&$A17)),\"\",INDIRECT(\"Gesamt!\"&E$1&$A17))","v":""}]
[15,{"$f":"IF(ISBLANK(INDIRECT(\"Gesamt!\"&B$1&$A18)),\"\",INDIRECT(\"Gesamt!\"&B$1&$A18))","v":"Formalia (Exposé)\n- Template Nutzung & Formatierung (0,3P)\n- Schreibstil & Rechtschreibung (0,2P)"},{"$f":"IF(ISBLANK(INDIRECT(\"Gesamt!\"&C$1&$A18)),\"\",INDIRECT(\"Gesamt!\"&C$1&$A18))","v":0.5},{"$f":"IF(ISBLANK(INDIRECT(\"Gesamt!\"&D$1&$A18)),\"\",INDIRECT(\"Gesamt!\"&D$1&$A18))","v":""},{"$f":"IF(ISBLANK(INDIRECT(\"Gesamt!\"&E$1&$A18)),\"\",INDIRECT(\"Gesamt!\"&E$1&$A18))","v":""}]
[16,{"$f":"IF(ISBLANK(INDIRECT(\"Gesamt!\"&B$1&$A19)),\"\",INDIRECT(\"Gesamt!\"&B$1&$A19))","v":"Zwischensumme Exposé"},{"$f":"IF(ISBLANK(INDIRECT(\"Gesamt!\"&C$1&$A19)),\"\",INDIRECT(\"Gesamt!\"&C$1&$A19))","v":2},{"$f":"IF(ISBLANK(INDIRECT(\"Gesamt!\"&D$1&$A19)),\"\",INDIRECT(\"Gesamt!\"&D$1&$A19))","v":0},{"$f":"IF(ISBLANK(INDIRECT(\"Gesamt!\"&E$1&$A19)),\"\",INDIRECT(\"Gesamt!\"&E$1&$A19))","v":""}]
[17,{"$f":"IF(ISBLANK(INDIRECT(\"Gesamt!\"&B$1&$A20)),\"\",INDIRECT(\"Gesamt!\"&B$1&$A20))","v":"Zwischenabgabe"},{"$f":"IF(ISBLANK(INDIRECT(\"Gesamt!\"&C$1&$A20)),\"\",INDIRECT(\"Gesamt!\"&C$1&$A20))","v":""},{"$f":"IF(ISBLANK(INDIRECT(\"Gesamt!\"&D$1&$A20)),\"\",INDIRECT(\"Gesamt!\"&D$1&$A20))","v":"Gruppe: "}]
[18,{"$f":"IF(ISBLANK(INDIRECT(\"Gesamt!\"&B$1&$A21)),\"\",INDIRECT(\"Gesamt!\"&B$1&$A21))","v":"Ziel der Zwischenabgabe:"},null,null,{"$f":"IF(ISBLANK(INDIRECT(\"Gesamt!\"&\"B\"&$A21)),\"\",INDIRECT(\"Gesamt!\"&\"B\"&$A21))","v":"Vorstellung des Datensatzes und Vorbereitung der inferenzstatistischen Analyseverfahren"}]
[19,{"$f":"IF(ISBLANK(INDIRECT(\"Gesamt!\"&B$1&$A22)),\"\",INDIRECT(\"Gesamt!\"&B$1&$A22))","v":""},{"$f":"IF(ISBLANK(INDIRECT(\"Gesamt!\"&C$1&$A22)),\"\",INDIRECT(\"Gesamt!\"&C$1&$A22))","v":"Punkte"},{"$f":"IF(ISBLANK(INDIRECT(\"Gesamt!\"&D$1&$A22)),\"\",INDIRECT(\"Gesamt!\"&D$1&$A22))","v":"Bewertung"},{"$f":"IF(ISBLANK(INDIRECT(\"Gesamt!\"&E$1&$A22)),\"\",INDIRECT(\"Gesamt!\"&E$1&$A22))","v":"Kommentar"}]
[20,{"$f":"IF(ISBLANK(INDIRECT(\"Gesamt!\"&B$1&$A23)),\"\",INDIRECT(\"Gesamt!\"&B$1&$A23))","v":"Lage- & Streuungsmaße\n- Deskriptive Statistik für alle verwendeten Variablen\n- Berechnung, Interpretation und Einordnung in den Sachkontext"},{"$f":"IF(ISBLANK(INDIRECT(\"Gesamt!\"&C$1&$A23)),\"\",INDIRECT(\"Gesamt!\"&C$1&$A23))","v":2},{"$f":"IF(ISBLANK(INDIRECT(\"Gesamt!\"&D$1&$A23)),\"\",INDIRECT(\"Gesamt!\"&D$1&$A23))","v":""},{"$f":"IF(ISBLANK(INDIRECT(\"Gesamt!\"&E$1&$A23)),\"\",INDIRECT(\"Gesamt!\"&E$1&$A23))","v":""}]
[21,{"$f":"IF(ISBLANK(INDIRECT(\"Gesamt!\"&B$1&$A24)),\"\",INDIRECT(\"Gesamt!\"&B$1&$A24))","v":"Zusammenhangsmaße\n- Berechnung, Interpretation und Einordnung in den Sachkontext von (min.) einem Zusammenhangsmaß"},{"$f":"IF(ISBLANK(INDIRECT(\"Gesamt!\"&C$1&$A24)),\"\",INDIRECT(\"Gesamt!\"&C$1&$A24))","v":1},{"$f":"IF(ISBLANK(INDIRECT(\"Gesamt!\"&D$1&$A24)),\"\",INDIRECT(\"Gesamt!\"&D$1&$A24))","v":""},{"$f":"IF(ISBLANK(INDIRECT(\"Gesamt!\"&E$1&$A24)),\"\",INDIRECT(\"Gesamt!\"&E$1&$A24))","v":""}]
[22,{"$f":"IF(ISBLANK(INDIRECT(\"Gesamt!\"&B$1&$A25)),\"\",INDIRECT(\"Gesamt!\"&B$1&$A25))","v":"Ergänzende Berechnung\n- Ergänzende Berechnung, Interpretation und Einordnung in den Sachkontext (min.) eines weiteren Zusammenhangsmaßes oder Konzentrationsmaßes"},{"$f":"IF(ISBLANK(INDIRECT(\"Gesamt!\"&C$1&$A25)),\"\",INDIRECT(\"Gesamt!\"&C$1&$A25))","v":1},{"$f":"IF(ISBLANK(INDIRECT(\"Gesamt!\"&D$1&$A25)),\"\",INDIRECT(\"Gesamt!\"&D$1&$A25))","v":""},{"$f":"IF(ISBLANK(INDIRECT(\"Gesamt!\"&E$1&$A25)),\"\",INDIRECT(\"Gesamt!\"&E$1&$A25))","v":""}]
[23,{"$f":"IF(ISBLANK(INDIRECT(\"Gesamt!\"&B$1&$A26)),\"\",INDIRECT(\"Gesamt!\"&B$1&$A26))","v":"Diagramme\n- Sinnvoll unterstützender / ergänzender Einsatz einer grafischen Aufbereitung der Daten (0,5P)\n- Ergänzende Darstellung eines weiteren, andersartigen Diagrammes (0,5P)"},{"$f":"IF(ISBLANK(INDIRECT(\"Gesamt!\"&C$1&$A26)),\"\",INDIRECT(\"Gesamt!\"&C$1&$A26))","v":1},{"$f":"IF(ISBLANK(INDIRECT(\"Gesamt!\"&D$1&$A26)),\"\",INDIRECT(\"Gesamt!\"&D$1&$A26))","v":""},{"$f":"IF(ISBLANK(INDIRECT(\"Gesamt!\"&E$1&$A26)),\"\",INDIRECT(\"Gesamt!\"&E$1&$A26))","v":""}]
[24,{"$f":"IF(ISBLANK(INDIRECT(\"Gesamt!\"&B$1&$A27)),\"\",INDIRECT(\"Gesamt!\"&B$1&$A27))","v":"Komposition\n- Zweckmäßiger Methodeneinsatz (1P)\n- Zielgerichtete Argumentation (1P)"},{"$f":"IF(ISBLANK(INDIRECT(\"Gesamt!\"&C$1&$A27)),\"\",INDIRECT(\"Gesamt!\"&C$1&$A27))","v":2},{"$f":"IF(ISBLANK(INDIRECT(\"Gesamt!\"&D$1&$A27)),\"\",INDIRECT(\"Gesamt!\"&D$1&$A27))","v":""},{"$f":"IF(ISBLANK(INDIRECT(\"Gesamt!\"&E$1&$A27)),\"\",INDIRECT(\"Gesamt!\"&E$1&$A27))","v":""}]
[25,{"$f":"IF(ISBLANK(INDIRECT(\"Gesamt!\"&B$1&$A28)),\"\",INDIRECT(\"Gesamt!\"&B$1&$A28))","v":"Formalia (Zwischenabgabe)\n- Analytische Ausarbeitung (0,5P)\n    + Übersichtlichkeit\n    + Nachvollziehbarkeit aller Rechnungen\n- Schriftliche Ausarbeitung (0,5P)\n    + Formatierung des Dokuments\n    + Zitation wissenschaftlicher Quellen"},{"$f":"IF(ISBLANK(INDIRECT(\"Gesamt!\"&C$1&$A28)),\"\",INDIRECT(\"Gesamt!\"&C$1&$A28))","v":1},{"$f":"IF(ISBLANK(INDIRECT(\"Gesamt!\"&D$1&$A28)),\"\",INDIRECT(\"Gesamt!\"&D$1&$A28))","v":""},{"$f":"IF(ISBLANK(INDIRECT(\"Gesamt!\"&E$1&$A28)),\"\",INDIRECT(\"Gesamt!\"&E$1&$A28))","v":""}]
[26,{"$f":"IF(ISBLANK(INDIRECT(\"Gesamt!\"&B$1&$A29)),\"\",INDIRECT(\"Gesamt!\"&B$1&$A29))","v":"Zwischensumme Zwischenabgabe"},{"$f":"IF(ISBLANK(INDIRECT(\"Gesamt!\"&C$1&$A29)),\"\",INDIRECT(\"Gesamt!\"&C$1&$A29))","v":8},{"$f":"IF(ISBLANK(INDIRECT(\"Gesamt!\"&D$1&$A29)),\"\",INDIRECT(\"Gesamt!\"&D$1&$A29))","v":0},{"$f":"IF(ISBLANK(INDIRECT(\"Gesamt!\"&E$1&$A29)),\"\",INDIRECT(\"Gesamt!\"&E$1&$A29))","v":""}]
[27,{"$f":"IF(ISBLANK(INDIRECT(\"Gesamt!\"&B$1&$A30)),\"\",INDIRECT(\"Gesamt!\"&B$1&$A30))","v":"Endabgabe"},{"$f":"IF(ISBLANK(INDIRECT(\"Gesamt!\"&C$1&$A30)),\"\",INDIRECT(\"Gesamt!\"&C$1&$A30))","v":""},{"$f":"IF(ISBLANK(INDIRECT(\"Gesamt!\"&D$1&$A30)),\"\",INDIRECT(\"Gesamt!\"&D$1&$A30))","v":"Gruppe: "}]
[28,{"$f":"IF(ISBLANK(INDIRECT(\"Gesamt!\"&B$1&$A31)),\"\",INDIRECT(\"Gesamt!\"&B$1&$A31))","v":"Ziel der Endabgabe:"},null,null,{"$f":"IF(ISBLANK(INDIRECT(\"Gesamt!\"&\"B\"&$A31)),\"\",INDIRECT(\"Gesamt!\"&\"B\"&$A31))","v":"Beantwortung der Forschungsfrage unter Nutzung inferenzstatistischer Verfahren und Finalisierung der Arbeit"}]
[29,{"$f":"IF(ISBLANK(INDIRECT(\"Gesamt!\"&B$1&$A32)),\"\",INDIRECT(\"Gesamt!\"&B$1&$A32))","v":""},{"$f":"IF(ISBLANK(INDIRECT(\"Gesamt!\"&C$1&$A32)),\"\",INDIRECT(\"Gesamt!\"&C$1&$A32))","v":"Punkte"},{"$f":"IF(ISBLANK(INDIRECT(\"Gesamt!\"&D$1&$A32)),\"\",INDIRECT(\"Gesamt!\"&D$1&$A32))","v":"Bewertung"},{"$f":"IF(ISBLANK(INDIRECT(\"Gesamt!\"&E$1&$A32)),\"\",INDIRECT(\"Gesamt!\"&E$1&$A32))","v":"Kommentar"}]
[30,{"$f":"IF(ISBLANK(INDIRECT(\"Gesamt!\"&B$1&$A33)),\"\",INDIRECT(\"Gesamt!\"&B$1&$A33))","v":"Verbesserung der Deskriptiven Statistik hinsichtlich Korrektheit, Vollständigkeit, Beschreibung und Einordnung in den Sachkontext\n- Lagemaße (0,5P)\n- Streuungsmaße (0,5P)\n- Ergänzende Maße (0,5P)\n- Zusammenhangsmaße (0,5P)"},{"$f":"IF(ISBLANK(INDIRECT(\"Gesamt!\"&C$1&$A33)),\"\",INDIRECT(\"Gesamt!\"&C$1&$A33))","v":2},{"$f":"IF(ISBLANK(INDIRECT(\"Gesamt!\"&D$1&$A33)),\"\",INDIRECT(\"Gesamt!\"&D$1&$A33))","v":""},{"$f":"IF(ISBLANK(INDIRECT(\"Gesamt!\"&E$1&$A33)),\"\",INDIRECT(\"Gesamt!\"&E$1&$A33))","v":""}]
[31,{"$f":"IF(ISBLANK(INDIRECT(\"Gesamt!\"&B$1&$A34)),\"\",INDIRECT(\"Gesamt!\"&B$1&$A34))","v":"Inferenzstatistik: Freie Methodenwahl\n- Inhaltlich begründete Methodenauswahl (1P)\n- Voraussetzungen erfüllt (0,5P)\n- Fehlerfreie Berechnungen (0,5P)\n- Korrekte Testanwendung (0,5P)\n- Statistische Interpretation und Einordnung in Sachkontext (1P)"},{"$f":"IF(ISBLANK(INDIRECT(\"Gesamt!\"&C$1&$A34)),\"\",INDIRECT(\"Gesamt!\"&C$1&$A34))","v":3.5},{"$f":"IF(ISBLANK(INDIRECT(\"Gesamt!\"&D$1&$A34)),\"\",INDIRECT(\"Gesamt!\"&D$1&$A34))","v":""},{"$f":"IF(ISBLANK(INDIRECT(\"Gesamt!\"&E$1&$A34)),\"\",INDIRECT(\"Gesamt!\"&E$1&$A34))","v":""}]
[32,{"$f":"IF(ISBLANK(INDIRECT(\"Gesamt!\"&B$1&$A35)),\"\",INDIRECT(\"Gesamt!\"&B$1&$A35))","v":"Inferenzstatistik: Zusammenhangsanalyse\n- Variablen- und Methodenauswahl kongruent (1P)\n- Voraussetzungen erfüllt (0,5P)\n- Fehlerfreie Berechnungen (0,5P)\n- Korrekte Testanwendung (0,5P)\n- Statistische Interpretation und Einordnung in Sachkontext (1P)"},{"$f":"IF(ISBLANK(INDIRECT(\"Gesamt!\"&C$1&$A35)),\"\",INDIRECT(\"Gesamt!\"&C$1&$A35))","v":3.5},{"$f":"IF(ISBLANK(INDIRECT(\"Gesamt!\"&D$1&$A35)),\"\",INDIRECT(\"Gesamt!\"&D$1&$A35))","v":""},{"$f":"IF(ISBLANK(INDIRECT(\"Gesamt!\"&E$1&$A35)),\"\",INDIRECT(\"Gesamt!\"&E$1&$A35))","v":""}]
[33,{"$f":"IF(ISBLANK(INDIRECT(\"Gesamt!\"&B$1&$A36)),\"\",INDIRECT(\"Gesamt!\"&B$1&$A36))","v":"Argumentationsfluss & Gesamteindruck\n- Inhaltlicher Aufbau\n- Verknüpfung der Fragestellung mit der Anwendung der inhaltlichen Methoden\n- Verknüpfung deskriptiver und analytischer Statistik\n- Keine rezeptartige Beschreibung von Rechenwegen"},{"$f":"IF(ISBLANK(INDIRECT(\"Gesamt!\"&C$1&$A36)),\"\",INDIRECT(\"Gesamt!\"&C$1&$A36))","v":2},{"$f":"IF(ISBLANK(INDIRECT(\"Gesamt!\"&D$1&$A36)),\"\",INDIRECT(\"Gesamt!\"&D$1&$A36))","v":""},{"$f":"IF(ISBLANK(INDIRECT(\"Gesamt!\"&E$1&$A36)),\"\",INDIRECT(\"Gesamt!\"&E$1&$A36))","v":""}]
[34,{"$f":"IF(ISBLANK(INDIRECT(\"Gesamt!\"&B$1&$A37)),\"\",INDIRECT(\"Gesamt!\"&B$1&$A37))","v":"Zielerreichung\n- Antwort auf die gestellte Forschungsfrage\n- Zusammenfassung der Ergebnisse\n- Kritische Würdigung des eigenen Vorgehens"},{"$f":"IF(ISBLANK(INDIRECT(\"Gesamt!\"&C$1&$A37)),\"\",INDIRECT(\"Gesamt!\"&C$1&$A37))","v":2},{"$f":"IF(ISBLANK(INDIRECT(\"Gesamt!\"&D$1&$A37)),\"\",INDIRECT(\"Gesamt!\"&D$1&$A37))","v":""},{"$f":"IF(ISBLANK(INDIRECT(\"Gesamt!\"&E$1&$A37)),\"\",INDIRECT(\"Gesamt!\"&E$1&$A37))","v":""}]
[35,{"$f":"IF(ISBLANK(INDIRECT(\"Gesamt!\"&B$1&$A38)),\"\",INDIRECT(\"Gesamt!\"&B$1&$A38))","v":"Formalia (Endabgabe)\n- Nutzung des bereitgestellten Templates (fhswf R-Package) und angemessene wissenschaftliche Gestaltung des finalen Dokumentes unter Verwendung der im Template enthaltenen Checkliste\n- Abgabe ist vollständig reproduzierbar (Alle Dateien wurden eingereicht: PDF, Rmd, etc)"},{"$f":"IF(ISBLANK(INDIRECT(\"Gesamt!\"&C$1&$A38)),\"\",INDIRECT(\"Gesamt!\"&C$1&$A38))","v":1},{"$f":"IF(ISBLANK(INDIRECT(\"Gesamt!\"&D$1&$A38)),\"\",INDIRECT(\"Gesamt!\"&D$1&$A38))","v":""},{"$f":"IF(ISBLANK(INDIRECT(\"Gesamt!\"&E$1&$A38)),\"\",INDIRECT(\"Gesamt!\"&E$1&$A38))","v":""}]
[36,{"$f":"IF(ISBLANK(INDIRECT(\"Gesamt!\"&B$1&$A39)),\"\",INDIRECT(\"Gesamt!\"&B$1&$A39))","v":"Analytische Qualität\n- Übersichtlichkeit der Analyse (R Datei)\n- Nachvollziehbarkeit aller Rechnungen\n- Vollständigkeit"},{"$f":"IF(ISBLANK(INDIRECT(\"Gesamt!\"&C$1&$A39)),\"\",INDIRECT(\"Gesamt!\"&C$1&$A39))","v":1},{"$f":"IF(ISBLANK(INDIRECT(\"Gesamt!\"&D$1&$A39)),\"\",INDIRECT(\"Gesamt!\"&D$1&$A39))","v":""},{"$f":"IF(ISBLANK(INDIRECT(\"Gesamt!\"&E$1&$A39)),\"\",INDIRECT(\"Gesamt!\"&E$1&$A39))","v":""}]
[37,{"$f":"IF(ISBLANK(INDIRECT(\"Gesamt!\"&B$1&$A40)),\"\",INDIRECT(\"Gesamt!\"&B$1&$A40))","v":"Zwischensumme Endabgabe"},{"$f":"IF(ISBLANK(INDIRECT(\"Gesamt!\"&C$1&$A40)),\"\",INDIRECT(\"Gesamt!\"&C$1&$A40))","v":15},{"$f":"IF(ISBLANK(INDIRECT(\"Gesamt!\"&D$1&$A40)),\"\",INDIRECT(\"Gesamt!\"&D$1&$A40))","v":0},{"$f":"IF(ISBLANK(INDIRECT(\"Gesamt!\"&E$1&$A40)),\"\",INDIRECT(\"Gesamt!\"&E$1&$A40))","v":""}]
[38,{"$f":"IF(ISBLANK(INDIRECT(\"Gesamt!\"&B$1&$A41)),\"\",INDIRECT(\"Gesamt!\"&B$1&$A41))","v":"Abschließende Bewertung"},{"$f":"IF(ISBLANK(INDIRECT(\"Gesamt!\"&C$1&$A41)),\"\",INDIRECT(\"Gesamt!\"&C$1&$A41))","v":""},{"$f":"IF(ISBLANK(INDIRECT(\"Gesamt!\"&D$1&$A41)),\"\",INDIRECT(\"Gesamt!\"&D$1&$A41))","v":"Gruppe: "}]
[39,{"$f":"IF(ISBLANK(INDIRECT(\"Gesamt!\"&B$1&$A42)),\"\",INDIRECT(\"Gesamt!\"&B$1&$A42))","v":"Exposé"},{"$f":"IF(ISBLANK(INDIRECT(\"Gesamt!\"&C$1&$A42)),\"\",INDIRECT(\"Gesamt!\"&C$1&$A42))","v":2},{"$f":"IF(ISBLANK(INDIRECT(\"Gesamt!\"&D$1&$A42)),\"\",INDIRECT(\"Gesamt!\"&D$1&$A42))","v":0},{"$f":"IF(ISBLANK(INDIRECT(\"Gesamt!\"&E$1&$A42)),\"\",INDIRECT(\"Gesamt!\"&E$1&$A42))","v":"(0,0 %)"}]
[40,{"$f":"IF(ISBLANK(INDIRECT(\"Gesamt!\"&B$1&$A43)),\"\",INDIRECT(\"Gesamt!\"&B$1&$A43))","v":"Zwischenabgabe"},{"$f":"IF(ISBLANK(INDIRECT(\"Gesamt!\"&C$1&$A43)),\"\",INDIRECT(\"Gesamt!\"&C$1&$A43))","v":8},{"$f":"IF(ISBLANK(INDIRECT(\"Gesamt!\"&D$1&$A43)),\"\",INDIRECT(\"Gesamt!\"&D$1&$A43))","v":0},{"$f":"IF(ISBLANK(INDIRECT(\"Gesamt!\"&E$1&$A43)),\"\",INDIRECT(\"Gesamt!\"&E$1&$A43))","v":"(0,0 %)"}]
[41,{"$f":"IF(ISBLANK(INDIRECT(\"Gesamt!\"&B$1&$A44)),\"\",INDIRECT(\"Gesamt!\"&B$1&$A44))","v":"Endabgabe"},{"$f":"IF(ISBLANK(INDIRECT(\"Gesamt!\"&C$1&$A44)),\"\",INDIRECT(\"Gesamt!\"&C$1&$A44))","v":15},{"$f":"IF(ISBLANK(INDIRECT(\"Gesamt!\"&D$1&$A44)),\"\",INDIRECT(\"Gesamt!\"&D$1&$A44))","v":0},{"$f":"IF(ISBLANK(INDIRECT(\"Gesamt!\"&E$1&$A44)),\"\",INDIRECT(\"Gesamt!\"&E$1&$A44))","v":"(0,0 %)"}]
[42,{"$f":"IF(ISBLANK(INDIRECT(\"Gesamt!\"&B$1&$A45)),\"\",INDIRECT(\"Gesamt!\"&B$1&$A45))","v":"Endpunktzahl (rechnerisch)"},{"$f":"IF(ISBLANK(INDIRECT(\"Gesamt!\"&C$1&$A45)),\"\",INDIRECT(\"Gesamt!\"&C$1&$A45))","v":25},{"$f":"IF(ISBLANK(INDIRECT(\"Gesamt!\"&D$1&$A45)),\"\",INDIRECT(\"Gesamt!\"&D$1&$A45))","v":0},{"$f":"IF(ISBLANK(INDIRECT(\"Gesamt!\"&E$1&$A45)),\"\",INDIRECT(\"Gesamt!\"&E$1&$A45))","v":"(0,0 %)"}]
[43,{"$f":"IF(ISBLANK(INDIRECT(\"Gesamt!\"&B$1&$A46)),\"\",INDIRECT(\"Gesamt!\"&B$1&$A46))","v":"Endergebnis (gerundet)"},{"$f":"IF(ISBLANK(INDIRECT(\"Gesamt!\"&C$1&$A46)),\"\",INDIRECT(\"Gesamt!\"&C$1&$A46))","v":25},{"$f":"IF(ISBLANK(INDIRECT(\"Gesamt!\"&D$1&$A46)),\"\",INDIRECT(\"Gesamt!\"&D$1&$A46))","v":0},{"$f":"IF(ISBLANK(INDIRECT(\"Gesamt!\"&E$1&$A46)),\"\",INDIRECT(\"Gesamt!\"&E$1&$A46))","v":"(0,0 %)"}]
[44,{"$f":"IF(ISBLANK(INDIRECT(\"Gesamt!\"&B$1&$A47)),\"\",INDIRECT(\"Gesamt!\"&B$1&$A47))","v":"Quantil (ECTS-Grad) [nur Korrektor]"},{"$f":"IF(ISBLANK(INDIRECT(\"Gesamt!\"&C$1&$A47)),\"\",INDIRECT(\"Gesamt!\"&C$1&$A47))","v":"0-1 (A-E)"},{"$f":"IF(ISBLANK(INDIRECT(\"Gesamt!\"&D$1&$A47)),\"\",INDIRECT(\"Gesamt!\"&D$1&$A47))","v":{"$error":"#N/A"}},{"$f":"IF(ISBLANK(INDIRECT(\"Gesamt!\"&E$1&$A47)),\"\",INDIRECT(\"Gesamt!\"&E$1&$A47))","v":{"$error":"#N/A"}}]
[]
[]
[45,{"$f":"IF(ISBLANK(INDIRECT(\"Gesamt!\"&B$1&$A50)),\"\",INDIRECT(\"Gesamt!\"&B$1&$A50))","v":"Vorleistung (50% der Punkte nach Zwischenabgabe)"}]
[]
[null,{"$f":"IF(ISBLANK(INDIRECT(\"Gesamt!\"&E$1&$A50)),\"\",INDIRECT(\"Gesamt!\"&E$1&$A50))","v":"Nicht Bestanden"}]
[]
[]
[]
[null,"Hinweis: Das Bestehen der Vorleistung ist Bedingung für die Zulassung zur Prüfung. Endpunktzahl (rechnerisch) und Endergebnis (gerundet) werden erst nach bestandener Vorleistung angezeigt."]

{"sheet":"G7","index":8,"n_rows":56,"n_cols":6,"rows_kept":56,"cut":false,"hidden":false,"merged":[[49,1,49,4],[51,1,53,4],[55,1,55,4],[1,1,1,4],[2,1,2,4],[12,3,12,4],[19,3,19,4],[29,3,29,4],[40,3,40,4]]}
["Startspalte:","A","C",{"$f":"SUBSTITUTE(ADDRESS(1,A2,4),\"1\",\"\")","v":"V"},{"$f":"SUBSTITUTE(ADDRESS(1,A2+1,4),\"1\",\"\")","v":"W"},{"$f":"SUBSTITUTE(ADDRESS(1,A2+2,4),\"1\",\"\")","v":"X"}]
[22,{"$f":"\"Feedback - Gruppe: \"&IF(ISBLANK(INDIRECT(\"Gesamt!\"&E$1&$A5)),\"\",INDIRECT(\"Gesamt!\"&E$1&$A5))","v":"Feedback - Gruppe: "}]
[{"$f":"TEXT(TODAY(),\"JJJJMMTT\")","v":"20240514"},{"$f":"TODAY()","v":"2024-05-14"}]
[1,"Oranisatorisches",null,null,{"$f":"IF(ISBLANK(INDIRECT(\"Gesamt!\"&E$1&$A4)),\"\",INDIRECT(\"Gesamt!\"&E$1&$A4))","v":""}]
[2,{"$f":"IF(ISBLANK(INDIRECT(\"Gesamt!\"&B$1&$A5)),\"\",INDIRECT(\"Gesamt!\"&B$1&$A5))","v":"Korrektor"},{"$f":"IF(ISBLANK(INDIRECT(\"Gesamt!\"&C$1&$A5)),\"\",INDIRECT(\"Gesamt!\"&C$1&$A5))","v":""},{"$f":"IF(ISBLANK(INDIRECT(\"Gesamt!\"&D$1&$A5)),\"\",INDIRECT(\"Gesamt!\"&D$1&$A5))","v":"Gruppe"},{"$f":"IF(ISBLANK(INDIRECT(\"Gesamt!\"&E$1&$A5)),\"\",INDIRECT(\"Gesamt!\"&E$1&$A5))","v":""}]
[3,{"$f":"IF(ISBLANK(INDIRECT(\"Gesamt!\"&B$1&$A6)),\"\",INDIRECT(\"Gesamt!\"&B$1&$A6))","v":"Prof. Dr. Benjamin Buchwitz"},{"$f":"IF(ISBLANK(INDIRECT(\"Gesamt!\"&C$1&$A6)),\"\",INDIRECT(\"Gesamt!\"&C$1&$A6))","v":""},{"$f":"IF(ISBLANK(INDIRECT(\"Gesamt!\"&D$1&$A6)),\"\",INDIRECT(\"Gesamt!\"&D$1&$A6))","v":"Matrikelnr."},{"$f":"IF(ISBLANK(INDIRECT(\"Gesamt!\"&E$1&$A6)),\"\",INDIRECT(\"Gesamt!\"&E$1&$A6))","v":"Name"},"Aktiv"]
[4,{"$f":"IF(ISBLANK(INDIRECT(\"Gesamt!\"&B$1&$A7)),\"\",INDIRECT(\"Gesamt!\"&B$1&$A7))","v":"Kontaktmöglichkeit"},{"$f":"IF(ISBLANK(INDIRECT(\"Gesamt!\"&C$1&$A7)),\"\",INDIRECT(\"Gesamt!\"&C$1&$A7))","v":""},{"$f":"IF(ISBLANK(INDIRECT(\"Gesamt!\"&D$1&$A7)),\"\",INDIRECT(\"Gesamt!\"&D$1&$A7))","v":""},{"$f":"IF(ISBLANK(INDIRECT(\"Gesamt!\"&E$1&$A7)),\"\",INDIRECT(\"Gesamt!\"&E$1&$A7))","v":""},{"$f":"IF(ISBLANK(INDIRECT(\"Gesamt!\"&F$1&$A7)),\"\",INDIRECT(\"Gesamt!\"&F$1&$A7))","v":true}]
[5,{"$f":"IF(ISBLANK(INDIRECT(\"Gesamt!\"&B$1&$A8)),\"\",INDIRECT(\"Gesamt!\"&B$1&$A8))","v":"buchwitz.benjamin@fh-swf.de"},{"$f":"IF(ISBLANK(INDIRECT(\"Gesamt!\"&C$1&$A8)),\"\",INDIRECT(\"Gesamt!\"&C$1&$A8))","v":""},{"$f":"IF(ISBLANK(INDIRECT(\"Gesamt!\"&D$1&$A8)),\"\",INDIRECT(\"Gesamt!\"&D$1&$A8))","v":""},{"$f":"IF(ISBLANK(INDIRECT(\"Gesamt!\"&E$1&$A8)),\"\",INDIRECT(\"Gesamt!\"&E$1&$A8))","v":""},{"$f":"IF(ISBLANK(INDIRECT(\"Gesamt!\"&F$1&$A8)),\"\",INDIRECT(\"Gesamt!\"&F$1&$A8))","v":" "}]
[6,{"$f":"IF(ISBLANK(INDIRECT(\"Gesamt!\"&B$1&$A9)),\"\",INDIRECT(\"Gesamt!\"&B$1&$A9))","v":""},{"$f":"IF(ISBLANK(INDIRECT(\"Gesamt!\"&C$1&$A9)),\"\",INDIRECT(\"Gesamt!\"&C$1&$A9))","v":""},{"$f":"IF(ISBLANK(INDIRECT(\"Gesamt!\"&D$1&$A9)),\"\",INDIRECT(\"Gesamt!\"&D$1&$A9))","v":""},{"$f":"IF(ISBLANK(INDIRECT(\"Gesamt!\"&E$1&$A9)),\"\",INDIRECT(\"Gesamt!\"&E$1&$A9))","v":""},{"$f":"IF(ISBLANK(INDIRECT(\"Gesamt!\"&F$1&$A9)),\"\",INDIRECT(\"Gesamt!\"&F$1&$A9))","v":" "}]
[7,"Kommunikationsverantwortlicher Autor:",{"$f":"IF(ISBLANK(INDIRECT(\"Gesamt!\"&C$1&$A10)),\"\",INDIRECT(\"Gesamt!\"&C$1&$A10))","v":""},{"$f":"IF(ISBLANK(INDIRECT(\"Gesamt!\"&D$1&$A10)),\"\",INDIRECT(\"Gesamt!\"&D$1&$A10))","v":""},{"$f":"IF(ISBLANK(INDIRECT(\"Gesamt!\"&E$1&$A10)),\"\",INDIRECT(\"Gesamt!\"&E$1&$A10))","v":""},{"$f":"IF(ISBLANK(INDIRECT(\"Gesamt!\"&F$1&$A10)),\"\",INDIRECT(\"Gesamt!\"&F$1&$A10))","v":" "}]
[8,{"$f":"E7 & \" (Gruppensprecher:in)\"","v":" (Gruppensprecher:in)"},{"$f":"IF(ISBLANK(INDIRECT(\"Gesamt!\"&C$1&$A11)),\"\",INDIRECT(\"Gesamt!\"&C$1&$A11))","v":""},{"$f":"IF(ISBLANK(INDIRECT(\"Gesamt!\"&D$1&$A11)),\"\",INDIRECT(\"Gesamt!\"&D$1&$A11))","v":""},{"$f":"IF(ISBLANK(INDIRECT(\"Gesamt!\"&E$1&$A11)),\"\",INDIRECT(\"Gesamt!\"&E$1&$A11))","v":""},{"$f":"IF(ISBLANK(INDIRECT(\"Gesamt!\"&F$1&$A11)),\"\",INDIRECT(\"Gesamt!\"&F$1&$A11))","v":" "}]
[9,{"$f":"IF(ISBLANK(INDIRECT(\"Gesamt!\"&B$1&$A12)),\"\",INDIRECT(\"Gesamt!\"&B$1&$A12))","v":""},{"$f":"IF(ISBLANK(INDIRECT(\"Gesamt!\"&C$1&$A12)),\"\",INDIRECT(\"Gesamt!\"&C$1&$A12))","v":""},{"$f":"IF(ISBLANK(INDIRECT(\"Gesamt!\"&D$1&$A12)),\"\",INDIRECT(\"Gesamt!\"&D$1&$A12))","v":""},{"$f":"IF(ISBLANK(INDIRECT(\"Gesamt!\"&E$1&$A12)),\"\",INDIRECT(\"Gesamt!\"&E$1&$A12))","v":""},{"$f":"IF(ISBLANK(INDIRECT(\"Gesamt!\"&F$1&$A12)),\"\",INDIRECT(\"Gesamt!\"&F$1&$A12))","v":" "}]
[10,{"$f":"IF(ISBLANK(INDIRECT(\"Gesamt!\"&B$1&$A13)),\"\",INDIRECT(\"Gesamt!\"&B$1&$A13))","v":"Exposé"},{"$f":"IF(ISBLANK(INDIRECT(\"Gesamt!\"&C$1&$A13)),\"\",INDIRECT(\"Gesamt!\"&C$1&$A13))","v":""},{"$f":"IF(ISBLANK(INDIRECT(\"Gesamt!\"&D$1&$A13)),\"\",INDIRECT(\"Gesamt!\"&D$1&$A13))","v":"Gruppe: "}]
[11,{"$f":"IF(ISBLANK(INDIRECT(\"Gesamt!\"&B$1&$A14)),\"\",INDIRECT(\"Gesamt!\"&B$1&$A14))","v":"Ziel des Exposés:"},null,null,{"$f":"IF(ISBLANK(INDIRECT(\"Gesamt!\"&\"B\"&$A14)),\"\",INDIRECT(\"Gesamt!\"&\"B\"&$A14))","v":"Einarbeitung in den Sachkontext und Genese einer zum Datensatz passenden Forschungsfrage"}]
[12,{"$f":"IF(ISBLANK(INDIRECT(\"Gesamt!\"&B$1&$A15)),\"\",INDIRECT(\"Gesamt!\"&B$1&$A15))","v":""},{"$f":"IF(ISBLANK(INDIRECT(\"Gesamt!\"&C$1&$A15)),\"\",INDIRECT(\"Gesamt!\"&C$1&$A15))","v":"Punkte"},{"$f":"IF(ISBLANK(INDIRECT(\"Gesamt!\"&D$1&$A15)),\"\",INDIRECT(\"Gesamt!\"&D$1&$A15))","v":"Bewertung"},{"$f":"IF(ISBLANK(INDIRECT(\"Gesamt!\"&E$1&$A15)),\"\",INDIRECT(\"Gesamt!\"&E$1&$A15))","v":"Kommentar"}]
[13,{"$f":"IF(ISBLANK(INDIRECT(\"Gesamt!\"&B$1&$A16)),\"\",INDIRECT(\"Gesamt!\"&B$1&$A16))","v":"Forschungsgegenstand\n- Zielausgestaltung (0,2P)\n- Fragestellung (0,4P)\n- Hypothesen (0,4P)"},{"$f":"IF(ISBLANK(INDIRECT(\"Gesamt!\"&C$1&$A16)),\"\",INDIRECT(\"Gesamt!\"&C$1&$A16))","v":1},{"$f":"IF(ISBLANK(INDIRECT(\"Gesamt!\"&D$1&$A16)),\"\",INDIRECT(\"Gesamt!\"&D$1&$A16))","v":""},{"$f":"IF(ISBLANK(INDIRECT(\"Gesamt!\"&E$1&$A16)),\"\",INDIRECT(\"Gesamt!\"&E$1&$A16))","v":""}]
[14,{"$f":"IF(ISBLANK(INDIRECT(\"Gesamt!\"&B$1&$A17)),\"\",INDIRECT(\"Gesamt!\"&B$1&$A17))","v":"Komposition\n- Inhaltlicher Zusammenhang (0,2P)\n- fachsprachlich formulierte Vorgehensweise (0,2P)\n- Motivation des Themas (0,1P)"},{"$f":"IF(ISBLANK(INDIRECT(\"Gesamt!\"&C$1&$A17)),\"\",INDIRECT(\"Gesamt!\"&C$1&$A17))","v":0.5},{"$f":"IF(ISBLANK(INDIRECT(\"Gesamt!\"&D$1&$A17)),\"\",INDIRECT(\"Gesamt!\"&D$1&$A17))","v":""},{"$f":"IF(ISBLANK(INDIRECT(\"Gesamt!\"&E$1&$A17)),\"\",INDIRECT(\"Gesamt!\"&E$1&$A17))","v":""}]
[15,{"$f":"IF(ISBLANK(INDIRECT(\"Gesamt!\"&B$1&$A18)),\"\",INDIRECT(\"Gesamt!\"&B$1&$A18))","v":"Formalia (Exposé)\n- Template Nutzung & Formatierung (0,3P)\n- Schreibstil & Rechtschreibung (0,2P)"},{"$f":"IF(ISBLANK(INDIRECT(\"Gesamt!\"&C$1&$A18)),\"\",INDIRECT(\"Gesamt!\"&C$1&$A18))","v":0.5},{"$f":"IF(ISBLANK(INDIRECT(\"Gesamt!\"&D$1&$A18)),\"\",INDIRECT(\"Gesamt!\"&D$1&$A18))","v":""},{"$f":"IF(ISBLANK(INDIRECT(\"Gesamt!\"&E$1&$A18)),\"\",INDIRECT(\"Gesamt!\"&E$1&$A18))","v":""}]
[16,{"$f":"IF(ISBLANK(INDIRECT(\"Gesamt!\"&B$1&$A19)),\"\",INDIRECT(\"Gesamt!\"&B$1&$A19))","v":"Zwischensumme Exposé"},{"$f":"IF(ISBLANK(INDIRECT(\"Gesamt!\"&C$1&$A19)),\"\",INDIRECT(\"Gesamt!\"&C$1&$A19))","v":2},{"$f":"IF(ISBLANK(INDIRECT(\"Gesamt!\"&D$1&$A19)),\"\",INDIRECT(\"Gesamt!\"&D$1&$A19))","v":0},{"$f":"IF(ISBLANK(INDIRECT(\"Gesamt!\"&E$1&$A19)),\"\",INDIRECT(\"Gesamt!\"&E$1&$A19))","v":""}]
[17,{"$f":"IF(ISBLANK(INDIRECT(\"Gesamt!\"&B$1&$A20)),\"\",INDIRECT(\"Gesamt!\"&B$1&$A20))","v":"Zwischenabgabe"},{"$f":"IF(ISBLANK(INDIRECT(\"Gesamt!\"&C$1&$A20)),\"\",INDIRECT(\"Gesamt!\"&C$1&$A20))","v":""},{"$f":"IF(ISBLANK(INDIRECT(\"Gesamt!\"&D$1&$A20)),\"\",INDIRECT(\"Gesamt!\"&D$1&$A20))","v":"Gruppe: "}]
[18,{"$f":"IF(ISBLANK(INDIRECT(\"Gesamt!\"&B$1&$A21)),\"\",INDIRECT(\"Gesamt!\"&B$1&$A21))","v":"Ziel der Zwischenabgabe:"},null,null,{"$f":"IF(ISBLANK(INDIRECT(\"Gesamt!\"&\"B\"&$A21)),\"\",INDIRECT(\"Gesamt!\"&\"B\"&$A21))","v":"Vorstellung des Datensatzes und Vorbereitung der inferenzstatistischen Analyseverfahren"}]
[19,{"$f":"IF(ISBLANK(INDIRECT(\"Gesamt!\"&B$1&$A22)),\"\",INDIRECT(\"Gesamt!\"&B$1&$A22))","v":""},{"$f":"IF(ISBLANK(INDIRECT(\"Gesamt!\"&C$1&$A22)),\"\",INDIRECT(\"Gesamt!\"&C$1&$A22))","v":"Punkte"},{"$f":"IF(ISBLANK(INDIRECT(\"Gesamt!\"&D$1&$A22)),\"\",INDIRECT(\"Gesamt!\"&D$1&$A22))","v":"Bewertung"},{"$f":"IF(ISBLANK(INDIRECT(\"Gesamt!\"&E$1&$A22)),\"\",INDIRECT(\"Gesamt!\"&E$1&$A22))","v":"Kommentar"}]
[20,{"$f":"IF(ISBLANK(INDIRECT(\"Gesamt!\"&B$1&$A23)),\"\",INDIRECT(\"Gesamt!\"&B$1&$A23))","v":"Lage- & Streuungsmaße\n- Deskriptive Statistik für alle verwendeten Variablen\n- Berechnung, Interpretation und Einordnung in den Sachkontext"},{"$f":"IF(ISBLANK(INDIRECT(\"Gesamt!\"&C$1&$A23)),\"\",INDIRECT(\"Gesamt!\"&C$1&$A23))","v":2},{"$f":"IF(ISBLANK(INDIRECT(\"Gesamt!\"&D$1&$A23)),\"\",INDIRECT(\"Gesamt!\"&D$1&$A23))","v":""},{"$f":"IF(ISBLANK(INDIRECT(\"Gesamt!\"&E$1&$A23)),\"\",INDIRECT(\"Gesamt!\"&E$1&$A23))","v":""}]
[21,{"$f":"IF(ISBLANK(INDIRECT(\"Gesamt!\"&B$1&$A24)),\"\",INDIRECT(\"Gesamt!\"&B$1&$A24))","v":"Zusammenhangsmaße\n- Berechnung, Interpretation und Einordnung in den Sachkontext von (min.) einem Zusammenhangsmaß"},{"$f":"IF(ISBLANK(INDIRECT(\"Gesamt!\"&C$1&$A24)),\"\",INDIRECT(\"Gesamt!\"&C$1&$A24))","v":1},{"$f":"IF(ISBLANK(INDIRECT(\"Gesamt!\"&D$1&$A24)),\"\",INDIRECT(\"Gesamt!\"&D$1&$A24))","v":""},{"$f":"IF(ISBLANK(INDIRECT(\"Gesamt!\"&E$1&$A24)),\"\",INDIRECT(\"Gesamt!\"&E$1&$A24))","v":""}]
[22,{"$f":"IF(ISBLANK(INDIRECT(\"Gesamt!\"&B$1&$A25)),\"\",INDIRECT(\"Gesamt!\"&B$1&$A25))","v":"Ergänzende Berechnung\n- Ergänzende Berechnung, Interpretation und Einordnung in den Sachkontext (min.) eines weiteren Zusammenhangsmaßes oder Konzentrationsmaßes"},{"$f":"IF(ISBLANK(INDIRECT(\"Gesamt!\"&C$1&$A25)),\"\",INDIRECT(\"Gesamt!\"&C$1&$A25))","v":1},{"$f":"IF(ISBLANK(INDIRECT(\"Gesamt!\"&D$1&$A25)),\"\",INDIRECT(\"Gesamt!\"&D$1&$A25))","v":""},{"$f":"IF(ISBLANK(INDIRECT(\"Gesamt!\"&E$1&$A25)),\"\",INDIRECT(\"Gesamt!\"&E$1&$A25))","v":""}]
[23,{"$f":"IF(ISBLANK(INDIRECT(\"Gesamt!\"&B$1&$A26)),\"\",INDIRECT(\"Gesamt!\"&B$1&$A26))","v":"Diagramme\n- Sinnvoll unterstützender / ergänzender Einsatz einer grafischen Aufbereitung der Daten (0,5P)\n- Ergänzende Darstellung eines weiteren, andersartigen Diagrammes (0,5P)"},{"$f":"IF(ISBLANK(INDIRECT(\"Gesamt!\"&C$1&$A26)),\"\",INDIRECT(\"Gesamt!\"&C$1&$A26))","v":1},{"$f":"IF(ISBLANK(INDIRECT(\"Gesamt!\"&D$1&$A26)),\"\",INDIRECT(\"Gesamt!\"&D$1&$A26))","v":""},{"$f":"IF(ISBLANK(INDIRECT(\"Gesamt!\"&E$1&$A26)),\"\",INDIRECT(\"Gesamt!\"&E$1&$A26))","v":""}]
[24,{"$f":"IF(ISBLANK(INDIRECT(\"Gesamt!\"&B$1&$A27)),\"\",INDIRECT(\"Gesamt!\"&B$1&$A27))","v":"Komposition\n- Zweckmäßiger Methodeneinsatz (1P)\n- Zielgerichtete Argumentation (1P)"},{"$f":"IF(ISBLANK(INDIRECT(\"Gesamt!\"&C$1&$A27)),\"\",INDIRECT(\"Gesamt!\"&C$1&$A27))","v":2},{"$f":"IF(ISBLANK(INDIRECT(\"Gesamt!\"&D$1&$A27)),\"\",INDIRECT(\"Gesamt!\"&D$1&$A27))","v":""},{"$f":"IF(ISBLANK(INDIRECT(\"Gesamt!\"&E$1&$A27)),\"\",INDIRECT(\"Gesamt!\"&E$1&$A27))","v":""}]
[25,{"$f":"IF(ISBLANK(INDIRECT(\"Gesamt!\"&B$1&$A28)),\"\",INDIRECT(\"Gesamt!\"&B$1&$A28))","v":"Formalia (Zwischenabgabe)\n- Analytische Ausarbeitung (0,5P)\n    + Übersichtlichkeit\n    + Nachvollziehbarkeit aller Rechnungen\n- Schriftliche Ausarbeitung (0,5P)\n    + Formatierung des Dokuments\n    + Zitation wissenschaftlicher Quellen"},{"$f":"IF(ISBLANK(INDIRECT(\"Gesamt!\"&C$1&$A28)),\"\",INDIRECT(\"Gesamt!\"&C$1&$A28))","v":1},{"$f":"IF(ISBLANK(INDIRECT(\"Gesamt!\"&D$1&$A28)),\"\",INDIRECT(\"Gesamt!\"&D$1&$A28))","v":""},{"$f":"IF(ISBLANK(INDIRECT(\"Gesamt!\"&E$1&$A28)),\"\",INDIRECT(\"Gesamt!\"&E$1&$A28))","v":""}]
[26,{"$f":"IF(ISBLANK(INDIRECT(\"Gesamt!\"&B$1&$A29)),\"\",INDIRECT(\"Gesamt!\"&B$1&$A29))","v":"Zwischensumme Zwischenabgabe"},{"$f":"IF(ISBLANK(INDIRECT(\"Gesamt!\"&C$1&$A29)),\"\",INDIRECT(\"Gesamt!\"&C$1&$A29))","v":8},{"$f":"IF(ISBLANK(INDIRECT(\"Gesamt!\"&D$1&$A29)),\"\",INDIRECT(\"Gesamt!\"&D$1&$A29))","v":0},{"$f":"IF(ISBLANK(INDIRECT(\"Gesamt!\"&E$1&$A29)),\"\",INDIRECT(\"Gesamt!\"&E$1&$A29))","v":""}]
[27,{"$f":"IF(ISBLANK(INDIRECT(\"Gesamt!\"&B$1&$A30)),\"\",INDIRECT(\"Gesamt!\"&B$1&$A30))","v":"Endabgabe"},{"$f":"IF(ISBLANK(INDIRECT(\"Gesamt!\"&C$1&$A30)),\"\",INDIRECT(\"Gesamt!\"&C$1&$A30))","v":""},{"$f":"IF(ISBLANK(INDIRECT(\"Gesamt!\"&D$1&$A30)),\"\",INDIRECT(\"Gesamt!\"&D$1&$A30))","v":"Gruppe: "}]
[28,{"$f":"IF(ISBLANK(INDIRECT(\"Gesamt!\"&B$1&$A31)),\"\",INDIRECT(\"Gesamt!\"&B$1&$A31))","v":"Ziel der Endabgabe:"},null,null,{"$f":"IF(ISBLANK(INDIRECT(\"Gesamt!\"&\"B\"&$A31)),\"\",INDIRECT(\"Gesamt!\"&\"B\"&$A31))","v":"Beantwortung der Forschungsfrage unter Nutzung inferenzstatistischer Verfahren und Finalisierung der Arbeit"}]
[29,{"$f":"IF(ISBLANK(INDIRECT(\"Gesamt!\"&B$1&$A32)),\"\",INDIRECT(\"Gesamt!\"&B$1&$A32))","v":""},{"$f":"IF(ISBLANK(INDIRECT(\"Gesamt!\"&C$1&$A32)),\"\",INDIRECT(\"Gesamt!\"&C$1&$A32))","v":"Punkte"},{"$f":"IF(ISBLANK(INDIRECT(\"Gesamt!\"&D$1&$A32)),\"\",INDIRECT(\"Gesamt!\"&D$1&$A32))","v":"Bewertung"},{"$f":"IF(ISBLANK(INDIRECT(\"Gesamt!\"&E$1&$A32)),\"\",INDIRECT(\"Gesamt!\"&E$1&$A32))","v":"Kommentar"}]
[30,{"$f":"IF(ISBLANK(INDIRECT(\"Gesamt!\"&B$1&$A33)),\"\",INDIRECT(\"Gesamt!\"&B$1&$A33))","v":"Verbesserung der Deskriptiven Statistik hinsichtlich Korrektheit, Vollständigkeit, Beschreibung und Einordnung in den Sachkontext\n- Lagemaße (0,5P)\n- Streuungsmaße (0,5P)\n- Ergänzende Maße (0,5P)\n- Zusammenhangsmaße (0,5P)"},{"$f":"IF(ISBLANK(INDIRECT(\"Gesamt!\"&C$1&$A33)),\"\",INDIRECT(\"Gesamt!\"&C$1&$A33))","v":2},{"$f":"IF(ISBLANK(INDIRECT(\"Gesamt!\"&D$1&$A33)),\"\",INDIRECT(\"Gesamt!\"&D$1&$A33))","v":""},{"$f":"IF(ISBLANK(INDIRECT(\"Gesamt!\"&E$1&$A33)),\"\",INDIRECT(\"Gesamt!\"&E$1&$A33))","v":""}]
[31,{"$f":"IF(ISBLANK(INDIRECT(\"Gesamt!\"&B$1&$A34)),\"\",INDIRECT(\"Gesamt!\"&B$1&$A34))","v":"Inferenzstatistik: Freie Methodenwahl\n- Inhaltlich begründete Methodenauswahl (1P)\n- Voraussetzungen erfüllt (0,5P)\n- Fehlerfreie Berechnungen (0,5P)\n- Korrekte Testanwendung (0,5P)\n- Statistische Interpretation und Einordnung in Sachkontext (1P)"},{"$f":"IF(ISBLANK(INDIRECT(\"Gesamt!\"&C$1&$A34)),\"\",INDIRECT(\"Gesamt!\"&C$1&$A34))","v":3.5},{"$f":"IF(ISBLANK(INDIRECT(\"Gesamt!\"&D$1&$A34)),\"\",INDIRECT(\"Gesamt!\"&D$1&$A34))","v":""},{"$f":"IF(ISBLANK(INDIRECT(\"Gesamt!\"&E$1&$A34)),\"\",INDIRECT(\"Gesamt!\"&E$1&$A34))","v":""}]
[32,{"$f":"IF(ISBLANK(INDIRECT(\"Gesamt!\"&B$1&$A35)),\"\",INDIRECT(\"Gesamt!\"&B$1&$A35))","v":"Inferenzstatistik: Zusammenhangsanalyse\n- Variablen- und Methodenauswahl kongruent (1P)\n- Voraussetzungen erfüllt (0,5P)\n- Fehlerfreie Berechnungen (0,5P)\n- Korrekte Testanwendung (0,5P)\n- Statistische Interpretation und Einordnung in Sachkontext (1P)"},{"$f":"IF(ISBLANK(INDIRECT(\"Gesamt!\"&C$1&$A35)),\"\",INDIRECT(\"Gesamt!\"&C$1&$A35))","v":3.5},{"$f":"IF(ISBLANK(INDIRECT(\"Gesamt!\"&D$1&$A35)),\"\",INDIRECT(\"Gesamt!\"&D$1&$A35))","v":""},{"$f":"IF(ISBLANK(INDIRECT(\"Gesamt!\"&E$1&$A35)),\"\",INDIRECT(\"Gesamt!\"&E$1&$A35))","v":""}]
[33,{"$f":"IF(ISBLANK(INDIRECT(\"Gesamt!\"&B$1&$A36)),\"\",INDIRECT(\"Gesamt!\"&B$1&$A36))","v":"Argumentationsfluss & Gesamteindruck\n- Inhaltlicher Aufbau\n- Verknüpfung der Fragestellung mit der Anwendung der inhaltlichen Methoden\n- Verknüpfung deskriptiver und analytischer Statistik\n- Keine rezeptartige Beschreibung von Rechenwegen"},{"$f":"IF(ISBLANK(INDIRECT(\"Gesamt!\"&C$1&$A36)),\"\",INDIRECT(\"Gesamt!\"&C$1&$A36))","v":2},{"$f":"IF(ISBLANK(INDIRECT(\"Gesamt!\"&D$1&$A36)),\"\",INDIRECT(\"Gesamt!\"&D$1&$A36))","v":""},{"$f":"IF(ISBLANK(INDIRECT(\"Gesamt!\"&E$1&$A36)),\"\",INDIRECT(\"Gesamt!\"&E$1&$A36))","v":""}]
[34,{"$f":"IF(ISBLANK(INDIRECT(\"Gesamt!\"&B$1&$A37)),\"\",INDIRECT(\"Gesamt!\"&B$1&$A37))","v":"Zielerreichung\n- Antwort auf die gestellte Forschungsfrage\n- Zusammenfassung der Ergebnisse\n- Kritische Würdigung des eigenen Vorgehens"},{"$f":"IF(ISBLANK(INDIRECT(\"Gesamt!\"&C$1&$A37)),\"\",INDIRECT(\"Gesamt!\"&C$1&$A37))","v":2},{"$f":"IF(ISBLANK(INDIRECT(\"Gesamt!\"&D$1&$A37)),\"\",INDIRECT(\"Gesamt!\"&D$1&$A37))","v":""},{"$f":"IF(ISBLANK(INDIRECT(\"Gesamt!\"&E$1&$A37)),\"\",INDIRECT(\"Gesamt!\"&E$1&$A37))","v":""}]
[35,{"$f":"IF(ISBLANK(INDIRECT(\"Gesamt!\"&B$1&$A38)),\"\",INDIRECT(\"Gesamt!\"&B$1&$A38))","v":"Formalia (Endabgabe)\n- Nutzung des bereitgestellten Templates (fhswf R-Package) und angemessene wissenschaftliche Gestaltung des finalen Dokumentes unter Verwendung der im Template enthaltenen Checkliste\n- Abgabe ist vollständig reproduzierbar (Alle Dateien wurden eingereicht: PDF, Rmd, etc)"},{"$f":"IF(ISBLANK(INDIRECT(\"Gesamt!\"&C$1&$A38)),\"\",INDIRECT(\"Gesamt!\"&C$1&$A38))","v":1},{"$f":"IF(ISBLANK(INDIRECT(\"Gesamt!\"&D$1&$A38)),\"\",INDIRECT(\"Gesamt!\"&D$1&$A38))","v":""},{"$f":"IF(ISBLANK(INDIRECT(\"Gesamt!\"&E$1&$A38)),\"\",INDIRECT(\"Gesamt!\"&E$1&$A38))","v":""}]
[36,{"$f":"IF(ISBLANK(INDIRECT(\"Gesamt!\"&B$1&$A39)),\"\",INDIRECT(\"Gesamt!\"&B$1&$A39))","v":"Analytische Qualität\n- Übersichtlichkeit der Analyse (R Datei)\n- Nachvollziehbarkeit aller Rechnungen\n- Vollständigkeit"},{"$f":"IF(ISBLANK(INDIRECT(\"Gesamt!\"&C$1&$A39)),\"\",INDIRECT(\"Gesamt!\"&C$1&$A39))","v":1},{"$f":"IF(ISBLANK(INDIRECT(\"Gesamt!\"&D$1&$A39)),\"\",INDIRECT(\"Gesamt!\"&D$1&$A39))","v":""},{"$f":"IF(ISBLANK(INDIRECT(\"Gesamt!\"&E$1&$A39)),\"\",INDIRECT(\"Gesamt!\"&E$1&$A39))","v":""}]
[37,{"$f":"IF(ISBLANK(INDIRECT(\"Gesamt!\"&B$1&$A40)),\"\",INDIRECT(\"Gesamt!\"&B$1&$A40))","v":"Zwischensumme Endabgabe"},{"$f":"IF(ISBLANK(INDIRECT(\"Gesamt!\"&C$1&$A40)),\"\",INDIRECT(\"Gesamt!\"&C$1&$A40))","v":15},{"$f":"IF(ISBLANK(INDIRECT(\"Gesamt!\"&D$1&$A40)),\"\",INDIRECT(\"Gesamt!\"&D$1&$A40))","v":0},{"$f":"IF(ISBLANK(INDIRECT(\"Gesamt!\"&E$1&$A40)),\"\",INDIRECT(\"Gesamt!\"&E$1&$A40))","v":""}]
[38,{"$f":"IF(ISBLANK(INDIRECT(\"Gesamt!\"&B$1&$A41)),\"\",INDIRECT(\"Gesamt!\"&B$1&$A41))","v":"Abschließende Bewertung"},{"$f":"IF(ISBLANK(INDIRECT(\"Gesamt!\"&C$1&$A41)),\"\",INDIRECT(\"Gesamt!\"&C$1&$A41))","v":""},{"$f":"IF(ISBLANK(INDIRECT(\"Gesamt!\"&D$1&$A41)),\"\",INDIRECT(\"Gesamt!\"&D$1&$A41))","v":"Gruppe: "}]
[39,{"$f":"IF(ISBLANK(INDIRECT(\"Gesamt!\"&B$1&$A42)),\"\",INDIRECT(\"Gesamt!\"&B$1&$A42))","v":"Exposé"},{"$f":"IF(ISBLANK(INDIRECT(\"Gesamt!\"&C$1&$A42)),\"\",INDIRECT(\"Gesamt!\"&C$1&$A42))","v":2},{"$f":"IF(ISBLANK(INDIRECT(\"Gesamt!\"&D$1&$A42)),\"\",INDIRECT(\"Gesamt!\"&D$1&$A42))","v":0},{"$f":"IF(ISBLANK(INDIRECT(\"Gesamt!\"&E$1&$A42)),\"\",INDIRECT(\"Gesamt!\"&E$1&$A42))","v":"(0,0 %)"}]
[40,{"$f":"IF(ISBLANK(INDIRECT(\"Gesamt!\"&B$1&$A43)),\"\",INDIRECT(\"Gesamt!\"&B$1&$A43))","v":"Zwischenabgabe"},{"$f":"IF(ISBLANK(INDIRECT(\"Gesamt!\"&C$1&$A43)),\"\",INDIRECT(\"Gesamt!\"&C$1&$A43))","v":8},{"$f":"IF(ISBLANK(INDIRECT(\"Gesamt!\"&D$1&$A43)),\"\",INDIRECT(\"Gesamt!\"&D$1&$A43))","v":0},{"$f":"IF(ISBLANK(INDIRECT(\"Gesamt!\"&E$1&$A43)),\"\",INDIRECT(\"Gesamt!\"&E$1&$A43))","v":"(0,0 %)"}]
[41,{"$f":"IF(ISBLANK(INDIRECT(\"Gesamt!\"&B$1&$A44)),\"\",INDIRECT(\"Gesamt!\"&B$1&$A44))","v":"Endabgabe"},{"$f":"IF(ISBLANK(INDIRECT(\"Gesamt!\"&C$1&$A44)),\"\",INDIRECT(\"Gesamt!\"&C$1&$A44))","v":15},{"$f":"IF(ISBLANK(INDIRECT(\"Gesamt!\"&D$1&$A44)),\"\",INDIRECT(\"Gesamt!\"&D$1&$A44))","v":0},{"$f":"IF(ISBLANK(INDIRECT(\"Gesamt!\"&E$1&$A44)),\"\",INDIRECT(\"Gesamt!\"&E$1&$A44))","v":"(0,0 %)"}]
[42,{"$f":"IF(ISBLANK(INDIRECT(\"Gesamt!\"&B$1&$A45)),\"\",INDIRECT(\"Gesamt!\"&B$1&$A45))","v":"Endpunktzahl (rechnerisch)"},{"$f":"IF(ISBLANK(INDIRECT(\"Gesamt!\"&C$1&$A45)),\"\",INDIRECT(\"Gesamt!\"&C$1&$A45))","v":25},{"$f":"IF(ISBLANK(INDIRECT(\"Gesamt!\"&D$1&$A45)),\"\",INDIRECT(\"Gesamt!\"&D$1&$A45))","v":0},{"$f":"IF(ISBLANK(INDIRECT(\"Gesamt!\"&E$1&$A45)),\"\",INDIRECT(\"Gesamt!\"&E$1&$A45))","v":"(0,0 %)"}]
[43,{"$f":"IF(ISBLANK(INDIRECT(\"Gesamt!\"&B$1&$A46)),\"\",INDIRECT(\"Gesamt!\"&B$1&$A46))","v":"Endergebnis (gerundet)"},{"$f":"IF(ISBLANK(INDIRECT(\"Gesamt!\"&C$1&$A46)),\"\",INDIRECT(\"Gesamt!\"&C$1&$A46))","v":25},{"$f":"IF(ISBLANK(INDIRECT(\"Gesamt!\"&D$1&$A46)),\"\",INDIRECT(\"Gesamt!\"&D$1&$A46))","v":0},{"$f":"IF(ISBLANK(INDIRECT(\"Gesamt!\"&E$1&$A46)),\"\",INDIRECT(\"Gesamt!\"&E$1&$A46))","v":"(0,0 %)"}]
[44,{"$f":"IF(ISBLANK(INDIRECT(\"Gesamt!\"&B$1&$A47)),\"\",INDIRECT(\"Gesamt!\"&B$1&$A47))","v":"Quantil (ECTS-Grad) [nur Korrektor]"},{"$f":"IF(ISBLANK(INDIRECT(\"Gesamt!\"&C$1&$A47)),\"\",INDIRECT(\"Gesamt!\"&C$1&$A47))","v":"0-1 (A-E)"},{"$f":"IF(ISBLANK(INDIRECT(\"Gesamt!\"&D$1&$A47)),\"\",INDIRECT(\"Gesamt!\"&D$1&$A47))","v":{"$error":"#N/A"}},{"$f":"IF(ISBLANK(INDIRECT(\"Gesamt!\"&E$1&$A47)),\"\",INDIRECT(\"Gesamt!\"&E$1&$A47))","v":{"$error":"#N/A"}}]
[]
[]
[45,{"$f":"IF(ISBLANK(INDIRECT(\"Gesamt!\"&B$1&$A50)),\"\",INDIRECT(\"Gesamt!\"&B$1&$A50))","v":"Vorleistung (50% der Punkte nach Zwischenabgabe)"}]
[]
[null,{"$f":"IF(ISBLANK(INDIRECT(\"Gesamt!\"&E$1&$A50)),\"\",INDIRECT(\"Gesamt!\"&E$1&$A50))","v":"Nicht Bestanden"}]
[]
[]
[]
[null,"Hinweis: Das Bestehen der Vorleistung ist Bedingung für die Zulassung zur Prüfung. Endpunktzahl (rechnerisch) und Endergebnis (gerundet) werden erst nach bestandener Vorleistung angezeigt."]

{"sheet":"G8","index":9,"n_rows":56,"n_cols":6,"rows_kept":56,"cut":false,"hidden":false,"merged":[[49,1,49,4],[51,1,53,4],[55,1,55,4],[1,1,1,4],[2,1,2,4],[12,3,12,4],[19,3,19,4],[29,3,29,4],[40,3,40,4]]}
["Startspalte:","A","C",{"$f":"SUBSTITUTE(ADDRESS(1,A2,4),\"1\",\"\")","v":"Y"},{"$f":"SUBSTITUTE(ADDRESS(1,A2+1,4),\"1\",\"\")","v":"Z"},{"$f":"SUBSTITUTE(ADDRESS(1,A2+2,4),\"1\",\"\")","v":"AA"}]
[25,{"$f":"\"Feedback - Gruppe: \"&IF(ISBLANK(INDIRECT(\"Gesamt!\"&E$1&$A5)),\"\",INDIRECT(\"Gesamt!\"&E$1&$A5))","v":"Feedback - Gruppe: "}]
[{"$f":"TEXT(TODAY(),\"JJJJMMTT\")","v":"20240514"},{"$f":"TODAY()","v":"2024-05-14"}]
[1,"Oranisatorisches",null,null,{"$f":"IF(ISBLANK(INDIRECT(\"Gesamt!\"&E$1&$A4)),\"\",INDIRECT(\"Gesamt!\"&E$1&$A4))","v":""}]
[2,{"$f":"IF(ISBLANK(INDIRECT(\"Gesamt!\"&B$1&$A5)),\"\",INDIRECT(\"Gesamt!\"&B$1&$A5))","v":"Korrektor"},{"$f":"IF(ISBLANK(INDIRECT(\"Gesamt!\"&C$1&$A5)),\"\",INDIRECT(\"Gesamt!\"&C$1&$A5))","v":""},{"$f":"IF(ISBLANK(INDIRECT(\"Gesamt!\"&D$1&$A5)),\"\",INDIRECT(\"Gesamt!\"&D$1&$A5))","v":"Gruppe"},{"$f":"IF(ISBLANK(INDIRECT(\"Gesamt!\"&E$1&$A5)),\"\",INDIRECT(\"Gesamt!\"&E$1&$A5))","v":""}]
[3,{"$f":"IF(ISBLANK(INDIRECT(\"Gesamt!\"&B$1&$A6)),\"\",INDIRECT(\"Gesamt!\"&B$1&$A6))","v":"Prof. Dr. Benjamin Buchwitz"},{"$f":"IF(ISBLANK(INDIRECT(\"Gesamt!\"&C$1&$A6)),\"\",INDIRECT(\"Gesamt!\"&C$1&$A6))","v":""},{"$f":"IF(ISBLANK(INDIRECT(\"Gesamt!\"&D$1&$A6)),\"\",INDIRECT(\"Gesamt!\"&D$1&$A6))","v":"Matrikelnr."},{"$f":"IF(ISBLANK(INDIRECT(\"Gesamt!\"&E$1&$A6)),\"\",INDIRECT(\"Gesamt!\"&E$1&$A6))","v":"Name"},"Aktiv"]
[4,{"$f":"IF(ISBLANK(INDIRECT(\"Gesamt!\"&B$1&$A7)),\"\",INDIRECT(\"Gesamt!\"&B$1&$A7))","v":"Kontaktmöglichkeit"},{"$f":"IF(ISBLANK(INDIRECT(\"Gesamt!\"&C$1&$A7)),\"\",INDIRECT(\"Gesamt!\"&C$1&$A7))","v":""},{"$f":"IF(ISBLANK(INDIRECT(\"Gesamt!\"&D$1&$A7)),\"\",INDIRECT(\"Gesamt!\"&D$1&$A7))","v":""},{"$f":"IF(ISBLANK(INDIRECT(\"Gesamt!\"&E$1&$A7)),\"\",INDIRECT(\"Gesamt!\"&E$1&$A7))","v":""},{"$f":"IF(ISBLANK(INDIRECT(\"Gesamt!\"&F$1&$A7)),\"\",INDIRECT(\"Gesamt!\"&F$1&$A7))","v":true}]
[5,{"$f":"IF(ISBLANK(INDIRECT(\"Gesamt!\"&B$1&$A8)),\"\",INDIRECT(\"Gesamt!\"&B$1&$A8))","v":"buchwitz.benjamin@fh-swf.de"},{"$f":"IF(ISBLANK(INDIRECT(\"Gesamt!\"&C$1&$A8)),\"\",INDIRECT(\"Gesamt!\"&C$1&$A8))","v":""},{"$f":"IF(ISBLANK(INDIRECT(\"Gesamt!\"&D$1&$A8)),\"\",INDIRECT(\"Gesamt!\"&D$1&$A8))","v":""},{"$f":"IF(ISBLANK(INDIRECT(\"Gesamt!\"&E$1&$A8)),\"\",INDIRECT(\"Gesamt!\"&E$1&$A8))","v":""},{"$f":"IF(ISBLANK(INDIRECT(\"Gesamt!\"&F$1&$A8)),\"\",INDIRECT(\"Gesamt!\"&F$1&$A8))","v":" "}]
[6,{"$f":"IF(ISBLANK(INDIRECT(\"Gesamt!\"&B$1&$A9)),\"\",INDIRECT(\"Gesamt!\"&B$1&$A9))","v":""},{"$f":"IF(ISBLANK(INDIRECT(\"Gesamt!\"&C$1&$A9)),\"\",INDIRECT(\"Gesamt!\"&C$1&$A9))","v":""},{"$f":"IF(ISBLANK(INDIRECT(\"Gesamt!\"&D$1&$A9)),\"\",INDIRECT(\"Gesamt!\"&D$1&$A9))","v":""},{"$f":"IF(ISBLANK(INDIRECT(\"Gesamt!\"&E$1&$A9)),\"\",INDIRECT(\"Gesamt!\"&E$1&$A9))","v":""},{"$f":"IF(ISBLANK(INDIRECT(\"Gesamt!\"&F$1&$A9)),\"\",INDIRECT(\"Gesamt!\"&F$1&$A9))","v":" "}]
[7,"Kommunikationsverantwortlicher Autor:",{"$f":"IF(ISBLANK(INDIRECT(\"Gesamt!\"&C$1&$A10)),\"\",INDIRECT(\"Gesamt!\"&C$1&$A10))","v":""},{"$f":"IF(ISBLANK(INDIRECT(\"Gesamt!\"&D$1&$A10)),\"\",INDIRECT(\"Gesamt!\"&D$1&$A10))","v":""},{"$f":"IF(ISBLANK(INDIRECT(\"Gesamt!\"&E$1&$A10)),\"\",INDIRECT(\"Gesamt!\"&E$1&$A10))","v":""},{"$f":"IF(ISBLANK(INDIRECT(\"Gesamt!\"&F$1&$A10)),\"\",INDIRECT(\"Gesamt!\"&F$1&$A10))","v":" "}]
[8,{"$f":"E7 & \" (Gruppensprecher:in)\"","v":" (Gruppensprecher:in)"},{"$f":"IF(ISBLANK(INDIRECT(\"Gesamt!\"&C$1&$A11)),\"\",INDIRECT(\"Gesamt!\"&C$1&$A11))","v":""},{"$f":"IF(ISBLANK(INDIRECT(\"Gesamt!\"&D$1&$A11)),\"\",INDIRECT(\"Gesamt!\"&D$1&$A11))","v":""},{"$f":"IF(ISBLANK(INDIRECT(\"Gesamt!\"&E$1&$A11)),\"\",INDIRECT(\"Gesamt!\"&E$1&$A11))","v":""},{"$f":"IF(ISBLANK(INDIRECT(\"Gesamt!\"&F$1&$A11)),\"\",INDIRECT(\"Gesamt!\"&F$1&$A11))","v":" "}]
[9,{"$f":"IF(ISBLANK(INDIRECT(\"Gesamt!\"&B$1&$A12)),\"\",INDIRECT(\"Gesamt!\"&B$1&$A12))","v":""},{"$f":"IF(ISBLANK(INDIRECT(\"Gesamt!\"&C$1&$A12)),\"\",INDIRECT(\"Gesamt!\"&C$1&$A12))","v":""},{"$f":"IF(ISBLANK(INDIRECT(\"Gesamt!\"&D$1&$A12)),\"\",INDIRECT(\"Gesamt!\"&D$1&$A12))","v":""},{"$f":"IF(ISBLANK(INDIRECT(\"Gesamt!\"&E$1&$A12)),\"\",INDIRECT(\"Gesamt!\"&E$1&$A12))","v":""},{"$f":"IF(ISBLANK(INDIRECT(\"Gesamt!\"&F$1&$A12)),\"\",INDIRECT(\"Gesamt!\"&F$1&$A12))","v":" "}]
[10,{"$f":"IF(ISBLANK(INDIRECT(\"Gesamt!\"&B$1&$A13)),\"\",INDIRECT(\"Gesamt!\"&B$1&$A13))","v":"Exposé"},{"$f":"IF(ISBLANK(INDIRECT(\"Gesamt!\"&C$1&$A13)),\"\",INDIRECT(\"Gesamt!\"&C$1&$A13))","v":""},{"$f":"IF(ISBLANK(INDIRECT(\"Gesamt!\"&D$1&$A13)),\"\",INDIRECT(\"Gesamt!\"&D$1&$A13))","v":"Gruppe: "}]
[11,{"$f":"IF(ISBLANK(INDIRECT(\"Gesamt!\"&B$1&$A14)),\"\",INDIRECT(\"Gesamt!\"&B$1&$A14))","v":"Ziel des Exposés:"},null,null,{"$f":"IF(ISBLANK(INDIRECT(\"Gesamt!\"&\"B\"&$A14)),\"\",INDIRECT(\"Gesamt!\"&\"B\"&$A14))","v":"Einarbeitung in den Sachkontext und Genese einer zum Datensatz passenden Forschungsfrage"}]
[12,{"$f":"IF(ISBLANK(INDIRECT(\"Gesamt!\"&B$1&$A15)),\"\",INDIRECT(\"Gesamt!\"&B$1&$A15))","v":""},{"$f":"IF(ISBLANK(INDIRECT(\"Gesamt!\"&C$1&$A15)),\"\",INDIRECT(\"Gesamt!\"&C$1&$A15))","v":"Punkte"},{"$f":"IF(ISBLANK(INDIRECT(\"Gesamt!\"&D$1&$A15)),\"\",INDIRECT(\"Gesamt!\"&D$1&$A15))","v":"Bewertung"},{"$f":"IF(ISBLANK(INDIRECT(\"Gesamt!\"&E$1&$A15)),\"\",INDIRECT(\"Gesamt!\"&E$1&$A15))","v":"Kommentar"}]
[13,{"$f":"IF(ISBLANK(INDIRECT(\"Gesamt!\"&B$1&$A16)),\"\",INDIRECT(\"Gesamt!\"&B$1&$A16))","v":"Forschungsgegenstand\n- Zielausgestaltung (0,2P)\n- Fragestellung (0,4P)\n- Hypothesen (0,4P)"},{"$f":"IF(ISBLANK(INDIRECT(\"Gesamt!\"&C$1&$A16)),\"\",INDIRECT(\"Gesamt!\"&C$1&$A16))","v":1},{"$f":"IF(ISBLANK(INDIRECT(\"Gesamt!\"&D$1&$A16)),\"\",INDIRECT(\"Gesamt!\"&D$1&$A16))","v":""},{"$f":"IF(ISBLANK(INDIRECT(\"Gesamt!\"&E$1&$A16)),\"\",INDIRECT(\"Gesamt!\"&E$1&$A16))","v":""}]
[14,{"$f":"IF(ISBLANK(INDIRECT(\"Gesamt!\"&B$1&$A17)),\"\",INDIRECT(\"Gesamt!\"&B$1&$A17))","v":"Komposition\n- Inhaltlicher Zusammenhang (0,2P)\n- fachsprachlich formulierte Vorgehensweise (0,2P)\n- Motivation des Themas (0,1P)"},{"$f":"IF(ISBLANK(INDIRECT(\"Gesamt!\"&C$1&$A17)),\"\",INDIRECT(\"Gesamt!\"&C$1&$A17))","v":0.5},{"$f":"IF(ISBLANK(INDIRECT(\"Gesamt!\"&D$1&$A17)),\"\",INDIRECT(\"Gesamt!\"&D$1&$A17))","v":""},{"$f":"IF(ISBLANK(INDIRECT(\"Gesamt!\"&E$1&$A17)),\"\",INDIRECT(\"Gesamt!\"&E$1&$A17))","v":""}]
[15,{"$f":"IF(ISBLANK(INDIRECT(\"Gesamt!\"&B$1&$A18)),\"\",INDIRECT(\"Gesamt!\"&B$1&$A18))","v":"Formalia (Exposé)\n- Template Nutzung & Formatierung (0,3P)\n- Schreibstil & Rechtschreibung (0,2P)"},{"$f":"IF(ISBLANK(INDIRECT(\"Gesamt!\"&C$1&$A18)),\"\",INDIRECT(\"Gesamt!\"&C$1&$A18))","v":0.5},{"$f":"IF(ISBLANK(INDIRECT(\"Gesamt!\"&D$1&$A18)),\"\",INDIRECT(\"Gesamt!\"&D$1&$A18))","v":""},{"$f":"IF(ISBLANK(INDIRECT(\"Gesamt!\"&E$1&$A18)),\"\",INDIRECT(\"Gesamt!\"&E$1&$A18))","v":""}]
[16,{"$f":"IF(ISBLANK(INDIRECT(\"Gesamt!\"&B$1&$A19)),\"\",INDIRECT(\"Gesamt!\"&B$1&$A19))","v":"Zwischensumme Exposé"},{"$f":"IF(ISBLANK(INDIRECT(\"Gesamt!\"&C$1&$A19)),\"\",INDIRECT(\"Gesamt!\"&C$1&$A19))","v":2},{"$f":"IF(ISBLANK(INDIRECT(\"Gesamt!\"&D$1&$A19)),\"\",INDIRECT(\"Gesamt!\"&D$1&$A19))","v":0},{"$f":"IF(ISBLANK(INDIRECT(\"Gesamt!\"&E$1&$A19)),\"\",INDIRECT(\"Gesamt!\"&E$1&$A19))","v":""}]
[17,{"$f":"IF(ISBLANK(INDIRECT(\"Gesamt!\"&B$1&$A20)),\"\",INDIRECT(\"Gesamt!\"&B$1&$A20))","v":"Zwischenabgabe"},{"$f":"IF(ISBLANK(INDIRECT(\"Gesamt!\"&C$1&$A20)),\"\",INDIRECT(\"Gesamt!\"&C$1&$A20))","v":""},{"$f":"IF(ISBLANK(INDIRECT(\"Gesamt!\"&D$1&$A20)),\"\",INDIRECT(\"Gesamt!\"&D$1&$A20))","v":"Gruppe: "}]
[18,{"$f":"IF(ISBLANK(INDIRECT(\"Gesamt!\"&B$1&$A21)),\"\",INDIRECT(\"Gesamt!\"&B$1&$A21))","v":"Ziel der Zwischenabgabe:"},null,null,{"$f":"IF(ISBLANK(INDIRECT(\"Gesamt!\"&\"B\"&$A21)),\"\",INDIRECT(\"Gesamt!\"&\"B\"&$A21))","v":"Vorstellung des Datensatzes und Vorbereitung der inferenzstatistischen Analyseverfahren"}]
[19,{"$f":"IF(ISBLANK(INDIRECT(\"Gesamt!\"&B$1&$A22)),\"\",INDIRECT(\"Gesamt!\"&B$1&$A22))","v":""},{"$f":"IF(ISBLANK(INDIRECT(\"Gesamt!\"&C$1&$A22)),\"\",INDIRECT(\"Gesamt!\"&C$1&$A22))","v":"Punkte"},{"$f":"IF(ISBLANK(INDIRECT(\"Gesamt!\"&D$1&$A22)),\"\",INDIRECT(\"Gesamt!\"&D$1&$A22))","v":"Bewertung"},{"$f":"IF(ISBLANK(INDIRECT(\"Gesamt!\"&E$1&$A22)),\"\",INDIRECT(\"Gesamt!\"&E$1&$A22))","v":"Kommentar"}]
[20,{"$f":"IF(ISBLANK(INDIRECT(\"Gesamt!\"&B$1&$A23)),\"\",INDIRECT(\"Gesamt!\"&B$1&$A23))","v":"Lage- & Streuungsmaße\n- Deskriptive Statistik für alle verwendeten Variablen\n- Berechnung, Interpretation und Einordnung in den Sachkontext"},{"$f":"IF(ISBLANK(INDIRECT(\"Gesamt!\"&C$1&$A23)),\"\",INDIRECT(\"Gesamt!\"&C$1&$A23))","v":2},{"$f":"IF(ISBLANK(INDIRECT(\"Gesamt!\"&D$1&$A23)),\"\",INDIRECT(\"Gesamt!\"&D$1&$A23))","v":""},{"$f":"IF(ISBLANK(INDIRECT(\"Gesamt!\"&E$1&$A23)),\"\",INDIRECT(\"Gesamt!\"&E$1&$A23))","v":""}]
[21,{"$f":"IF(ISBLANK(INDIRECT(\"Gesamt!\"&B$1&$A24)),\"\",INDIRECT(\"Gesamt!\"&B$1&$A24))","v":"Zusammenhangsmaße\n- Berechnung, Interpretation und Einordnung in den Sachkontext von (min.) einem Zusammenhangsmaß"},{"$f":"IF(ISBLANK(INDIRECT(\"Gesamt!\"&C$1&$A24)),\"\",INDIRECT(\"Gesamt!\"&C$1&$A24))","v":1},{"$f":"IF(ISBLANK(INDIRECT(\"Gesamt!\"&D$1&$A24)),\"\",INDIRECT(\"Gesamt!\"&D$1&$A24))","v":""},{"$f":"IF(ISBLANK(INDIRECT(\"Gesamt!\"&E$1&$A24)),\"\",INDIRECT(\"Gesamt!\"&E$1&$A24))","v":""}]
[22,{"$f":"IF(ISBLANK(INDIRECT(\"Gesamt!\"&B$1&$A25)),\"\",INDIRECT(\"Gesamt!\"&B$1&$A25))","v":"Ergänzende Berechnung\n- Ergänzende Berechnung, Interpretation und Einordnung in den Sachkontext (min.) eines weiteren Zusammenhangsmaßes oder Konzentrationsmaßes"},{"$f":"IF(ISBLANK(INDIRECT(\"Gesamt!\"&C$1&$A25)),\"\",INDIRECT(\"Gesamt!\"&C$1&$A25))","v":1},{"$f":"IF(ISBLANK(INDIRECT(\"Gesamt!\"&D$1&$A25)),\"\",INDIRECT(\"Gesamt!\"&D$1&$A25))","v":""},{"$f":"IF(ISBLANK(INDIRECT(\"Gesamt!\"&E$1&$A25)),\"\",INDIRECT(\"Gesamt!\"&E$1&$A25))","v":""}]
[23,{"$f":"IF(ISBLANK(INDIRECT(\"Gesamt!\"&B$1&$A26)),\"\",INDIRECT(\"Gesamt!\"&B$1&$A26))","v":"Diagramme\n- Sinnvoll unterstützender / ergänzender Einsatz einer grafischen Aufbereitung der Daten (0,5P)\n- Ergänzende Darstellung eines weiteren, andersartigen Diagrammes (0,5P)"},{"$f":"IF(ISBLANK(INDIRECT(\"Gesamt!\"&C$1&$A26)),\"\",INDIRECT(\"Gesamt!\"&C$1&$A26))","v":1},{"$f":"IF(ISBLANK(INDIRECT(\"Gesamt!\"&D$1&$A26)),\"\",INDIRECT(\"Gesamt!\"&D$1&$A26))","v":""},{"$f":"IF(ISBLANK(INDIRECT(\"Gesamt!\"&E$1&$A26)),\"\",INDIRECT(\"Gesamt!\"&E$1&$A26))","v":""}]
[24,{"$f":"IF(ISBLANK(INDIRECT(\"Gesamt!\"&B$1&$A27)),\"\",INDIRECT(\"Gesamt!\"&B$1&$A27))","v":"Komposition\n- Zweckmäßiger Methodeneinsatz (1P)\n- Zielgerichtete Argumentation (1P)"},{"$f":"IF(ISBLANK(INDIRECT(\"Gesamt!\"&C$1&$A27)),\"\",INDIRECT(\"Gesamt!\"&C$1&$A27))","v":2},{"$f":"IF(ISBLANK(INDIRECT(\"Gesamt!\"&D$1&$A27)),\"\",INDIRECT(\"Gesamt!\"&D$1&$A27))","v":""},{"$f":"IF(ISBLANK(INDIRECT(\"Gesamt!\"&E$1&$A27)),\"\",INDIRECT(\"Gesamt!\"&E$1&$A27))","v":""}]
[25,{"$f":"IF(ISBLANK(INDIRECT(\"Gesamt!\"&B$1&$A28)),\"\",INDIRECT(\"Gesamt!\"&B$1&$A28))","v":"Formalia (Zwischenabgabe)\n- Analytische Ausarbeitung (0,5P)\n    + Übersichtlichkeit\n    + Nachvollziehbarkeit aller Rechnungen\n- Schriftliche Ausarbeitung (0,5P)\n    + Formatierung des Dokuments\n    + Zitation wissenschaftlicher Quellen"},{"$f":"IF(ISBLANK(INDIRECT(\"Gesamt!\"&C$1&$A28)),\"\",INDIRECT(\"Gesamt!\"&C$1&$A28))","v":1},{"$f":"IF(ISBLANK(INDIRECT(\"Gesamt!\"&D$1&$A28)),\"\",INDIRECT(\"Gesamt!\"&D$1&$A28))","v":""},{"$f":"IF(ISBLANK(INDIRECT(\"Gesamt!\"&E$1&$A28)),\"\",INDIRECT(\"Gesamt!\"&E$1&$A28))","v":""}]
[26,{"$f":"IF(ISBLANK(INDIRECT(\"Gesamt!\"&B$1&$A29)),\"\",INDIRECT(\"Gesamt!\"&B$1&$A29))","v":"Zwischensumme Zwischenabgabe"},{"$f":"IF(ISBLANK(INDIRECT(\"Gesamt!\"&C$1&$A29)),\"\",INDIRECT(\"Gesamt!\"&C$1&$A29))","v":8},{"$f":"IF(ISBLANK(INDIRECT(\"Gesamt!\"&D$1&$A29)),\"\",INDIRECT(\"Gesamt!\"&D$1&$A29))","v":0},{"$f":"IF(ISBLANK(INDIRECT(\"Gesamt!\"&E$1&$A29)),\"\",INDIRECT(\"Gesamt!\"&E$1&$A29))","v":""}]
[27,{"$f":"IF(ISBLANK(INDIRECT(\"Gesamt!\"&B$1&$A30)),\"\",INDIRECT(\"Gesamt!\"&B$1&$A30))","v":"Endabgabe"},{"$f":"IF(ISBLANK(INDIRECT(\"Gesamt!\"&C$1&$A30)),\"\",INDIRECT(\"Gesamt!\"&C$1&$A30))","v":""},{"$f":"IF(ISBLANK(INDIRECT(\"Gesamt!\"&D$1&$A30)),\"\",INDIRECT(\"Gesamt!\"&D$1&$A30))","v":"Gruppe: "}]
[28,{"$f":"IF(ISBLANK(INDIRECT(\"Gesamt!\"&B$1&$A31)),\"\",INDIRECT(\"Gesamt!\"&B$1&$A31))","v":"Ziel der Endabgabe:"},null,null,{"$f":"IF(ISBLANK(INDIRECT(\"Gesamt!\"&\"B\"&$A31)),\"\",INDIRECT(\"Gesamt!\"&\"B\"&$A31))","v":"Beantwortung der Forschungsfrage unter Nutzung inferenzstatistischer Verfahren und Finalisierung der Arbeit"}]
[29,{"$f":"IF(ISBLANK(INDIRECT(\"Gesamt!\"&B$1&$A32)),\"\",INDIRECT(\"Gesamt!\"&B$1&$A32))","v":""},{"$f":"IF(ISBLANK(INDIRECT(\"Gesamt!\"&C$1&$A32)),\"\",INDIRECT(\"Gesamt!\"&C$1&$A32))","v":"Punkte"},{"$f":"IF(ISBLANK(INDIRECT(\"Gesamt!\"&D$1&$A32)),\"\",INDIRECT(\"Gesamt!\"&D$1&$A32))","v":"Bewertung"},{"$f":"IF(ISBLANK(INDIRECT(\"Gesamt!\"&E$1&$A32)),\"\",INDIRECT(\"Gesamt!\"&E$1&$A32))","v":"Kommentar"}]
[30,{"$f":"IF(ISBLANK(INDIRECT(\"Gesamt!\"&B$1&$A33)),\"\",INDIRECT(\"Gesamt!\"&B$1&$A33))","v":"Verbesserung der Deskriptiven Statistik hinsichtlich Korrektheit, Vollständigkeit, Beschreibung und Einordnung in den Sachkontext\n- Lagemaße (0,5P)\n- Streuungsmaße (0,5P)\n- Ergänzende Maße (0,5P)\n- Zusammenhangsmaße (0,5P)"},{"$f":"IF(ISBLANK(INDIRECT(\"Gesamt!\"&C$1&$A33)),\"\",INDIRECT(\"Gesamt!\"&C$1&$A33))","v":2},{"$f":"IF(ISBLANK(INDIRECT(\"Gesamt!\"&D$1&$A33)),\"\",INDIRECT(\"Gesamt!\"&D$1&$A33))","v":""},{"$f":"IF(ISBLANK(INDIRECT(\"Gesamt!\"&E$1&$A33)),\"\",INDIRECT(\"Gesamt!\"&E$1&$A33))","v":""}]
[31,{"$f":"IF(ISBLANK(INDIRECT(\"Gesamt!\"&B$1&$A34)),\"\",INDIRECT(\"Gesamt!\"&B$1&$A34))","v":"Inferenzstatistik: Freie Methodenwahl\n- Inhaltlich begründete Methodenauswahl (1P)\n- Voraussetzungen erfüllt (0,5P)\n- Fehlerfreie Berechnungen (0,5P)\n- Korrekte Testanwendung (0,5P)\n- Statistische Interpretation und Einordnung in Sachkontext (1P)"},{"$f":"IF(ISBLANK(INDIRECT(\"Gesamt!\"&C$1&$A34)),\"\",INDIRECT(\"Gesamt!\"&C$1&$A34))","v":3.5},{"$f":"IF(ISBLANK(INDIRECT(\"Gesamt!\"&D$1&$A34)),\"\",INDIRECT(\"Gesamt!\"&D$1&$A34))","v":""},{"$f":"IF(ISBLANK(INDIRECT(\"Gesamt!\"&E$1&$A34)),\"\",INDIRECT(\"Gesamt!\"&E$1&$A34))","v":""}]
[32,{"$f":"IF(ISBLANK(INDIRECT(\"Gesamt!\"&B$1&$A35)),\"\",INDIRECT(\"Gesamt!\"&B$1&$A35))","v":"Inferenzstatistik: Zusammenhangsanalyse\n- Variablen- und Methodenauswahl kongruent (1P)\n- Voraussetzungen erfüllt (0,5P)\n- Fehlerfreie Berechnungen (0,5P)\n- Korrekte Testanwendung (0,5P)\n- Statistische Interpretation und Einordnung in Sachkontext (1P)"},{"$f":"IF(ISBLANK(INDIRECT(\"Gesamt!\"&C$1&$A35)),\"\",INDIRECT(\"Gesamt!\"&C$1&$A35))","v":3.5},{"$f":"IF(ISBLANK(INDIRECT(\"Gesamt!\"&D$1&$A35)),\"\",INDIRECT(\"Gesamt!\"&D$1&$A35))","v":""},{"$f":"IF(ISBLANK(INDIRECT(\"Gesamt!\"&E$1&$A35)),\"\",INDIRECT(\"Gesamt!\"&E$1&$A35))","v":""}]
[33,{"$f":"IF(ISBLANK(INDIRECT(\"Gesamt!\"&B$1&$A36)),\"\",INDIRECT(\"Gesamt!\"&B$1&$A36))","v":"Argumentationsfluss & Gesamteindruck\n- Inhaltlicher Aufbau\n- Verknüpfung der Fragestellung mit der Anwendung der inhaltlichen Methoden\n- Verknüpfung deskriptiver und analytischer Statistik\n- Keine rezeptartige Beschreibung von Rechenwegen"},{"$f":"IF(ISBLANK(INDIRECT(\"Gesamt!\"&C$1&$A36)),\"\",INDIRECT(\"Gesamt!\"&C$1&$A36))","v":2},{"$f":"IF(ISBLANK(INDIRECT(\"Gesamt!\"&D$1&$A36)),\"\",INDIRECT(\"Gesamt!\"&D$1&$A36))","v":""},{"$f":"IF(ISBLANK(INDIRECT(\"Gesamt!\"&E$1&$A36)),\"\",INDIRECT(\"Gesamt!\"&E$1&$A36))","v":""}]
[34,{"$f":"IF(ISBLANK(INDIRECT(\"Gesamt!\"&B$1&$A37)),\"\",INDIRECT(\"Gesamt!\"&B$1&$A37))","v":"Zielerreichung\n- Antwort auf die gestellte Forschungsfrage\n- Zusammenfassung der Ergebnisse\n- Kritische Würdigung des eigenen Vorgehens"},{"$f":"IF(ISBLANK(INDIRECT(\"Gesamt!\"&C$1&$A37)),\"\",INDIRECT(\"Gesamt!\"&C$1&$A37))","v":2},{"$f":"IF(ISBLANK(INDIRECT(\"Gesamt!\"&D$1&$A37)),\"\",INDIRECT(\"Gesamt!\"&D$1&$A37))","v":""},{"$f":"IF(ISBLANK(INDIRECT(\"Gesamt!\"&E$1&$A37)),\"\",INDIRECT(\"Gesamt!\"&E$1&$A37))","v":""}]
[35,{"$f":"IF(ISBLANK(INDIRECT(\"Gesamt!\"&B$1&$A38)),\"\",INDIRECT(\"Gesamt!\"&B$1&$A38))","v":"Formalia (Endabgabe)\n- Nutzung des bereitgestellten Templates (fhswf R-Package) und angemessene wissenschaftliche Gestaltung des finalen Dokumentes unter Verwendung der im Template enthaltenen Checkliste\n- Abgabe ist vollständig reproduzierbar (Alle Dateien wurden eingereicht: PDF, Rmd, etc)"},{"$f":"IF(ISBLANK(INDIRECT(\"Gesamt!\"&C$1&$A38)),\"\",INDIRECT(\"Gesamt!\"&C$1&$A38))","v":1},{"$f":"IF(ISBLANK(INDIRECT(\"Gesamt!\"&D$1&$A38)),\"\",INDIRECT(\"Gesamt!\"&D$1&$A38))","v":""},{"$f":"IF(ISBLANK(INDIRECT(\"Gesamt!\"&E$1&$A38)),\"\",INDIRECT(\"Gesamt!\"&E$1&$A38))","v":""}]
[36,{"$f":"IF(ISBLANK(INDIRECT(\"Gesamt!\"&B$1&$A39)),\"\",INDIRECT(\"Gesamt!\"&B$1&$A39))","v":"Analytische Qualität\n- Übersichtlichkeit der Analyse (R Datei)\n- Nachvollziehbarkeit aller Rechnungen\n- Vollständigkeit"},{"$f":"IF(ISBLANK(INDIRECT(\"Gesamt!\"&C$1&$A39)),\"\",INDIRECT(\"Gesamt!\"&C$1&$A39))","v":1},{"$f":"IF(ISBLANK(INDIRECT(\"Gesamt!\"&D$1&$A39)),\"\",INDIRECT(\"Gesamt!\"&D$1&$A39))","v":""},{"$f":"IF(ISBLANK(INDIRECT(\"Gesamt!\"&E$1&$A39)),\"\",INDIRECT(\"Gesamt!\"&E$1&$A39))","v":""}]
[37,{"$f":"IF(ISBLANK(INDIRECT(\"Gesamt!\"&B$1&$A40)),\"\",INDIRECT(\"Gesamt!\"&B$1&$A40))","v":"Zwischensumme Endabgabe"},{"$f":"IF(ISBLANK(INDIRECT(\"Gesamt!\"&C$1&$A40)),\"\",INDIRECT(\"Gesamt!\"&C$1&$A40))","v":15},{"$f":"IF(ISBLANK(INDIRECT(\"Gesamt!\"&D$1&$A40)),\"\",INDIRECT(\"Gesamt!\"&D$1&$A40))","v":0},{"$f":"IF(ISBLANK(INDIRECT(\"Gesamt!\"&E$1&$A40)),\"\",INDIRECT(\"Gesamt!\"&E$1&$A40))","v":""}]
[38,{"$f":"IF(ISBLANK(INDIRECT(\"Gesamt!\"&B$1&$A41)),\"\",INDIRECT(\"Gesamt!\"&B$1&$A41))","v":"Abschließende Bewertung"},{"$f":"IF(ISBLANK(INDIRECT(\"Gesamt!\"&C$1&$A41)),\"\",INDIRECT(\"Gesamt!\"&C$1&$A41))","v":""},{"$f":"IF(ISBLANK(INDIRECT(\"Gesamt!\"&D$1&$A41)),\"\",INDIRECT(\"Gesamt!\"&D$1&$A41))","v":"Gruppe: "}]
[39,{"$f":"IF(ISBLANK(INDIRECT(\"Gesamt!\"&B$1&$A42)),\"\",INDIRECT(\"Gesamt!\"&B$1&$A42))","v":"Exposé"},{"$f":"IF(ISBLANK(INDIRECT(\"Gesamt!\"&C$1&$A42)),\"\",INDIRECT(\"Gesamt!\"&C$1&$A42))","v":2},{"$f":"IF(ISBLANK(INDIRECT(\"Gesamt!\"&D$1&$A42)),\"\",INDIRECT(\"Gesamt!\"&D$1&$A42))","v":0},{"$f":"IF(ISBLANK(INDIRECT(\"Gesamt!\"&E$1&$A42)),\"\",INDIRECT(\"Gesamt!\"&E$1&$A42))","v":"(0,0 %)"}]
[40,{"$f":"IF(ISBLANK(INDIRECT(\"Gesamt!\"&B$1&$A43)),\"\",INDIRECT(\"Gesamt!\"&B$1&$A43))","v":"Zwischenabgabe"},{"$f":"IF(ISBLANK(INDIRECT(\"Gesamt!\"&C$1&$A43)),\"\",INDIRECT(\"Gesamt!\"&C$1&$A43))","v":8},{"$f":"IF(ISBLANK(INDIRECT(\"Gesamt!\"&D$1&$A43)),\"\",INDIRECT(\"Gesamt!\"&D$1&$A43))","v":0},{"$f":"IF(ISBLANK(INDIRECT(\"Gesamt!\"&E$1&$A43)),\"\",INDIRECT(\"Gesamt!\"&E$1&$A43))","v":"(0,0 %)"}]
[41,{"$f":"IF(ISBLANK(INDIRECT(\"Gesamt!\"&B$1&$A44)),\"\",INDIRECT(\"Gesamt!\"&B$1&$A44))","v":"Endabgabe"},{"$f":"IF(ISBLANK(INDIRECT(\"Gesamt!\"&C$1&$A44)),\"\",INDIRECT(\"Gesamt!\"&C$1&$A44))","v":15},{"$f":"IF(ISBLANK(INDIRECT(\"Gesamt!\"&D$1&$A44)),\"\",INDIRECT(\"Gesamt!\"&D$1&$A44))","v":0},{"$f":"IF(ISBLANK(INDIRECT(\"Gesamt!\"&E$1&$A44)),\"\",INDIRECT(\"Gesamt!\"&E$1&$A44))","v":"(0,0 %)"}]
[42,{"$f":"IF(ISBLANK(INDIRECT(\"Gesamt!\"&B$1&$A45)),\"\",INDIRECT(\"Gesamt!\"&B$1&$A45))","v":"Endpunktzahl (rechnerisch)"},{"$f":"IF(ISBLANK(INDIRECT(\"Gesamt!\"&C$1&$A45)),\"\",INDIRECT(\"Gesamt!\"&C$1&$A45))","v":25},{"$f":"IF(ISBLANK(INDIRECT(\"Gesamt!\"&D$1&$A45)),\"\",INDIRECT(\"Gesamt!\"&D$1&$A45))","v":0},{"$f":"IF(ISBLANK(INDIRECT(\"Gesamt!\"&E$1&$A45)),\"\",INDIRECT(\"Gesamt!\"&E$1&$A45))","v":"(0,0 %)"}]
[43,{"$f":"IF(ISBLANK(INDIRECT(\"Gesamt!\"&B$1&$A46)),\"\",INDIRECT(\"Gesamt!\"&B$1&$A46))","v":"Endergebnis (gerundet)"},{"$f":"IF(ISBLANK(INDIRECT(\"Gesamt!\"&C$1&$A46)),\"\",INDIRECT(\"Gesamt!\"&C$1&$A46))","v":25},{"$f":"IF(ISBLANK(INDIRECT(\"Gesamt!\"&D$1&$A46)),\"\",INDIRECT(\"Gesamt!\"&D$1&$A46))","v":0},{"$f":"IF(ISBLANK(INDIRECT(\"Gesamt!\"&E$1&$A46)),\"\",INDIRECT(\"Gesamt!\"&E$1&$A46))","v":"(0,0 %)"}]
[44,{"$f":"IF(ISBLANK(INDIRECT(\"Gesamt!\"&B$1&$A47)),\"\",INDIRECT(\"Gesamt!\"&B$1&$A47))","v":"Quantil (ECTS-Grad) [nur Korrektor]"},{"$f":"IF(ISBLANK(INDIRECT(\"Gesamt!\"&C$1&$A47)),\"\",INDIRECT(\"Gesamt!\"&C$1&$A47))","v":"0-1 (A-E)"},{"$f":"IF(ISBLANK(INDIRECT(\"Gesamt!\"&D$1&$A47)),\"\",INDIRECT(\"Gesamt!\"&D$1&$A47))","v":{"$error":"#N/A"}},{"$f":"IF(ISBLANK(INDIRECT(\"Gesamt!\"&E$1&$A47)),\"\",INDIRECT(\"Gesamt!\"&E$1&$A47))","v":{"$error":"#N/A"}}]
[]
[]
[45,{"$f":"IF(ISBLANK(INDIRECT(\"Gesamt!\"&B$1&$A50)),\"\",INDIRECT(\"Gesamt!\"&B$1&$A50))","v":"Vorleistung (50% der Punkte nach Zwischenabgabe)"}]
[]
[null,{"$f":"IF(ISBLANK(INDIRECT(\"Gesamt!\"&E$1&$A50)),\"\",INDIRECT(\"Gesamt!\"&E$1&$A50))","v":"Nicht Bestanden"}]
[]
[]
[]
[null,"Hinweis: Das Bestehen der Vorleistung ist Bedingung für die Zulassung zur Prüfung. Endpunktzahl (rechnerisch) und Endergebnis (gerundet) werden erst nach bestandener Vorleistung angezeigt."]

{"sheet":"G9","index":10,"n_rows":56,"n_cols":6,"rows_kept":56,"cut":false,"hidden":false,"merged":[[49,1,49,4],[51,1,53,4],[55,1,55,4],[1,1,1,4],[2,1,2,4],[12,3,12,4],[19,3,19,4],[29,3,29,4],[40,3,40,4]]}
["Startspalte:","A","C",{"$f":"SUBSTITUTE(ADDRESS(1,A2,4),\"1\",\"\")","v":"AB"},{"$f":"SUBSTITUTE(ADDRESS(1,A2+1,4),\"1\",\"\")","v":"AC"},{"$f":"SUBSTITUTE(ADDRESS(1,A2+2,4),\"1\",\"\")","v":"AD"}]
[28,{"$f":"\"Feedback - Gruppe: \"&IF(ISBLANK(INDIRECT(\"Gesamt!\"&E$1&$A5)),\"\",INDIRECT(\"Gesamt!\"&E$1&$A5))","v":"Feedback - Gruppe: "}]
[{"$f":"TEXT(TODAY(),\"JJJJMMTT\")","v":"20240514"},{"$f":"TODAY()","v":"2024-05-14"}]
[1,"Oranisatorisches",null,null,{"$f":"IF(ISBLANK(INDIRECT(\"Gesamt!\"&E$1&$A4)),\"\",INDIRECT(\"Gesamt!\"&E$1&$A4))","v":""}]
[2,{"$f":"IF(ISBLANK(INDIRECT(\"Gesamt!\"&B$1&$A5)),\"\",INDIRECT(\"Gesamt!\"&B$1&$A5))","v":"Korrektor"},{"$f":"IF(ISBLANK(INDIRECT(\"Gesamt!\"&C$1&$A5)),\"\",INDIRECT(\"Gesamt!\"&C$1&$A5))","v":""},{"$f":"IF(ISBLANK(INDIRECT(\"Gesamt!\"&D$1&$A5)),\"\",INDIRECT(\"Gesamt!\"&D$1&$A5))","v":"Gruppe"},{"$f":"IF(ISBLANK(INDIRECT(\"Gesamt!\"&E$1&$A5)),\"\",INDIRECT(\"Gesamt!\"&E$1&$A5))","v":""}]
[3,{"$f":"IF(ISBLANK(INDIRECT(\"Gesamt!\"&B$1&$A6)),\"\",INDIRECT(\"Gesamt!\"&B$1&$A6))","v":"Prof. Dr. Benjamin Buchwitz"},{"$f":"IF(ISBLANK(INDIRECT(\"Gesamt!\"&C$1&$A6)),\"\",INDIRECT(\"Gesamt!\"&C$1&$A6))","v":""},{"$f":"IF(ISBLANK(INDIRECT(\"Gesamt!\"&D$1&$A6)),\"\",INDIRECT(\"Gesamt!\"&D$1&$A6))","v":"Matrikelnr."},{"$f":"IF(ISBLANK(INDIRECT(\"Gesamt!\"&E$1&$A6)),\"\",INDIRECT(\"Gesamt!\"&E$1&$A6))","v":"Name"},"Aktiv"]
[4,{"$f":"IF(ISBLANK(INDIRECT(\"Gesamt!\"&B$1&$A7)),\"\",INDIRECT(\"Gesamt!\"&B$1&$A7))","v":"Kontaktmöglichkeit"},{"$f":"IF(ISBLANK(INDIRECT(\"Gesamt!\"&C$1&$A7)),\"\",INDIRECT(\"Gesamt!\"&C$1&$A7))","v":""},{"$f":"IF(ISBLANK(INDIRECT(\"Gesamt!\"&D$1&$A7)),\"\",INDIRECT(\"Gesamt!\"&D$1&$A7))","v":""},{"$f":"IF(ISBLANK(INDIRECT(\"Gesamt!\"&E$1&$A7)),\"\",INDIRECT(\"Gesamt!\"&E$1&$A7))","v":""},{"$f":"IF(ISBLANK(INDIRECT(\"Gesamt!\"&F$1&$A7)),\"\",INDIRECT(\"Gesamt!\"&F$1&$A7))","v":true}]
[5,{"$f":"IF(ISBLANK(INDIRECT(\"Gesamt!\"&B$1&$A8)),\"\",INDIRECT(\"Gesamt!\"&B$1&$A8))","v":"buchwitz.benjamin@fh-swf.de"},{"$f":"IF(ISBLANK(INDIRECT(\"Gesamt!\"&C$1&$A8)),\"\",INDIRECT(\"Gesamt!\"&C$1&$A8))","v":""},{"$f":"IF(ISBLANK(INDIRECT(\"Gesamt!\"&D$1&$A8)),\"\",INDIRECT(\"Gesamt!\"&D$1&$A8))","v":""},{"$f":"IF(ISBLANK(INDIRECT(\"Gesamt!\"&E$1&$A8)),\"\",INDIRECT(\"Gesamt!\"&E$1&$A8))","v":""},{"$f":"IF(ISBLANK(INDIRECT(\"Gesamt!\"&F$1&$A8)),\"\",INDIRECT(\"Gesamt!\"&F$1&$A8))","v":" "}]
[6,{"$f":"IF(ISBLANK(INDIRECT(\"Gesamt!\"&B$1&$A9)),\"\",INDIRECT(\"Gesamt!\"&B$1&$A9))","v":""},{"$f":"IF(ISBLANK(INDIRECT(\"Gesamt!\"&C$1&$A9)),\"\",INDIRECT(\"Gesamt!\"&C$1&$A9))","v":""},{"$f":"IF(ISBLANK(INDIRECT(\"Gesamt!\"&D$1&$A9)),\"\",INDIRECT(\"Gesamt!\"&D$1&$A9))","v":""},{"$f":"IF(ISBLANK(INDIRECT(\"Gesamt!\"&E$1&$A9)),\"\",INDIRECT(\"Gesamt!\"&E$1&$A9))","v":""},{"$f":"IF(ISBLANK(INDIRECT(\"Gesamt!\"&F$1&$A9)),\"\",INDIRECT(\"Gesamt!\"&F$1&$A9))","v":" "}]
[7,"Kommunikationsverantwortlicher Autor:",{"$f":"IF(ISBLANK(INDIRECT(\"Gesamt!\"&C$1&$A10)),\"\",INDIRECT(\"Gesamt!\"&C$1&$A10))","v":""},{"$f":"IF(ISBLANK(INDIRECT(\"Gesamt!\"&D$1&$A10)),\"\",INDIRECT(\"Gesamt!\"&D$1&$A10))","v":""},{"$f":"IF(ISBLANK(INDIRECT(\"Gesamt!\"&E$1&$A10)),\"\",INDIRECT(\"Gesamt!\"&E$1&$A10))","v":""},{"$f":"IF(ISBLANK(INDIRECT(\"Gesamt!\"&F$1&$A10)),\"\",INDIRECT(\"Gesamt!\"&F$1&$A10))","v":" "}]
[8,{"$f":"E7 & \" (Gruppensprecher:in)\"","v":" (Gruppensprecher:in)"},{"$f":"IF(ISBLANK(INDIRECT(\"Gesamt!\"&C$1&$A11)),\"\",INDIRECT(\"Gesamt!\"&C$1&$A11))","v":""},{"$f":"IF(ISBLANK(INDIRECT(\"Gesamt!\"&D$1&$A11)),\"\",INDIRECT(\"Gesamt!\"&D$1&$A11))","v":""},{"$f":"IF(ISBLANK(INDIRECT(\"Gesamt!\"&E$1&$A11)),\"\",INDIRECT(\"Gesamt!\"&E$1&$A11))","v":""},{"$f":"IF(ISBLANK(INDIRECT(\"Gesamt!\"&F$1&$A11)),\"\",INDIRECT(\"Gesamt!\"&F$1&$A11))","v":" "}]
[9,{"$f":"IF(ISBLANK(INDIRECT(\"Gesamt!\"&B$1&$A12)),\"\",INDIRECT(\"Gesamt!\"&B$1&$A12))","v":""},{"$f":"IF(ISBLANK(INDIRECT(\"Gesamt!\"&C$1&$A12)),\"\",INDIRECT(\"Gesamt!\"&C$1&$A12))","v":""},{"$f":"IF(ISBLANK(INDIRECT(\"Gesamt!\"&D$1&$A12)),\"\",INDIRECT(\"Gesamt!\"&D$1&$A12))","v":""},{"$f":"IF(ISBLANK(INDIRECT(\"Gesamt!\"&E$1&$A12)),\"\",INDIRECT(\"Gesamt!\"&E$1&$A12))","v":""},{"$f":"IF(ISBLANK(INDIRECT(\"Gesamt!\"&F$1&$A12)),\"\",INDIRECT(\"Gesamt!\"&F$1&$A12))","v":" "}]
[10,{"$f":"IF(ISBLANK(INDIRECT(\"Gesamt!\"&B$1&$A13)),\"\",INDIRECT(\"Gesamt!\"&B$1&$A13))","v":"Exposé"},{"$f":"IF(ISBLANK(INDIRECT(\"Gesamt!\"&C$1&$A13)),\"\",INDIRECT(\"Gesamt!\"&C$1&$A13))","v":""},{"$f":"IF(ISBLANK(INDIRECT(\"Gesamt!\"&D$1&$A13)),\"\",INDIRECT(\"Gesamt!\"&D$1&$A13))","v":"Gruppe: "}]
[11,{"$f":"IF(ISBLANK(INDIRECT(\"Gesamt!\"&B$1&$A14)),\"\",INDIRECT(\"Gesamt!\"&B$1&$A14))","v":"Ziel des Exposés:"},null,null,{"$f":"IF(ISBLANK(INDIRECT(\"Gesamt!\"&\"B\"&$A14)),\"\",INDIRECT(\"Gesamt!\"&\"B\"&$A14))","v":"Einarbeitung in den Sachkontext und Genese einer zum Datensatz passenden Forschungsfrage"}]
[12,{"$f":"IF(ISBLANK(INDIRECT(\"Gesamt!\"&B$1&$A15)),\"\",INDIRECT(\"Gesamt!\"&B$1&$A15))","v":""},{"$f":"IF(ISBLANK(INDIRECT(\"Gesamt!\"&C$1&$A15)),\"\",INDIRECT(\"Gesamt!\"&C$1&$A15))","v":"Punkte"},{"$f":"IF(ISBLANK(INDIRECT(\"Gesamt!\"&D$1&$A15)),\"\",INDIRECT(\"Gesamt!\"&D$1&$A15))","v":"Bewertung"},{"$f":"IF(ISBLANK(INDIRECT(\"Gesamt!\"&E$1&$A15)),\"\",INDIRECT(\"Gesamt!\"&E$1&$A15))","v":"Kommentar"}]
[13,{"$f":"IF(ISBLANK(INDIRECT(\"Gesamt!\"&B$1&$A16)),\"\",INDIRECT(\"Gesamt!\"&B$1&$A16))","v":"Forschungsgegenstand\n- Zielausgestaltung (0,2P)\n- Fragestellung (0,4P)\n- Hypothesen (0,4P)"},{"$f":"IF(ISBLANK(INDIRECT(\"Gesamt!\"&C$1&$A16)),\"\",INDIRECT(\"Gesamt!\"&C$1&$A16))","v":1},{"$f":"IF(ISBLANK(INDIRECT(\"Gesamt!\"&D$1&$A16)),\"\",INDIRECT(\"Gesamt!\"&D$1&$A16))","v":""},{"$f":"IF(ISBLANK(INDIRECT(\"Gesamt!\"&E$1&$A16)),\"\",INDIRECT(\"Gesamt!\"&E$1&$A16))","v":""}]
[14,{"$f":"IF(ISBLANK(INDIRECT(\"Gesamt!\"&B$1&$A17)),\"\",INDIRECT(\"Gesamt!\"&B$1&$A17))","v":"Komposition\n- Inhaltlicher Zusammenhang (0,2P)\n- fachsprachlich formulierte Vorgehensweise (0,2P)\n- Motivation des Themas (0,1P)"},{"$f":"IF(ISBLANK(INDIRECT(\"Gesamt!\"&C$1&$A17)),\"\",INDIRECT(\"Gesamt!\"&C$1&$A17))","v":0.5},{"$f":"IF(ISBLANK(INDIRECT(\"Gesamt!\"&D$1&$A17)),\"\",INDIRECT(\"Gesamt!\"&D$1&$A17))","v":""},{"$f":"IF(ISBLANK(INDIRECT(\"Gesamt!\"&E$1&$A17)),\"\",INDIRECT(\"Gesamt!\"&E$1&$A17))","v":""}]
[15,{"$f":"IF(ISBLANK(INDIRECT(\"Gesamt!\"&B$1&$A18)),\"\",INDIRECT(\"Gesamt!\"&B$1&$A18))","v":"Formalia (Exposé)\n- Template Nutzung & Formatierung (0,3P)\n- Schreibstil & Rechtschreibung (0,2P)"},{"$f":"IF(ISBLANK(INDIRECT(\"Gesamt!\"&C$1&$A18)),\"\",INDIRECT(\"Gesamt!\"&C$1&$A18))","v":0.5},{"$f":"IF(ISBLANK(INDIRECT(\"Gesamt!\"&D$1&$A18)),\"\",INDIRECT(\"Gesamt!\"&D$1&$A18))","v":""},{"$f":"IF(ISBLANK(INDIRECT(\"Gesamt!\"&E$1&$A18)),\"\",INDIRECT(\"Gesamt!\"&E$1&$A18))","v":""}]
[16,{"$f":"IF(ISBLANK(INDIRECT(\"Gesamt!\"&B$1&$A19)),\"\",INDIRECT(\"Gesamt!\"&B$1&$A19))","v":"Zwischensumme Exposé"},{"$f":"IF(ISBLANK(INDIRECT(\"Gesamt!\"&C$1&$A19)),\"\",INDIRECT(\"Gesamt!\"&C$1&$A19))","v":2},{"$f":"IF(ISBLANK(INDIRECT(\"Gesamt!\"&D$1&$A19)),\"\",INDIRECT(\"Gesamt!\"&D$1&$A19))","v":0},{"$f":"IF(ISBLANK(INDIRECT(\"Gesamt!\"&E$1&$A19)),\"\",INDIRECT(\"Gesamt!\"&E$1&$A19))","v":""}]
[17,{"$f":"IF(ISBLANK(INDIRECT(\"Gesamt!\"&B$1&$A20)),\"\",INDIRECT(\"Gesamt!\"&B$1&$A20))","v":"Zwischenabgabe"},{"$f":"IF(ISBLANK(INDIRECT(\"Gesamt!\"&C$1&$A20)),\"\",INDIRECT(\"Gesamt!\"&C$1&$A20))","v":""},{"$f":"IF(ISBLANK(INDIRECT(\"Gesamt!\"&D$1&$A20)),\"\",INDIRECT(\"Gesamt!\"&D$1&$A20))","v":"Gruppe: "}]
[18,{"$f":"IF(ISBLANK(INDIRECT(\"Gesamt!\"&B$1&$A21)),\"\",INDIRECT(\"Gesamt!\"&B$1&$A21))","v":"Ziel der Zwischenabgabe:"},null,null,{"$f":"IF(ISBLANK(INDIRECT(\"Gesamt!\"&\"B\"&$A21)),\"\",INDIRECT(\"Gesamt!\"&\"B\"&$A21))","v":"Vorstellung des Datensatzes und Vorbereitung der inferenzstatistischen Analyseverfahren"}]
[19,{"$f":"IF(ISBLANK(INDIRECT(\"Gesamt!\"&B$1&$A22)),\"\",INDIRECT(\"Gesamt!\"&B$1&$A22))","v":""},{"$f":"IF(ISBLANK(INDIRECT(\"Gesamt!\"&C$1&$A22)),\"\",INDIRECT(\"Gesamt!\"&C$1&$A22))","v":"Punkte"},{"$f":"IF(ISBLANK(INDIRECT(\"Gesamt!\"&D$1&$A22)),\"\",INDIRECT(\"Gesamt!\"&D$1&$A22))","v":"Bewertung"},{"$f":"IF(ISBLANK(INDIRECT(\"Gesamt!\"&E$1&$A22)),\"\",INDIRECT(\"Gesamt!\"&E$1&$A22))","v":"Kommentar"}]
[20,{"$f":"IF(ISBLANK(INDIRECT(\"Gesamt!\"&B$1&$A23)),\"\",INDIRECT(\"Gesamt!\"&B$1&$A23))","v":"Lage- & Streuungsmaße\n- Deskriptive Statistik für alle verwendeten Variablen\n- Berechnung, Interpretation und Einordnung in den Sachkontext"},{"$f":"IF(ISBLANK(INDIRECT(\"Gesamt!\"&C$1&$A23)),\"\",INDIRECT(\"Gesamt!\"&C$1&$A23))","v":2},{"$f":"IF(ISBLANK(INDIRECT(\"Gesamt!\"&D$1&$A23)),\"\",INDIRECT(\"Gesamt!\"&D$1&$A23))","v":""},{"$f":"IF(ISBLANK(INDIRECT(\"Gesamt!\"&E$1&$A23)),\"\",INDIRECT(\"Gesamt!\"&E$1&$A23))","v":""}]
[21,{"$f":"IF(ISBLANK(INDIRECT(\"Gesamt!\"&B$1&$A24)),\"\",INDIRECT(\"Gesamt!\"&B$1&$A24))","v":"Zusammenhangsmaße\n- Berechnung, Interpretation und Einordnung in den Sachkontext von (min.) einem Zusammenhangsmaß"},{"$f":"IF(ISBLANK(INDIRECT(\"Gesamt!\"&C$1&$A24)),\"\",INDIRECT(\"Gesamt!\"&C$1&$A24))","v":1},{"$f":"IF(ISBLANK(INDIRECT(\"Gesamt!\"&D$1&$A24)),\"\",INDIRECT(\"Gesamt!\"&D$1&$A24))","v":""},{"$f":"IF(ISBLANK(INDIRECT(\"Gesamt!\"&E$1&$A24)),\"\",INDIRECT(\"Gesamt!\"&E$1&$A24))","v":""}]
[22,{"$f":"IF(ISBLANK(INDIRECT(\"Gesamt!\"&B$1&$A25)),\"\",INDIRECT(\"Gesamt!\"&B$1&$A25))","v":"Ergänzende Berechnung\n- Ergänzende Berechnung, Interpretation und Einordnung in den Sachkontext (min.) eines weiteren Zusammenhangsmaßes oder Konzentrationsmaßes"},{"$f":"IF(ISBLANK(INDIRECT(\"Gesamt!\"&C$1&$A25)),\"\",INDIRECT(\"Gesamt!\"&C$1&$A25))","v":1},{"$f":"IF(ISBLANK(INDIRECT(\"Gesamt!\"&D$1&$A25)),\"\",INDIRECT(\"Gesamt!\"&D$1&$A25))","v":""},{"$f":"IF(ISBLANK(INDIRECT(\"Gesamt!\"&E$1&$A25)),\"\",INDIRECT(\"Gesamt!\"&E$1&$A25))","v":""}]
[23,{"$f":"IF(ISBLANK(INDIRECT(\"Gesamt!\"&B$1&$A26)),\"\",INDIRECT(\"Gesamt!\"&B$1&$A26))","v":"Diagramme\n- Sinnvoll unterstützender / ergänzender Einsatz einer grafischen Aufbereitung der Daten (0,5P)\n- Ergänzende Darstellung eines weiteren, andersartigen Diagrammes (0,5P)"},{"$f":"IF(ISBLANK(INDIRECT(\"Gesamt!\"&C$1&$A26)),\"\",INDIRECT(\"Gesamt!\"&C$1&$A26))","v":1},{"$f":"IF(ISBLANK(INDIRECT(\"Gesamt!\"&D$1&$A26)),\"\",INDIRECT(\"Gesamt!\"&D$1&$A26))","v":""},{"$f":"IF(ISBLANK(INDIRECT(\"Gesamt!\"&E$1&$A26)),\"\",INDIRECT(\"Gesamt!\"&E$1&$A26))","v":""}]
[24,{"$f":"IF(ISBLANK(INDIRECT(\"Gesamt!\"&B$1&$A27)),\"\",INDIRECT(\"Gesamt!\"&B$1&$A27))","v":"Komposition\n- Zweckmäßiger Methodeneinsatz (1P)\n- Zielgerichtete Argumentation (1P)"},{"$f":"IF(ISBLANK(INDIRECT(\"Gesamt!\"&C$1&$A27)),\"\",INDIRECT(\"Gesamt!\"&C$1&$A27))","v":2},{"$f":"IF(ISBLANK(INDIRECT(\"Gesamt!\"&D$1&$A27)),\"\",INDIRECT(\"Gesamt!\"&D$1&$A27))","v":""},{"$f":"IF(ISBLANK(INDIRECT(\"Gesamt!\"&E$1&$A27)),\"\",INDIRECT(\"Gesamt!\"&E$1&$A27))","v":""}]
[25,{"$f":"IF(ISBLANK(INDIRECT(\"Gesamt!\"&B$1&$A28)),\"\",INDIRECT(\"Gesamt!\"&B$1&$A28))","v":"Formalia (Zwischenabgabe)\n- Analytische Ausarbeitung (0,5P)\n    + Übersichtlichkeit\n    + Nachvollziehbarkeit aller Rechnungen\n- Schriftliche Ausarbeitung (0,5P)\n    + Formatierung des Dokuments\n    + Zitation wissenschaftlicher Quellen"},{"$f":"IF(ISBLANK(INDIRECT(\"Gesamt!\"&C$1&$A28)),\"\",INDIRECT(\"Gesamt!\"&C$1&$A28))","v":1},{"$f":"IF(ISBLANK(INDIRECT(\"Gesamt!\"&D$1&$A28)),\"\",INDIRECT(\"Gesamt!\"&D$1&$A28))","v":""},{"$f":"IF(ISBLANK(INDIRECT(\"Gesamt!\"&E$1&$A28)),\"\",INDIRECT(\"Gesamt!\"&E$1&$A28))","v":""}]
[26,{"$f":"IF(ISBLANK(INDIRECT(\"Gesamt!\"&B$1&$A29)),\"\",INDIRECT(\"Gesamt!\"&B$1&$A29))","v":"Zwischensumme Zwischenabgabe"},{"$f":"IF(ISBLANK(INDIRECT(\"Gesamt!\"&C$1&$A29)),\"\",INDIRECT(\"Gesamt!\"&C$1&$A29))","v":8},{"$f":"IF(ISBLANK(INDIRECT(\"Gesamt!\"&D$1&$A29)),\"\",INDIRECT(\"Gesamt!\"&D$1&$A29))","v":0},{"$f":"IF(ISBLANK(INDIRECT(\"Gesamt!\"&E$1&$A29)),\"\",INDIRECT(\"Gesamt!\"&E$1&$A29))","v":""}]
[27,{"$f":"IF(ISBLANK(INDIRECT(\"Gesamt!\"&B$1&$A30)),\"\",INDIRECT(\"Gesamt!\"&B$1&$A30))","v":"Endabgabe"},{"$f":"IF(ISBLANK(INDIRECT(\"Gesamt!\"&C$1&$A30)),\"\",INDIRECT(\"Gesamt!\"&C$1&$A30))","v":""},{"$f":"IF(ISBLANK(INDIRECT(\"Gesamt!\"&D$1&$A30)),\"\",INDIRECT(\"Gesamt!\"&D$1&$A30))","v":"Gruppe: "}]
[28,{"$f":"IF(ISBLANK(INDIRECT(\"Gesamt!\"&B$1&$A31)),\"\",INDIRECT(\"Gesamt!\"&B$1&$A31))","v":"Ziel der Endabgabe:"},null,null,{"$f":"IF(ISBLANK(INDIRECT(\"Gesamt!\"&\"B\"&$A31)),\"\",INDIRECT(\"Gesamt!\"&\"B\"&$A31))","v":"Beantwortung der Forschungsfrage unter Nutzung inferenzstatistischer Verfahren und Finalisierung der Arbeit"}]
[29,{"$f":"IF(ISBLANK(INDIRECT(\"Gesamt!\"&B$1&$A32)),\"\",INDIRECT(\"Gesamt!\"&B$1&$A32))","v":""},{"$f":"IF(ISBLANK(INDIRECT(\"Gesamt!\"&C$1&$A32)),\"\",INDIRECT(\"Gesamt!\"&C$1&$A32))","v":"Punkte"},{"$f":"IF(ISBLANK(INDIRECT(\"Gesamt!\"&D$1&$A32)),\"\",INDIRECT(\"Gesamt!\"&D$1&$A32))","v":"Bewertung"},{"$f":"IF(ISBLANK(INDIRECT(\"Gesamt!\"&E$1&$A32)),\"\",INDIRECT(\"Gesamt!\"&E$1&$A32))","v":"Kommentar"}]
[30,{"$f":"IF(ISBLANK(INDIRECT(\"Gesamt!\"&B$1&$A33)),\"\",INDIRECT(\"Gesamt!\"&B$1&$A33))","v":"Verbesserung der Deskriptiven Statistik hinsichtlich Korrektheit, Vollständigkeit, Beschreibung und Einordnung in den Sachkontext\n- Lagemaße (0,5P)\n- Streuungsmaße (0,5P)\n- Ergänzende Maße (0,5P)\n- Zusammenhangsmaße (0,5P)"},{"$f":"IF(ISBLANK(INDIRECT(\"Gesamt!\"&C$1&$A33)),\"\",INDIRECT(\"Gesamt!\"&C$1&$A33))","v":2},{"$f":"IF(ISBLANK(INDIRECT(\"Gesamt!\"&D$1&$A33)),\"\",INDIRECT(\"Gesamt!\"&D$1&$A33))","v":""},{"$f":"IF(ISBLANK(INDIRECT(\"Gesamt!\"&E$1&$A33)),\"\",INDIRECT(\"Gesamt!\"&E$1&$A33))","v":""}]
[31,{"$f":"IF(ISBLANK(INDIRECT(\"Gesamt!\"&B$1&$A34)),\"\",INDIRECT(\"Gesamt!\"&B$1&$A34))","v":"Inferenzstatistik: Freie Methodenwahl\n- Inhaltlich begründete Methodenauswahl (1P)\n- Voraussetzungen erfüllt (0,5P)\n- Fehlerfreie Berechnungen (0,5P)\n- Korrekte Testanwendung (0,5P)\n- Statistische Interpretation und Einordnung in Sachkontext (1P)"},{"$f":"IF(ISBLANK(INDIRECT(\"Gesamt!\"&C$1&$A34)),\"\",INDIRECT(\"Gesamt!\"&C$1&$A34))","v":3.5},{"$f":"IF(ISBLANK(INDIRECT(\"Gesamt!\"&D$1&$A34)),\"\",INDIRECT(\"Gesamt!\"&D$1&$A34))","v":""},{"$f":"IF(ISBLANK(INDIRECT(\"Gesamt!\"&E$1&$A34)),\"\",INDIRECT(\"Gesamt!\"&E$1&$A34))","v":""}]
[32,{"$f":"IF(ISBLANK(INDIRECT(\"Gesamt!\"&B$1&$A35)),\"\",INDIRECT(\"Gesamt!\"&B$1&$A35))","v":"Inferenzstatistik: Zusammenhangsanalyse\n- Variablen- und Methodenauswahl kongruent (1P)\n- Voraussetzungen erfüllt (0,5P)\n- Fehlerfreie Berechnungen (0,5P)\n- Korrekte Testanwendung (0,5P)\n- Statistische Interpretation und Einordnung in Sachkontext (1P)"},{"$f":"IF(ISBLANK(INDIRECT(\"Gesamt!\"&C$1&$A35)),\"\",INDIRECT(\"Gesamt!\"&C$1&$A35))","v":3.5},{"$f":"IF(ISBLANK(INDIRECT(\"Gesamt!\"&D$1&$A35)),\"\",INDIRECT(\"Gesamt!\"&D$1&$A35))","v":""},{"$f":"IF(ISBLANK(INDIRECT(\"Gesamt!\"&E$1&$A35)),\"\",INDIRECT(\"Gesamt!\"&E$1&$A35))","v":""}]
[33,{"$f":"IF(ISBLANK(INDIRECT(\"Gesamt!\"&B$1&$A36)),\"\",INDIRECT(\"Gesamt!\"&B$1&$A36))","v":"Argumentationsfluss & Gesamteindruck\n- Inhaltlicher Aufbau\n- Verknüpfung der Fragestellung mit der Anwendung der inhaltlichen Methoden\n- Verknüpfung deskriptiver und analytischer Statistik\n- Keine rezeptartige Beschreibung von Rechenwegen"},{"$f":"IF(ISBLANK(INDIRECT(\"Gesamt!\"&C$1&$A36)),\"\",INDIRECT(\"Gesamt!\"&C$1&$A36))","v":2},{"$f":"IF(ISBLANK(INDIRECT(\"Gesamt!\"&D$1&$A36)),\"\",INDIRECT(\"Gesamt!\"&D$1&$A36))","v":""},{"$f":"IF(ISBLANK(INDIRECT(\"Gesamt!\"&E$1&$A36)),\"\",INDIRECT(\"Gesamt!\"&E$1&$A36))","v":""}]
[34,{"$f":"IF(ISBLANK(INDIRECT(\"Gesamt!\"&B$1&$A37)),\"\",INDIRECT(\"Gesamt!\"&B$1&$A37))","v":"Zielerreichung\n- Antwort auf die gestellte Forschungsfrage\n- Zusammenfassung der Ergebnisse\n- Kritische Würdigung des eigenen Vorgehens"},{"$f":"IF(ISBLANK(INDIRECT(\"Gesamt!\"&C$1&$A37)),\"\",INDIRECT(\"Gesamt!\"&C$1&$A37))","v":2},{"$f":"IF(ISBLANK(INDIRECT(\"Gesamt!\"&D$1&$A37)),\"\",INDIRECT(\"Gesamt!\"&D$1&$A37))","v":""},{"$f":"IF(ISBLANK(INDIRECT(\"Gesamt!\"&E$1&$A37)),\"\",INDIRECT(\"Gesamt!\"&E$1&$A37))","v":""}]
[35,{"$f":"IF(ISBLANK(INDIRECT(\"Gesamt!\"&B$1&$A38)),\"\",INDIRECT(\"Gesamt!\"&B$1&$A38))","v":"Formalia (Endabgabe)\n- Nutzung des bereitgestellten Templates (fhswf R-Package) und angemessene wissenschaftliche Gestaltung des finalen Dokumentes unter Verwendung der im Template enthaltenen Checkliste\n- Abgabe ist vollständig reproduzierbar (Alle Dateien wurden eingereicht: PDF, Rmd, etc)"},{"$f":"IF(ISBLANK(INDIRECT(\"Gesamt!\"&C$1&$A38)),\"\",INDIRECT(\"Gesamt!\"&C$1&$A38))","v":1},{"$f":"IF(ISBLANK(INDIRECT(\"Gesamt!\"&D$1&$A38)),\"\",INDIRECT(\"Gesamt!\"&D$1&$A38))","v":""},{"$f":"IF(ISBLANK(INDIRECT(\"Gesamt!\"&E$1&$A38)),\"\",INDIRECT(\"Gesamt!\"&E$1&$A38))","v":""}]
[36,{"$f":"IF(ISBLANK(INDIRECT(\"Gesamt!\"&B$1&$A39)),\"\",INDIRECT(\"Gesamt!\"&B$1&$A39))","v":"Analytische Qualität\n- Übersichtlichkeit der Analyse (R Datei)\n- Nachvollziehbarkeit aller Rechnungen\n- Vollständigkeit"},{"$f":"IF(ISBLANK(INDIRECT(\"Gesamt!\"&C$1&$A39)),\"\",INDIRECT(\"Gesamt!\"&C$1&$A39))","v":1},{"$f":"IF(ISBLANK(INDIRECT(\"Gesamt!\"&D$1&$A39)),\"\",INDIRECT(\"Gesamt!\"&D$1&$A39))","v":""},{"$f":"IF(ISBLANK(INDIRECT(\"Gesamt!\"&E$1&$A39)),\"\",INDIRECT(\"Gesamt!\"&E$1&$A39))","v":""}]
[37,{"$f":"IF(ISBLANK(INDIRECT(\"Gesamt!\"&B$1&$A40)),\"\",INDIRECT(\"Gesamt!\"&B$1&$A40))","v":"Zwischensumme Endabgabe"},{"$f":"IF(ISBLANK(INDIRECT(\"Gesamt!\"&C$1&$A40)),\"\",INDIRECT(\"Gesamt!\"&C$1&$A40))","v":15},{"$f":"IF(ISBLANK(INDIRECT(\"Gesamt!\"&D$1&$A40)),\"\",INDIRECT(\"Gesamt!\"&D$1&$A40))","v":0},{"$f":"IF(ISBLANK(INDIRECT(\"Gesamt!\"&E$1&$A40)),\"\",INDIRECT(\"Gesamt!\"&E$1&$A40))","v":""}]
[38,{"$f":"IF(ISBLANK(INDIRECT(\"Gesamt!\"&B$1&$A41)),\"\",INDIRECT(\"Gesamt!\"&B$1&$A41))","v":"Abschließende Bewertung"},{"$f":"IF(ISBLANK(INDIRECT(\"Gesamt!\"&C$1&$A41)),\"\",INDIRECT(\"Gesamt!\"&C$1&$A41))","v":""},{"$f":"IF(ISBLANK(INDIRECT(\"Gesamt!\"&D$1&$A41)),\"\",INDIRECT(\"Gesamt!\"&D$1&$A41))","v":"Gruppe: "}]
[39,{"$f":"IF(ISBLANK(INDIRECT(\"Gesamt!\"&B$1&$A42)),\"\",INDIRECT(\"Gesamt!\"&B$1&$A42))","v":"Exposé"},{"$f":"IF(ISBLANK(INDIRECT(\"Gesamt!\"&C$1&$A42)),\"\",INDIRECT(\"Gesamt!\"&C$1&$A42))","v":2},{"$f":"IF(ISBLANK(INDIRECT(\"Gesamt!\"&D$1&$A42)),\"\",INDIRECT(\"Gesamt!\"&D$1&$A42))","v":0},{"$f":"IF(ISBLANK(INDIRECT(\"Gesamt!\"&E$1&$A42)),\"\",INDIRECT(\"Gesamt!\"&E$1&$A42))","v":"(0,0 %)"}]
[40,{"$f":"IF(ISBLANK(INDIRECT(\"Gesamt!\"&B$1&$A43)),\"\",INDIRECT(\"Gesamt!\"&B$1&$A43))","v":"Zwischenabgabe"},{"$f":"IF(ISBLANK(INDIRECT(\"Gesamt!\"&C$1&$A43)),\"\",INDIRECT(\"Gesamt!\"&C$1&$A43))","v":8},{"$f":"IF(ISBLANK(INDIRECT(\"Gesamt!\"&D$1&$A43)),\"\",INDIRECT(\"Gesamt!\"&D$1&$A43))","v":0},{"$f":"IF(ISBLANK(INDIRECT(\"Gesamt!\"&E$1&$A43)),\"\",INDIRECT(\"Gesamt!\"&E$1&$A43))","v":"(0,0 %)"}]
[41,{"$f":"IF(ISBLANK(INDIRECT(\"Gesamt!\"&B$1&$A44)),\"\",INDIRECT(\"Gesamt!\"&B$1&$A44))","v":"Endabgabe"},{"$f":"IF(ISBLANK(INDIRECT(\"Gesamt!\"&C$1&$A44)),\"\",INDIRECT(\"Gesamt!\"&C$1&$A44))","v":15},{"$f":"IF(ISBLANK(INDIRECT(\"Gesamt!\"&D$1&$A44)),\"\",INDIRECT(\"Gesamt!\"&D$1&$A44))","v":0},{"$f":"IF(ISBLANK(INDIRECT(\"Gesamt!\"&E$1&$A44)),\"\",INDIRECT(\"Gesamt!\"&E$1&$A44))","v":"(0,0 %)"}]
[42,{"$f":"IF(ISBLANK(INDIRECT(\"Gesamt!\"&B$1&$A45)),\"\",INDIRECT(\"Gesamt!\"&B$1&$A45))","v":"Endpunktzahl (rechnerisch)"},{"$f":"IF(ISBLANK(INDIRECT(\"Gesamt!\"&C$1&$A45)),\"\",INDIRECT(\"Gesamt!\"&C$1&$A45))","v":25},{"$f":"IF(ISBLANK(INDIRECT(\"Gesamt!\"&D$1&$A45)),\"\",INDIRECT(\"Gesamt!\"&D$1&$A45))","v":0},{"$f":"IF(ISBLANK(INDIRECT(\"Gesamt!\"&E$1&$A45)),\"\",INDIRECT(\"Gesamt!\"&E$1&$A45))","v":"(0,0 %)"}]
[43,{"$f":"IF(ISBLANK(INDIRECT(\"Gesamt!\"&B$1&$A46)),\"\",INDIRECT(\"Gesamt!\"&B$1&$A46))","v":"Endergebnis (gerundet)"},{"$f":"IF(ISBLANK(INDIRECT(\"Gesamt!\"&C$1&$A46)),\"\",INDIRECT(\"Gesamt!\"&C$1&$A46))","v":25},{"$f":"IF(ISBLANK(INDIRECT(\"Gesamt!\"&D$1&$A46)),\"\",INDIRECT(\"Gesamt!\"&D$1&$A46))","v":0},{"$f":"IF(ISBLANK(INDIRECT(\"Gesamt!\"&E$1&$A46)),\"\",INDIRECT(\"Gesamt!\"&E$1&$A46))","v":"(0,0 %)"}]
[44,{"$f":"IF(ISBLANK(INDIRECT(\"Gesamt!\"&B$1&$A47)),\"\",INDIRECT(\"Gesamt!\"&B$1&$A47))","v":"Quantil (ECTS-Grad) [nur Korrektor]"},{"$f":"IF(ISBLANK(INDIRECT(\"Gesamt!\"&C$1&$A47)),\"\",INDIRECT(\"Gesamt!\"&C$1&$A47))","v":"0-1 (A-E)"},{"$f":"IF(ISBLANK(INDIRECT(\"Gesamt!\"&D$1&$A47)),\"\",INDIRECT(\"Gesamt!\"&D$1&$A47))","v":{"$error":"#N/A"}},{"$f":"IF(ISBLANK(INDIRECT(\"Gesamt!\"&E$1&$A47)),\"\",INDIRECT(\"Gesamt!\"&E$1&$A47))","v":{"$error":"#N/A"}}]
[]
[]
[45,{"$f":"IF(ISBLANK(INDIRECT(\"Gesamt!\"&B$1&$A50)),\"\",INDIRECT(\"Gesamt!\"&B$1&$A50))","v":"Vorleistung (50% der Punkte nach Zwischenabgabe)"}]
[]
[null,{"$f":"IF(ISBLANK(INDIRECT(\"Gesamt!\"&E$1&$A50)),\"\",INDIRECT(\"Gesamt!\"&E$1&$A50))","v":"Nicht Bestanden"}]
[]
[]
[]
[null,"Hinweis: Das Bestehen der Vorleistung ist Bedingung für die Zulassung zur Prüfung. Endpunktzahl (rechnerisch) und Endergebnis (gerundet) werden erst nach bestandener Vorleistung angezeigt."]

{"sheet":"G10","index":11,"n_rows":56,"n_cols":6,"rows_kept":56,"cut":false,"hidden":false,"merged":[[49,1,49,4],[51,1,53,4],[55,1,55,4],[1,1,1,4],[2,1,2,4],[12,3,12,4],[19,3,19,4],[29,3,29,4],[40,3,40,4]]}
["Startspalte:","A","C",{"$f":"SUBSTITUTE(ADDRESS(1,A2,4),\"1\",\"\")","v":"AE"},{"$f":"SUBSTITUTE(ADDRESS(1,A2+1,4),\"1\",\"\")","v":"AF"},{"$f":"SUBSTITUTE(ADDRESS(1,A2+2,4),\"1\",\"\")","v":"AG"}]
[31,{"$f":"\"Feedback - Gruppe: \"&IF(ISBLANK(INDIRECT(\"Gesamt!\"&E$1&$A5)),\"\",INDIRECT(\"Gesamt!\"&E$1&$A5))","v":"Feedback - Gruppe: "}]
[{"$f":"TEXT(TODAY(),\"JJJJMMTT\")","v":"20240514"},{"$f":"TODAY()","v":"2024-05-14"}]
[1,"Oranisatorisches",null,null,{"$f":"IF(ISBLANK(INDIRECT(\"Gesamt!\"&E$1&$A4)),\"\",INDIRECT(\"Gesamt!\"&E$1&$A4))","v":""}]
[2,{"$f":"IF(ISBLANK(INDIRECT(\"Gesamt!\"&B$1&$A5)),\"\",INDIRECT(\"Gesamt!\"&B$1&$A5))","v":"Korrektor"},{"$f":"IF(ISBLANK(INDIRECT(\"Gesamt!\"&C$1&$A5)),\"\",INDIRECT(\"Gesamt!\"&C$1&$A5))","v":""},{"$f":"IF(ISBLANK(INDIRECT(\"Gesamt!\"&D$1&$A5)),\"\",INDIRECT(\"Gesamt!\"&D$1&$A5))","v":"Gruppe"},{"$f":"IF(ISBLANK(INDIRECT(\"Gesamt!\"&E$1&$A5)),\"\",INDIRECT(\"Gesamt!\"&E$1&$A5))","v":""}]
[3,{"$f":"IF(ISBLANK(INDIRECT(\"Gesamt!\"&B$1&$A6)),\"\",INDIRECT(\"Gesamt!\"&B$1&$A6))","v":"Prof. Dr. Benjamin Buchwitz"},{"$f":"IF(ISBLANK(INDIRECT(\"Gesamt!\"&C$1&$A6)),\"\",INDIRECT(\"Gesamt!\"&C$1&$A6))","v":""},{"$f":"IF(ISBLANK(INDIRECT(\"Gesamt!\"&D$1&$A6)),\"\",INDIRECT(\"Gesamt!\"&D$1&$A6))","v":"Matrikelnr."},{"$f":"IF(ISBLANK(INDIRECT(\"Gesamt!\"&E$1&$A6)),\"\",INDIRECT(\"Gesamt!\"&E$1&$A6))","v":"Name"},"Aktiv"]
[4,{"$f":"IF(ISBLANK(INDIRECT(\"Gesamt!\"&B$1&$A7)),\"\",INDIRECT(\"Gesamt!\"&B$1&$A7))","v":"Kontaktmöglichkeit"},{"$f":"IF(ISBLANK(INDIRECT(\"Gesamt!\"&C$1&$A7)),\"\",INDIRECT(\"Gesamt!\"&C$1&$A7))","v":""},{"$f":"IF(ISBLANK(INDIRECT(\"Gesamt!\"&D$1&$A7)),\"\",INDIRECT(\"Gesamt!\"&D$1&$A7))","v":""},{"$f":"IF(ISBLANK(INDIRECT(\"Gesamt!\"&E$1&$A7)),\"\",INDIRECT(\"Gesamt!\"&E$1&$A7))","v":""},{"$f":"IF(ISBLANK(INDIRECT(\"Gesamt!\"&F$1&$A7)),\"\",INDIRECT(\"Gesamt!\"&F$1&$A7))","v":true}]
[5,{"$f":"IF(ISBLANK(INDIRECT(\"Gesamt!\"&B$1&$A8)),\"\",INDIRECT(\"Gesamt!\"&B$1&$A8))","v":"buchwitz.benjamin@fh-swf.de"},{"$f":"IF(ISBLANK(INDIRECT(\"Gesamt!\"&C$1&$A8)),\"\",INDIRECT(\"Gesamt!\"&C$1&$A8))","v":""},{"$f":"IF(ISBLANK(INDIRECT(\"Gesamt!\"&D$1&$A8)),\"\",INDIRECT(\"Gesamt!\"&D$1&$A8))","v":""},{"$f":"IF(ISBLANK(INDIRECT(\"Gesamt!\"&E$1&$A8)),\"\",INDIRECT(\"Gesamt!\"&E$1&$A8))","v":""},{"$f":"IF(ISBLANK(INDIRECT(\"Gesamt!\"&F$1&$A8)),\"\",INDIRECT(\"Gesamt!\"&F$1&$A8))","v":" "}]
[6,{"$f":"IF(ISBLANK(INDIRECT(\"Gesamt!\"&B$1&$A9)),\"\",INDIRECT(\"Gesamt!\"&B$1&$A9))","v":""},{"$f":"IF(ISBLANK(INDIRECT(\"Gesamt!\"&C$1&$A9)),\"\",INDIRECT(\"Gesamt!\"&C$1&$A9))","v":""},{"$f":"IF(ISBLANK(INDIRECT(\"Gesamt!\"&D$1&$A9)),\"\",INDIRECT(\"Gesamt!\"&D$1&$A9))","v":""},{"$f":"IF(ISBLANK(INDIRECT(\"Gesamt!\"&E$1&$A9)),\"\",INDIRECT(\"Gesamt!\"&E$1&$A9))","v":""},{"$f":"IF(ISBLANK(INDIRECT(\"Gesamt!\"&F$1&$A9)),\"\",INDIRECT(\"Gesamt!\"&F$1&$A9))","v":" "}]
[7,"Kommunikationsverantwortlicher Autor:",{"$f":"IF(ISBLANK(INDIRECT(\"Gesamt!\"&C$1&$A10)),\"\",INDIRECT(\"Gesamt!\"&C$1&$A10))","v":""},{"$f":"IF(ISBLANK(INDIRECT(\"Gesamt!\"&D$1&$A10)),\"\",INDIRECT(\"Gesamt!\"&D$1&$A10))","v":""},{"$f":"IF(ISBLANK(INDIRECT(\"Gesamt!\"&E$1&$A10)),\"\",INDIRECT(\"Gesamt!\"&E$1&$A10))","v":""},{"$f":"IF(ISBLANK(INDIRECT(\"Gesamt!\"&F$1&$A10)),\"\",INDIRECT(\"Gesamt!\"&F$1&$A10))","v":" "}]
[8,{"$f":"E7 & \" (Gruppensprecher:in)\"","v":" (Gruppensprecher:in)"},{"$f":"IF(ISBLANK(INDIRECT(\"Gesamt!\"&C$1&$A11)),\"\",INDIRECT(\"Gesamt!\"&C$1&$A11))","v":""},{"$f":"IF(ISBLANK(INDIRECT(\"Gesamt!\"&D$1&$A11)),\"\",INDIRECT(\"Gesamt!\"&D$1&$A11))","v":""},{"$f":"IF(ISBLANK(INDIRECT(\"Gesamt!\"&E$1&$A11)),\"\",INDIRECT(\"Gesamt!\"&E$1&$A11))","v":""},{"$f":"IF(ISBLANK(INDIRECT(\"Gesamt!\"&F$1&$A11)),\"\",INDIRECT(\"Gesamt!\"&F$1&$A11))","v":" "}]
[9,{"$f":"IF(ISBLANK(INDIRECT(\"Gesamt!\"&B$1&$A12)),\"\",INDIRECT(\"Gesamt!\"&B$1&$A12))","v":""},{"$f":"IF(ISBLANK(INDIRECT(\"Gesamt!\"&C$1&$A12)),\"\",INDIRECT(\"Gesamt!\"&C$1&$A12))","v":""},{"$f":"IF(ISBLANK(INDIRECT(\"Gesamt!\"&D$1&$A12)),\"\",INDIRECT(\"Gesamt!\"&D$1&$A12))","v":""},{"$f":"IF(ISBLANK(INDIRECT(\"Gesamt!\"&E$1&$A12)),\"\",INDIRECT(\"Gesamt!\"&E$1&$A12))","v":""},{"$f":"IF(ISBLANK(INDIRECT(\"Gesamt!\"&F$1&$A12)),\"\",INDIRECT(\"Gesamt!\"&F$1&$A12))","v":" "}]
[10,{"$f":"IF(ISBLANK(INDIRECT(\"Gesamt!\"&B$1&$A13)),\"\",INDIRECT(\"Gesamt!\"&B$1&$A13))","v":"Exposé"},{"$f":"IF(ISBLANK(INDIRECT(\"Gesamt!\"&C$1&$A13)),\"\",INDIRECT(\"Gesamt!\"&C$1&$A13))","v":""},{"$f":"IF(ISBLANK(INDIRECT(\"Gesamt!\"&D$1&$A13)),\"\",INDIRECT(\"Gesamt!\"&D$1&$A13))","v":"Gruppe: "}]
[11,{"$f":"IF(ISBLANK(INDIRECT(\"Gesamt!\"&B$1&$A14)),\"\",INDIRECT(\"Gesamt!\"&B$1&$A14))","v":"Ziel des Exposés:"},null,null,{"$f":"IF(ISBLANK(INDIRECT(\"Gesamt!\"&\"B\"&$A14)),\"\",INDIRECT(\"Gesamt!\"&\"B\"&$A14))","v":"Einarbeitung in den Sachkontext und Genese einer zum Datensatz passenden Forschungsfrage"}]
[12,{"$f":"IF(ISBLANK(INDIRECT(\"Gesamt!\"&B$1&$A15)),\"\",INDIRECT(\"Gesamt!\"&B$1&$A15))","v":""},{"$f":"IF(ISBLANK(INDIRECT(\"Gesamt!\"&C$1&$A15)),\"\",INDIRECT(\"Gesamt!\"&C$1&$A15))","v":"Punkte"},{"$f":"IF(ISBLANK(INDIRECT(\"Gesamt!\"&D$1&$A15)),\"\",INDIRECT(\"Gesamt!\"&D$1&$A15))","v":"Bewertung"},{"$f":"IF(ISBLANK(INDIRECT(\"Gesamt!\"&E$1&$A15)),\"\",INDIRECT(\"Gesamt!\"&E$1&$A15))","v":"Kommentar"}]
[13,{"$f":"IF(ISBLANK(INDIRECT(\"Gesamt!\"&B$1&$A16)),\"\",INDIRECT(\"Gesamt!\"&B$1&$A16))","v":"Forschungsgegenstand\n- Zielausgestaltung (0,2P)\n- Fragestellung (0,4P)\n- Hypothesen (0,4P)"},{"$f":"IF(ISBLANK(INDIRECT(\"Gesamt!\"&C$1&$A16)),\"\",INDIRECT(\"Gesamt!\"&C$1&$A16))","v":1},{"$f":"IF(ISBLANK(INDIRECT(\"Gesamt!\"&D$1&$A16)),\"\",INDIRECT(\"Gesamt!\"&D$1&$A16))","v":""},{"$f":"IF(ISBLANK(INDIRECT(\"Gesamt!\"&E$1&$A16)),\"\",INDIRECT(\"Gesamt!\"&E$1&$A16))","v":""}]
[14,{"$f":"IF(ISBLANK(INDIRECT(\"Gesamt!\"&B$1&$A17)),\"\",INDIRECT(\"Gesamt!\"&B$1&$A17))","v":"Komposition\n- Inhaltlicher Zusammenhang (0,2P)\n- fachsprachlich formulierte Vorgehensweise (0,2P)\n- Motivation des Themas (0,1P)"},{"$f":"IF(ISBLANK(INDIRECT(\"Gesamt!\"&C$1&$A17)),\"\",INDIRECT(\"Gesamt!\"&C$1&$A17))","v":0.5},{"$f":"IF(ISBLANK(INDIRECT(\"Gesamt!\"&D$1&$A17)),\"\",INDIRECT(\"Gesamt!\"&D$1&$A17))","v":""},{"$f":"IF(ISBLANK(INDIRECT(\"Gesamt!\"&E$1&$A17)),\"\",INDIRECT(\"Gesamt!\"&E$1&$A17))","v":""}]
[15,{"$f":"IF(ISBLANK(INDIRECT(\"Gesamt!\"&B$1&$A18)),\"\",INDIRECT(\"Gesamt!\"&B$1&$A18))","v":"Formalia (Exposé)\n- Template Nutzung & Formatierung (0,3P)\n- Schreibstil & Rechtschreibung (0,2P)"},{"$f":"IF(ISBLANK(INDIRECT(\"Gesamt!\"&C$1&$A18)),\"\",INDIRECT(\"Gesamt!\"&C$1&$A18))","v":0.5},{"$f":"IF(ISBLANK(INDIRECT(\"Gesamt!\"&D$1&$A18)),\"\",INDIRECT(\"Gesamt!\"&D$1&$A18))","v":""},{"$f":"IF(ISBLANK(INDIRECT(\"Gesamt!\"&E$1&$A18)),\"\",INDIRECT(\"Gesamt!\"&E$1&$A18))","v":""}]
[16,{"$f":"IF(ISBLANK(INDIRECT(\"Gesamt!\"&B$1&$A19)),\"\",INDIRECT(\"Gesamt!\"&B$1&$A19))","v":"Zwischensumme Exposé"},{"$f":"IF(ISBLANK(INDIRECT(\"Gesamt!\"&C$1&$A19)),\"\",INDIRECT(\"Gesamt!\"&C$1&$A19))","v":2},{"$f":"IF(ISBLANK(INDIRECT(\"Gesamt!\"&D$1&$A19)),\"\",INDIRECT(\"Gesamt!\"&D$1&$A19))","v":0},{"$f":"IF(ISBLANK(INDIRECT(\"Gesamt!\"&E$1&$A19)),\"\",INDIRECT(\"Gesamt!\"&E$1&$A19))","v":""}]
[17,{"$f":"IF(ISBLANK(INDIRECT(\"Gesamt!\"&B$1&$A20)),\"\",INDIRECT(\"Gesamt!\"&B$1&$A20))","v":"Zwischenabgabe"},{"$f":"IF(ISBLANK(INDIRECT(\"Gesamt!\"&C$1&$A20)),\"\",INDIRECT(\"Gesamt!\"&C$1&$A20))","v":""},{"$f":"IF(ISBLANK(INDIRECT(\"Gesamt!\"&D$1&$A20)),\"\",INDIRECT(\"Gesamt!\"&D$1&$A20))","v":"Gruppe: "}]
[18,{"$f":"IF(ISBLANK(INDIRECT(\"Gesamt!\"&B$1&$A21)),\"\",INDIRECT(\"Gesamt!\"&B$1&$A21))","v":"Ziel der Zwischenabgabe:"},null,null,{"$f":"IF(ISBLANK(INDIRECT(\"Gesamt!\"&\"B\"&$A21)),\"\",INDIRECT(\"Gesamt!\"&\"B\"&$A21))","v":"Vorstellung des Datensatzes und Vorbereitung der inferenzstatistischen Analyseverfahren"}]
[19,{"$f":"IF(ISBLANK(INDIRECT(\"Gesamt!\"&B$1&$A22)),\"\",INDIRECT(\"Gesamt!\"&B$1&$A22))","v":""},{"$f":"IF(ISBLANK(INDIRECT(\"Gesamt!\"&C$1&$A22)),\"\",INDIRECT(\"Gesamt!\"&C$1&$A22))","v":"Punkte"},{"$f":"IF(ISBLANK(INDIRECT(\"Gesamt!\"&D$1&$A22)),\"\",INDIRECT(\"Gesamt!\"&D$1&$A22))","v":"Bewertung"},{"$f":"IF(ISBLANK(INDIRECT(\"Gesamt!\"&E$1&$A22)),\"\",INDIRECT(\"Gesamt!\"&E$1&$A22))","v":"Kommentar"}]
[20,{"$f":"IF(ISBLANK(INDIRECT(\"Gesamt!\"&B$1&$A23)),\"\",INDIRECT(\"Gesamt!\"&B$1&$A23))","v":"Lage- & Streuungsmaße\n- Deskriptive Statistik für alle verwendeten Variablen\n- Berechnung, Interpretation und Einordnung in den Sachkontext"},{"$f":"IF(ISBLANK(INDIRECT(\"Gesamt!\"&C$1&$A23)),\"\",INDIRECT(\"Gesamt!\"&C$1&$A23))","v":2},{"$f":"IF(ISBLANK(INDIRECT(\"Gesamt!\"&D$1&$A23)),\"\",INDIRECT(\"Gesamt!\"&D$1&$A23))","v":""},{"$f":"IF(ISBLANK(INDIRECT(\"Gesamt!\"&E$1&$A23)),\"\",INDIRECT(\"Gesamt!\"&E$1&$A23))","v":""}]
[21,{"$f":"IF(ISBLANK(INDIRECT(\"Gesamt!\"&B$1&$A24)),\"\",INDIRECT(\"Gesamt!\"&B$1&$A24))","v":"Zusammenhangsmaße\n- Berechnung, Interpretation und Einordnung in den Sachkontext von (min.) einem Zusammenhangsmaß"},{"$f":"IF(ISBLANK(INDIRECT(\"Gesamt!\"&C$1&$A24)),\"\",INDIRECT(\"Gesamt!\"&C$1&$A24))","v":1},{"$f":"IF(ISBLANK(INDIRECT(\"Gesamt!\"&D$1&$A24)),\"\",INDIRECT(\"Gesamt!\"&D$1&$A24))","v":""},{"$f":"IF(ISBLANK(INDIRECT(\"Gesamt!\"&E$1&$A24)),\"\",INDIRECT(\"Gesamt!\"&E$1&$A24))","v":""}]
[22,{"$f":"IF(ISBLANK(INDIRECT(\"Gesamt!\"&B$1&$A25)),\"\",INDIRECT(\"Gesamt!\"&B$1&$A25))","v":"Ergänzende Berechnung\n- Ergänzende Berechnung, Interpretation und Einordnung in den Sachkontext (min.) eines weiteren Zusammenhangsmaßes oder Konzentrationsmaßes"},{"$f":"IF(ISBLANK(INDIRECT(\"Gesamt!\"&C$1&$A25)),\"\",INDIRECT(\"Gesamt!\"&C$1&$A25))","v":1},{"$f":"IF(ISBLANK(INDIRECT(\"Gesamt!\"&D$1&$A25)),\"\",INDIRECT(\"Gesamt!\"&D$1&$A25))","v":""},{"$f":"IF(ISBLANK(INDIRECT(\"Gesamt!\"&E$1&$A25)),\"\",INDIRECT(\"Gesamt!\"&E$1&$A25))","v":""}]
[23,{"$f":"IF(ISBLANK(INDIRECT(\"Gesamt!\"&B$1&$A26)),\"\",INDIRECT(\"Gesamt!\"&B$1&$A26))","v":"Diagramme\n- Sinnvoll unterstützender / ergänzender Einsatz einer grafischen Aufbereitung der Daten (0,5P)\n- Ergänzende Darstellung eines weiteren, andersartigen Diagrammes (0,5P)"},{"$f":"IF(ISBLANK(INDIRECT(\"Gesamt!\"&C$1&$A26)),\"\",INDIRECT(\"Gesamt!\"&C$1&$A26))","v":1},{"$f":"IF(ISBLANK(INDIRECT(\"Gesamt!\"&D$1&$A26)),\"\",INDIRECT(\"Gesamt!\"&D$1&$A26))","v":""},{"$f":"IF(ISBLANK(INDIRECT(\"Gesamt!\"&E$1&$A26)),\"\",INDIRECT(\"Gesamt!\"&E$1&$A26))","v":""}]
[24,{"$f":"IF(ISBLANK(INDIRECT(\"Gesamt!\"&B$1&$A27)),\"\",INDIRECT(\"Gesamt!\"&B$1&$A27))","v":"Komposition\n- Zweckmäßiger Methodeneinsatz (1P)\n- Zielgerichtete Argumentation (1P)"},{"$f":"IF(ISBLANK(INDIRECT(\"Gesamt!\"&C$1&$A27)),\"\",INDIRECT(\"Gesamt!\"&C$1&$A27))","v":2},{"$f":"IF(ISBLANK(INDIRECT(\"Gesamt!\"&D$1&$A27)),\"\",INDIRECT(\"Gesamt!\"&D$1&$A27))","v":""},{"$f":"IF(ISBLANK(INDIRECT(\"Gesamt!\"&E$1&$A27)),\"\",INDIRECT(\"Gesamt!\"&E$1&$A27))","v":""}]
[25,{"$f":"IF(ISBLANK(INDIRECT(\"Gesamt!\"&B$1&$A28)),\"\",INDIRECT(\"Gesamt!\"&B$1&$A28))","v":"Formalia (Zwischenabgabe)\n- Analytische Ausarbeitung (0,5P)\n    + Übersichtlichkeit\n    + Nachvollziehbarkeit aller Rechnungen\n- Schriftliche Ausarbeitung (0,5P)\n    + Formatierung des Dokuments\n    + Zitation wissenschaftlicher Quellen"},{"$f":"IF(ISBLANK(INDIRECT(\"Gesamt!\"&C$1&$A28)),\"\",INDIRECT(\"Gesamt!\"&C$1&$A28))","v":1},{"$f":"IF(ISBLANK(INDIRECT(\"Gesamt!\"&D$1&$A28)),\"\",INDIRECT(\"Gesamt!\"&D$1&$A28))","v":""},{"$f":"IF(ISBLANK(INDIRECT(\"Gesamt!\"&E$1&$A28)),\"\",INDIRECT(\"Gesamt!\"&E$1&$A28))","v":""}]
[26,{"$f":"IF(ISBLANK(INDIRECT(\"Gesamt!\"&B$1&$A29)),\"\",INDIRECT(\"Gesamt!\"&B$1&$A29))","v":"Zwischensumme Zwischenabgabe"},{"$f":"IF(ISBLANK(INDIRECT(\"Gesamt!\"&C$1&$A29)),\"\",INDIRECT(\"Gesamt!\"&C$1&$A29))","v":8},{"$f":"IF(ISBLANK(INDIRECT(\"Gesamt!\"&D$1&$A29)),\"\",INDIRECT(\"Gesamt!\"&D$1&$A29))","v":0},{"$f":"IF(ISBLANK(INDIRECT(\"Gesamt!\"&E$1&$A29)),\"\",INDIRECT(\"Gesamt!\"&E$1&$A29))","v":""}]
[27,{"$f":"IF(ISBLANK(INDIRECT(\"Gesamt!\"&B$1&$A30)),\"\",INDIRECT(\"Gesamt!\"&B$1&$A30))","v":"Endabgabe"},{"$f":"IF(ISBLANK(INDIRECT(\"Gesamt!\"&C$1&$A30)),\"\",INDIRECT(\"Gesamt!\"&C$1&$A30))","v":""},{"$f":"IF(ISBLANK(INDIRECT(\"Gesamt!\"&D$1&$A30)),\"\",INDIRECT(\"Gesamt!\"&D$1&$A30))","v":"Gruppe: "}]
[28,{"$f":"IF(ISBLANK(INDIRECT(\"Gesamt!\"&B$1&$A31)),\"\",INDIRECT(\"Gesamt!\"&B$1&$A31))","v":"Ziel der Endabgabe:"},null,null,{"$f":"IF(ISBLANK(INDIRECT(\"Gesamt!\"&\"B\"&$A31)),\"\",INDIRECT(\"Gesamt!\"&\"B\"&$A31))","v":"Beantwortung der Forschungsfrage unter Nutzung inferenzstatistischer Verfahren und Finalisierung der Arbeit"}]
[29,{"$f":"IF(ISBLANK(INDIRECT(\"Gesamt!\"&B$1&$A32)),\"\",INDIRECT(\"Gesamt!\"&B$1&$A32))","v":""},{"$f":"IF(ISBLANK(INDIRECT(\"Gesamt!\"&C$1&$A32)),\"\",INDIRECT(\"Gesamt!\"&C$1&$A32))","v":"Punkte"},{"$f":"IF(ISBLANK(INDIRECT(\"Gesamt!\"&D$1&$A32)),\"\",INDIRECT(\"Gesamt!\"&D$1&$A32))","v":"Bewertung"},{"$f":"IF(ISBLANK(INDIRECT(\"Gesamt!\"&E$1&$A32)),\"\",INDIRECT(\"Gesamt!\"&E$1&$A32))","v":"Kommentar"}]
[30,{"$f":"IF(ISBLANK(INDIRECT(\"Gesamt!\"&B$1&$A33)),\"\",INDIRECT(\"Gesamt!\"&B$1&$A33))","v":"Verbesserung der Deskriptiven Statistik hinsichtlich Korrektheit, Vollständigkeit, Beschreibung und Einordnung in den Sachkontext\n- Lagemaße (0,5P)\n- Streuungsmaße (0,5P)\n- Ergänzende Maße (0,5P)\n- Zusammenhangsmaße (0,5P)"},{"$f":"IF(ISBLANK(INDIRECT(\"Gesamt!\"&C$1&$A33)),\"\",INDIRECT(\"Gesamt!\"&C$1&$A33))","v":2},{"$f":"IF(ISBLANK(INDIRECT(\"Gesamt!\"&D$1&$A33)),\"\",INDIRECT(\"Gesamt!\"&D$1&$A33))","v":""},{"$f":"IF(ISBLANK(INDIRECT(\"Gesamt!\"&E$1&$A33)),\"\",INDIRECT(\"Gesamt!\"&E$1&$A33))","v":""}]
[31,{"$f":"IF(ISBLANK(INDIRECT(\"Gesamt!\"&B$1&$A34)),\"\",INDIRECT(\"Gesamt!\"&B$1&$A34))","v":"Inferenzstatistik: Freie Methodenwahl\n- Inhaltlich begründete Methodenauswahl (1P)\n- Voraussetzungen erfüllt (0,5P)\n- Fehlerfreie Berechnungen (0,5P)\n- Korrekte Testanwendung (0,5P)\n- Statistische Interpretation und Einordnung in Sachkontext (1P)"},{"$f":"IF(ISBLANK(INDIRECT(\"Gesamt!\"&C$1&$A34)),\"\",INDIRECT(\"Gesamt!\"&C$1&$A34))","v":3.5},{"$f":"IF(ISBLANK(INDIRECT(\"Gesamt!\"&D$1&$A34)),\"\",INDIRECT(\"Gesamt!\"&D$1&$A34))","v":""},{"$f":"IF(ISBLANK(INDIRECT(\"Gesamt!\"&E$1&$A34)),\"\",INDIRECT(\"Gesamt!\"&E$1&$A34))","v":""}]
[32,{"$f":"IF(ISBLANK(INDIRECT(\"Gesamt!\"&B$1&$A35)),\"\",INDIRECT(\"Gesamt!\"&B$1&$A35))","v":"Inferenzstatistik: Zusammenhangsanalyse\n- Variablen- und Methodenauswahl kongruent (1P)\n- Voraussetzungen erfüllt (0,5P)\n- Fehlerfreie Berechnungen (0,5P)\n- Korrekte Testanwendung (0,5P)\n- Statistische Interpretation und Einordnung in Sachkontext (1P)"},{"$f":"IF(ISBLANK(INDIRECT(\"Gesamt!\"&C$1&$A35)),\"\",INDIRECT(\"Gesamt!\"&C$1&$A35))","v":3.5},{"$f":"IF(ISBLANK(INDIRECT(\"Gesamt!\"&D$1&$A35)),\"\",INDIRECT(\"Gesamt!\"&D$1&$A35))","v":""},{"$f":"IF(ISBLANK(INDIRECT(\"Gesamt!\"&E$1&$A35)),\"\",INDIRECT(\"Gesamt!\"&E$1&$A35))","v":""}]
[33,{"$f":"IF(ISBLANK(INDIRECT(\"Gesamt!\"&B$1&$A36)),\"\",INDIRECT(\"Gesamt!\"&B$1&$A36))","v":"Argumentationsfluss & Gesamteindruck\n- Inhaltlicher Aufbau\n- Verknüpfung der Fragestellung mit der Anwendung der inhaltlichen Methoden\n- Verknüpfung deskriptiver und analytischer Statistik\n- Keine rezeptartige Beschreibung von Rechenwegen"},{"$f":"IF(ISBLANK(INDIRECT(\"Gesamt!\"&C$1&$A36)),\"\",INDIRECT(\"Gesamt!\"&C$1&$A36))","v":2},{"$f":"IF(ISBLANK(INDIRECT(\"Gesamt!\"&D$1&$A36)),\"\",INDIRECT(\"Gesamt!\"&D$1&$A36))","v":""},{"$f":"IF(ISBLANK(INDIRECT(\"Gesamt!\"&E$1&$A36)),\"\",INDIRECT(\"Gesamt!\"&E$1&$A36))","v":""}]
[34,{"$f":"IF(ISBLANK(INDIRECT(\"Gesamt!\"&B$1&$A37)),\"\",INDIRECT(\"Gesamt!\"&B$1&$A37))","v":"Zielerreichung\n- Antwort auf die gestellte Forschungsfrage\n- Zusammenfassung der Ergebnisse\n- Kritische Würdigung des eigenen Vorgehens"},{"$f":"IF(ISBLANK(INDIRECT(\"Gesamt!\"&C$1&$A37)),\"\",INDIRECT(\"Gesamt!\"&C$1&$A37))","v":2},{"$f":"IF(ISBLANK(INDIRECT(\"Gesamt!\"&D$1&$A37)),\"\",INDIRECT(\"Gesamt!\"&D$1&$A37))","v":""},{"$f":"IF(ISBLANK(INDIRECT(\"Gesamt!\"&E$1&$A37)),\"\",INDIRECT(\"Gesamt!\"&E$1&$A37))","v":""}]
[35,{"$f":"IF(ISBLANK(INDIRECT(\"Gesamt!\"&B$1&$A38)),\"\",INDIRECT(\"Gesamt!\"&B$1&$A38))","v":"Formalia (Endabgabe)\n- Nutzung des bereitgestellten Templates (fhswf R-Package) und angemessene wissenschaftliche Gestaltung des finalen Dokumentes unter Verwendung der im Template enthaltenen Checkliste\n- Abgabe ist vollständig reproduzierbar (Alle Dateien wurden eingereicht: PDF, Rmd, etc)"},{"$f":"IF(ISBLANK(INDIRECT(\"Gesamt!\"&C$1&$A38)),\"\",INDIRECT(\"Gesamt!\"&C$1&$A38))","v":1},{"$f":"IF(ISBLANK(INDIRECT(\"Gesamt!\"&D$1&$A38)),\"\",INDIRECT(\"Gesamt!\"&D$1&$A38))","v":""},{"$f":"IF(ISBLANK(INDIRECT(\"Gesamt!\"&E$1&$A38)),\"\",INDIRECT(\"Gesamt!\"&E$1&$A38))","v":""}]
[36,{"$f":"IF(ISBLANK(INDIRECT(\"Gesamt!\"&B$1&$A39)),\"\",INDIRECT(\"Gesamt!\"&B$1&$A39))","v":"Analytische Qualität\n- Übersichtlichkeit der Analyse (R Datei)\n- Nachvollziehbarkeit aller Rechnungen\n- Vollständigkeit"},{"$f":"IF(ISBLANK(INDIRECT(\"Gesamt!\"&C$1&$A39)),\"\",INDIRECT(\"Gesamt!\"&C$1&$A39))","v":1},{"$f":"IF(ISBLANK(INDIRECT(\"Gesamt!\"&D$1&$A39)),\"\",INDIRECT(\"Gesamt!\"&D$1&$A39))","v":""},{"$f":"IF(ISBLANK(INDIRECT(\"Gesamt!\"&E$1&$A39)),\"\",INDIRECT(\"Gesamt!\"&E$1&$A39))","v":""}]
[37,{"$f":"IF(ISBLANK(INDIRECT(\"Gesamt!\"&B$1&$A40)),\"\",INDIRECT(\"Gesamt!\"&B$1&$A40))","v":"Zwischensumme Endabgabe"},{"$f":"IF(ISBLANK(INDIRECT(\"Gesamt!\"&C$1&$A40)),\"\",INDIRECT(\"Gesamt!\"&C$1&$A40))","v":15},{"$f":"IF(ISBLANK(INDIRECT(\"Gesamt!\"&D$1&$A40)),\"\",INDIRECT(\"Gesamt!\"&D$1&$A40))","v":0},{"$f":"IF(ISBLANK(INDIRECT(\"Gesamt!\"&E$1&$A40)),\"\",INDIRECT(\"Gesamt!\"&E$1&$A40))","v":""}]
[38,{"$f":"IF(ISBLANK(INDIRECT(\"Gesamt!\"&B$1&$A41)),\"\",INDIRECT(\"Gesamt!\"&B$1&$A41))","v":"Abschließende Bewertung"},{"$f":"IF(ISBLANK(INDIRECT(\"Gesamt!\"&C$1&$A41)),\"\",INDIRECT(\"Gesamt!\"&C$1&$A41))","v":""},{"$f":"IF(ISBLANK(INDIRECT(\"Gesamt!\"&D$1&$A41)),\"\",INDIRECT(\"Gesamt!\"&D$1&$A41))","v":"Gruppe: "}]
[39,{"$f":"IF(ISBLANK(INDIRECT(\"Gesamt!\"&B$1&$A42)),\"\",INDIRECT(\"Gesamt!\"&B$1&$A42))","v":"Exposé"},{"$f":"IF(ISBLANK(INDIRECT(\"Gesamt!\"&C$1&$A42)),\"\",INDIRECT(\"Gesamt!\"&C$1&$A42))","v":2},{"$f":"IF(ISBLANK(INDIRECT(\"Gesamt!\"&D$1&$A42)),\"\",INDIRECT(\"Gesamt!\"&D$1&$A42))","v":0},{"$f":"IF(ISBLANK(INDIRECT(\"Gesamt!\"&E$1&$A42)),\"\",INDIRECT(\"Gesamt!\"&E$1&$A42))","v":"(0,0 %)"}]
[40,{"$f":"IF(ISBLANK(INDIRECT(\"Gesamt!\"&B$1&$A43)),\"\",INDIRECT(\"Gesamt!\"&B$1&$A43))","v":"Zwischenabgabe"},{"$f":"IF(ISBLANK(INDIRECT(\"Gesamt!\"&C$1&$A43)),\"\",INDIRECT(\"Gesamt!\"&C$1&$A43))","v":8},{"$f":"IF(ISBLANK(INDIRECT(\"Gesamt!\"&D$1&$A43)),\"\",INDIRECT(\"Gesamt!\"&D$1&$A43))","v":0},{"$f":"IF(ISBLANK(INDIRECT(\"Gesamt!\"&E$1&$A43)),\"\",INDIRECT(\"Gesamt!\"&E$1&$A43))","v":"(0,0 %)"}]
[41,{"$f":"IF(ISBLANK(INDIRECT(\"Gesamt!\"&B$1&$A44)),\"\",INDIRECT(\"Gesamt!\"&B$1&$A44))","v":"Endabgabe"},{"$f":"IF(ISBLANK(INDIRECT(\"Gesamt!\"&C$1&$A44)),\"\",INDIRECT(\"Gesamt!\"&C$1&$A44))","v":15},{"$f":"IF(ISBLANK(INDIRECT(\"Gesamt!\"&D$1&$A44)),\"\",INDIRECT(\"Gesamt!\"&D$1&$A44))","v":0},{"$f":"IF(ISBLANK(INDIRECT(\"Gesamt!\"&E$1&$A44)),\"\",INDIRECT(\"Gesamt!\"&E$1&$A44))","v":"(0,0 %)"}]
[42,{"$f":"IF(ISBLANK(INDIRECT(\"Gesamt!\"&B$1&$A45)),\"\",INDIRECT(\"Gesamt!\"&B$1&$A45))","v":"Endpunktzahl (rechnerisch)"},{"$f":"IF(ISBLANK(INDIRECT(\"Gesamt!\"&C$1&$A45)),\"\",INDIRECT(\"Gesamt!\"&C$1&$A45))","v":25},{"$f":"IF(ISBLANK(INDIRECT(\"Gesamt!\"&D$1&$A45)),\"\",INDIRECT(\"Gesamt!\"&D$1&$A45))","v":0},{"$f":"IF(ISBLANK(INDIRECT(\"Gesamt!\"&E$1&$A45)),\"\",INDIRECT(\"Gesamt!\"&E$1&$A45))","v":"(0,0 %)"}]
[43,{"$f":"IF(ISBLANK(INDIRECT(\"Gesamt!\"&B$1&$A46)),\"\",INDIRECT(\"Gesamt!\"&B$1&$A46))","v":"Endergebnis (gerundet)"},{"$f":"IF(ISBLANK(INDIRECT(\"Gesamt!\"&C$1&$A46)),\"\",INDIRECT(\"Gesamt!\"&C$1&$A46))","v":25},{"$f":"IF(ISBLANK(INDIRECT(\"Gesamt!\"&D$1&$A46)),\"\",INDIRECT(\"Gesamt!\"&D$1&$A46))","v":0},{"$f":"IF(ISBLANK(INDIRECT(\"Gesamt!\"&E$1&$A46)),\"\",INDIRECT(\"Gesamt!\"&E$1&$A46))","v":"(0,0 %)"}]
[44,{"$f":"IF(ISBLANK(INDIRECT(\"Gesamt!\"&B$1&$A47)),\"\",INDIRECT(\"Gesamt!\"&B$1&$A47))","v":"Quantil (ECTS-Grad) [nur Korrektor]"},{"$f":"IF(ISBLANK(INDIRECT(\"Gesamt!\"&C$1&$A47)),\"\",INDIRECT(\"Gesamt!\"&C$1&$A47))","v":"0-1 (A-E)"},{"$f":"IF(ISBLANK(INDIRECT(\"Gesamt!\"&D$1&$A47)),\"\",INDIRECT(\"Gesamt!\"&D$1&$A47))","v":{"$error":"#N/A"}},{"$f":"IF(ISBLANK(INDIRECT(\"Gesamt!\"&E$1&$A47)),\"\",INDIRECT(\"Gesamt!\"&E$1&$A47))","v":{"$error":"#N/A"}}]
[]
[]
[45,{"$f":"IF(ISBLANK(INDIRECT(\"Gesamt!\"&B$1&$A50)),\"\",INDIRECT(\"Gesamt!\"&B$1&$A50))","v":"Vorleistung (50% der Punkte nach Zwischenabgabe)"}]
[]
[null,{"$f":"IF(ISBLANK(INDIRECT(\"Gesamt!\"&E$1&$A50)),\"\",INDIRECT(\"Gesamt!\"&E$1&$A50))","v":"Nicht Bestanden"}]
[]
[]
[]
[null,"Hinweis: Das Bestehen der Vorleistung ist Bedingung für die Zulassung zur Prüfung. Endpunktzahl (rechnerisch) und Endergebnis (gerundet) werden erst nach bestandener Vorleistung angezeigt."]

{"sheet":"G11","index":12,"n_rows":56,"n_cols":6,"rows_kept":56,"cut":false,"hidden":false,"merged":[[49,1,49,4],[51,1,53,4],[55,1,55,4],[1,1,1,4],[2,1,2,4],[12,3,12,4],[19,3,19,4],[29,3,29,4],[40,3,40,4]]}
["Startspalte:","A","C",{"$f":"SUBSTITUTE(ADDRESS(1,A2,4),\"1\",\"\")","v":"AH"},{"$f":"SUBSTITUTE(ADDRESS(1,A2+1,4),\"1\",\"\")","v":"AI"},{"$f":"SUBSTITUTE(ADDRESS(1,A2+2,4),\"1\",\"\")","v":"AJ"}]
[34,{"$f":"\"Feedback - Gruppe: \"&IF(ISBLANK(INDIRECT(\"Gesamt!\"&E$1&$A5)),\"\",INDIRECT(\"Gesamt!\"&E$1&$A5))","v":"Feedback - Gruppe: "}]
[{"$f":"TEXT(TODAY(),\"JJJJMMTT\")","v":"20240514"},{"$f":"TODAY()","v":"2024-05-14"}]
[1,"Oranisatorisches",null,null,{"$f":"IF(ISBLANK(INDIRECT(\"Gesamt!\"&E$1&$A4)),\"\",INDIRECT(\"Gesamt!\"&E$1&$A4))","v":""}]
[2,{"$f":"IF(ISBLANK(INDIRECT(\"Gesamt!\"&B$1&$A5)),\"\",INDIRECT(\"Gesamt!\"&B$1&$A5))","v":"Korrektor"},{"$f":"IF(ISBLANK(INDIRECT(\"Gesamt!\"&C$1&$A5)),\"\",INDIRECT(\"Gesamt!\"&C$1&$A5))","v":""},{"$f":"IF(ISBLANK(INDIRECT(\"Gesamt!\"&D$1&$A5)),\"\",INDIRECT(\"Gesamt!\"&D$1&$A5))","v":"Gruppe"},{"$f":"IF(ISBLANK(INDIRECT(\"Gesamt!\"&E$1&$A5)),\"\",INDIRECT(\"Gesamt!\"&E$1&$A5))","v":""}]
[3,{"$f":"IF(ISBLANK(INDIRECT(\"Gesamt!\"&B$1&$A6)),\"\",INDIRECT(\"Gesamt!\"&B$1&$A6))","v":"Prof. Dr. Benjamin Buchwitz"},{"$f":"IF(ISBLANK(INDIRECT(\"Gesamt!\"&C$1&$A6)),\"\",INDIRECT(\"Gesamt!\"&C$1&$A6))","v":""},{"$f":"IF(ISBLANK(INDIRECT(\"Gesamt!\"&D$1&$A6)),\"\",INDIRECT(\"Gesamt!\"&D$1&$A6))","v":"Matrikelnr."},{"$f":"IF(ISBLANK(INDIRECT(\"Gesamt!\"&E$1&$A6)),\"\",INDIRECT(\"Gesamt!\"&E$1&$A6))","v":"Name"},"Aktiv"]
[4,{"$f":"IF(ISBLANK(INDIRECT(\"Gesamt!\"&B$1&$A7)),\"\",INDIRECT(\"Gesamt!\"&B$1&$A7))","v":"Kontaktmöglichkeit"},{"$f":"IF(ISBLANK(INDIRECT(\"Gesamt!\"&C$1&$A7)),\"\",INDIRECT(\"Gesamt!\"&C$1&$A7))","v":""},{"$f":"IF(ISBLANK(INDIRECT(\"Gesamt!\"&D$1&$A7)),\"\",INDIRECT(\"Gesamt!\"&D$1&$A7))","v":""},{"$f":"IF(ISBLANK(INDIRECT(\"Gesamt!\"&E$1&$A7)),\"\",INDIRECT(\"Gesamt!\"&E$1&$A7))","v":""},{"$f":"IF(ISBLANK(INDIRECT(\"Gesamt!\"&F$1&$A7)),\"\",INDIRECT(\"Gesamt!\"&F$1&$A7))","v":true}]
[5,{"$f":"IF(ISBLANK(INDIRECT(\"Gesamt!\"&B$1&$A8)),\"\",INDIRECT(\"Gesamt!\"&B$1&$A8))","v":"buchwitz.benjamin@fh-swf.de"},{"$f":"IF(ISBLANK(INDIRECT(\"Gesamt!\"&C$1&$A8)),\"\",INDIRECT(\"Gesamt!\"&C$1&$A8))","v":""},{"$f":"IF(ISBLANK(INDIRECT(\"Gesamt!\"&D$1&$A8)),\"\",INDIRECT(\"Gesamt!\"&D$1&$A8))","v":""},{"$f":"IF(ISBLANK(INDIRECT(\"Gesamt!\"&E$1&$A8)),\"\",INDIRECT(\"Gesamt!\"&E$1&$A8))","v":""},{"$f":"IF(ISBLANK(INDIRECT(\"Gesamt!\"&F$1&$A8)),\"\",INDIRECT(\"Gesamt!\"&F$1&$A8))","v":" "}]
[6,{"$f":"IF(ISBLANK(INDIRECT(\"Gesamt!\"&B$1&$A9)),\"\",INDIRECT(\"Gesamt!\"&B$1&$A9))","v":""},{"$f":"IF(ISBLANK(INDIRECT(\"Gesamt!\"&C$1&$A9)),\"\",INDIRECT(\"Gesamt!\"&C$1&$A9))","v":""},{"$f":"IF(ISBLANK(INDIRECT(\"Gesamt!\"&D$1&$A9)),\"\",INDIRECT(\"Gesamt!\"&D$1&$A9))","v":""},{"$f":"IF(ISBLANK(INDIRECT(\"Gesamt!\"&E$1&$A9)),\"\",INDIRECT(\"Gesamt!\"&E$1&$A9))","v":""},{"$f":"IF(ISBLANK(INDIRECT(\"Gesamt!\"&F$1&$A9)),\"\",INDIRECT(\"Gesamt!\"&F$1&$A9))","v":" "}]
[7,"Kommunikationsverantwortlicher Autor:",{"$f":"IF(ISBLANK(INDIRECT(\"Gesamt!\"&C$1&$A10)),\"\",INDIRECT(\"Gesamt!\"&C$1&$A10))","v":""},{"$f":"IF(ISBLANK(INDIRECT(\"Gesamt!\"&D$1&$A10)),\"\",INDIRECT(\"Gesamt!\"&D$1&$A10))","v":""},{"$f":"IF(ISBLANK(INDIRECT(\"Gesamt!\"&E$1&$A10)),\"\",INDIRECT(\"Gesamt!\"&E$1&$A10))","v":""},{"$f":"IF(ISBLANK(INDIRECT(\"Gesamt!\"&F$1&$A10)),\"\",INDIRECT(\"Gesamt!\"&F$1&$A10))","v":" "}]
[8,{"$f":"E7 & \" (Gruppensprecher:in)\"","v":" (Gruppensprecher:in)"},{"$f":"IF(ISBLANK(INDIRECT(\"Gesamt!\"&C$1&$A11)),\"\",INDIRECT(\"Gesamt!\"&C$1&$A11))","v":""},{"$f":"IF(ISBLANK(INDIRECT(\"Gesamt!\"&D$1&$A11)),\"\",INDIRECT(\"Gesamt!\"&D$1&$A11))","v":""},{"$f":"IF(ISBLANK(INDIRECT(\"Gesamt!\"&E$1&$A11)),\"\",INDIRECT(\"Gesamt!\"&E$1&$A11))","v":""},{"$f":"IF(ISBLANK(INDIRECT(\"Gesamt!\"&F$1&$A11)),\"\",INDIRECT(\"Gesamt!\"&F$1&$A11))","v":" "}]
[9,{"$f":"IF(ISBLANK(INDIRECT(\"Gesamt!\"&B$1&$A12)),\"\",INDIRECT(\"Gesamt!\"&B$1&$A12))","v":""},{"$f":"IF(ISBLANK(INDIRECT(\"Gesamt!\"&C$1&$A12)),\"\",INDIRECT(\"Gesamt!\"&C$1&$A12))","v":""},{"$f":"IF(ISBLANK(INDIRECT(\"Gesamt!\"&D$1&$A12)),\"\",INDIRECT(\"Gesamt!\"&D$1&$A12))","v":""},{"$f":"IF(ISBLANK(INDIRECT(\"Gesamt!\"&E$1&$A12)),\"\",INDIRECT(\"Gesamt!\"&E$1&$A12))","v":""},{"$f":"IF(ISBLANK(INDIRECT(\"Gesamt!\"&F$1&$A12)),\"\",INDIRECT(\"Gesamt!\"&F$1&$A12))","v":" "}]
[10,{"$f":"IF(ISBLANK(INDIRECT(\"Gesamt!\"&B$1&$A13)),\"\",INDIRECT(\"Gesamt!\"&B$1&$A13))","v":"Exposé"},{"$f":"IF(ISBLANK(INDIRECT(\"Gesamt!\"&C$1&$A13)),\"\",INDIRECT(\"Gesamt!\"&C$1&$A13))","v":""},{"$f":"IF(ISBLANK(INDIRECT(\"Gesamt!\"&D$1&$A13)),\"\",INDIRECT(\"Gesamt!\"&D$1&$A13))","v":"Gruppe: "}]
[11,{"$f":"IF(ISBLANK(INDIRECT(\"Gesamt!\"&B$1&$A14)),\"\",INDIRECT(\"Gesamt!\"&B$1&$A14))","v":"Ziel des Exposés:"},null,null,{"$f":"IF(ISBLANK(INDIRECT(\"Gesamt!\"&\"B\"&$A14)),\"\",INDIRECT(\"Gesamt!\"&\"B\"&$A14))","v":"Einarbeitung in den Sachkontext und Genese einer zum Datensatz passenden Forschungsfrage"}]
[12,{"$f":"IF(ISBLANK(INDIRECT(\"Gesamt!\"&B$1&$A15)),\"\",INDIRECT(\"Gesamt!\"&B$1&$A15))","v":""},{"$f":"IF(ISBLANK(INDIRECT(\"Gesamt!\"&C$1&$A15)),\"\",INDIRECT(\"Gesamt!\"&C$1&$A15))","v":"Punkte"},{"$f":"IF(ISBLANK(INDIRECT(\"Gesamt!\"&D$1&$A15)),\"\",INDIRECT(\"Gesamt!\"&D$1&$A15))","v":"Bewertung"},{"$f":"IF(ISBLANK(INDIRECT(\"Gesamt!\"&E$1&$A15)),\"\",INDIRECT(\"Gesamt!\"&E$1&$A15))","v":"Kommentar"}]
[13,{"$f":"IF(ISBLANK(INDIRECT(\"Gesamt!\"&B$1&$A16)),\"\",INDIRECT(\"Gesamt!\"&B$1&$A16))","v":"Forschungsgegenstand\n- Zielausgestaltung (0,2P)\n- Fragestellung (0,4P)\n- Hypothesen (0,4P)"},{"$f":"IF(ISBLANK(INDIRECT(\"Gesamt!\"&C$1&$A16)),\"\",INDIRECT(\"Gesamt!\"&C$1&$A16))","v":1},{"$f":"IF(ISBLANK(INDIRECT(\"Gesamt!\"&D$1&$A16)),\"\",INDIRECT(\"Gesamt!\"&D$1&$A16))","v":""},{"$f":"IF(ISBLANK(INDIRECT(\"Gesamt!\"&E$1&$A16)),\"\",INDIRECT(\"Gesamt!\"&E$1&$A16))","v":""}]
[14,{"$f":"IF(ISBLANK(INDIRECT(\"Gesamt!\"&B$1&$A17)),\"\",INDIRECT(\"Gesamt!\"&B$1&$A17))","v":"Komposition\n- Inhaltlicher Zusammenhang (0,2P)\n- fachsprachlich formulierte Vorgehensweise (0,2P)\n- Motivation des Themas (0,1P)"},{"$f":"IF(ISBLANK(INDIRECT(\"Gesamt!\"&C$1&$A17)),\"\",INDIRECT(\"Gesamt!\"&C$1&$A17))","v":0.5},{"$f":"IF(ISBLANK(INDIRECT(\"Gesamt!\"&D$1&$A17)),\"\",INDIRECT(\"Gesamt!\"&D$1&$A17))","v":""},{"$f":"IF(ISBLANK(INDIRECT(\"Gesamt!\"&E$1&$A17)),\"\",INDIRECT(\"Gesamt!\"&E$1&$A17))","v":""}]
[15,{"$f":"IF(ISBLANK(INDIRECT(\"Gesamt!\"&B$1&$A18)),\"\",INDIRECT(\"Gesamt!\"&B$1&$A18))","v":"Formalia (Exposé)\n- Template Nutzung & Formatierung (0,3P)\n- Schreibstil & Rechtschreibung (0,2P)"},{"$f":"IF(ISBLANK(INDIRECT(\"Gesamt!\"&C$1&$A18)),\"\",INDIRECT(\"Gesamt!\"&C$1&$A18))","v":0.5},{"$f":"IF(ISBLANK(INDIRECT(\"Gesamt!\"&D$1&$A18)),\"\",INDIRECT(\"Gesamt!\"&D$1&$A18))","v":""},{"$f":"IF(ISBLANK(INDIRECT(\"Gesamt!\"&E$1&$A18)),\"\",INDIRECT(\"Gesamt!\"&E$1&$A18))","v":""}]
[16,{"$f":"IF(ISBLANK(INDIRECT(\"Gesamt!\"&B$1&$A19)),\"\",INDIRECT(\"Gesamt!\"&B$1&$A19))","v":"Zwischensumme Exposé"},{"$f":"IF(ISBLANK(INDIRECT(\"Gesamt!\"&C$1&$A19)),\"\",INDIRECT(\"Gesamt!\"&C$1&$A19))","v":2},{"$f":"IF(ISBLANK(INDIRECT(\"Gesamt!\"&D$1&$A19)),\"\",INDIRECT(\"Gesamt!\"&D$1&$A19))","v":0},{"$f":"IF(ISBLANK(INDIRECT(\"Gesamt!\"&E$1&$A19)),\"\",INDIRECT(\"Gesamt!\"&E$1&$A19))","v":""}]
[17,{"$f":"IF(ISBLANK(INDIRECT(\"Gesamt!\"&B$1&$A20)),\"\",INDIRECT(\"Gesamt!\"&B$1&$A20))","v":"Zwischenabgabe"},{"$f":"IF(ISBLANK(INDIRECT(\"Gesamt!\"&C$1&$A20)),\"\",INDIRECT(\"Gesamt!\"&C$1&$A20))","v":""},{"$f":"IF(ISBLANK(INDIRECT(\"Gesamt!\"&D$1&$A20)),\"\",INDIRECT(\"Gesamt!\"&D$1&$A20))","v":"Gruppe: "}]
[18,{"$f":"IF(ISBLANK(INDIRECT(\"Gesamt!\"&B$1&$A21)),\"\",INDIRECT(\"Gesamt!\"&B$1&$A21))","v":"Ziel der Zwischenabgabe:"},null,null,{"$f":"IF(ISBLANK(INDIRECT(\"Gesamt!\"&\"B\"&$A21)),\"\",INDIRECT(\"Gesamt!\"&\"B\"&$A21))","v":"Vorstellung des Datensatzes und Vorbereitung der inferenzstatistischen Analyseverfahren"}]
[19,{"$f":"IF(ISBLANK(INDIRECT(\"Gesamt!\"&B$1&$A22)),\"\",INDIRECT(\"Gesamt!\"&B$1&$A22))","v":""},{"$f":"IF(ISBLANK(INDIRECT(\"Gesamt!\"&C$1&$A22)),\"\",INDIRECT(\"Gesamt!\"&C$1&$A22))","v":"Punkte"},{"$f":"IF(ISBLANK(INDIRECT(\"Gesamt!\"&D$1&$A22)),\"\",INDIRECT(\"Gesamt!\"&D$1&$A22))","v":"Bewertung"},{"$f":"IF(ISBLANK(INDIRECT(\"Gesamt!\"&E$1&$A22)),\"\",INDIRECT(\"Gesamt!\"&E$1&$A22))","v":"Kommentar"}]
[20,{"$f":"IF(ISBLANK(INDIRECT(\"Gesamt!\"&B$1&$A23)),\"\",INDIRECT(\"Gesamt!\"&B$1&$A23))","v":"Lage- & Streuungsmaße\n- Deskriptive Statistik für alle verwendeten Variablen\n- Berechnung, Interpretation und Einordnung in den Sachkontext"},{"$f":"IF(ISBLANK(INDIRECT(\"Gesamt!\"&C$1&$A23)),\"\",INDIRECT(\"Gesamt!\"&C$1&$A23))","v":2},{"$f":"IF(ISBLANK(INDIRECT(\"Gesamt!\"&D$1&$A23)),\"\",INDIRECT(\"Gesamt!\"&D$1&$A23))","v":""},{"$f":"IF(ISBLANK(INDIRECT(\"Gesamt!\"&E$1&$A23)),\"\",INDIRECT(\"Gesamt!\"&E$1&$A23))","v":""}]
[21,{"$f":"IF(ISBLANK(INDIRECT(\"Gesamt!\"&B$1&$A24)),\"\",INDIRECT(\"Gesamt!\"&B$1&$A24))","v":"Zusammenhangsmaße\n- Berechnung, Interpretation und Einordnung in den Sachkontext von (min.) einem Zusammenhangsmaß"},{"$f":"IF(ISBLANK(INDIRECT(\"Gesamt!\"&C$1&$A24)),\"\",INDIRECT(\"Gesamt!\"&C$1&$A24))","v":1},{"$f":"IF(ISBLANK(INDIRECT(\"Gesamt!\"&D$1&$A24)),\"\",INDIRECT(\"Gesamt!\"&D$1&$A24))","v":""},{"$f":"IF(ISBLANK(INDIRECT(\"Gesamt!\"&E$1&$A24)),\"\",INDIRECT(\"Gesamt!\"&E$1&$A24))","v":""}]
[22,{"$f":"IF(ISBLANK(INDIRECT(\"Gesamt!\"&B$1&$A25)),\"\",INDIRECT(\"Gesamt!\"&B$1&$A25))","v":"Ergänzende Berechnung\n- Ergänzende Berechnung, Interpretation und Einordnung in den Sachkontext (min.) eines weiteren Zusammenhangsmaßes oder Konzentrationsmaßes"},{"$f":"IF(ISBLANK(INDIRECT(\"Gesamt!\"&C$1&$A25)),\"\",INDIRECT(\"Gesamt!\"&C$1&$A25))","v":1},{"$f":"IF(ISBLANK(INDIRECT(\"Gesamt!\"&D$1&$A25)),\"\",INDIRECT(\"Gesamt!\"&D$1&$A25))","v":""},{"$f":"IF(ISBLANK(INDIRECT(\"Gesamt!\"&E$1&$A25)),\"\",INDIRECT(\"Gesamt!\"&E$1&$A25))","v":""}]
[23,{"$f":"IF(ISBLANK(INDIRECT(\"Gesamt!\"&B$1&$A26)),\"\",INDIRECT(\"Gesamt!\"&B$1&$A26))","v":"Diagramme\n- Sinnvoll unterstützender / ergänzender Einsatz einer grafischen Aufbereitung der Daten (0,5P)\n- Ergänzende Darstellung eines weiteren, andersartigen Diagrammes (0,5P)"},{"$f":"IF(ISBLANK(INDIRECT(\"Gesamt!\"&C$1&$A26)),\"\",INDIRECT(\"Gesamt!\"&C$1&$A26))","v":1},{"$f":"IF(ISBLANK(INDIRECT(\"Gesamt!\"&D$1&$A26)),\"\",INDIRECT(\"Gesamt!\"&D$1&$A26))","v":""},{"$f":"IF(ISBLANK(INDIRECT(\"Gesamt!\"&E$1&$A26)),\"\",INDIRECT(\"Gesamt!\"&E$1&$A26))","v":""}]
[24,{"$f":"IF(ISBLANK(INDIRECT(\"Gesamt!\"&B$1&$A27)),\"\",INDIRECT(\"Gesamt!\"&B$1&$A27))","v":"Komposition\n- Zweckmäßiger Methodeneinsatz (1P)\n- Zielgerichtete Argumentation (1P)"},{"$f":"IF(ISBLANK(INDIRECT(\"Gesamt!\"&C$1&$A27)),\"\",INDIRECT(\"Gesamt!\"&C$1&$A27))","v":2},{"$f":"IF(ISBLANK(INDIRECT(\"Gesamt!\"&D$1&$A27)),\"\",INDIRECT(\"Gesamt!\"&D$1&$A27))","v":""},{"$f":"IF(ISBLANK(INDIRECT(\"Gesamt!\"&E$1&$A27)),\"\",INDIRECT(\"Gesamt!\"&E$1&$A27))","v":""}]
[25,{"$f":"IF(ISBLANK(INDIRECT(\"Gesamt!\"&B$1&$A28)),\"\",INDIRECT(\"Gesamt!\"&B$1&$A28))","v":"Formalia (Zwischenabgabe)\n- Analytische Ausarbeitung (0,5P)\n    + Übersichtlichkeit\n    + Nachvollziehbarkeit aller Rechnungen\n- Schriftliche Ausarbeitung (0,5P)\n    + Formatierung des Dokuments\n    + Zitation wissenschaftlicher Quellen"},{"$f":"IF(ISBLANK(INDIRECT(\"Gesamt!\"&C$1&$A28)),\"\",INDIRECT(\"Gesamt!\"&C$1&$A28))","v":1},{"$f":"IF(ISBLANK(INDIRECT(\"Gesamt!\"&D$1&$A28)),\"\",INDIRECT(\"Gesamt!\"&D$1&$A28))","v":""},{"$f":"IF(ISBLANK(INDIRECT(\"Gesamt!\"&E$1&$A28)),\"\",INDIRECT(\"Gesamt!\"&E$1&$A28))","v":""}]
[26,{"$f":"IF(ISBLANK(INDIRECT(\"Gesamt!\"&B$1&$A29)),\"\",INDIRECT(\"Gesamt!\"&B$1&$A29))","v":"Zwischensumme Zwischenabgabe"},{"$f":"IF(ISBLANK(INDIRECT(\"Gesamt!\"&C$1&$A29)),\"\",INDIRECT(\"Gesamt!\"&C$1&$A29))","v":8},{"$f":"IF(ISBLANK(INDIRECT(\"Gesamt!\"&D$1&$A29)),\"\",INDIRECT(\"Gesamt!\"&D$1&$A29))","v":0},{"$f":"IF(ISBLANK(INDIRECT(\"Gesamt!\"&E$1&$A29)),\"\",INDIRECT(\"Gesamt!\"&E$1&$A29))","v":""}]
[27,{"$f":"IF(ISBLANK(INDIRECT(\"Gesamt!\"&B$1&$A30)),\"\",INDIRECT(\"Gesamt!\"&B$1&$A30))","v":"Endabgabe"},{"$f":"IF(ISBLANK(INDIRECT(\"Gesamt!\"&C$1&$A30)),\"\",INDIRECT(\"Gesamt!\"&C$1&$A30))","v":""},{"$f":"IF(ISBLANK(INDIRECT(\"Gesamt!\"&D$1&$A30)),\"\",INDIRECT(\"Gesamt!\"&D$1&$A30))","v":"Gruppe: "}]
[28,{"$f":"IF(ISBLANK(INDIRECT(\"Gesamt!\"&B$1&$A31)),\"\",INDIRECT(\"Gesamt!\"&B$1&$A31))","v":"Ziel der Endabgabe:"},null,null,{"$f":"IF(ISBLANK(INDIRECT(\"Gesamt!\"&\"B\"&$A31)),\"\",INDIRECT(\"Gesamt!\"&\"B\"&$A31))","v":"Beantwortung der Forschungsfrage unter Nutzung inferenzstatistischer Verfahren und Finalisierung der Arbeit"}]
[29,{"$f":"IF(ISBLANK(INDIRECT(\"Gesamt!\"&B$1&$A32)),\"\",INDIRECT(\"Gesamt!\"&B$1&$A32))","v":""},{"$f":"IF(ISBLANK(INDIRECT(\"Gesamt!\"&C$1&$A32)),\"\",INDIRECT(\"Gesamt!\"&C$1&$A32))","v":"Punkte"},{"$f":"IF(ISBLANK(INDIRECT(\"Gesamt!\"&D$1&$A32)),\"\",INDIRECT(\"Gesamt!\"&D$1&$A32))","v":"Bewertung"},{"$f":"IF(ISBLANK(INDIRECT(\"Gesamt!\"&E$1&$A32)),\"\",INDIRECT(\"Gesamt!\"&E$1&$A32))","v":"Kommentar"}]
[30,{"$f":"IF(ISBLANK(INDIRECT(\"Gesamt!\"&B$1&$A33)),\"\",INDIRECT(\"Gesamt!\"&B$1&$A33))","v":"Verbesserung der Deskriptiven Statistik hinsichtlich Korrektheit, Vollständigkeit, Beschreibung und Einordnung in den Sachkontext\n- Lagemaße (0,5P)\n- Streuungsmaße (0,5P)\n- Ergänzende Maße (0,5P)\n- Zusammenhangsmaße (0,5P)"},{"$f":"IF(ISBLANK(INDIRECT(\"Gesamt!\"&C$1&$A33)),\"\",INDIRECT(\"Gesamt!\"&C$1&$A33))","v":2},{"$f":"IF(ISBLANK(INDIRECT(\"Gesamt!\"&D$1&$A33)),\"\",INDIRECT(\"Gesamt!\"&D$1&$A33))","v":""},{"$f":"IF(ISBLANK(INDIRECT(\"Gesamt!\"&E$1&$A33)),\"\",INDIRECT(\"Gesamt!\"&E$1&$A33))","v":""}]
[31,{"$f":"IF(ISBLANK(INDIRECT(\"Gesamt!\"&B$1&$A34)),\"\",INDIRECT(\"Gesamt!\"&B$1&$A34))","v":"Inferenzstatistik: Freie Methodenwahl\n- Inhaltlich begründete Methodenauswahl (1P)\n- Voraussetzungen erfüllt (0,5P)\n- Fehlerfreie Berechnungen (0,5P)\n- Korrekte Testanwendung (0,5P)\n- Statistische Interpretation und Einordnung in Sachkontext (1P)"},{"$f":"IF(ISBLANK(INDIRECT(\"Gesamt!\"&C$1&$A34)),\"\",INDIRECT(\"Gesamt!\"&C$1&$A34))","v":3.5},{"$f":"IF(ISBLANK(INDIRECT(\"Gesamt!\"&D$1&$A34)),\"\",INDIRECT(\"Gesamt!\"&D$1&$A34))","v":""},{"$f":"IF(ISBLANK(INDIRECT(\"Gesamt!\"&E$1&$A34)),\"\",INDIRECT(\"Gesamt!\"&E$1&$A34))","v":""}]
[32,{"$f":"IF(ISBLANK(INDIRECT(\"Gesamt!\"&B$1&$A35)),\"\",INDIRECT(\"Gesamt!\"&B$1&$A35))","v":"Inferenzstatistik: Zusammenhangsanalyse\n- Variablen- und Methodenauswahl kongruent (1P)\n- Voraussetzungen erfüllt (0,5P)\n- Fehlerfreie Berechnungen (0,5P)\n- Korrekte Testanwendung (0,5P)\n- Statistische Interpretation und Einordnung in Sachkontext (1P)"},{"$f":"IF(ISBLANK(INDIRECT(\"Gesamt!\"&C$1&$A35)),\"\",INDIRECT(\"Gesamt!\"&C$1&$A35))","v":3.5},{"$f":"IF(ISBLANK(INDIRECT(\"Gesamt!\"&D$1&$A35)),\"\",INDIRECT(\"Gesamt!\"&D$1&$A35))","v":""},{"$f":"IF(ISBLANK(INDIRECT(\"Gesamt!\"&E$1&$A35)),\"\",INDIRECT(\"Gesamt!\"&E$1&$A35))","v":""}]
[33,{"$f":"IF(ISBLANK(INDIRECT(\"Gesamt!\"&B$1&$A36)),\"\",INDIRECT(\"Gesamt!\"&B$1&$A36))","v":"Argumentationsfluss & Gesamteindruck\n- Inhaltlicher Aufbau\n- Verknüpfung der Fragestellung mit der Anwendung der inhaltlichen Methoden\n- Verknüpfung deskriptiver und analytischer Statistik\n- Keine rezeptartige Beschreibung von Rechenwegen"},{"$f":"IF(ISBLANK(INDIRECT(\"Gesamt!\"&C$1&$A36)),\"\",INDIRECT(\"Gesamt!\"&C$1&$A36))","v":2},{"$f":"IF(ISBLANK(INDIRECT(\"Gesamt!\"&D$1&$A36)),\"\",INDIRECT(\"Gesamt!\"&D$1&$A36))","v":""},{"$f":"IF(ISBLANK(INDIRECT(\"Gesamt!\"&E$1&$A36)),\"\",INDIRECT(\"Gesamt!\"&E$1&$A36))","v":""}]
[34,{"$f":"IF(ISBLANK(INDIRECT(\"Gesamt!\"&B$1&$A37)),\"\",INDIRECT(\"Gesamt!\"&B$1&$A37))","v":"Zielerreichung\n- Antwort auf die gestellte Forschungsfrage\n- Zusammenfassung der Ergebnisse\n- Kritische Würdigung des eigenen Vorgehens"},{"$f":"IF(ISBLANK(INDIRECT(\"Gesamt!\"&C$1&$A37)),\"\",INDIRECT(\"Gesamt!\"&C$1&$A37))","v":2},{"$f":"IF(ISBLANK(INDIRECT(\"Gesamt!\"&D$1&$A37)),\"\",INDIRECT(\"Gesamt!\"&D$1&$A37))","v":""},{"$f":"IF(ISBLANK(INDIRECT(\"Gesamt!\"&E$1&$A37)),\"\",INDIRECT(\"Gesamt!\"&E$1&$A37))","v":""}]
[35,{"$f":"IF(ISBLANK(INDIRECT(\"Gesamt!\"&B$1&$A38)),\"\",INDIRECT(\"Gesamt!\"&B$1&$A38))","v":"Formalia (Endabgabe)\n- Nutzung des bereitgestellten Templates (fhswf R-Package) und angemessene wissenschaftliche Gestaltung des finalen Dokumentes unter Verwendung der im Template enthaltenen Checkliste\n- Abgabe ist vollständig reproduzierbar (Alle Dateien wurden eingereicht: PDF, Rmd, etc)"},{"$f":"IF(ISBLANK(INDIRECT(\"Gesamt!\"&C$1&$A38)),\"\",INDIRECT(\"Gesamt!\"&C$1&$A38))","v":1},{"$f":"IF(ISBLANK(INDIRECT(\"Gesamt!\"&D$1&$A38)),\"\",INDIRECT(\"Gesamt!\"&D$1&$A38))","v":""},{"$f":"IF(ISBLANK(INDIRECT(\"Gesamt!\"&E$1&$A38)),\"\",INDIRECT(\"Gesamt!\"&E$1&$A38))","v":""}]
[36,{"$f":"IF(ISBLANK(INDIRECT(\"Gesamt!\"&B$1&$A39)),\"\",INDIRECT(\"Gesamt!\"&B$1&$A39))","v":"Analytische Qualität\n- Übersichtlichkeit der Analyse (R Datei)\n- Nachvollziehbarkeit aller Rechnungen\n- Vollständigkeit"},{"$f":"IF(ISBLANK(INDIRECT(\"Gesamt!\"&C$1&$A39)),\"\",INDIRECT(\"Gesamt!\"&C$1&$A39))","v":1},{"$f":"IF(ISBLANK(INDIRECT(\"Gesamt!\"&D$1&$A39)),\"\",INDIRECT(\"Gesamt!\"&D$1&$A39))","v":""},{"$f":"IF(ISBLANK(INDIRECT(\"Gesamt!\"&E$1&$A39)),\"\",INDIRECT(\"Gesamt!\"&E$1&$A39))","v":""}]
[37,{"$f":"IF(ISBLANK(INDIRECT(\"Gesamt!\"&B$1&$A40)),\"\",INDIRECT(\"Gesamt!\"&B$1&$A40))","v":"Zwischensumme Endabgabe"},{"$f":"IF(ISBLANK(INDIRECT(\"Gesamt!\"&C$1&$A40)),\"\",INDIRECT(\"Gesamt!\"&C$1&$A40))","v":15},{"$f":"IF(ISBLANK(INDIRECT(\"Gesamt!\"&D$1&$A40)),\"\",INDIRECT(\"Gesamt!\"&D$1&$A40))","v":0},{"$f":"IF(ISBLANK(INDIRECT(\"Gesamt!\"&E$1&$A40)),\"\",INDIRECT(\"Gesamt!\"&E$1&$A40))","v":""}]
[38,{"$f":"IF(ISBLANK(INDIRECT(\"Gesamt!\"&B$1&$A41)),\"\",INDIRECT(\"Gesamt!\"&B$1&$A41))","v":"Abschließende Bewertung"},{"$f":"IF(ISBLANK(INDIRECT(\"Gesamt!\"&C$1&$A41)),\"\",INDIRECT(\"Gesamt!\"&C$1&$A41))","v":""},{"$f":"IF(ISBLANK(INDIRECT(\"Gesamt!\"&D$1&$A41)),\"\",INDIRECT(\"Gesamt!\"&D$1&$A41))","v":"Gruppe: "}]
[39,{"$f":"IF(ISBLANK(INDIRECT(\"Gesamt!\"&B$1&$A42)),\"\",INDIRECT(\"Gesamt!\"&B$1&$A42))","v":"Exposé"},{"$f":"IF(ISBLANK(INDIRECT(\"Gesamt!\"&C$1&$A42)),\"\",INDIRECT(\"Gesamt!\"&C$1&$A42))","v":2},{"$f":"IF(ISBLANK(INDIRECT(\"Gesamt!\"&D$1&$A42)),\"\",INDIRECT(\"Gesamt!\"&D$1&$A42))","v":0},{"$f":"IF(ISBLANK(INDIRECT(\"Gesamt!\"&E$1&$A42)),\"\",INDIRECT(\"Gesamt!\"&E$1&$A42))","v":"(0,0 %)"}]
[40,{"$f":"IF(ISBLANK(INDIRECT(\"Gesamt!\"&B$1&$A43)),\"\",INDIRECT(\"Gesamt!\"&B$1&$A43))","v":"Zwischenabgabe"},{"$f":"IF(ISBLANK(INDIRECT(\"Gesamt!\"&C$1&$A43)),\"\",INDIRECT(\"Gesamt!\"&C$1&$A43))","v":8},{"$f":"IF(ISBLANK(INDIRECT(\"Gesamt!\"&D$1&$A43)),\"\",INDIRECT(\"Gesamt!\"&D$1&$A43))","v":0},{"$f":"IF(ISBLANK(INDIRECT(\"Gesamt!\"&E$1&$A43)),\"\",INDIRECT(\"Gesamt!\"&E$1&$A43))","v":"(0,0 %)"}]
[41,{"$f":"IF(ISBLANK(INDIRECT(\"Gesamt!\"&B$1&$A44)),\"\",INDIRECT(\"Gesamt!\"&B$1&$A44))","v":"Endabgabe"},{"$f":"IF(ISBLANK(INDIRECT(\"Gesamt!\"&C$1&$A44)),\"\",INDIRECT(\"Gesamt!\"&C$1&$A44))","v":15},{"$f":"IF(ISBLANK(INDIRECT(\"Gesamt!\"&D$1&$A44)),\"\",INDIRECT(\"Gesamt!\"&D$1&$A44))","v":0},{"$f":"IF(ISBLANK(INDIRECT(\"Gesamt!\"&E$1&$A44)),\"\",INDIRECT(\"Gesamt!\"&E$1&$A44))","v":"(0,0 %)"}]
[42,{"$f":"IF(ISBLANK(INDIRECT(\"Gesamt!\"&B$1&$A45)),\"\",INDIRECT(\"Gesamt!\"&B$1&$A45))","v":"Endpunktzahl (rechnerisch)"},{"$f":"IF(ISBLANK(INDIRECT(\"Gesamt!\"&C$1&$A45)),\"\",INDIRECT(\"Gesamt!\"&C$1&$A45))","v":25},{"$f":"IF(ISBLANK(INDIRECT(\"Gesamt!\"&D$1&$A45)),\"\",INDIRECT(\"Gesamt!\"&D$1&$A45))","v":0},{"$f":"IF(ISBLANK(INDIRECT(\"Gesamt!\"&E$1&$A45)),\"\",INDIRECT(\"Gesamt!\"&E$1&$A45))","v":"(0,0 %)"}]
[43,{"$f":"IF(ISBLANK(INDIRECT(\"Gesamt!\"&B$1&$A46)),\"\",INDIRECT(\"Gesamt!\"&B$1&$A46))","v":"Endergebnis (gerundet)"},{"$f":"IF(ISBLANK(INDIRECT(\"Gesamt!\"&C$1&$A46)),\"\",INDIRECT(\"Gesamt!\"&C$1&$A46))","v":25},{"$f":"IF(ISBLANK(INDIRECT(\"Gesamt!\"&D$1&$A46)),\"\",INDIRECT(\"Gesamt!\"&D$1&$A46))","v":0},{"$f":"IF(ISBLANK(INDIRECT(\"Gesamt!\"&E$1&$A46)),\"\",INDIRECT(\"Gesamt!\"&E$1&$A46))","v":"(0,0 %)"}]
[44,{"$f":"IF(ISBLANK(INDIRECT(\"Gesamt!\"&B$1&$A47)),\"\",INDIRECT(\"Gesamt!\"&B$1&$A47))","v":"Quantil (ECTS-Grad) [nur Korrektor]"},{"$f":"IF(ISBLANK(INDIRECT(\"Gesamt!\"&C$1&$A47)),\"\",INDIRECT(\"Gesamt!\"&C$1&$A47))","v":"0-1 (A-E)"},{"$f":"IF(ISBLANK(INDIRECT(\"Gesamt!\"&D$1&$A47)),\"\",INDIRECT(\"Gesamt!\"&D$1&$A47))","v":{"$error":"#N/A"}},{"$f":"IF(ISBLANK(INDIRECT(\"Gesamt!\"&E$1&$A47)),\"\",INDIRECT(\"Gesamt!\"&E$1&$A47))","v":{"$error":"#N/A"}}]
[]
[]
[45,{"$f":"IF(ISBLANK(INDIRECT(\"Gesamt!\"&B$1&$A50)),\"\",INDIRECT(\"Gesamt!\"&B$1&$A50))","v":"Vorleistung (50% der Punkte nach Zwischenabgabe)"}]
[]
[null,{"$f":"IF(ISBLANK(INDIRECT(\"Gesamt!\"&E$1&$A50)),\"\",INDIRECT(\"Gesamt!\"&E$1&$A50))","v":"Nicht Bestanden"}]
[]
[]
[]
[null,"Hinweis: Das Bestehen der Vorleistung ist Bedingung für die Zulassung zur Prüfung. Endpunktzahl (rechnerisch) und Endergebnis (gerundet) werden erst nach bestandener Vorleistung angezeigt."]

{"sheet":"G12","index":13,"n_rows":56,"n_cols":6,"rows_kept":56,"cut":false,"hidden":false,"merged":[[49,1,49,4],[51,1,53,4],[55,1,55,4],[1,1,1,4],[2,1,2,4],[12,3,12,4],[19,3,19,4],[29,3,29,4],[40,3,40,4]]}
["Startspalte:","A","C",{"$f":"SUBSTITUTE(ADDRESS(1,A2,4),\"1\",\"\")","v":"AK"},{"$f":"SUBSTITUTE(ADDRESS(1,A2+1,4),\"1\",\"\")","v":"AL"},{"$f":"SUBSTITUTE(ADDRESS(1,A2+2,4),\"1\",\"\")","v":"AM"}]
[37,{"$f":"\"Feedback - Gruppe: \"&IF(ISBLANK(INDIRECT(\"Gesamt!\"&E$1&$A5)),\"\",INDIRECT(\"Gesamt!\"&E$1&$A5))","v":"Feedback - Gruppe: "}]
[{"$f":"TEXT(TODAY(),\"JJJJMMTT\")","v":"20240514"},{"$f":"TODAY()","v":"2024-05-14"}]
[1,"Oranisatorisches",null,null,{"$f":"IF(ISBLANK(INDIRECT(\"Gesamt!\"&E$1&$A4)),\"\",INDIRECT(\"Gesamt!\"&E$1&$A4))","v":""}]
[2,{"$f":"IF(ISBLANK(INDIRECT(\"Gesamt!\"&B$1&$A5)),\"\",INDIRECT(\"Gesamt!\"&B$1&$A5))","v":"Korrektor"},{"$f":"IF(ISBLANK(INDIRECT(\"Gesamt!\"&C$1&$A5)),\"\",INDIRECT(\"Gesamt!\"&C$1&$A5))","v":""},{"$f":"IF(ISBLANK(INDIRECT(\"Gesamt!\"&D$1&$A5)),\"\",INDIRECT(\"Gesamt!\"&D$1&$A5))","v":"Gruppe"},{"$f":"IF(ISBLANK(INDIRECT(\"Gesamt!\"&E$1&$A5)),\"\",INDIRECT(\"Gesamt!\"&E$1&$A5))","v":""}]
[3,{"$f":"IF(ISBLANK(INDIRECT(\"Gesamt!\"&B$1&$A6)),\"\",INDIRECT(\"Gesamt!\"&B$1&$A6))","v":"Prof. Dr. Benjamin Buchwitz"},{"$f":"IF(ISBLANK(INDIRECT(\"Gesamt!\"&C$1&$A6)),\"\",INDIRECT(\"Gesamt!\"&C$1&$A6))","v":""},{"$f":"IF(ISBLANK(INDIRECT(\"Gesamt!\"&D$1&$A6)),\"\",INDIRECT(\"Gesamt!\"&D$1&$A6))","v":"Matrikelnr."},{"$f":"IF(ISBLANK(INDIRECT(\"Gesamt!\"&E$1&$A6)),\"\",INDIRECT(\"Gesamt!\"&E$1&$A6))","v":"Name"},"Aktiv"]
[4,{"$f":"IF(ISBLANK(INDIRECT(\"Gesamt!\"&B$1&$A7)),\"\",INDIRECT(\"Gesamt!\"&B$1&$A7))","v":"Kontaktmöglichkeit"},{"$f":"IF(ISBLANK(INDIRECT(\"Gesamt!\"&C$1&$A7)),\"\",INDIRECT(\"Gesamt!\"&C$1&$A7))","v":""},{"$f":"IF(ISBLANK(INDIRECT(\"Gesamt!\"&D$1&$A7)),\"\",INDIRECT(\"Gesamt!\"&D$1&$A7))","v":""},{"$f":"IF(ISBLANK(INDIRECT(\"Gesamt!\"&E$1&$A7)),\"\",INDIRECT(\"Gesamt!\"&E$1&$A7))","v":""},{"$f":"IF(ISBLANK(INDIRECT(\"Gesamt!\"&F$1&$A7)),\"\",INDIRECT(\"Gesamt!\"&F$1&$A7))","v":true}]
[5,{"$f":"IF(ISBLANK(INDIRECT(\"Gesamt!\"&B$1&$A8)),\"\",INDIRECT(\"Gesamt!\"&B$1&$A8))","v":"buchwitz.benjamin@fh-swf.de"},{"$f":"IF(ISBLANK(INDIRECT(\"Gesamt!\"&C$1&$A8)),\"\",INDIRECT(\"Gesamt!\"&C$1&$A8))","v":""},{"$f":"IF(ISBLANK(INDIRECT(\"Gesamt!\"&D$1&$A8)),\"\",INDIRECT(\"Gesamt!\"&D$1&$A8))","v":""},{"$f":"IF(ISBLANK(INDIRECT(\"Gesamt!\"&E$1&$A8)),\"\",INDIRECT(\"Gesamt!\"&E$1&$A8))","v":""},{"$f":"IF(ISBLANK(INDIRECT(\"Gesamt!\"&F$1&$A8)),\"\",INDIRECT(\"Gesamt!\"&F$1&$A8))","v":" "}]
[6,{"$f":"IF(ISBLANK(INDIRECT(\"Gesamt!\"&B$1&$A9)),\"\",INDIRECT(\"Gesamt!\"&B$1&$A9))","v":""},{"$f":"IF(ISBLANK(INDIRECT(\"Gesamt!\"&C$1&$A9)),\"\",INDIRECT(\"Gesamt!\"&C$1&$A9))","v":""},{"$f":"IF(ISBLANK(INDIRECT(\"Gesamt!\"&D$1&$A9)),\"\",INDIRECT(\"Gesamt!\"&D$1&$A9))","v":""},{"$f":"IF(ISBLANK(INDIRECT(\"Gesamt!\"&E$1&$A9)),\"\",INDIRECT(\"Gesamt!\"&E$1&$A9))","v":""},{"$f":"IF(ISBLANK(INDIRECT(\"Gesamt!\"&F$1&$A9)),\"\",INDIRECT(\"Gesamt!\"&F$1&$A9))","v":" "}]
[7,"Kommunikationsverantwortlicher Autor:",{"$f":"IF(ISBLANK(INDIRECT(\"Gesamt!\"&C$1&$A10)),\"\",INDIRECT(\"Gesamt!\"&C$1&$A10))","v":""},{"$f":"IF(ISBLANK(INDIRECT(\"Gesamt!\"&D$1&$A10)),\"\",INDIRECT(\"Gesamt!\"&D$1&$A10))","v":""},{"$f":"IF(ISBLANK(INDIRECT(\"Gesamt!\"&E$1&$A10)),\"\",INDIRECT(\"Gesamt!\"&E$1&$A10))","v":""},{"$f":"IF(ISBLANK(INDIRECT(\"Gesamt!\"&F$1&$A10)),\"\",INDIRECT(\"Gesamt!\"&F$1&$A10))","v":" "}]
[8,{"$f":"E7 & \" (Gruppensprecher:in)\"","v":" (Gruppensprecher:in)"},{"$f":"IF(ISBLANK(INDIRECT(\"Gesamt!\"&C$1&$A11)),\"\",INDIRECT(\"Gesamt!\"&C$1&$A11))","v":""},{"$f":"IF(ISBLANK(INDIRECT(\"Gesamt!\"&D$1&$A11)),\"\",INDIRECT(\"Gesamt!\"&D$1&$A11))","v":""},{"$f":"IF(ISBLANK(INDIRECT(\"Gesamt!\"&E$1&$A11)),\"\",INDIRECT(\"Gesamt!\"&E$1&$A11))","v":""},{"$f":"IF(ISBLANK(INDIRECT(\"Gesamt!\"&F$1&$A11)),\"\",INDIRECT(\"Gesamt!\"&F$1&$A11))","v":" "}]
[9,{"$f":"IF(ISBLANK(INDIRECT(\"Gesamt!\"&B$1&$A12)),\"\",INDIRECT(\"Gesamt!\"&B$1&$A12))","v":""},{"$f":"IF(ISBLANK(INDIRECT(\"Gesamt!\"&C$1&$A12)),\"\",INDIRECT(\"Gesamt!\"&C$1&$A12))","v":""},{"$f":"IF(ISBLANK(INDIRECT(\"Gesamt!\"&D$1&$A12)),\"\",INDIRECT(\"Gesamt!\"&D$1&$A12))","v":""},{"$f":"IF(ISBLANK(INDIRECT(\"Gesamt!\"&E$1&$A12)),\"\",INDIRECT(\"Gesamt!\"&E$1&$A12))","v":""},{"$f":"IF(ISBLANK(INDIRECT(\"Gesamt!\"&F$1&$A12)),\"\",INDIRECT(\"Gesamt!\"&F$1&$A12))","v":" "}]
[10,{"$f":"IF(ISBLANK(INDIRECT(\"Gesamt!\"&B$1&$A13)),\"\",INDIRECT(\"Gesamt!\"&B$1&$A13))","v":"Exposé"},{"$f":"IF(ISBLANK(INDIRECT(\"Gesamt!\"&C$1&$A13)),\"\",INDIRECT(\"Gesamt!\"&C$1&$A13))","v":""},{"$f":"IF(ISBLANK(INDIRECT(\"Gesamt!\"&D$1&$A13)),\"\",INDIRECT(\"Gesamt!\"&D$1&$A13))","v":"Gruppe: "}]
[11,{"$f":"IF(ISBLANK(INDIRECT(\"Gesamt!\"&B$1&$A14)),\"\",INDIRECT(\"Gesamt!\"&B$1&$A14))","v":"Ziel des Exposés:"},null,null,{"$f":"IF(ISBLANK(INDIRECT(\"Gesamt!\"&\"B\"&$A14)),\"\",INDIRECT(\"Gesamt!\"&\"B\"&$A14))","v":"Einarbeitung in den Sachkontext und Genese einer zum Datensatz passenden Forschungsfrage"}]
[12,{"$f":"IF(ISBLANK(INDIRECT(\"Gesamt!\"&B$1&$A15)),\"\",INDIRECT(\"Gesamt!\"&B$1&$A15))","v":""},{"$f":"IF(ISBLANK(INDIRECT(\"Gesamt!\"&C$1&$A15)),\"\",INDIRECT(\"Gesamt!\"&C$1&$A15))","v":"Punkte"},{"$f":"IF(ISBLANK(INDIRECT(\"Gesamt!\"&D$1&$A15)),\"\",INDIRECT(\"Gesamt!\"&D$1&$A15))","v":"Bewertung"},{"$f":"IF(ISBLANK(INDIRECT(\"Gesamt!\"&E$1&$A15)),\"\",INDIRECT(\"Gesamt!\"&E$1&$A15))","v":"Kommentar"}]
[13,{"$f":"IF(ISBLANK(INDIRECT(\"Gesamt!\"&B$1&$A16)),\"\",INDIRECT(\"Gesamt!\"&B$1&$A16))","v":"Forschungsgegenstand\n- Zielausgestaltung (0,2P)\n- Fragestellung (0,4P)\n- Hypothesen (0,4P)"},{"$f":"IF(ISBLANK(INDIRECT(\"Gesamt!\"&C$1&$A16)),\"\",INDIRECT(\"Gesamt!\"&C$1&$A16))","v":1},{"$f":"IF(ISBLANK(INDIRECT(\"Gesamt!\"&D$1&$A16)),\"\",INDIRECT(\"Gesamt!\"&D$1&$A16))","v":""},{"$f":"IF(ISBLANK(INDIRECT(\"Gesamt!\"&E$1&$A16)),\"\",INDIRECT(\"Gesamt!\"&E$1&$A16))","v":""}]
[14,{"$f":"IF(ISBLANK(INDIRECT(\"Gesamt!\"&B$1&$A17)),\"\",INDIRECT(\"Gesamt!\"&B$1&$A17))","v":"Komposition\n- Inhaltlicher Zusammenhang (0,2P)\n- fachsprachlich formulierte Vorgehensweise (0,2P)\n- Motivation des Themas (0,1P)"},{"$f":"IF(ISBLANK(INDIRECT(\"Gesamt!\"&C$1&$A17)),\"\",INDIRECT(\"Gesamt!\"&C$1&$A17))","v":0.5},{"$f":"IF(ISBLANK(INDIRECT(\"Gesamt!\"&D$1&$A17)),\"\",INDIRECT(\"Gesamt!\"&D$1&$A17))","v":""},{"$f":"IF(ISBLANK(INDIRECT(\"Gesamt!\"&E$1&$A17)),\"\",INDIRECT(\"Gesamt!\"&E$1&$A17))","v":""}]
[15,{"$f":"IF(ISBLANK(INDIRECT(\"Gesamt!\"&B$1&$A18)),\"\",INDIRECT(\"Gesamt!\"&B$1&$A18))","v":"Formalia (Exposé)\n- Template Nutzung & Formatierung (0,3P)\n- Schreibstil & Rechtschreibung (0,2P)"},{"$f":"IF(ISBLANK(INDIRECT(\"Gesamt!\"&C$1&$A18)),\"\",INDIRECT(\"Gesamt!\"&C$1&$A18))","v":0.5},{"$f":"IF(ISBLANK(INDIRECT(\"Gesamt!\"&D$1&$A18)),\"\",INDIRECT(\"Gesamt!\"&D$1&$A18))","v":""},{"$f":"IF(ISBLANK(INDIRECT(\"Gesamt!\"&E$1&$A18)),\"\",INDIRECT(\"Gesamt!\"&E$1&$A18))","v":""}]
[16,{"$f":"IF(ISBLANK(INDIRECT(\"Gesamt!\"&B$1&$A19)),\"\",INDIRECT(\"Gesamt!\"&B$1&$A19))","v":"Zwischensumme Exposé"},{"$f":"IF(ISBLANK(INDIRECT(\"Gesamt!\"&C$1&$A19)),\"\",INDIRECT(\"Gesamt!\"&C$1&$A19))","v":2},{"$f":"IF(ISBLANK(INDIRECT(\"Gesamt!\"&D$1&$A19)),\"\",INDIRECT(\"Gesamt!\"&D$1&$A19))","v":0},{"$f":"IF(ISBLANK(INDIRECT(\"Gesamt!\"&E$1&$A19)),\"\",INDIRECT(\"Gesamt!\"&E$1&$A19))","v":""}]
[17,{"$f":"IF(ISBLANK(INDIRECT(\"Gesamt!\"&B$1&$A20)),\"\",INDIRECT(\"Gesamt!\"&B$1&$A20))","v":"Zwischenabgabe"},{"$f":"IF(ISBLANK(INDIRECT(\"Gesamt!\"&C$1&$A20)),\"\",INDIRECT(\"Gesamt!\"&C$1&$A20))","v":""},{"$f":"IF(ISBLANK(INDIRECT(\"Gesamt!\"&D$1&$A20)),\"\",INDIRECT(\"Gesamt!\"&D$1&$A20))","v":"Gruppe: "}]
[18,{"$f":"IF(ISBLANK(INDIRECT(\"Gesamt!\"&B$1&$A21)),\"\",INDIRECT(\"Gesamt!\"&B$1&$A21))","v":"Ziel der Zwischenabgabe:"},null,null,{"$f":"IF(ISBLANK(INDIRECT(\"Gesamt!\"&\"B\"&$A21)),\"\",INDIRECT(\"Gesamt!\"&\"B\"&$A21))","v":"Vorstellung des Datensatzes und Vorbereitung der inferenzstatistischen Analyseverfahren"}]
[19,{"$f":"IF(ISBLANK(INDIRECT(\"Gesamt!\"&B$1&$A22)),\"\",INDIRECT(\"Gesamt!\"&B$1&$A22))","v":""},{"$f":"IF(ISBLANK(INDIRECT(\"Gesamt!\"&C$1&$A22)),\"\",INDIRECT(\"Gesamt!\"&C$1&$A22))","v":"Punkte"},{"$f":"IF(ISBLANK(INDIRECT(\"Gesamt!\"&D$1&$A22)),\"\",INDIRECT(\"Gesamt!\"&D$1&$A22))","v":"Bewertung"},{"$f":"IF(ISBLANK(INDIRECT(\"Gesamt!\"&E$1&$A22)),\"\",INDIRECT(\"Gesamt!\"&E$1&$A22))","v":"Kommentar"}]
[20,{"$f":"IF(ISBLANK(INDIRECT(\"Gesamt!\"&B$1&$A23)),\"\",INDIRECT(\"Gesamt!\"&B$1&$A23))","v":"Lage- & Streuungsmaße\n- Deskriptive Statistik für alle verwendeten Variablen\n- Berechnung, Interpretation und Einordnung in den Sachkontext"},{"$f":"IF(ISBLANK(INDIRECT(\"Gesamt!\"&C$1&$A23)),\"\",INDIRECT(\"Gesamt!\"&C$1&$A23))","v":2},{"$f":"IF(ISBLANK(INDIRECT(\"Gesamt!\"&D$1&$A23)),\"\",INDIRECT(\"Gesamt!\"&D$1&$A23))","v":""},{"$f":"IF(ISBLANK(INDIRECT(\"Gesamt!\"&E$1&$A23)),\"\",INDIRECT(\"Gesamt!\"&E$1&$A23))","v":""}]
[21,{"$f":"IF(ISBLANK(INDIRECT(\"Gesamt!\"&B$1&$A24)),\"\",INDIRECT(\"Gesamt!\"&B$1&$A24))","v":"Zusammenhangsmaße\n- Berechnung, Interpretation und Einordnung in den Sachkontext von (min.) einem Zusammenhangsmaß"},{"$f":"IF(ISBLANK(INDIRECT(\"Gesamt!\"&C$1&$A24)),\"\",INDIRECT(\"Gesamt!\"&C$1&$A24))","v":1},{"$f":"IF(ISBLANK(INDIRECT(\"Gesamt!\"&D$1&$A24)),\"\",INDIRECT(\"Gesamt!\"&D$1&$A24))","v":""},{"$f":"IF(ISBLANK(INDIRECT(\"Gesamt!\"&E$1&$A24)),\"\",INDIRECT(\"Gesamt!\"&E$1&$A24))","v":""}]
[22,{"$f":"IF(ISBLANK(INDIRECT(\"Gesamt!\"&B$1&$A25)),\"\",INDIRECT(\"Gesamt!\"&B$1&$A25))","v":"Ergänzende Berechnung\n- Ergänzende Berechnung, Interpretation und Einordnung in den Sachkontext (min.) eines weiteren Zusammenhangsmaßes oder Konzentrationsmaßes"},{"$f":"IF(ISBLANK(INDIRECT(\"Gesamt!\"&C$1&$A25)),\"\",INDIRECT(\"Gesamt!\"&C$1&$A25))","v":1},{"$f":"IF(ISBLANK(INDIRECT(\"Gesamt!\"&D$1&$A25)),\"\",INDIRECT(\"Gesamt!\"&D$1&$A25))","v":""},{"$f":"IF(ISBLANK(INDIRECT(\"Gesamt!\"&E$1&$A25)),\"\",INDIRECT(\"Gesamt!\"&E$1&$A25))","v":""}]
[23,{"$f":"IF(ISBLANK(INDIRECT(\"Gesamt!\"&B$1&$A26)),\"\",INDIRECT(\"Gesamt!\"&B$1&$A26))","v":"Diagramme\n- Sinnvoll unterstützender / ergänzender Einsatz einer grafischen Aufbereitung der Daten (0,5P)\n- Ergänzende Darstellung eines weiteren, andersartigen Diagrammes (0,5P)"},{"$f":"IF(ISBLANK(INDIRECT(\"Gesamt!\"&C$1&$A26)),\"\",INDIRECT(\"Gesamt!\"&C$1&$A26))","v":1},{"$f":"IF(ISBLANK(INDIRECT(\"Gesamt!\"&D$1&$A26)),\"\",INDIRECT(\"Gesamt!\"&D$1&$A26))","v":""},{"$f":"IF(ISBLANK(INDIRECT(\"Gesamt!\"&E$1&$A26)),\"\",INDIRECT(\"Gesamt!\"&E$1&$A26))","v":""}]
[24,{"$f":"IF(ISBLANK(INDIRECT(\"Gesamt!\"&B$1&$A27)),\"\",INDIRECT(\"Gesamt!\"&B$1&$A27))","v":"Komposition\n- Zweckmäßiger Methodeneinsatz (1P)\n- Zielgerichtete Argumentation (1P)"},{"$f":"IF(ISBLANK(INDIRECT(\"Gesamt!\"&C$1&$A27)),\"\",INDIRECT(\"Gesamt!\"&C$1&$A27))","v":2},{"$f":"IF(ISBLANK(INDIRECT(\"Gesamt!\"&D$1&$A27)),\"\",INDIRECT(\"Gesamt!\"&D$1&$A27))","v":""},{"$f":"IF(ISBLANK(INDIRECT(\"Gesamt!\"&E$1&$A27)),\"\",INDIRECT(\"Gesamt!\"&E$1&$A27))","v":""}]
[25,{"$f":"IF(ISBLANK(INDIRECT(\"Gesamt!\"&B$1&$A28)),\"\",INDIRECT(\"Gesamt!\"&B$1&$A28))","v":"Formalia (Zwischenabgabe)\n- Analytische Ausarbeitung (0,5P)\n    + Übersichtlichkeit\n    + Nachvollziehbarkeit aller Rechnungen\n- Schriftliche Ausarbeitung (0,5P)\n    + Formatierung des Dokuments\n    + Zitation wissenschaftlicher Quellen"},{"$f":"IF(ISBLANK(INDIRECT(\"Gesamt!\"&C$1&$A28)),\"\",INDIRECT(\"Gesamt!\"&C$1&$A28))","v":1},{"$f":"IF(ISBLANK(INDIRECT(\"Gesamt!\"&D$1&$A28)),\"\",INDIRECT(\"Gesamt!\"&D$1&$A28))","v":""},{"$f":"IF(ISBLANK(INDIRECT(\"Gesamt!\"&E$1&$A28)),\"\",INDIRECT(\"Gesamt!\"&E$1&$A28))","v":""}]
[26,{"$f":"IF(ISBLANK(INDIRECT(\"Gesamt!\"&B$1&$A29)),\"\",INDIRECT(\"Gesamt!\"&B$1&$A29))","v":"Zwischensumme Zwischenabgabe"},{"$f":"IF(ISBLANK(INDIRECT(\"Gesamt!\"&C$1&$A29)),\"\",INDIRECT(\"Gesamt!\"&C$1&$A29))","v":8},{"$f":"IF(ISBLANK(INDIRECT(\"Gesamt!\"&D$1&$A29)),\"\",INDIRECT(\"Gesamt!\"&D$1&$A29))","v":0},{"$f":"IF(ISBLANK(INDIRECT(\"Gesamt!\"&E$1&$A29)),\"\",INDIRECT(\"Gesamt!\"&E$1&$A29))","v":""}]
[27,{"$f":"IF(ISBLANK(INDIRECT(\"Gesamt!\"&B$1&$A30)),\"\",INDIRECT(\"Gesamt!\"&B$1&$A30))","v":"Endabgabe"},{"$f":"IF(ISBLANK(INDIRECT(\"Gesamt!\"&C$1&$A30)),\"\",INDIRECT(\"Gesamt!\"&C$1&$A30))","v":""},{"$f":"IF(ISBLANK(INDIRECT(\"Gesamt!\"&D$1&$A30)),\"\",INDIRECT(\"Gesamt!\"&D$1&$A30))","v":"Gruppe: "}]
[28,{"$f":"IF(ISBLANK(INDIRECT(\"Gesamt!\"&B$1&$A31)),\"\",INDIRECT(\"Gesamt!\"&B$1&$A31))","v":"Ziel der Endabgabe:"},null,null,{"$f":"IF(ISBLANK(INDIRECT(\"Gesamt!\"&\"B\"&$A31)),\"\",INDIRECT(\"Gesamt!\"&\"B\"&$A31))","v":"Beantwortung der Forschungsfrage unter Nutzung inferenzstatistischer Verfahren und Finalisierung der Arbeit"}]
[29,{"$f":"IF(ISBLANK(INDIRECT(\"Gesamt!\"&B$1&$A32)),\"\",INDIRECT(\"Gesamt!\"&B$1&$A32))","v":""},{"$f":"IF(ISBLANK(INDIRECT(\"Gesamt!\"&C$1&$A32)),\"\",INDIRECT(\"Gesamt!\"&C$1&$A32))","v":"Punkte"},{"$f":"IF(ISBLANK(INDIRECT(\"Gesamt!\"&D$1&$A32)),\"\",INDIRECT(\"Gesamt!\"&D$1&$A32))","v":"Bewertung"},{"$f":"IF(ISBLANK(INDIRECT(\"Gesamt!\"&E$1&$A32)),\"\",INDIRECT(\"Gesamt!\"&E$1&$A32))","v":"Kommentar"}]
[30,{"$f":"IF(ISBLANK(INDIRECT(\"Gesamt!\"&B$1&$A33)),\"\",INDIRECT(\"Gesamt!\"&B$1&$A33))","v":"Verbesserung der Deskriptiven Statistik hinsichtlich Korrektheit, Vollständigkeit, Beschreibung und Einordnung in den Sachkontext\n- Lagemaße (0,5P)\n- Streuungsmaße (0,5P)\n- Ergänzende Maße (0,5P)\n- Zusammenhangsmaße (0,5P)"},{"$f":"IF(ISBLANK(INDIRECT(\"Gesamt!\"&C$1&$A33)),\"\",INDIRECT(\"Gesamt!\"&C$1&$A33))","v":2},{"$f":"IF(ISBLANK(INDIRECT(\"Gesamt!\"&D$1&$A33)),\"\",INDIRECT(\"Gesamt!\"&D$1&$A33))","v":""},{"$f":"IF(ISBLANK(INDIRECT(\"Gesamt!\"&E$1&$A33)),\"\",INDIRECT(\"Gesamt!\"&E$1&$A33))","v":""}]
[31,{"$f":"IF(ISBLANK(INDIRECT(\"Gesamt!\"&B$1&$A34)),\"\",INDIRECT(\"Gesamt!\"&B$1&$A34))","v":"Inferenzstatistik: Freie Methodenwahl\n- Inhaltlich begründete Methodenauswahl (1P)\n- Voraussetzungen erfüllt (0,5P)\n- Fehlerfreie Berechnungen (0,5P)\n- Korrekte Testanwendung (0,5P)\n- Statistische Interpretation und Einordnung in Sachkontext (1P)"},{"$f":"IF(ISBLANK(INDIRECT(\"Gesamt!\"&C$1&$A34)),\"\",INDIRECT(\"Gesamt!\"&C$1&$A34))","v":3.5},{"$f":"IF(ISBLANK(INDIRECT(\"Gesamt!\"&D$1&$A34)),\"\",INDIRECT(\"Gesamt!\"&D$1&$A34))","v":""},{"$f":"IF(ISBLANK(INDIRECT(\"Gesamt!\"&E$1&$A34)),\"\",INDIRECT(\"Gesamt!\"&E$1&$A34))","v":""}]
[32,{"$f":"IF(ISBLANK(INDIRECT(\"Gesamt!\"&B$1&$A35)),\"\",INDIRECT(\"Gesamt!\"&B$1&$A35))","v":"Inferenzstatistik: Zusammenhangsanalyse\n- Variablen- und Methodenauswahl kongruent (1P)\n- Voraussetzungen erfüllt (0,5P)\n- Fehlerfreie Berechnungen (0,5P)\n- Korrekte Testanwendung (0,5P)\n- Statistische Interpretation und Einordnung in Sachkontext (1P)"},{"$f":"IF(ISBLANK(INDIRECT(\"Gesamt!\"&C$1&$A35)),\"\",INDIRECT(\"Gesamt!\"&C$1&$A35))","v":3.5},{"$f":"IF(ISBLANK(INDIRECT(\"Gesamt!\"&D$1&$A35)),\"\",INDIRECT(\"Gesamt!\"&D$1&$A35))","v":""},{"$f":"IF(ISBLANK(INDIRECT(\"Gesamt!\"&E$1&$A35)),\"\",INDIRECT(\"Gesamt!\"&E$1&$A35))","v":""}]
[33,{"$f":"IF(ISBLANK(INDIRECT(\"Gesamt!\"&B$1&$A36)),\"\",INDIRECT(\"Gesamt!\"&B$1&$A36))","v":"Argumentationsfluss & Gesamteindruck\n- Inhaltlicher Aufbau\n- Verknüpfung der Fragestellung mit der Anwendung der inhaltlichen Methoden\n- Verknüpfung deskriptiver und analytischer Statistik\n- Keine rezeptartige Beschreibung von Rechenwegen"},{"$f":"IF(ISBLANK(INDIRECT(\"Gesamt!\"&C$1&$A36)),\"\",INDIRECT(\"Gesamt!\"&C$1&$A36))","v":2},{"$f":"IF(ISBLANK(INDIRECT(\"Gesamt!\"&D$1&$A36)),\"\",INDIRECT(\"Gesamt!\"&D$1&$A36))","v":""},{"$f":"IF(ISBLANK(INDIRECT(\"Gesamt!\"&E$1&$A36)),\"\",INDIRECT(\"Gesamt!\"&E$1&$A36))","v":""}]
[34,{"$f":"IF(ISBLANK(INDIRECT(\"Gesamt!\"&B$1&$A37)),\"\",INDIRECT(\"Gesamt!\"&B$1&$A37))","v":"Zielerreichung\n- Antwort auf die gestellte Forschungsfrage\n- Zusammenfassung der Ergebnisse\n- Kritische Würdigung des eigenen Vorgehens"},{"$f":"IF(ISBLANK(INDIRECT(\"Gesamt!\"&C$1&$A37)),\"\",INDIRECT(\"Gesamt!\"&C$1&$A37))","v":2},{"$f":"IF(ISBLANK(INDIRECT(\"Gesamt!\"&D$1&$A37)),\"\",INDIRECT(\"Gesamt!\"&D$1&$A37))","v":""},{"$f":"IF(ISBLANK(INDIRECT(\"Gesamt!\"&E$1&$A37)),\"\",INDIRECT(\"Gesamt!\"&E$1&$A37))","v":""}]
[35,{"$f":"IF(ISBLANK(INDIRECT(\"Gesamt!\"&B$1&$A38)),\"\",INDIRECT(\"Gesamt!\"&B$1&$A38))","v":"Formalia (Endabgabe)\n- Nutzung des bereitgestellten Templates (fhswf R-Package) und angemessene wissenschaftliche Gestaltung des finalen Dokumentes unter Verwendung der im Template enthaltenen Checkliste\n- Abgabe ist vollständig reproduzierbar (Alle Dateien wurden eingereicht: PDF, Rmd, etc)"},{"$f":"IF(ISBLANK(INDIRECT(\"Gesamt!\"&C$1&$A38)),\"\",INDIRECT(\"Gesamt!\"&C$1&$A38))","v":1},{"$f":"IF(ISBLANK(INDIRECT(\"Gesamt!\"&D$1&$A38)),\"\",INDIRECT(\"Gesamt!\"&D$1&$A38))","v":""},{"$f":"IF(ISBLANK(INDIRECT(\"Gesamt!\"&E$1&$A38)),\"\",INDIRECT(\"Gesamt!\"&E$1&$A38))","v":""}]
[36,{"$f":"IF(ISBLANK(INDIRECT(\"Gesamt!\"&B$1&$A39)),\"\",INDIRECT(\"Gesamt!\"&B$1&$A39))","v":"Analytische Qualität\n- Übersichtlichkeit der Analyse (R Datei)\n- Nachvollziehbarkeit aller Rechnungen\n- Vollständigkeit"},{"$f":"IF(ISBLANK(INDIRECT(\"Gesamt!\"&C$1&$A39)),\"\",INDIRECT(\"Gesamt!\"&C$1&$A39))","v":1},{"$f":"IF(ISBLANK(INDIRECT(\"Gesamt!\"&D$1&$A39)),\"\",INDIRECT(\"Gesamt!\"&D$1&$A39))","v":""},{"$f":"IF(ISBLANK(INDIRECT(\"Gesamt!\"&E$1&$A39)),\"\",INDIRECT(\"Gesamt!\"&E$1&$A39))","v":""}]
[37,{"$f":"IF(ISBLANK(INDIRECT(\"Gesamt!\"&B$1&$A40)),\"\",INDIRECT(\"Gesamt!\"&B$1&$A40))","v":"Zwischensumme Endabgabe"},{"$f":"IF(ISBLANK(INDIRECT(\"Gesamt!\"&C$1&$A40)),\"\",INDIRECT(\"Gesamt!\"&C$1&$A40))","v":15},{"$f":"IF(ISBLANK(INDIRECT(\"Gesamt!\"&D$1&$A40)),\"\",INDIRECT(\"Gesamt!\"&D$1&$A40))","v":0},{"$f":"IF(ISBLANK(INDIRECT(\"Gesamt!\"&E$1&$A40)),\"\",INDIRECT(\"Gesamt!\"&E$1&$A40))","v":""}]
[38,{"$f":"IF(ISBLANK(INDIRECT(\"Gesamt!\"&B$1&$A41)),\"\",INDIRECT(\"Gesamt!\"&B$1&$A41))","v":"Abschließende Bewertung"},{"$f":"IF(ISBLANK(INDIRECT(\"Gesamt!\"&C$1&$A41)),\"\",INDIRECT(\"Gesamt!\"&C$1&$A41))","v":""},{"$f":"IF(ISBLANK(INDIRECT(\"Gesamt!\"&D$1&$A41)),\"\",INDIRECT(\"Gesamt!\"&D$1&$A41))","v":"Gruppe: "}]
[39,{"$f":"IF(ISBLANK(INDIRECT(\"Gesamt!\"&B$1&$A42)),\"\",INDIRECT(\"Gesamt!\"&B$1&$A42))","v":"Exposé"},{"$f":"IF(ISBLANK(INDIRECT(\"Gesamt!\"&C$1&$A42)),\"\",INDIRECT(\"Gesamt!\"&C$1&$A42))","v":2},{"$f":"IF(ISBLANK(INDIRECT(\"Gesamt!\"&D$1&$A42)),\"\",INDIRECT(\"Gesamt!\"&D$1&$A42))","v":0},{"$f":"IF(ISBLANK(INDIRECT(\"Gesamt!\"&E$1&$A42)),\"\",INDIRECT(\"Gesamt!\"&E$1&$A42))","v":"(0,0 %)"}]
[40,{"$f":"IF(ISBLANK(INDIRECT(\"Gesamt!\"&B$1&$A43)),\"\",INDIRECT(\"Gesamt!\"&B$1&$A43))","v":"Zwischenabgabe"},{"$f":"IF(ISBLANK(INDIRECT(\"Gesamt!\"&C$1&$A43)),\"\",INDIRECT(\"Gesamt!\"&C$1&$A43))","v":8},{"$f":"IF(ISBLANK(INDIRECT(\"Gesamt!\"&D$1&$A43)),\"\",INDIRECT(\"Gesamt!\"&D$1&$A43))","v":0},{"$f":"IF(ISBLANK(INDIRECT(\"Gesamt!\"&E$1&$A43)),\"\",INDIRECT(\"Gesamt!\"&E$1&$A43))","v":"(0,0 %)"}]
[41,{"$f":"IF(ISBLANK(INDIRECT(\"Gesamt!\"&B$1&$A44)),\"\",INDIRECT(\"Gesamt!\"&B$1&$A44))","v":"Endabgabe"},{"$f":"IF(ISBLANK(INDIRECT(\"Gesamt!\"&C$1&$A44)),\"\",INDIRECT(\"Gesamt!\"&C$1&$A44))","v":15},{"$f":"IF(ISBLANK(INDIRECT(\"Gesamt!\"&D$1&$A44)),\"\",INDIRECT(\"Gesamt!\"&D$1&$A44))","v":0},{"$f":"IF(ISBLANK(INDIRECT(\"Gesamt!\"&E$1&$A44)),\"\",INDIRECT(\"Gesamt!\"&E$1&$A44))","v":"(0,0 %)"}]
[42,{"$f":"IF(ISBLANK(INDIRECT(\"Gesamt!\"&B$1&$A45)),\"\",INDIRECT(\"Gesamt!\"&B$1&$A45))","v":"Endpunktzahl (rechnerisch)"},{"$f":"IF(ISBLANK(INDIRECT(\"Gesamt!\"&C$1&$A45)),\"\",INDIRECT(\"Gesamt!\"&C$1&$A45))","v":25},{"$f":"IF(ISBLANK(INDIRECT(\"Gesamt!\"&D$1&$A45)),\"\",INDIRECT(\"Gesamt!\"&D$1&$A45))","v":0},{"$f":"IF(ISBLANK(INDIRECT(\"Gesamt!\"&E$1&$A45)),\"\",INDIRECT(\"Gesamt!\"&E$1&$A45))","v":"(0,0 %)"}]
[43,{"$f":"IF(ISBLANK(INDIRECT(\"Gesamt!\"&B$1&$A46)),\"\",INDIRECT(\"Gesamt!\"&B$1&$A46))","v":"Endergebnis (gerundet)"},{"$f":"IF(ISBLANK(INDIRECT(\"Gesamt!\"&C$1&$A46)),\"\",INDIRECT(\"Gesamt!\"&C$1&$A46))","v":25},{"$f":"IF(ISBLANK(INDIRECT(\"Gesamt!\"&D$1&$A46)),\"\",INDIRECT(\"Gesamt!\"&D$1&$A46))","v":0},{"$f":"IF(ISBLANK(INDIRECT(\"Gesamt!\"&E$1&$A46)),\"\",INDIRECT(\"Gesamt!\"&E$1&$A46))","v":"(0,0 %)"}]
[44,{"$f":"IF(ISBLANK(INDIRECT(\"Gesamt!\"&B$1&$A47)),\"\",INDIRECT(\"Gesamt!\"&B$1&$A47))","v":"Quantil (ECTS-Grad) [nur Korrektor]"},{"$f":"IF(ISBLANK(INDIRECT(\"Gesamt!\"&C$1&$A47)),\"\",INDIRECT(\"Gesamt!\"&C$1&$A47))","v":"0-1 (A-E)"},{"$f":"IF(ISBLANK(INDIRECT(\"Gesamt!\"&D$1&$A47)),\"\",INDIRECT(\"Gesamt!\"&D$1&$A47))","v":{"$error":"#N/A"}},{"$f":"IF(ISBLANK(INDIRECT(\"Gesamt!\"&E$1&$A47)),\"\",INDIRECT(\"Gesamt!\"&E$1&$A47))","v":{"$error":"#N/A"}}]
[]
[]
[45,{"$f":"IF(ISBLANK(INDIRECT(\"Gesamt!\"&B$1&$A50)),\"\",INDIRECT(\"Gesamt!\"&B$1&$A50))","v":"Vorleistung (50% der Punkte nach Zwischenabgabe)"}]
[]
[null,{"$f":"IF(ISBLANK(INDIRECT(\"Gesamt!\"&E$1&$A50)),\"\",INDIRECT(\"Gesamt!\"&E$1&$A50))","v":"Nicht Bestanden"}]
[]
[]
[]
[null,"Hinweis: Das Bestehen der Vorleistung ist Bedingung für die Zulassung zur Prüfung. Endpunktzahl (rechnerisch) und Endergebnis (gerundet) werden erst nach bestandener Vorleistung angezeigt."]

{"sheet":"G13","index":14,"n_rows":56,"n_cols":6,"rows_kept":56,"cut":false,"hidden":false,"merged":[[49,1,49,4],[51,1,53,4],[55,1,55,4],[1,1,1,4],[2,1,2,4],[12,3,12,4],[19,3,19,4],[29,3,29,4],[40,3,40,4]]}
["Startspalte:","A","C",{"$f":"SUBSTITUTE(ADDRESS(1,A2,4),\"1\",\"\")","v":"AN"},{"$f":"SUBSTITUTE(ADDRESS(1,A2+1,4),\"1\",\"\")","v":"AO"},{"$f":"SUBSTITUTE(ADDRESS(1,A2+2,4),\"1\",\"\")","v":"AP"}]
[40,{"$f":"\"Feedback - Gruppe: \"&IF(ISBLANK(INDIRECT(\"Gesamt!\"&E$1&$A5)),\"\",INDIRECT(\"Gesamt!\"&E$1&$A5))","v":"Feedback - Gruppe: "}]
[{"$f":"TEXT(TODAY(),\"JJJJMMTT\")","v":"20240514"},{"$f":"TODAY()","v":"2024-05-14"}]
[1,"Oranisatorisches",null,null,{"$f":"IF(ISBLANK(INDIRECT(\"Gesamt!\"&E$1&$A4)),\"\",INDIRECT(\"Gesamt!\"&E$1&$A4))","v":""}]
[2,{"$f":"IF(ISBLANK(INDIRECT(\"Gesamt!\"&B$1&$A5)),\"\",INDIRECT(\"Gesamt!\"&B$1&$A5))","v":"Korrektor"},{"$f":"IF(ISBLANK(INDIRECT(\"Gesamt!\"&C$1&$A5)),\"\",INDIRECT(\"Gesamt!\"&C$1&$A5))","v":""},{"$f":"IF(ISBLANK(INDIRECT(\"Gesamt!\"&D$1&$A5)),\"\",INDIRECT(\"Gesamt!\"&D$1&$A5))","v":"Gruppe"},{"$f":"IF(ISBLANK(INDIRECT(\"Gesamt!\"&E$1&$A5)),\"\",INDIRECT(\"Gesamt!\"&E$1&$A5))","v":""}]
[3,{"$f":"IF(ISBLANK(INDIRECT(\"Gesamt!\"&B$1&$A6)),\"\",INDIRECT(\"Gesamt!\"&B$1&$A6))","v":"Prof. Dr. Benjamin Buchwitz"},{"$f":"IF(ISBLANK(INDIRECT(\"Gesamt!\"&C$1&$A6)),\"\",INDIRECT(\"Gesamt!\"&C$1&$A6))","v":""},{"$f":"IF(ISBLANK(INDIRECT(\"Gesamt!\"&D$1&$A6)),\"\",INDIRECT(\"Gesamt!\"&D$1&$A6))","v":"Matrikelnr."},{"$f":"IF(ISBLANK(INDIRECT(\"Gesamt!\"&E$1&$A6)),\"\",INDIRECT(\"Gesamt!\"&E$1&$A6))","v":"Name"},"Aktiv"]
[4,{"$f":"IF(ISBLANK(INDIRECT(\"Gesamt!\"&B$1&$A7)),\"\",INDIRECT(\"Gesamt!\"&B$1&$A7))","v":"Kontaktmöglichkeit"},{"$f":"IF(ISBLANK(INDIRECT(\"Gesamt!\"&C$1&$A7)),\"\",INDIRECT(\"Gesamt!\"&C$1&$A7))","v":""},{"$f":"IF(ISBLANK(INDIRECT(\"Gesamt!\"&D$1&$A7)),\"\",INDIRECT(\"Gesamt!\"&D$1&$A7))","v":" "},{"$f":"IF(ISBLANK(INDIRECT(\"Gesamt!\"&E$1&$A7)),\"\",INDIRECT(\"Gesamt!\"&E$1&$A7))","v":" "},{"$f":"IF(ISBLANK(INDIRECT(\"Gesamt!\"&F$1&$A7)),\"\",INDIRECT(\"Gesamt!\"&F$1&$A7))","v":true}]
[5,{"$f":"IF(ISBLANK(INDIRECT(\"Gesamt!\"&B$1&$A8)),\"\",INDIRECT(\"Gesamt!\"&B$1&$A8))","v":"buchwitz.benjamin@fh-swf.de"},{"$f":"IF(ISBLANK(INDIRECT(\"Gesamt!\"&C$1&$A8)),\"\",INDIRECT(\"Gesamt!\"&C$1&$A8))","v":""},{"$f":"IF(ISBLANK(INDIRECT(\"Gesamt!\"&D$1&$A8)),\"\",INDIRECT(\"Gesamt!\"&D$1&$A8))","v":""},{"$f":"IF(ISBLANK(INDIRECT(\"Gesamt!\"&E$1&$A8)),\"\",INDIRECT(\"Gesamt!\"&E$1&$A8))","v":""},{"$f":"IF(ISBLANK(INDIRECT(\"Gesamt!\"&F$1&$A8)),\"\",INDIRECT(\"Gesamt!\"&F$1&$A8))","v":" "}]
[6,{"$f":"IF(ISBLANK(INDIRECT(\"Gesamt!\"&B$1&$A9)),\"\",INDIRECT(\"Gesamt!\"&B$1&$A9))","v":""},{"$f":"IF(ISBLANK(INDIRECT(\"Gesamt!\"&C$1&$A9)),\"\",INDIRECT(\"Gesamt!\"&C$1&$A9))","v":""},{"$f":"IF(ISBLANK(INDIRECT(\"Gesamt!\"&D$1&$A9)),\"\",INDIRECT(\"Gesamt!\"&D$1&$A9))","v":""},{"$f":"IF(ISBLANK(INDIRECT(\"Gesamt!\"&E$1&$A9)),\"\",INDIRECT(\"Gesamt!\"&E$1&$A9))","v":""},{"$f":"IF(ISBLANK(INDIRECT(\"Gesamt!\"&F$1&$A9)),\"\",INDIRECT(\"Gesamt!\"&F$1&$A9))","v":" "}]
[7,"Kommunikationsverantwortlicher Autor:",{"$f":"IF(ISBLANK(INDIRECT(\"Gesamt!\"&C$1&$A10)),\"\",INDIRECT(\"Gesamt!\"&C$1&$A10))","v":""},{"$f":"IF(ISBLANK(INDIRECT(\"Gesamt!\"&D$1&$A10)),\"\",INDIRECT(\"Gesamt!\"&D$1&$A10))","v":""},{"$f":"IF(ISBLANK(INDIRECT(\"Gesamt!\"&E$1&$A10)),\"\",INDIRECT(\"Gesamt!\"&E$1&$A10))","v":""},{"$f":"IF(ISBLANK(INDIRECT(\"Gesamt!\"&F$1&$A10)),\"\",INDIRECT(\"Gesamt!\"&F$1&$A10))","v":" "}]
[8,{"$f":"E7 & \" (Gruppensprecher:in)\"","v":"  (Gruppensprecher:in)"},{"$f":"IF(ISBLANK(INDIRECT(\"Gesamt!\"&C$1&$A11)),\"\",INDIRECT(\"Gesamt!\"&C$1&$A11))","v":""},{"$f":"IF(ISBLANK(INDIRECT(\"Gesamt!\"&D$1&$A11)),\"\",INDIRECT(\"Gesamt!\"&D$1&$A11))","v":""},{"$f":"IF(ISBLANK(INDIRECT(\"Gesamt!\"&E$1&$A11)),\"\",INDIRECT(\"Gesamt!\"&E$1&$A11))","v":""},{"$f":"IF(ISBLANK(INDIRECT(\"Gesamt!\"&F$1&$A11)),\"\",INDIRECT(\"Gesamt!\"&F$1&$A11))","v":" "}]
[9,{"$f":"IF(ISBLANK(INDIRECT(\"Gesamt!\"&B$1&$A12)),\"\",INDIRECT(\"Gesamt!\"&B$1&$A12))","v":""},{"$f":"IF(ISBLANK(INDIRECT(\"Gesamt!\"&C$1&$A12)),\"\",INDIRECT(\"Gesamt!\"&C$1&$A12))","v":""},{"$f":"IF(ISBLANK(INDIRECT(\"Gesamt!\"&D$1&$A12)),\"\",INDIRECT(\"Gesamt!\"&D$1&$A12))","v":""},{"$f":"IF(ISBLANK(INDIRECT(\"Gesamt!\"&E$1&$A12)),\"\",INDIRECT(\"Gesamt!\"&E$1&$A12))","v":""},{"$f":"IF(ISBLANK(INDIRECT(\"Gesamt!\"&F$1&$A12)),\"\",INDIRECT(\"Gesamt!\"&F$1&$A12))","v":" "}]
[10,{"$f":"IF(ISBLANK(INDIRECT(\"Gesamt!\"&B$1&$A13)),\"\",INDIRECT(\"Gesamt!\"&B$1&$A13))","v":"Exposé"},{"$f":"IF(ISBLANK(INDIRECT(\"Gesamt!\"&C$1&$A13)),\"\",INDIRECT(\"Gesamt!\"&C$1&$A13))","v":""},{"$f":"IF(ISBLANK(INDIRECT(\"Gesamt!\"&D$1&$A13)),\"\",INDIRECT(\"Gesamt!\"&D$1&$A13))","v":"Gruppe: "}]
[11,{"$f":"IF(ISBLANK(INDIRECT(\"Gesamt!\"&B$1&$A14)),\"\",INDIRECT(\"Gesamt!\"&B$1&$A14))","v":"Ziel des Exposés:"},null,null,{"$f":"IF(ISBLANK(INDIRECT(\"Gesamt!\"&\"B\"&$A14)),\"\",INDIRECT(\"Gesamt!\"&\"B\"&$A14))","v":"Einarbeitung in den Sachkontext und Genese einer zum Datensatz passenden Forschungsfrage"}]
[12,{"$f":"IF(ISBLANK(INDIRECT(\"Gesamt!\"&B$1&$A15)),\"\",INDIRECT(\"Gesamt!\"&B$1&$A15))","v":""},{"$f":"IF(ISBLANK(INDIRECT(\"Gesamt!\"&C$1&$A15)),\"\",INDIRECT(\"Gesamt!\"&C$1&$A15))","v":"Punkte"},{"$f":"IF(ISBLANK(INDIRECT(\"Gesamt!\"&D$1&$A15)),\"\",INDIRECT(\"Gesamt!\"&D$1&$A15))","v":"Bewertung"},{"$f":"IF(ISBLANK(INDIRECT(\"Gesamt!\"&E$1&$A15)),\"\",INDIRECT(\"Gesamt!\"&E$1&$A15))","v":"Kommentar"}]
[13,{"$f":"IF(ISBLANK(INDIRECT(\"Gesamt!\"&B$1&$A16)),\"\",INDIRECT(\"Gesamt!\"&B$1&$A16))","v":"Forschungsgegenstand\n- Zielausgestaltung (0,2P)\n- Fragestellung (0,4P)\n- Hypothesen (0,4P)"},{"$f":"IF(ISBLANK(INDIRECT(\"Gesamt!\"&C$1&$A16)),\"\",INDIRECT(\"Gesamt!\"&C$1&$A16))","v":1},{"$f":"IF(ISBLANK(INDIRECT(\"Gesamt!\"&D$1&$A16)),\"\",INDIRECT(\"Gesamt!\"&D$1&$A16))","v":""},{"$f":"IF(ISBLANK(INDIRECT(\"Gesamt!\"&E$1&$A16)),\"\",INDIRECT(\"Gesamt!\"&E$1&$A16))","v":""}]
[14,{"$f":"IF(ISBLANK(INDIRECT(\"Gesamt!\"&B$1&$A17)),\"\",INDIRECT(\"Gesamt!\"&B$1&$A17))","v":"Komposition\n- Inhaltlicher Zusammenhang (0,2P)\n- fachsprachlich formulierte Vorgehensweise (0,2P)\n- Motivation des Themas (0,1P)"},{"$f":"IF(ISBLANK(INDIRECT(\"Gesamt!\"&C$1&$A17)),\"\",INDIRECT(\"Gesamt!\"&C$1&$A17))","v":0.5},{"$f":"IF(ISBLANK(INDIRECT(\"Gesamt!\"&D$1&$A17)),\"\",INDIRECT(\"Gesamt!\"&D$1&$A17))","v":""},{"$f":"IF(ISBLANK(INDIRECT(\"Gesamt!\"&E$1&$A17)),\"\",INDIRECT(\"Gesamt!\"&E$1&$A17))","v":""}]
[15,{"$f":"IF(ISBLANK(INDIRECT(\"Gesamt!\"&B$1&$A18)),\"\",INDIRECT(\"Gesamt!\"&B$1&$A18))","v":"Formalia (Exposé)\n- Template Nutzung & Formatierung (0,3P)\n- Schreibstil & Rechtschreibung (0,2P)"},{"$f":"IF(ISBLANK(INDIRECT(\"Gesamt!\"&C$1&$A18)),\"\",INDIRECT(\"Gesamt!\"&C$1&$A18))","v":0.5},{"$f":"IF(ISBLANK(INDIRECT(\"Gesamt!\"&D$1&$A18)),\"\",INDIRECT(\"Gesamt!\"&D$1&$A18))","v":""},{"$f":"IF(ISBLANK(INDIRECT(\"Gesamt!\"&E$1&$A18)),\"\",INDIRECT(\"Gesamt!\"&E$1&$A18))","v":""}]
[16,{"$f":"IF(ISBLANK(INDIRECT(\"Gesamt!\"&B$1&$A19)),\"\",INDIRECT(\"Gesamt!\"&B$1&$A19))","v":"Zwischensumme Exposé"},{"$f":"IF(ISBLANK(INDIRECT(\"Gesamt!\"&C$1&$A19)),\"\",INDIRECT(\"Gesamt!\"&C$1&$A19))","v":2},{"$f":"IF(ISBLANK(INDIRECT(\"Gesamt!\"&D$1&$A19)),\"\",INDIRECT(\"Gesamt!\"&D$1&$A19))","v":0},{"$f":"IF(ISBLANK(INDIRECT(\"Gesamt!\"&E$1&$A19)),\"\",INDIRECT(\"Gesamt!\"&E$1&$A19))","v":""}]
[17,{"$f":"IF(ISBLANK(INDIRECT(\"Gesamt!\"&B$1&$A20)),\"\",INDIRECT(\"Gesamt!\"&B$1&$A20))","v":"Zwischenabgabe"},{"$f":"IF(ISBLANK(INDIRECT(\"Gesamt!\"&C$1&$A20)),\"\",INDIRECT(\"Gesamt!\"&C$1&$A20))","v":""},{"$f":"IF(ISBLANK(INDIRECT(\"Gesamt!\"&D$1&$A20)),\"\",INDIRECT(\"Gesamt!\"&D$1&$A20))","v":"Gruppe: "}]
[18,{"$f":"IF(ISBLANK(INDIRECT(\"Gesamt!\"&B$1&$A21)),\"\",INDIRECT(\"Gesamt!\"&B$1&$A21))","v":"Ziel der Zwischenabgabe:"},null,null,{"$f":"IF(ISBLANK(INDIRECT(\"Gesamt!\"&\"B\"&$A21)),\"\",INDIRECT(\"Gesamt!\"&\"B\"&$A21))","v":"Vorstellung des Datensatzes und Vorbereitung der inferenzstatistischen Analyseverfahren"}]
[19,{"$f":"IF(ISBLANK(INDIRECT(\"Gesamt!\"&B$1&$A22)),\"\",INDIRECT(\"Gesamt!\"&B$1&$A22))","v":""},{"$f":"IF(ISBLANK(INDIRECT(\"Gesamt!\"&C$1&$A22)),\"\",INDIRECT(\"Gesamt!\"&C$1&$A22))","v":"Punkte"},{"$f":"IF(ISBLANK(INDIRECT(\"Gesamt!\"&D$1&$A22)),\"\",INDIRECT(\"Gesamt!\"&D$1&$A22))","v":"Bewertung"},{"$f":"IF(ISBLANK(INDIRECT(\"Gesamt!\"&E$1&$A22)),\"\",INDIRECT(\"Gesamt!\"&E$1&$A22))","v":"Kommentar"}]
[20,{"$f":"IF(ISBLANK(INDIRECT(\"Gesamt!\"&B$1&$A23)),\"\",INDIRECT(\"Gesamt!\"&B$1&$A23))","v":"Lage- & Streuungsmaße\n- Deskriptive Statistik für alle verwendeten Variablen\n- Berechnung, Interpretation und Einordnung in den Sachkontext"},{"$f":"IF(ISBLANK(INDIRECT(\"Gesamt!\"&C$1&$A23)),\"\",INDIRECT(\"Gesamt!\"&C$1&$A23))","v":2},{"$f":"IF(ISBLANK(INDIRECT(\"Gesamt!\"&D$1&$A23)),\"\",INDIRECT(\"Gesamt!\"&D$1&$A23))","v":""},{"$f":"IF(ISBLANK(INDIRECT(\"Gesamt!\"&E$1&$A23)),\"\",INDIRECT(\"Gesamt!\"&E$1&$A23))","v":""}]
[21,{"$f":"IF(ISBLANK(INDIRECT(\"Gesamt!\"&B$1&$A24)),\"\",INDIRECT(\"Gesamt!\"&B$1&$A24))","v":"Zusammenhangsmaße\n- Berechnung, Interpretation und Einordnung in den Sachkontext von (min.) einem Zusammenhangsmaß"},{"$f":"IF(ISBLANK(INDIRECT(\"Gesamt!\"&C$1&$A24)),\"\",INDIRECT(\"Gesamt!\"&C$1&$A24))","v":1},{"$f":"IF(ISBLANK(INDIRECT(\"Gesamt!\"&D$1&$A24)),\"\",INDIRECT(\"Gesamt!\"&D$1&$A24))","v":""},{"$f":"IF(ISBLANK(INDIRECT(\"Gesamt!\"&E$1&$A24)),\"\",INDIRECT(\"Gesamt!\"&E$1&$A24))","v":""}]
[22,{"$f":"IF(ISBLANK(INDIRECT(\"Gesamt!\"&B$1&$A25)),\"\",INDIRECT(\"Gesamt!\"&B$1&$A25))","v":"Ergänzende Berechnung\n- Ergänzende Berechnung, Interpretation und Einordnung in den Sachkontext (min.) eines weiteren Zusammenhangsmaßes oder Konzentrationsmaßes"},{"$f":"IF(ISBLANK(INDIRECT(\"Gesamt!\"&C$1&$A25)),\"\",INDIRECT(\"Gesamt!\"&C$1&$A25))","v":1},{"$f":"IF(ISBLANK(INDIRECT(\"Gesamt!\"&D$1&$A25)),\"\",INDIRECT(\"Gesamt!\"&D$1&$A25))","v":""},{"$f":"IF(ISBLANK(INDIRECT(\"Gesamt!\"&E$1&$A25)),\"\",INDIRECT(\"Gesamt!\"&E$1&$A25))","v":""}]
[23,{"$f":"IF(ISBLANK(INDIRECT(\"Gesamt!\"&B$1&$A26)),\"\",INDIRECT(\"Gesamt!\"&B$1&$A26))","v":"Diagramme\n- Sinnvoll unterstützender / ergänzender Einsatz einer grafischen Aufbereitung der Daten (0,5P)\n- Ergänzende Darstellung eines weiteren, andersartigen Diagrammes (0,5P)"},{"$f":"IF(ISBLANK(INDIRECT(\"Gesamt!\"&C$1&$A26)),\"\",INDIRECT(\"Gesamt!\"&C$1&$A26))","v":1},{"$f":"IF(ISBLANK(INDIRECT(\"Gesamt!\"&D$1&$A26)),\"\",INDIRECT(\"Gesamt!\"&D$1&$A26))","v":""},{"$f":"IF(ISBLANK(INDIRECT(\"Gesamt!\"&E$1&$A26)),\"\",INDIRECT(\"Gesamt!\"&E$1&$A26))","v":""}]
[24,{"$f":"IF(ISBLANK(INDIRECT(\"Gesamt!\"&B$1&$A27)),\"\",INDIRECT(\"Gesamt!\"&B$1&$A27))","v":"Komposition\n- Zweckmäßiger Methodeneinsatz (1P)\n- Zielgerichtete Argumentation (1P)"},{"$f":"IF(ISBLANK(INDIRECT(\"Gesamt!\"&C$1&$A27)),\"\",INDIRECT(\"Gesamt!\"&C$1&$A27))","v":2},{"$f":"IF(ISBLANK(INDIRECT(\"Gesamt!\"&D$1&$A27)),\"\",INDIRECT(\"Gesamt!\"&D$1&$A27))","v":""},{"$f":"IF(ISBLANK(INDIRECT(\"Gesamt!\"&E$1&$A27)),\"\",INDIRECT(\"Gesamt!\"&E$1&$A27))","v":""}]
[25,{"$f":"IF(ISBLANK(INDIRECT(\"Gesamt!\"&B$1&$A28)),\"\",INDIRECT(\"Gesamt!\"&B$1&$A28))","v":"Formalia (Zwischenabgabe)\n- Analytische Ausarbeitung (0,5P)\n    + Übersichtlichkeit\n    + Nachvollziehbarkeit aller Rechnungen\n- Schriftliche Ausarbeitung (0,5P)\n    + Formatierung des Dokuments\n    + Zitation wissenschaftlicher Quellen"},{"$f":"IF(ISBLANK(INDIRECT(\"Gesamt!\"&C$1&$A28)),\"\",INDIRECT(\"Gesamt!\"&C$1&$A28))","v":1},{"$f":"IF(ISBLANK(INDIRECT(\"Gesamt!\"&D$1&$A28)),\"\",INDIRECT(\"Gesamt!\"&D$1&$A28))","v":""},{"$f":"IF(ISBLANK(INDIRECT(\"Gesamt!\"&E$1&$A28)),\"\",INDIRECT(\"Gesamt!\"&E$1&$A28))","v":""}]
[26,{"$f":"IF(ISBLANK(INDIRECT(\"Gesamt!\"&B$1&$A29)),\"\",INDIRECT(\"Gesamt!\"&B$1&$A29))","v":"Zwischensumme Zwischenabgabe"},{"$f":"IF(ISBLANK(INDIRECT(\"Gesamt!\"&C$1&$A29)),\"\",INDIRECT(\"Gesamt!\"&C$1&$A29))","v":8},{"$f":"IF(ISBLANK(INDIRECT(\"Gesamt!\"&D$1&$A29)),\"\",INDIRECT(\"Gesamt!\"&D$1&$A29))","v":0},{"$f":"IF(ISBLANK(INDIRECT(\"Gesamt!\"&E$1&$A29)),\"\",INDIRECT(\"Gesamt!\"&E$1&$A29))","v":""}]
[27,{"$f":"IF(ISBLANK(INDIRECT(\"Gesamt!\"&B$1&$A30)),\"\",INDIRECT(\"Gesamt!\"&B$1&$A30))","v":"Endabgabe"},{"$f":"IF(ISBLANK(INDIRECT(\"Gesamt!\"&C$1&$A30)),\"\",INDIRECT(\"Gesamt!\"&C$1&$A30))","v":""},{"$f":"IF(ISBLANK(INDIRECT(\"Gesamt!\"&D$1&$A30)),\"\",INDIRECT(\"Gesamt!\"&D$1&$A30))","v":"Gruppe: "}]
[28,{"$f":"IF(ISBLANK(INDIRECT(\"Gesamt!\"&B$1&$A31)),\"\",INDIRECT(\"Gesamt!\"&B$1&$A31))","v":"Ziel der Endabgabe:"},null,null,{"$f":"IF(ISBLANK(INDIRECT(\"Gesamt!\"&\"B\"&$A31)),\"\",INDIRECT(\"Gesamt!\"&\"B\"&$A31))","v":"Beantwortung der Forschungsfrage unter Nutzung inferenzstatistischer Verfahren und Finalisierung der Arbeit"}]
[29,{"$f":"IF(ISBLANK(INDIRECT(\"Gesamt!\"&B$1&$A32)),\"\",INDIRECT(\"Gesamt!\"&B$1&$A32))","v":""},{"$f":"IF(ISBLANK(INDIRECT(\"Gesamt!\"&C$1&$A32)),\"\",INDIRECT(\"Gesamt!\"&C$1&$A32))","v":"Punkte"},{"$f":"IF(ISBLANK(INDIRECT(\"Gesamt!\"&D$1&$A32)),\"\",INDIRECT(\"Gesamt!\"&D$1&$A32))","v":"Bewertung"},{"$f":"IF(ISBLANK(INDIRECT(\"Gesamt!\"&E$1&$A32)),\"\",INDIRECT(\"Gesamt!\"&E$1&$A32))","v":"Kommentar"}]
[30,{"$f":"IF(ISBLANK(INDIRECT(\"Gesamt!\"&B$1&$A33)),\"\",INDIRECT(\"Gesamt!\"&B$1&$A33))","v":"Verbesserung der Deskriptiven Statistik hinsichtlich Korrektheit, Vollständigkeit, Beschreibung und Einordnung in den Sachkontext\n- Lagemaße (0,5P)\n- Streuungsmaße (0,5P)\n- Ergänzende Maße (0,5P)\n- Zusammenhangsmaße (0,5P)"},{"$f":"IF(ISBLANK(INDIRECT(\"Gesamt!\"&C$1&$A33)),\"\",INDIRECT(\"Gesamt!\"&C$1&$A33))","v":2},{"$f":"IF(ISBLANK(INDIRECT(\"Gesamt!\"&D$1&$A33)),\"\",INDIRECT(\"Gesamt!\"&D$1&$A33))","v":""},{"$f":"IF(ISBLANK(INDIRECT(\"Gesamt!\"&E$1&$A33)),\"\",INDIRECT(\"Gesamt!\"&E$1&$A33))","v":""}]
[31,{"$f":"IF(ISBLANK(INDIRECT(\"Gesamt!\"&B$1&$A34)),\"\",INDIRECT(\"Gesamt!\"&B$1&$A34))","v":"Inferenzstatistik: Freie Methodenwahl\n- Inhaltlich begründete Methodenauswahl (1P)\n- Voraussetzungen erfüllt (0,5P)\n- Fehlerfreie Berechnungen (0,5P)\n- Korrekte Testanwendung (0,5P)\n- Statistische Interpretation und Einordnung in Sachkontext (1P)"},{"$f":"IF(ISBLANK(INDIRECT(\"Gesamt!\"&C$1&$A34)),\"\",INDIRECT(\"Gesamt!\"&C$1&$A34))","v":3.5},{"$f":"IF(ISBLANK(INDIRECT(\"Gesamt!\"&D$1&$A34)),\"\",INDIRECT(\"Gesamt!\"&D$1&$A34))","v":""},{"$f":"IF(ISBLANK(INDIRECT(\"Gesamt!\"&E$1&$A34)),\"\",INDIRECT(\"Gesamt!\"&E$1&$A34))","v":""}]
[32,{"$f":"IF(ISBLANK(INDIRECT(\"Gesamt!\"&B$1&$A35)),\"\",INDIRECT(\"Gesamt!\"&B$1&$A35))","v":"Inferenzstatistik: Zusammenhangsanalyse\n- Variablen- und Methodenauswahl kongruent (1P)\n- Voraussetzungen erfüllt (0,5P)\n- Fehlerfreie Berechnungen (0,5P)\n- Korrekte Testanwendung (0,5P)\n- Statistische Interpretation und Einordnung in Sachkontext (1P)"},{"$f":"IF(ISBLANK(INDIRECT(\"Gesamt!\"&C$1&$A35)),\"\",INDIRECT(\"Gesamt!\"&C$1&$A35))","v":3.5},{"$f":"IF(ISBLANK(INDIRECT(\"Gesamt!\"&D$1&$A35)),\"\",INDIRECT(\"Gesamt!\"&D$1&$A35))","v":""},{"$f":"IF(ISBLANK(INDIRECT(\"Gesamt!\"&E$1&$A35)),\"\",INDIRECT(\"Gesamt!\"&E$1&$A35))","v":""}]
[33,{"$f":"IF(ISBLANK(INDIRECT(\"Gesamt!\"&B$1&$A36)),\"\",INDIRECT(\"Gesamt!\"&B$1&$A36))","v":"Argumentationsfluss & Gesamteindruck\n- Inhaltlicher Aufbau\n- Verknüpfung der Fragestellung mit der Anwendung der inhaltlichen Methoden\n- Verknüpfung deskriptiver und analytischer Statistik\n- Keine rezeptartige Beschreibung von Rechenwegen"},{"$f":"IF(ISBLANK(INDIRECT(\"Gesamt!\"&C$1&$A36)),\"\",INDIRECT(\"Gesamt!\"&C$1&$A36))","v":2},{"$f":"IF(ISBLANK(INDIRECT(\"Gesamt!\"&D$1&$A36)),\"\",INDIRECT(\"Gesamt!\"&D$1&$A36))","v":""},{"$f":"IF(ISBLANK(INDIRECT(\"Gesamt!\"&E$1&$A36)),\"\",INDIRECT(\"Gesamt!\"&E$1&$A36))","v":""}]
[34,{"$f":"IF(ISBLANK(INDIRECT(\"Gesamt!\"&B$1&$A37)),\"\",INDIRECT(\"Gesamt!\"&B$1&$A37))","v":"Zielerreichung\n- Antwort auf die gestellte Forschungsfrage\n- Zusammenfassung der Ergebnisse\n- Kritische Würdigung des eigenen Vorgehens"},{"$f":"IF(ISBLANK(INDIRECT(\"Gesamt!\"&C$1&$A37)),\"\",INDIRECT(\"Gesamt!\"&C$1&$A37))","v":2},{"$f":"IF(ISBLANK(INDIRECT(\"Gesamt!\"&D$1&$A37)),\"\",INDIRECT(\"Gesamt!\"&D$1&$A37))","v":""},{"$f":"IF(ISBLANK(INDIRECT(\"Gesamt!\"&E$1&$A37)),\"\",INDIRECT(\"Gesamt!\"&E$1&$A37))","v":""}]
[35,{"$f":"IF(ISBLANK(INDIRECT(\"Gesamt!\"&B$1&$A38)),\"\",INDIRECT(\"Gesamt!\"&B$1&$A38))","v":"Formalia (Endabgabe)\n- Nutzung des bereitgestellten Templates (fhswf R-Package) und angemessene wissenschaftliche Gestaltung des finalen Dokumentes unter Verwendung der im Template enthaltenen Checkliste\n- Abgabe ist vollständig reproduzierbar (Alle Dateien wurden eingereicht: PDF, Rmd, etc)"},{"$f":"IF(ISBLANK(INDIRECT(\"Gesamt!\"&C$1&$A38)),\"\",INDIRECT(\"Gesamt!\"&C$1&$A38))","v":1},{"$f":"IF(ISBLANK(INDIRECT(\"Gesamt!\"&D$1&$A38)),\"\",INDIRECT(\"Gesamt!\"&D$1&$A38))","v":""},{"$f":"IF(ISBLANK(INDIRECT(\"Gesamt!\"&E$1&$A38)),\"\",INDIRECT(\"Gesamt!\"&E$1&$A38))","v":""}]
[36,{"$f":"IF(ISBLANK(INDIRECT(\"Gesamt!\"&B$1&$A39)),\"\",INDIRECT(\"Gesamt!\"&B$1&$A39))","v":"Analytische Qualität\n- Übersichtlichkeit der Analyse (R Datei)\n- Nachvollziehbarkeit aller Rechnungen\n- Vollständigkeit"},{"$f":"IF(ISBLANK(INDIRECT(\"Gesamt!\"&C$1&$A39)),\"\",INDIRECT(\"Gesamt!\"&C$1&$A39))","v":1},{"$f":"IF(ISBLANK(INDIRECT(\"Gesamt!\"&D$1&$A39)),\"\",INDIRECT(\"Gesamt!\"&D$1&$A39))","v":""},{"$f":"IF(ISBLANK(INDIRECT(\"Gesamt!\"&E$1&$A39)),\"\",INDIRECT(\"Gesamt!\"&E$1&$A39))","v":""}]
[37,{"$f":"IF(ISBLANK(INDIRECT(\"Gesamt!\"&B$1&$A40)),\"\",INDIRECT(\"Gesamt!\"&B$1&$A40))","v":"Zwischensumme Endabgabe"},{"$f":"IF(ISBLANK(INDIRECT(\"Gesamt!\"&C$1&$A40)),\"\",INDIRECT(\"Gesamt!\"&C$1&$A40))","v":15},{"$f":"IF(ISBLANK(INDIRECT(\"Gesamt!\"&D$1&$A40)),\"\",INDIRECT(\"Gesamt!\"&D$1&$A40))","v":0},{"$f":"IF(ISBLANK(INDIRECT(\"Gesamt!\"&E$1&$A40)),\"\",INDIRECT(\"Gesamt!\"&E$1&$A40))","v":""}]
[38,{"$f":"IF(ISBLANK(INDIRECT(\"Gesamt!\"&B$1&$A41)),\"\",INDIRECT(\"Gesamt!\"&B$1&$A41))","v":"Abschließende Bewertung"},{"$f":"IF(ISBLANK(INDIRECT(\"Gesamt!\"&C$1&$A41)),\"\",INDIRECT(\"Gesamt!\"&C$1&$A41))","v":""},{"$f":"IF(ISBLANK(INDIRECT(\"Gesamt!\"&D$1&$A41)),\"\",INDIRECT(\"Gesamt!\"&D$1&$A41))","v":"Gruppe: "}]
[39,{"$f":"IF(ISBLANK(INDIRECT(\"Gesamt!\"&B$1&$A42)),\"\",INDIRECT(\"Gesamt!\"&B$1&$A42))","v":"Exposé"},{"$f":"IF(ISBLANK(INDIRECT(\"Gesamt!\"&C$1&$A42)),\"\",INDIRECT(\"Gesamt!\"&C$1&$A42))","v":2},{"$f":"IF(ISBLANK(INDIRECT(\"Gesamt!\"&D$1&$A42)),\"\",INDIRECT(\"Gesamt!\"&D$1&$A42))","v":0},{"$f":"IF(ISBLANK(INDIRECT(\"Gesamt!\"&E$1&$A42)),\"\",INDIRECT(\"Gesamt!\"&E$1&$A42))","v":"(0,0 %)"}]
[40,{"$f":"IF(ISBLANK(INDIRECT(\"Gesamt!\"&B$1&$A43)),\"\",INDIRECT(\"Gesamt!\"&B$1&$A43))","v":"Zwischenabgabe"},{"$f":"IF(ISBLANK(INDIRECT(\"Gesamt!\"&C$1&$A43)),\"\",INDIRECT(\"Gesamt!\"&C$1&$A43))","v":8},{"$f":"IF(ISBLANK(INDIRECT(\"Gesamt!\"&D$1&$A43)),\"\",INDIRECT(\"Gesamt!\"&D$1&$A43))","v":0},{"$f":"IF(ISBLANK(INDIRECT(\"Gesamt!\"&E$1&$A43)),\"\",INDIRECT(\"Gesamt!\"&E$1&$A43))","v":"(0,0 %)"}]
[41,{"$f":"IF(ISBLANK(INDIRECT(\"Gesamt!\"&B$1&$A44)),\"\",INDIRECT(\"Gesamt!\"&B$1&$A44))","v":"Endabgabe"},{"$f":"IF(ISBLANK(INDIRECT(\"Gesamt!\"&C$1&$A44)),\"\",INDIRECT(\"Gesamt!\"&C$1&$A44))","v":15},{"$f":"IF(ISBLANK(INDIRECT(\"Gesamt!\"&D$1&$A44)),\"\",INDIRECT(\"Gesamt!\"&D$1&$A44))","v":0},{"$f":"IF(ISBLANK(INDIRECT(\"Gesamt!\"&E$1&$A44)),\"\",INDIRECT(\"Gesamt!\"&E$1&$A44))","v":"(0,0 %)"}]
[42,{"$f":"IF(ISBLANK(INDIRECT(\"Gesamt!\"&B$1&$A45)),\"\",INDIRECT(\"Gesamt!\"&B$1&$A45))","v":"Endpunktzahl (rechnerisch)"},{"$f":"IF(ISBLANK(INDIRECT(\"Gesamt!\"&C$1&$A45)),\"\",INDIRECT(\"Gesamt!\"&C$1&$A45))","v":25},{"$f":"IF(ISBLANK(INDIRECT(\"Gesamt!\"&D$1&$A45)),\"\",INDIRECT(\"Gesamt!\"&D$1&$A45))","v":0},{"$f":"IF(ISBLANK(INDIRECT(\"Gesamt!\"&E$1&$A45)),\"\",INDIRECT(\"Gesamt!\"&E$1&$A45))","v":"(0,0 %)"}]
[43,{"$f":"IF(ISBLANK(INDIRECT(\"Gesamt!\"&B$1&$A46)),\"\",INDIRECT(\"Gesamt!\"&B$1&$A46))","v":"Endergebnis (gerundet)"},{"$f":"IF(ISBLANK(INDIRECT(\"Gesamt!\"&C$1&$A46)),\"\",INDIRECT(\"Gesamt!\"&C$1&$A46))","v":25},{"$f":"IF(ISBLANK(INDIRECT(\"Gesamt!\"&D$1&$A46)),\"\",INDIRECT(\"Gesamt!\"&D$1&$A46))","v":0},{"$f":"IF(ISBLANK(INDIRECT(\"Gesamt!\"&E$1&$A46)),\"\",INDIRECT(\"Gesamt!\"&E$1&$A46))","v":"(0,0 %)"}]
[44,{"$f":"IF(ISBLANK(INDIRECT(\"Gesamt!\"&B$1&$A47)),\"\",INDIRECT(\"Gesamt!\"&B$1&$A47))","v":"Quantil (ECTS-Grad) [nur Korrektor]"},{"$f":"IF(ISBLANK(INDIRECT(\"Gesamt!\"&C$1&$A47)),\"\",INDIRECT(\"Gesamt!\"&C$1&$A47))","v":"0-1 (A-E)"},{"$f":"IF(ISBLANK(INDIRECT(\"Gesamt!\"&D$1&$A47)),\"\",INDIRECT(\"Gesamt!\"&D$1&$A47))","v":{"$error":"#N/A"}},{"$f":"IF(ISBLANK(INDIRECT(\"Gesamt!\"&E$1&$A47)),\"\",INDIRECT(\"Gesamt!\"&E$1&$A47))","v":{"$error":"#N/A"}}]
[]
[]
[45,{"$f":"IF(ISBLANK(INDIRECT(\"Gesamt!\"&B$1&$A50)),\"\",INDIRECT(\"Gesamt!\"&B$1&$A50))","v":"Vorleistung (50% der Punkte nach Zwischenabgabe)"}]
[]
[null,{"$f":"IF(ISBLANK(INDIRECT(\"Gesamt!\"&E$1&$A50)),\"\",INDIRECT(\"Gesamt!\"&E$1&$A50))","v":"Nicht Bestanden"}]
[]
[]
[]
[null,"Hinweis: Das Bestehen der Vorleistung ist Bedingung für die Zulassung zur Prüfung. Endpunktzahl (rechnerisch) und Endergebnis (gerundet) werden erst nach bestandener Vorleistung angezeigt."]

{"sheet":"Settings","index":15,"n_rows":36,"n_cols":6,"rows_kept":36,"cut":false,"hidden":false,"merged":[]}
["Laufende Nummer","Spalte1","Spalte2","Gruppe","Punkte","Quantil"]
[1,"D","E",{"$f":"INDIRECT(\"Gesamt!\"&C2&\"2\")","v":0},{"$f":"IF(D2=0,\"\",INDIRECT(\"Gesamt!\"&B2&\"43\"))","v":""},{"$f":"_xlfn.PERCENTRANK.INC($E$2:$E$14,E2)","v":{"$error":"#VALUE!"}}]
[2,"G","H",{"$f":"INDIRECT(\"Gesamt!\"&C3&\"2\")","v":0},{"$f":"IF(D3=0,\"\",INDIRECT(\"Gesamt!\"&B3&\"43\"))","v":""},{"$f":"_xlfn.PERCENTRANK.INC($E$2:$E$14,E3)","v":{"$error":"#VALUE!"}}]
[3,"J","K",{"$f":"INDIRECT(\"Gesamt!\"&C4&\"2\")","v":0},{"$f":"IF(D4=0,\"\",INDIRECT(\"Gesamt!\"&B4&\"43\"))","v":""},{"$error":"#VALUE!"}]
[4,"M","N",{"$f":"INDIRECT(\"Gesamt!\"&C5&\"2\")","v":0},{"$f":"IF(D5=0,\"\",INDIRECT(\"Gesamt!\"&B5&\"43\"))","v":""},{"$error":"#VALUE!"}]
[5,"P","Q",{"$f":"INDIRECT(\"Gesamt!\"&C6&\"2\")","v":0},{"$f":"IF(D6=0,\"\",INDIRECT(\"Gesamt!\"&B6&\"43\"))","v":""},{"$error":"#VALUE!"}]
[6,"S","T",{"$f":"INDIRECT(\"Gesamt!\"&C7&\"2\")","v":0},{"$f":"IF(D7=0,\"\",INDIRECT(\"Gesamt!\"&B7&\"43\"))","v":""},{"$error":"#VALUE!"}]
[7,"V","W",{"$f":"INDIRECT(\"Gesamt!\"&C8&\"2\")","v":0},{"$f":"IF(D8=0,\"\",INDIRECT(\"Gesamt!\"&B8&\"43\"))","v":""},{"$error":"#VALUE!"}]
[8,"Y","Z",{"$f":"INDIRECT(\"Gesamt!\"&C9&\"2\")","v":0},{"$f":"IF(D9=0,\"\",INDIRECT(\"Gesamt!\"&B9&\"43\"))","v":""},{"$error":"#VALUE!"}]
[9,"AB","AC",{"$f":"INDIRECT(\"Gesamt!\"&C10&\"2\")","v":0},{"$f":"IF(D10=0,\"\",INDIRECT(\"Gesamt!\"&B10&\"43\"))","v":""},{"$error":"#VALUE!"}]
[10,"AE","AF",{"$f":"INDIRECT(\"Gesamt!\"&C11&\"2\")","v":0},{"$f":"IF(D11=0,\"\",INDIRECT(\"Gesamt!\"&B11&\"43\"))","v":""},{"$error":"#VALUE!"}]
[11,"AH","AJ",{"$f":"INDIRECT(\"Gesamt!\"&C12&\"2\")","v":0},{"$f":"IF(D12=0,\"\",INDIRECT(\"Gesamt!\"&B12&\"43\"))","v":""},{"$error":"#VALUE!"}]
[12,"AL","AM",{"$f":"INDIRECT(\"Gesamt!\"&C13&\"2\")","v":0},{"$f":"IF(D13=0,\"\",INDIRECT(\"Gesamt!\"&B13&\"43\"))","v":""},{"$error":"#VALUE!"}]
[13,"AO","AP",{"$f":"INDIRECT(\"Gesamt!\"&C14&\"2\")","v":0},{"$f":"IF(D14=0,\"\",INDIRECT(\"Gesamt!\"&B14&\"43\"))","v":""},{"$error":"#VALUE!"}]
[]
[]
[]
[]
[]
[]
[]
[]
[]
[]
[]
[]
[]
[]
[]
[]
[null,null,null,"Datum",{"$f":"TEXT(TODAY(),\"JJJJMMTT\")","v":"20240514"}]
[]
[]
[null,null,null,"Auswahlliste",true]
[null,null,null,null,false]
[null,null,null,null," "]